Workbook

Sheet Úvod
A3: Nástroj pro posuzování projektů sálavého vytápění
B5: Nástroj slouží k vypočítání povrchových teplot konstrukcí a vytvoření teplotní mapy v prostorech vytápěných závěsnými sálavými panely
B9: Uživatel vyplňuje pouze pole označená
B10: S listy "Data", "Data_ksi", "Výpočet", "Tabulky" uživatel nijak nemanipuluje
B11: Ve všech listech není doporučeno přidávat sloupce ani měnit obsahy buněk neoznačených k úpravě
B13: Více informací ohledně fungování výpočetního nástroje lze nalézt v diplomové práci
B21: Tato výpočetní pomůcka vznikla na základě vypracování diplomové práce s názvem: Nástroj pro posuzování projektů sálavého vytápění.
G24: vypracoval:
H25: Jan Víša
G26: rok:
H27: 2015-2016

Sheet Skladby konstrukcí
B2: l (W/mK) | C2: d (mm) | D2: Ri (m2K/W) | E2: ∑Ri (m2K/W) | G2: Označení | H2: R (m2K/W) | I2: ε [-]
A3: Konstrukce 1 | G3: os1 | H3: =E4 -> 0 | I3: 0.9
A4: Materiál 1 | B4: 999 | C4: 0 | D4: =C4/1000/B4 -> 0 | E4: =SUM(D4:D7) -> 0
A5: Materiál 2 | B5: 999 | C5: 0 | D5: =C5/1000/B5 -> 0
A6: Materiál 3 | B6: 999 | C6: 0 | D6: 0
A7: Materiál 4 | B7: 999 | C7: 0 | D7: 0
A8: Konstrukce 2 | G8: os2 | H8: =E9 -> 0 | I8: 0.9
A9: Materiál 1 | B9: 999 | C9: 0 | D9: =C9/1000/B9 -> 0 | E9: =SUM(D9:D12) -> 0
A10: Materiál 2 | B10: 999 | C10: 0 | D10: =C10/1000/B10 -> 0
A11: Materiál 3 | B11: 999 | C11: 0 | D11: 0
A12: Materiál 4 | B12: 999 | C12: 0 | D12: 0
A13: Konstrukce 3 | G13: ns1 | H13: =E14 -> 0 | I13: 0.9
A14: Materiál 1 | B14: 999 | C14: 0 | D14: =C14/1000/B14 -> 0 | E14: =SUM(D14:D17) -> 0
A15: Materiál 2 | B15: 999 | C15: 0 | D15: =C15/1000/B15 -> 0
A16: Materiál 3 | B16: 999 | C16: 0 | D16: 0
A17: Materiál 4 | B17: 999 | C17: 0 | D17: 0
A18: Konstrukce 4 | G18: ns2 | H18: =E19 -> 0 | I18: 0.9
A19: Materiál 1 | B19: 999 | C19: 0 | D19: =C19/1000/B19 -> 0 | E19: =SUM(D19:D22) -> 0
A20: Materiál 2 | B20: 999 | C20: 0 | D20: =C20/1000/B20 -> 0
A21: Materiál 3 | B21: 999 | C21: 0 | D21: 0
A22: Materiál 4 | B22: 999 | C22: 0 | D22: 0
A23: Konstrukce 5 | G23: ostrech1 | H23: =E24 -> 0 | I23: 0.9
A24: Materiál 1 | B24: 999 | C24: 0 | D24: =C24/1000/B24 -> 0 | E24: =SUM(D24:D27) -> 0
A25: Materiál 2 | B25: 999 | C25: 0 | D25: =C25/1000/B25 -> 0
A26: Materiál 3 | B26: 999 | C26: 0 | D26: 0
A27: Materiál 4 | B27: 999 | C27: 0 | D27: 0
A28: Konstrukce 6 | G28: npdl1 | H28: =E29 -> 0 | I28: 0.9
A29: Materiál 1 | B29: 999 | C29: 0 | D29: =C29/1000/B29 -> 0 | E29: =SUM(D29:D32) -> 0
A30: Materiál 2 | B30: 999 | C30: 0 | D30: =C30/1000/B30 -> 0
A31: Materiál 3 | B31: 999 | C31: 0 | D31: 0
A32: Materiál 4 | B32: 999 | C32: 0 | D32: 0
A33: Konstrukce 7 | G33: ooz1 | H33: =E34 -> 0 | I33: 0.9
A34: Materiál 1 | B34: 999 | C34: 0 | D34: =C34/1000/B34 -> 0 | E34: =SUM(D34:D37) -> 0
A35: Materiál 2 | B35: 999 | C35: 0 | D35: =C35/1000/B35 -> 0
A36: Materiál 3 | B36: 999 | C36: 0 | D36: 0
A37: Materiál 4 | B37: 999 | C37: 0 | D37: 0
A38: Konstrukce 8 | G38: ooz2 | H38: =E39 -> 0 | I38: 0.9
A39: Materiál 1 | B39: 999 | C39: 0 | D39: =C39/1000/B39 -> 0 | E39: =SUM(D39:D42) -> 0
A40: Materiál 2 | B40: 999 | C40: 0 | D40: =C40/1000/B40 -> 0
A41: Materiál 3 | B41: 999 | C41: 0 | D41: 0
A42: Materiál 4 | B42: 999 | C42: 0 | D42: 0

Sheet Konstrukce
C1: ti [°C] | D1: 15 | F1: te [°C] | I1: Mv [kg/h] | J1: =M2*M1 -> 0 | L1: ρv [kg/m3] | M1: 1.2 | O1: tp,vz [°C]
C2: ti' [°C] | D2: 15 | F2: tz [°C] | I2: cv [J/kgK] | J2: 1010 | L2: Vv [m3/h] | O2: w [m/s]
A5: 1 | B5: 2 | C5: 3 | D5: 4 | E5: 5 | F5: 6 | G5: 7 | H5: 8 | I5: 9 | J5: 10 | K5: 11 | L5: 12 | M5: 13 | N5: 14 | O5: 15 | P5: 16 | Q5: 17 | R5: 18 | S5: 19 | T5: 20 | U5: 21 | V5: 22 | W5: 23 | X5: 24 | Y5: 25 | Z5: 26 | AA5: 27 | AB5: 28 | AC5: 29 | AD5: 30 | AE5: 31 | AF5: 32 | AG5: 33 | AH5: 34 | AI5: 35 | AJ5: 36 | AK5: 37 | AL5: 38 | AM5: 39 | AN5: 40 | AO5: 41 | AP5: 42 | AQ5: 43 | AR5: 44 | AS5: 45 | AT5: 46 | AU5: 47 | AV5: 48 | AW5: 49 | AX5: 50 | AY5: 51 | AZ5: 52 | BA5: 53 | BB5: 54 | BC5: 55 | BD5: 56 | BE5: 57 | BF5: 58 | BG5: 59 | BH5: 60 | BI5: 61 | BJ5: 62 | BK5: 63 | BL5: 64 | BM5: 65 | BN5: 66 | BO5: 67 | BP5: 68 | BQ5: 69 | BR5: 70 | BS5: 71 | BT5: 72 | BU5: 73 | BV5: 74 | BW5: 75 | BX5: 76 | BY5: 77 | BZ5: 78 | CA5: 79 | CB5: 80
E6: rozměry | AH6: součinitel přestupu tepla konvekcí na vnitřní straně | AT6: součinitel přestupu tepla konvekcí na vnější straně
E7: bod1 | H7: bod2 | K7: bod3 | N7: bod4 | AI7: vlastnosti vzduchu | BQ7: součinitel přestupu tepla konvekcí na horní straně - ASHRAE
A8: index | B8: skladba | C8: te' [°C] | D8: orientace | E8: x | F8: y | G8: z | H8: x | I8: y | J8: z | K8: x | L8: y | M8: z | N8: x | O8: y | P8: z | Q8: X [m] | R8: Y [m] | S8: Z [m] | T8: S [m2] | U8: S-SO [m2] | V8: R [m2K/W] | W8: tp [°C] | X8: ε [-] | Y8: Λ [W/m2K] | Z8: αki [W/m2K] | AA8: αke [W/m2K] | AB8: obdelník | AF8: g [m/s2] | AG8: L | AH8: ts [°C] | AI8: β [1/K] | AJ8: νvz [m2/s] | AK8: λvz [W/mK] | AL8: Pr [-] | AM8: Δt [°C] | AN8: Gr [-] | AO8: index | AP8: K | AQ8: n | AR8: Nu [-] | AS8: αk [W/m2K] | AT8: ts [°C] | AU8: β [1/K] | AV8: νvz [m2/s] | AW8: λvz [W/mK] | AX8: Pr [-] | AY8: Δt [°C] | AZ8: Gr [-] | BA8: index | BB8: K | BC8: n | BD8: Nu [-] | BE8: αk [W/m2K] | BG8: plocha s/h? | BH8: fiktivni plocha/panel? | BI8: index navazujici plochy | BJ8: orientace | BK8: otvor | BL8: L [m] | BM8: Re [-] | BN8: Nu [-] | BO8: αk [W/m2K] | BP8: index | BQ8: K | BR8: n
A9: 1 | Q9: =IF(OR(MID($D9,2,1)="1",MID($D9,2,1)="2"),0,ABS(E9-H9)) -> 0 | R9: =IF(OR(MID($D9,2,1)="3",MID($D9,2,1)="4"),0,ABS(F9-O9)) -> 0 | S9: =IF(OR(MID($D9,2,1)="5",MID($D9,2,1)="6"),0,ABS(G9-P9)) -> 0 | T9: =IF(OR(MID($D9,2,1)="1",MID($D9,2,1)="2"),R9*S9,IF(OR(MID($D9,2,1)="3",MID($D9,2,1)="4"),Q9*S9,Q9*R9)) -> 0 | U9: =IF(MID($B9,1,2)="oo",T9,IF(MID($B10,1,2)="oo",IF(MID($B11,1,2)="oo",T9-U10-U11,T9-U10),T9)) -> 0 | V9: =VLOOKUP(B9,tabulka_konstrukce,2,FALSE) ->  | W9: 20 | X9: =IF(MID(D9,3,1)="f",1,VLOOKUP(B9,tabulka_konstrukce,3,FALSE)) ->  | Y9: =1/(V9+(1/AA9)) ->  | Z9: =IF(P2<=0.2,AS9,MAX(AS9,BO9)) ->  | AA9: =IF(ISBLANK($C9),23,IF(MID($C9,1,1)="z",10^15,BE9)) -> 23 | AB9: 1 | AC9: =IF(BH9="f",VLOOKUP(VALUE(BI9),tabulka_kce_def,23,FALSE),W9) -> 20 | AF9: 9.81 | AG9: =IF(OR(MID($D9,2,1)="1",MID($D9,2,1)="2",MID($D9,2,1)="3",MID($D9,2,1)="4"),$S9,(($Q9*$R9)/(2*($Q9+$R9)))) ->  | AH9: =IF(($W9+$D$1)/2<0,0,($W9+$D$1)/2) -> 17.5 | AI9: =1/(273.15+(AH9)) -> 0.003440564253 | AJ9: =VLOOKUP(ROUND(AH9,0),tabulka_FyzVl_vzduch,6,TRUE)*10^-6 -> 1.5512e-05 | AK9: =VLOOKUP(ROUND(AH9,0),tabulka_FyzVl_vzduch,4,TRUE) -> 0.02496 | AL9: =VLOOKUP(ROUND(AH9,0),tabulka_FyzVl_vzduch,8,TRUE) -> 0.72 | AM9: =ABS($D$1-$W9) -> 5 | AN9: =$AF9*AI9*AM9*($AG9^3)/(AJ9^2) ->  | AO9: =IF(AN9*AL9>2*10^7,4,IF(AN9*AL9>5*10^2,3,IF(AN9*AL9>10^-3,2,1))) ->  | AP9: =VLOOKUP($AO9,tabulka_exponenty_Michejev,4,FALSE) ->  | AQ9: =VLOOKUP($AO9,tabulka_exponenty_Michejev,5,FALSE) ->  | AR9: =IF(OR(MID($D9,2,1)="1",MID($D9,2,1)="2",MID($D9,2,1)="3",MID($D9,2,1)="4"),AP9*((AN9*AL9)^AQ9),IF(MID($D9,2,1)="5",BQ9*((AN9*AL9)^BR9),0.27*(AN9*AL9)^(1/4))) ->  | AS9: =AR9*AK9/$AG9 ->  | AT9: =IF(($W9+$C9)/2<0,0,($W9+$C9)/2) -> 10 | AU9: =1/(273.15+(AT9)) -> 0.00353169698 | AV9: =VLOOKUP(ROUND(AT9,0),tabulka_FyzVl_vzduch,6,TRUE)*10^-6 -> 1.4805e-05 | AW9: =VLOOKUP(ROUND(AT9,0),tabulka_FyzVl_vzduch,4,TRUE) -> 0.0244 | AX9: =VLOOKUP(ROUND(AT9,0),tabulka_FyzVl_vzduch,8,TRUE) -> 0.72 | AY9: =ABS($C9-$W9) -> 20 | AZ9: =$AF9*AU9*AY9*($AG9^3)/(AV9^2) ->  | BA9: =IF(AZ9*AX9>2*10^7,4,IF(AZ9*AX9>5*10^2,3,IF(AZ9*AX9>10^-3,2,1))) ->  | BB9: =VLOOKUP($BA9,tabulka_exponenty_Michejev,4,FALSE) ->  | BC9: =VLOOKUP($BA9,tabulka_exponenty_Michejev,5,FALSE) ->  | BD9: =IF(OR(MID($D9,2,1)="1",MID($D9,2,1)="2",MID($D9,2,1)="3",MID($D9,2,1)="4"),BB9*((AZ9*AX9)^BC9),0.137*((AZ9*AX9)^(1/3))) ->  | BE9: =BD9*AW9/$AG9 ->  | BG9: =MID($D9,1,1) ->  | BH9: =MID($D9,3,1) ->  | BI9: =MID($D9,4,2) ->  | BJ9: =MID($D9,2,1) ->  | BK9: =IF(MID($B9,1,2)="oo",0,IF(AND(MID($B10,1,2)="oo",BJ9=BJ10),IF(AND(MID($B11,1,2)="oo",BJ9=BJ11),2,1),0)) -> 0 | BL9: =IF(OR(MID($D9,2,1)="1",MID($D9,2,1)="2",MID($D9,2,1)="3",MID($D9,2,1)="4"),$S9,0.5*($Q9+$R9)) -> 0 | BM9: =$P$2*BL9/AJ9 -> 0 | BN9: =IF(BM9<=4*10^5,0.664*(BM9^0.5)*(AL9^(1/3)),0.054*(BM9^0.78)*(AL9^0.78)) -> 0 | BO9: =BN9*AK9/BL9 ->  | BP9: =IF(AN9*AL9>8*10^6,4,IF(AN9*AL9>10^4,3,IF(AN9*AL9>200,2,1))) ->  | BQ9: =VLOOKUP($BP9,tabulka_exponenty_ASHRAE,4,FALSE) ->  | BR9: =VLOOKUP($BP9,tabulka_exponenty_ASHRAE,5,FALSE) -> 
A10: =IF(ISNUMBER(A9),A9+1,"=") -> 2 | Q10: =IF(OR(MID($D10,2,1)="1",MID($D10,2,1)="2"),0,ABS(E10-H10)) -> 0 | R10: =IF(OR(MID($D10,2,1)="3",MID($D10,2,1)="4"),0,ABS(F10-O10)) -> 0 | S10: =IF(OR(MID($D10,2,1)="5",MID($D10,2,1)="6"),0,ABS(G10-P10)) -> 0 | T10: =IF(OR(MID($D10,2,1)="1",MID($D10,2,1)="2"),R10*S10,IF(OR(MID($D10,2,1)="3",MID($D10,2,1)="4"),Q10*S10,Q10*R10)) -> 0 | U10: =IF(MID($B10,1,2)="oo",T10,IF(MID($B11,1,2)="oo",IF(MID($B12,1,2)="oo",T10-U11-U12,T10-U11),T10)) -> 0 | W10: 20 | Y10: =1/(V10+(1/AA10)) ->  | Z10: =MAX(AS10,BO10) ->  | AA10: 23 | AB10: 1 | AC10: 20 | AF10: =AF9 -> 9.81 | AG10: =IF(OR(MID($D10,2,1)="1",MID($D10,2,1)="2",MID($D10,2,1)="3",MID($D10,2,1)="4"),$S10,(($Q10*$R10)/(2*($Q10+$R10)))) ->  | AH10: =IF(($W10+$D$1)/2<0,0,($W10+$D$1)/2) -> 17.5 | AI10: =1/(273.15+(AH10)) -> 0.003440564253 | AJ10: 1.5512e-05 | AK10: 0.02496 | AL10: 0.72 | AM10: =ABS($D$1-$W10) -> 5 | AO10: =IF(AN10*AL10>2*10^7,4,IF(AN10*AL10>5*10^2,3,IF(AN10*AL10>10^-3,2,1))) ->  | AP10: =VLOOKUP($AO10,tabulka_exponenty_Michejev,4,FALSE) ->  | AR10: =IF(OR(MID($D10,2,1)="1",MID($D10,2,1)="2",MID($D10,2,1)="3",MID($D10,2,1)="4"),AP10*((AN10*AL10)^AQ10),IF(MID($D10,2,1)="5",BQ10*((AN10*AL10)^BR10),0.27*(AN10*AL10)^(1/4))) ->  | AT10: =IF(($W10+$C10)/2<0,0,($W10+$C10)/2) -> 10 | AU10: =1/(273.15+(AT10)) -> 0.00353169698 | AV10: 1.4805e-05 | AW10: 0.0244 | AX10: 0.72 | AY10: =ABS($C10-$W10) -> 20 | BA10: =IF(AZ10*AX10>2*10^7,4,IF(AZ10*AX10>5*10^2,3,IF(AZ10*AX10>10^-3,2,1))) ->  | BE10: =BD10*AW10/$AG10 ->  | BG10: =MID($D10,1,1) ->  | BH10: =MID($D10,3,1) ->  | BI10: =MID($D10,4,2) ->  | BJ10: =MID($D10,2,1) ->  | BK10: 0 | BL10: =IF(OR(MID($D10,2,1)="1",MID($D10,2,1)="2",MID($D10,2,1)="3",MID($D10,2,1)="4"),$S10,0.5*($Q10+$R10)) -> 0 | BM10: =$P$2*BL10/AJ10 -> 0 | BN10: =IF(BM10<=4*10^5,0.664*(BM10^0.5)*(AL10^(1/3)),0.054*(BM10^0.78)*(AL10^0.78)) -> 0 | BO10: =BN10*AK10/BL10 ->  | BP10: =IF(AN10*AL10>8*10^6,4,IF(AN10*AL10>10^4,3,IF(AN10*AL10>200,2,1))) -> 
A11: 3 | Q11: 0 | R11: 0 | S11: 0 | T11: 0 | U11: 0 | W11: 20 | AA11: 23 | AB11: 1 | AC11: 20 | AF11: =AF10 -> 9.81 | AH11: 17.5 | AI11: 0.003440564253 | AJ11: 1.5512e-05 | AK11: 0.02496 | AL11: 0.72 | AM11: 5 | AT11: 10 | AU11: 0.00353169698 | AV11: 1.4805e-05 | AW11: 0.0244 | AX11: 0.72 | AY11: 20 | BK11: =IF(MID($B11,1,2)="oo",0,IF(AND(MID($B12,1,2)="oo",BJ11=BJ12),IF(AND(MID($B13,1,2)="oo",BJ11=BJ13),2,1),0)) -> 0 | BL11: 0 | BM11: 0 | BN11: 0 | BP11: =IF(AN11*AL11>8*10^6,4,IF(AN11*AL11>10^4,3,IF(AN11*AL11>200,2,1))) -> 
A12: 4 | Q12: 0 | R12: 0 | S12: 0 | T12: 0 | U12: 0 | W12: 20 | AA12: 23 | AB12: 1 | AC12: 20 | AF12: 9.81 | AH12: 17.5 | AI12: 0.003440564253 | AJ12: 1.5512e-05 | AK12: 0.02496 | AL12: 0.72 | AM12: 5 | AT12: 10 | AU12: 0.00353169698 | AV12: 1.4805e-05 | AW12: 0.0244 | AX12: 0.72 | AY12: 20 | BK12: =IF(MID($B12,1,2)="oo",0,IF(AND(MID($B13,1,2)="oo",BJ12=BJ13),IF(AND(MID($B14,1,2)="oo",BJ12=BJ14),2,1),0)) -> 0 | BL12: 0 | BM12: 0 | BN12: 0
A13: 5 | Q13: 0 | R13: 0 | S13: 0 | T13: 0 | U13: 0 | W13: 20 | AA13: 23 | AB13: 1 | AC13: 20 | AF13: 9.81 | AH13: 17.5 | AI13: 0.003440564253 | AJ13: 1.5512e-05 | AK13: 0.02496 | AL13: 0.72 | AM13: 5 | AT13: 10 | AU13: 0.00353169698 | AV13: 1.4805e-05 | AW13: 0.0244 | AX13: 0.72 | AY13: 20 | BK13: 0 | BL13: 0 | BM13: 0 | BN13: 0
A14: 6 | Q14: 0 | R14: 0 | S14: 0 | T14: 0 | U14: 0 | W14: 20 | AA14: 23 | AB14: 1 | AC14: 20 | AF14: 9.81 | AH14: 17.5 | AI14: 0.003440564253 | AJ14: 1.5512e-05 | AK14: 0.02496 | AL14: 0.72 | AM14: 5 | AT14: 10 | AU14: 0.00353169698 | AV14: 1.4805e-05 | AW14: 0.0244 | AX14: 0.72 | AY14: 20 | BD14: =IF(OR(MID($D14,2,1)="1",MID($D14,2,1)="2",MID($D14,2,1)="3",MID($D14,2,1)="4"),BB14*((AZ14*AX14)^BC14),0.137*((AZ14*AX14)^(1/3))) ->  | BE14: =BD14*AW14/$AG14 ->  | BK14: 0 | BL14: 0 | BM14: 0 | BN14: 0
A15: 7 | Q15: 0 | R15: 0 | S15: 0 | T15: 0 | U15: 0 | W15: 20 | AA15: 23 | AB15: 1 | AC15: 20 | AF15: 9.81 | AH15: 17.5 | AI15: 0.003440564253 | AJ15: 1.5512e-05 | AK15: 0.02496 | AL15: 0.72 | AM15: 5 | AT15: 10 | AU15: 0.00353169698 | AV15: 1.4805e-05 | AW15: 0.0244 | AX15: 0.72 | AY15: 20 | BK15: 0 | BL15: 0 | BM15: 0 | BN15: 0
A16: 8 | Q16: 0 | R16: 0 | S16: 0 | T16: 0 | U16: 0 | W16: 20 | AA16: 23 | AB16: 1 | AC16: 20 | AF16: 9.81 | AH16: 17.5 | AI16: 0.003440564253 | AJ16: 1.5512e-05 | AK16: 0.02496 | AL16: 0.72 | AM16: 5 | AT16: 10 | AU16: 0.00353169698 | AV16: 1.4805e-05 | AW16: 0.0244 | AX16: 0.72 | AY16: 20 | BK16: 0 | BL16: 0 | BM16: 0 | BN16: 0
A17: 9 | Q17: 0 | R17: 0 | S17: 0 | T17: 0 | U17: 0 | W17: 20 | AA17: 23 | AB17: 1 | AC17: 20 | AF17: 9.81 | AH17: 17.5 | AI17: 0.003440564253 | AJ17: 1.5512e-05 | AK17: 0.02496 | AL17: 0.72 | AM17: 5 | AT17: 10 | AU17: 0.00353169698 | AV17: 1.4805e-05 | AW17: 0.0244 | AX17: 0.72 | AY17: 20 | BK17: 0 | BL17: 0 | BM17: 0 | BN17: 0
A18: 10 | Q18: 0 | R18: 0 | S18: 0 | T18: 0 | U18: 0 | W18: 20 | AA18: 23 | AB18: 1 | AC18: 20 | AF18: 9.81 | AH18: 17.5 | AI18: 0.003440564253 | AJ18: 1.5512e-05 | AK18: 0.02496 | AL18: 0.72 | AM18: 5 | AT18: 10 | AU18: 0.00353169698 | AV18: 1.4805e-05 | AW18: 0.0244 | AX18: 0.72 | AY18: 20 | BK18: 0 | BL18: 0 | BM18: 0 | BN18: 0
A19: 11 | Q19: 0 | R19: 0 | S19: 0 | T19: 0 | U19: 0 | W19: 20 | AA19: 23 | AB19: 1 | AC19: 20 | AF19: 9.81 | AH19: 17.5 | AI19: 0.003440564253 | AJ19: 1.5512e-05 | AK19: 0.02496 | AL19: 0.72 | AM19: 5 | AT19: 10 | AU19: 0.00353169698 | AV19: 1.4805e-05 | AW19: 0.0244 | AX19: 0.72 | AY19: 20 | BK19: 0 | BL19: 0 | BM19: 0 | BN19: 0
A20: 12 | Q20: 0 | R20: 0 | S20: 0 | T20: 0 | U20: 0 | W20: 20 | AA20: 23 | AB20: 1 | AC20: 20 | AF20: 9.81 | AH20: 17.5 | AI20: 0.003440564253 | AJ20: 1.5512e-05 | AK20: 0.02496 | AL20: 0.72 | AM20: 5 | AT20: 10 | AU20: 0.00353169698 | AV20: 1.4805e-05 | AW20: 0.0244 | AX20: 0.72 | AY20: 20 | BG20: =MID($D20,1,1) ->  | BK20: 0 | BL20: 0 | BM20: 0 | BN20: 0
A21: 13 | Q21: 0 | R21: 0 | S21: 0 | T21: 0 | U21: 0 | W21: 20 | AA21: 23 | AB21: 1 | AC21: 20 | AF21: 9.81 | AH21: 17.5 | AI21: 0.003440564253 | AJ21: 1.5512e-05 | AK21: 0.02496 | AL21: 0.72 | AM21: 5 | AT21: 10 | AU21: 0.00353169698 | AV21: 1.4805e-05 | AW21: 0.0244 | AX21: 0.72 | AY21: 20 | BK21: 0 | BL21: 0 | BM21: 0 | BN21: 0
A22: 14 | Q22: 0 | R22: 0 | S22: 0 | T22: 0 | U22: 0 | W22: 20 | AA22: 23 | AB22: 1 | AC22: 20 | AF22: 9.81 | AH22: 17.5 | AI22: 0.003440564253 | AJ22: 1.5512e-05 | AK22: 0.02496 | AL22: 0.72 | AM22: 5 | AT22: 10 | AU22: 0.00353169698 | AV22: 1.4805e-05 | AW22: 0.0244 | AX22: 0.72 | AY22: 20 | BK22: 0 | BL22: 0 | BM22: 0 | BN22: 0
A23: 15 | Q23: 0 | R23: 0 | S23: 0 | T23: 0 | U23: 0 | W23: 20 | AA23: 23 | AB23: 1 | AC23: 20 | AF23: 9.81 | AH23: 17.5 | AI23: 0.003440564253 | AJ23: 1.5512e-05 | AK23: 0.02496 | AL23: 0.72 | AM23: 5 | AT23: 10 | AU23: 0.00353169698 | AV23: 1.4805e-05 | AW23: 0.0244 | AX23: 0.72 | AY23: 20 | BK23: 0 | BL23: 0 | BM23: 0 | BN23: 0
A24: 16 | Q24: 0 | R24: 0 | S24: 0 | T24: 0 | U24: 0 | W24: 20 | AA24: 23 | AB24: 1 | AC24: 20 | AF24: 9.81 | AH24: 17.5 | AI24: 0.003440564253 | AJ24: 1.5512e-05 | AK24: 0.02496 | AL24: 0.72 | AM24: 5 | AT24: 10 | AU24: 0.00353169698 | AV24: 1.4805e-05 | AW24: 0.0244 | AX24: 0.72 | AY24: 20 | BK24: 0 | BL24: 0 | BM24: 0 | BN24: 0
A25: 17 | Q25: 0 | R25: 0 | S25: 0 | T25: 0 | U25: 0 | W25: 20 | AA25: 23 | AB25: 1 | AC25: 20 | AF25: 9.81 | AH25: 17.5 | AI25: 0.003440564253 | AJ25: 1.5512e-05 | AK25: 0.02496 | AL25: 0.72 | AM25: 5 | AT25: 10 | AU25: 0.00353169698 | AV25: 1.4805e-05 | AW25: 0.0244 | AX25: 0.72 | AY25: 20 | BK25: 0 | BL25: 0 | BM25: 0 | BN25: 0
A26: 18 | Q26: 0 | R26: 0 | S26: 0 | T26: 0 | U26: 0 | W26: 20 | AA26: 23 | AB26: 1 | AC26: 20 | AF26: 9.81 | AH26: 17.5 | AI26: 0.003440564253 | AJ26: 1.5512e-05 | AK26: 0.02496 | AL26: 0.72 | AM26: 5 | AT26: 10 | AU26: 0.00353169698 | AV26: 1.4805e-05 | AW26: 0.0244 | AX26: 0.72 | AY26: 20 | BK26: 0 | BL26: 0 | BM26: 0 | BN26: 0
A27: 19 | Q27: 0 | R27: 0 | S27: 0 | T27: 0 | U27: 0 | W27: 20 | AA27: 23 | AB27: 1 | AC27: 20 | AF27: 9.81 | AH27: 17.5 | AI27: 0.003440564253 | AJ27: 1.5512e-05 | AK27: 0.02496 | AL27: 0.72 | AM27: 5 | AT27: 10 | AU27: 0.00353169698 | AV27: 1.4805e-05 | AW27: 0.0244 | AX27: 0.72 | AY27: 20 | BK27: 0 | BL27: 0 | BM27: 0 | BN27: 0
A28: 20 | Q28: 0 | R28: 0 | S28: 0 | T28: 0 | U28: 0 | W28: 20 | AA28: 23 | AB28: 1 | AC28: 20 | AF28: 9.81 | AG28: =IF(OR(MID($D28,2,1)="1",MID($D28,2,1)="2",MID($D28,2,1)="3",MID($D28,2,1)="4"),$S28,(($Q28*$R28)/(2*($Q28+$R28)))) ->  | AH28: 17.5 | AI28: 0.003440564253 | AJ28: 1.5512e-05 | AK28: 0.02496 | AL28: 0.72 | AM28: 5 | AT28: 10 | AU28: 0.00353169698 | AV28: 1.4805e-05 | AW28: 0.0244 | AX28: 0.72 | AY28: 20 | BK28: 0 | BL28: 0 | BM28: 0 | BN28: 0
A29: 21 | Q29: =IF(OR(MID($D29,2,1)="1",MID($D29,2,1)="2"),0,ABS(E29-H29)) -> 0 | R29: =IF(OR(MID($D29,2,1)="3",MID($D29,2,1)="4"),0,ABS(F29-O29)) -> 0 | S29: =IF(OR(MID($D29,2,1)="5",MID($D29,2,1)="6"),0,ABS(G29-P29)) -> 0 | T29: =IF(OR(MID($D29,2,1)="1",MID($D29,2,1)="2"),R29*S29,IF(OR(MID($D29,2,1)="3",MID($D29,2,1)="4"),Q29*S29,Q29*R29)) -> 0 | U29: 0 | V29: =VLOOKUP(B29,tabulka_konstrukce,2,FALSE) ->  | W29: 20 | Y29: =1/(V29+(1/AA29)) ->  | AA29: =IF(ISBLANK($C29),23,IF(MID($C29,1,1)="z",10^15,BE29)) -> 23 | AB29: 1 | AC29: 20 | AF29: 9.81 | AH29: 17.5 | AI29: =1/(273.15+(AH29)) -> 0.003440564253 | AJ29: 1.5512e-05 | AK29: 0.02496 | AL29: 0.72 | AM29: 5 | AN29: =$AF29*AI29*AM29*($AG29^3)/(AJ29^2) ->  | AO29: =IF(AN29*AL29>2*10^7,4,IF(AN29*AL29>5*10^2,3,IF(AN29*AL29>10^-3,2,1))) ->  | AS29: =AR29*AK29/$AG29 ->  | AT29: 10 | AU29: =1/(273.15+(AT29)) -> 0.00353169698 | AV29: 1.4805e-05 | AW29: 0.0244 | AX29: 0.72 | AY29: 20 | AZ29: =$AF29*AU29*AY29*($AG29^3)/(AV29^2) ->  | BA29: =IF(AZ29*AX29>2*10^7,4,IF(AZ29*AX29>5*10^2,3,IF(AZ29*AX29>10^-3,2,1))) ->  | BD29: =IF(OR(MID($D29,2,1)="1",MID($D29,2,1)="2",MID($D29,2,1)="3",MID($D29,2,1)="4"),BB29*((AZ29*AX29)^BC29),0.137*((AZ29*AX29)^(1/3))) ->  | BE29: =BD29*AW29/$AG29 ->  | BK29: =IF(MID($B29,1,2)="oo",0,IF(AND(MID($B30,1,2)="oo",BJ29=BJ30),IF(AND(MID($B31,1,2)="oo",BJ29=BJ31),2,1),0)) -> 0 | BL29: 0 | BM29: 0 | BN29: 0
A30: 22 | Q30: 0 | R30: 0 | S30: 0 | T30: 0 | U30: 0 | W30: 20 | AA30: 23 | AB30: 1 | AC30: 20 | AF30: 9.81 | AH30: 17.5 | AI30: 0.003440564253 | AJ30: 1.5512e-05 | AK30: 0.02496 | AL30: 0.72 | AM30: 5 | AT30: 10 | AU30: 0.00353169698 | AV30: 1.4805e-05 | AW30: 0.0244 | AX30: 0.72 | AY30: 20 | BK30: 0 | BL30: 0 | BM30: 0 | BN30: 0
A31: 23 | Q31: 0 | R31: 0 | S31: 0 | T31: 0 | U31: 0 | W31: 20 | AA31: 23 | AB31: 1 | AC31: 20 | AF31: 9.81 | AH31: 17.5 | AI31: 0.003440564253 | AJ31: 1.5512e-05 | AK31: 0.02496 | AL31: 0.72 | AM31: 5 | AT31: 10 | AU31: 0.00353169698 | AV31: 1.4805e-05 | AW31: 0.0244 | AX31: 0.72 | AY31: 20 | BK31: 0 | BL31: 0 | BM31: 0 | BN31: 0
A32: 24 | Q32: 0 | R32: 0 | S32: 0 | T32: 0 | U32: 0 | W32: 20 | AA32: 23 | AB32: 1 | AC32: 20 | AF32: 9.81 | AH32: 17.5 | AI32: 0.003440564253 | AJ32: 1.5512e-05 | AK32: 0.02496 | AL32: 0.72 | AM32: 5 | AT32: 10 | AU32: 0.00353169698 | AV32: 1.4805e-05 | AW32: 0.0244 | AX32: 0.72 | AY32: 20 | BK32: 0 | BL32: 0 | BM32: 0 | BN32: 0
A33: 25 | Q33: 0 | R33: 0 | S33: 0 | T33: 0 | U33: 0 | W33: 20 | AA33: 23 | AB33: 1 | AC33: 20 | AF33: 9.81 | AH33: 17.5 | AI33: 0.003440564253 | AJ33: 1.5512e-05 | AK33: 0.02496 | AL33: 0.72 | AM33: 5 | AT33: 10 | AU33: 0.00353169698 | AV33: 1.4805e-05 | AW33: 0.0244 | AX33: 0.72 | AY33: 20 | BK33: 0 | BL33: 0 | BM33: 0 | BN33: 0
A34: 26 | Q34: 0 | R34: 0 | S34: 0 | T34: 0 | U34: 0 | W34: 20 | AA34: 23 | AB34: 1 | AC34: 20 | AF34: 9.81 | AH34: 17.5 | AI34: 0.003440564253 | AJ34: 1.5512e-05 | AK34: 0.02496 | AL34: 0.72 | AM34: 5 | AT34: 10 | AU34: 0.00353169698 | AV34: 1.4805e-05 | AW34: 0.0244 | AX34: 0.72 | AY34: 20 | BK34: 0 | BL34: 0 | BM34: 0 | BN34: 0
A35: 27 | Q35: 0 | R35: 0 | S35: 0 | T35: 0 | U35: 0 | W35: 20 | AA35: 23 | AB35: 1 | AC35: 20 | AF35: 9.81 | AH35: 17.5 | AI35: 0.003440564253 | AJ35: 1.5512e-05 | AK35: 0.02496 | AL35: 0.72 | AM35: 5 | AT35: 10 | AU35: 0.00353169698 | AV35: 1.4805e-05 | AW35: 0.0244 | AX35: 0.72 | AY35: 20 | BK35: 0 | BL35: 0 | BM35: 0 | BN35: 0
A36: 28 | Q36: 0 | R36: 0 | S36: 0 | T36: 0 | U36: 0 | W36: 20 | AA36: 23 | AB36: 1 | AC36: 20 | AF36: 9.81 | AH36: 17.5 | AI36: 0.003440564253 | AJ36: 1.5512e-05 | AK36: 0.02496 | AL36: 0.72 | AM36: 5 | AT36: 10 | AU36: 0.00353169698 | AV36: 1.4805e-05 | AW36: 0.0244 | AX36: 0.72 | AY36: 20 | BK36: 0 | BL36: 0 | BM36: 0 | BN36: 0
A37: 29 | Q37: 0 | R37: 0 | S37: 0 | T37: 0 | U37: 0 | W37: 20 | AA37: 23 | AB37: 1 | AC37: 20 | AF37: 9.81 | AH37: 17.5 | AI37: 0.003440564253 | AJ37: 1.5512e-05 | AK37: 0.02496 | AL37: 0.72 | AM37: 5 | AT37: 10 | AU37: 0.00353169698 | AV37: 1.4805e-05 | AW37: 0.0244 | AX37: 0.72 | AY37: 20 | BK37: 0 | BL37: 0 | BM37: 0 | BN37: 0
A38: =

Sheet Panely
C1: ti [°C] | D1: =Konstrukce!D1 -> 15 | F1: te [°C] | G1: =Konstrukce!G1 -> 0
C2: ti' [°C] | D2: =Konstrukce!D2 -> 15 | F2: tz [°C] | G2: =Konstrukce!G2 -> 0
A5: 1 | B5: 2 | C5: 3 | D5: 4 | E5: 5 | F5: 6 | G5: 7 | H5: 8 | I5: 9 | J5: 10 | K5: 11 | L5: 12 | M5: 13 | N5: 14 | O5: 15 | P5: 16 | Q5: 17 | R5: 18 | S5: 19 | T5: 20 | U5: 21 | V5: 22 | W5: 23 | X5: 24 | Y5: 25 | Z5: 26 | AA5: 27 | AB5: 28 | AC5: 29 | AD5: 30 | AE5: 31 | AF5: 32 | AG5: 33 | AH5: 34 | AI5: 35 | AJ5: 36 | AK5: 37 | AL5: 38 | AM5: 39 | AN5: 40 | AO5: 41 | AP5: 42 | AQ5: 43 | AR5: 44 | AS5: 45 | AT5: 46 | AU5: 47 | AV5: 48 | AW5: 49 | AX5: 50 | AY5: 51 | AZ5: 52 | BA5: 53 | BB5: 54 | BC5: 55 | BD5: 56 | BE5: 57 | BF5: 58 | BG5: 59 | BH5: 60 | BI5: 61 | BJ5: 62 | BK5: 63 | BL5: 64 | BM5: 65 | BN5: 66 | BO5: 67 | BP5: 68 | BQ5: 69 | BR5: 70 | BS5: 71 | BT5: 72 | BU5: 73
G6: rozměry
G7: bod1 | J7: bod2 | M7: bod3 | P7: bod4 | AL7: součinitel přestupu tepla konvekcí na spodní straně | AX7: součinitel přestupu tepla konvekcí na horní straně | BE7: Michejev | BO7: součinitel přestupu tepla konvekcí na horní straně - ASHRAE
A8: index | B8: ID panelu | C8: Typ panelu | D8: orientace | E8: tw1 [°C] | F8: tw2 [°C] | G8: x | H8: y | I8: z | J8: x | K8: y | L8: z | M8: x | N8: y | O8: z | P8: x | Q8: y | R8: z | S8: X [m] | T8: Y [m] | U8: Z [m] | V8: S [m2] | W8: l [m] | X8: tp [°C] | Y8: tp' [°C] | Z8: m [-] | AA8: aL [m] | AB8: λL [W/mK] | AC8: R2 [m2K/W] | AD8: Λ2 [W/m2K] | AE8: αks [W/m2K] | AF8: αkh [W/m2K] | AG8: ε [-] | AJ8: g [m/s2] | AK8: L | AL8: ts [°C] | AM8: β [1/K] | AN8: νvz [m2/s] | AO8: λvz [W/mK] | AP8: Pr [-] | AQ8: Δt [°C] | AR8: Gr [-] | AS8: index | AT8: K | AU8: n | AV8: Nu [-] | AW8: αk [W/m2K] | AX8: ts [°C] | AY8: β [1/K] | AZ8: νvz [m2/s] | BA8: λvz [W/mK] | BB8: Pr [-] | BC8: Δt [°C] | BD8: Gr [-] | BE8: index | BF8: K | BG8: n | BH8: Nu [-] | BI8: αk [W/m2K] | BJ8: =MID(D9,4,2) ->  | BK8: plocha s/h? | BL8: fiktivni plocha/panel? | BM8: orientace | BN8: index | BO8: K | BP8: n
A9: =MAX(Konstrukce!A9:A38)+1 -> 30 | C9: =VLOOKUP(B9,tabulka_panely,2,FALSE) ->  | S9: =IF(OR(MID($D9,2,1)="1",MID($D9,2,1)="2"),0,ABS(G9-J9)) -> 0 | T9: =IF(OR(MID($D9,2,1)="3",MID($D9,2,1)="4"),0,ABS(H9-Q9)) -> 0 | U9: =IF(OR(MID($D9,2,1)="5",MID($D9,2,1)="6"),0,ABS(I9-R9)) -> 0 | V9: =IF(OR(MID($D9,2,1)="1",MID($D9,2,1)="2"),T9*U9,IF(OR(MID($D9,2,1)="3",MID($D9,2,1)="4"),S9*U9,S9*T9)) -> 0 | W9: =VLOOKUP(B9,tabulka_panely,4,FALSE) ->  | X9: =($E9+$F9)/2 -> 0 | Y9: 0 | Z9: =SQRT((AE9+AD9)/(AB9*AA9)) ->  | AA9: =VLOOKUP($B9,tabulka_panely,5,FALSE) ->  | AB9: =VLOOKUP($B9,tabulka_panely,6,FALSE) ->  | AC9: =VLOOKUP($B9,tabulka_panely,9,FALSE) ->  | AD9: =1/(AC9+(1/AF9)) ->  | AE9: =AW9 ->  | AF9: =BI9 ->  | AG9: =VLOOKUP(B9,tabulka_panely,10) ->  | AJ9: 9.81 | AK9: =IF(OR(MID($D9,2,1)="1",MID($D9,2,1)="2",MID($D9,2,1)="3",MID($D9,2,1)="4"),U9,((S9*T9)/(2*(S9+T9)))) ->  | AL9: =($X9+$D$1)/2 -> 7.5 | AM9: =1/(273.15+(AL9)) -> 0.003563156957 | AN9: =VLOOKUP(ROUND(AL9,0),tabulka_FyzVl_vzduch,6,TRUE)*10^-6 -> 1.4628e-05 | AO9: =VLOOKUP(ROUND(AL9,0),tabulka_FyzVl_vzduch,4,TRUE) -> 0.02426 | AP9: =VLOOKUP(ROUND(AL9,0),tabulka_FyzVl_vzduch,8,TRUE) -> 0.72 | AQ9: =ABS($X9-$D$1) -> 15 | AR9: =$AJ9*AM9*AQ9*($AK9^3)/(AN9^2) ->  | AS9: =IF(AR9*AP9>2*10^7,4,IF(AR9*AP9>5*10^2,3,IF(AR9*AP9>10^-3,2,1))) ->  | AT9: =VLOOKUP($AS9,tabulka_exponenty_Michejev,4,FALSE) ->  | AU9: =VLOOKUP($AS9,tabulka_exponenty_Michejev,5,FALSE) ->  | AV9: =IF(OR(MID($D9,2,1)="1",MID($D9,2,1)="2",MID($D9,2,1)="3",MID($D9,2,1)="4"),AT9*((AR9*AP9)^AU9),0.27*((AR9*AP9)^(1/4))) ->  | AW9: =AV9*AO9/$AK9 ->  | AX9: =IF(($Y9+$D$1)/2<0,0,($Y9+$D$1)/2) -> 7.5 | AY9: =1/(273.15+(AX9)) -> 0.003563156957 | AZ9: =VLOOKUP(ROUND(AX9,0),tabulka_FyzVl_vzduch,6,TRUE)*10^-6 -> 1.4628e-05 | BA9: =VLOOKUP(ROUND(AX9,0),tabulka_FyzVl_vzduch,4,TRUE) -> 0.02426 | BB9: =VLOOKUP(ROUND(AX9,0),tabulka_FyzVl_vzduch,8,TRUE) -> 0.72 | BC9: =ABS($Y9-$D$1) -> 15 | BD9: =$AJ9*AY9*BC9*($AK9^3)/(AZ9^2) ->  | BE9: =IF(BD9*BB9>2*10^7,4,IF(BD9*BB9>5*10^2,3,IF(BD9*BB9>10^-3,2,1))) ->  | BF9: =VLOOKUP($BE9,tabulka_exponenty_Michejev,4,FALSE) ->  | BG9: =VLOOKUP($BE9,tabulka_exponenty_Michejev,5,FALSE) ->  | BH9: =IF(OR(MID($D9,2,1)="1",MID($D9,2,1)="2",MID($D9,2,1)="3",MID($D9,2,1)="4"),BF9*((BD9*BB9)^BG9),BO9*((BD9*BB9)^BP9)) ->  | BI9: =BH9*BA9/$AK9 ->  | BK9: =MID($D9,1,1) ->  | BL9: =MID($D9,3,1) ->  | BM9: =MID($D9,2,1) ->  | BN9: =IF(BD9*BB9>8*10^6,4,IF(BD9*BB9>10^4,3,IF(BD9*BB9>200,2,1))) ->  | BO9: =VLOOKUP($AS9,tabulka_exponenty_ASHRAE,4,FALSE) ->  | BP9: =VLOOKUP($AS9,tabulka_exponenty_ASHRAE,5,FALSE) -> 
A10: =IF(ISNUMBER(A9),A9+1,"=") -> 31 | S10: =IF(OR(MID($D10,2,1)="1",MID($D10,2,1)="2"),0,ABS(G10-J10)) -> 0 | T10: =IF(OR(MID($D10,2,1)="3",MID($D10,2,1)="4"),0,ABS(H10-Q10)) -> 0 | U10: =IF(OR(MID($D10,2,1)="5",MID($D10,2,1)="6"),0,ABS(I10-R10)) -> 0 | V10: =IF(OR(MID($D10,2,1)="1",MID($D10,2,1)="2"),T10*U10,IF(OR(MID($D10,2,1)="3",MID($D10,2,1)="4"),S10*U10,S10*T10)) -> 0 | X10: 0 | Y10: 0 | Z10: =SQRT((AE10+AD10)/(AB10*AA10)) ->  | AD10: =1/(AC10+(1/AF10)) ->  | AE10: =AW10 ->  | AF10: =BI10 ->  | AJ10: 9.81 | AK10: =IF(OR(MID($D10,2,1)="1",MID($D10,2,1)="2",MID($D10,2,1)="3",MID($D10,2,1)="4"),U10,((S10*T10)/(2*(S10+T10)))) ->  | AL10: =($X10+$D$1)/2 -> 7.5 | AM10: =1/(273.15+(AL10)) -> 0.003563156957 | AN10: 1.4628e-05 | AO10: 0.02426 | AP10: 0.72 | AQ10: 15 | AR10: =$AJ10*AM10*AQ10*($AK10^3)/(AN10^2) ->  | AS10: =IF(AR10*AP10>2*10^7,4,IF(AR10*AP10>5*10^2,3,IF(AR10*AP10>10^-3,2,1))) ->  | AV10: =IF(OR(MID($D10,2,1)="1",MID($D10,2,1)="2",MID($D10,2,1)="3",MID($D10,2,1)="4"),AT10*((AR10*AP10)^AU10),0.27*((AR10*AP10)^(1/4))) ->  | AX10: =IF(($Y10+$D$1)/2<0,0,($Y10+$D$1)/2) -> 7.5 | AY10: =1/(273.15+(AX10)) -> 0.003563156957 | AZ10: 1.4628e-05 | BA10: 0.02426 | BB10: 0.72 | BC10: 15 | BD10: =$AJ10*AY10*BC10*($AK10^3)/(AZ10^2) ->  | BE10: =IF(BD10*BB10>2*10^7,4,IF(BD10*BB10>5*10^2,3,IF(BD10*BB10>10^-3,2,1))) ->  | BH10: =IF(OR(MID($D10,2,1)="1",MID($D10,2,1)="2",MID($D10,2,1)="3",MID($D10,2,1)="4"),BF10*((BD10*BB10)^BG10),BO10*((BD10*BB10)^BP10)) ->  | BI10: =BH10*BA10/$AK10 ->  | BK10: =MID($D10,1,1) ->  | BL10: =MID($D10,3,1) ->  | BM10: =MID($D10,2,1) ->  | BN10: =IF(BD10*BB10>8*10^6,4,IF(BD10*BB10>10^4,3,IF(BD10*BB10>200,2,1))) -> 
A11: 32 | S11: 0 | T11: 0 | U11: 0 | V11: 0 | X11: 0 | Y11: 0 | AJ11: 9.81 | AK11: =IF(OR(MID($D11,2,1)="1",MID($D11,2,1)="2",MID($D11,2,1)="3",MID($D11,2,1)="4"),U11,((S11*T11)/(2*(S11+T11)))) ->  | AL11: 7.5 | AM11: 0.003563156957 | AN11: 1.4628e-05 | AO11: 0.02426 | AP11: 0.72 | AQ11: 15 | AR11: =$AJ11*AM11*AQ11*($AK11^3)/(AN11^2) ->  | AX11: 7.5 | AY11: 0.003563156957 | AZ11: 1.4628e-05 | BA11: 0.02426 | BB11: 0.72 | BC11: 15 | BD11: =$AJ11*AY11*BC11*($AK11^3)/(AZ11^2) ->  | BH11: =IF(OR(MID($D11,2,1)="1",MID($D11,2,1)="2",MID($D11,2,1)="3",MID($D11,2,1)="4"),BF11*((BD11*BB11)^BG11),BO11*((BD11*BB11)^BP11)) ->  | BI11: =BH11*BA11/$AK11 -> 
A12: 33 | S12: 0 | T12: 0 | U12: 0 | V12: 0 | X12: 0 | Y12: 0 | AJ12: 9.81 | AL12: 7.5 | AM12: 0.003563156957 | AN12: 1.4628e-05 | AO12: 0.02426 | AP12: 0.72 | AQ12: 15 | AR12: =$AJ12*AM12*AQ12*($AK12^3)/(AN12^2) ->  | AX12: 7.5 | AY12: 0.003563156957 | AZ12: 1.4628e-05 | BA12: 0.02426 | BB12: 0.72 | BC12: 15 | BH12: =IF(OR(MID($D12,2,1)="1",MID($D12,2,1)="2",MID($D12,2,1)="3",MID($D12,2,1)="4"),BF12*((BD12*BB12)^BG12),BO12*((BD12*BB12)^BP12)) ->  | BI12: =BH12*BA12/$AK12 -> 
A13: 34 | S13: 0 | T13: 0 | U13: 0 | V13: 0 | X13: 0 | Y13: 0 | AJ13: 9.81 | AL13: 7.5 | AM13: 0.003563156957 | AN13: 1.4628e-05 | AO13: 0.02426 | AP13: 0.72 | AQ13: 15 | AR13: =$AJ13*AM13*AQ13*($AK13^3)/(AN13^2) ->  | AX13: 7.5 | AY13: 0.003563156957 | AZ13: 1.4628e-05 | BA13: 0.02426 | BB13: 0.72 | BC13: 15
A14: 35 | S14: 0 | T14: 0 | U14: 0 | V14: 0 | X14: 0 | Y14: 0 | AJ14: 9.81 | AL14: 7.5 | AM14: 0.003563156957 | AN14: 1.4628e-05 | AO14: 0.02426 | AP14: 0.72 | AQ14: 15 | AX14: 7.5 | AY14: 0.003563156957 | AZ14: 1.4628e-05 | BA14: 0.02426 | BB14: 0.72 | BC14: 15
A15: 36 | S15: 0 | T15: 0 | U15: 0 | V15: 0 | X15: 0 | Y15: 0 | AJ15: 9.81 | AL15: 7.5 | AM15: 0.003563156957 | AN15: 1.4628e-05 | AO15: 0.02426 | AP15: 0.72 | AQ15: 15 | AX15: 7.5 | AY15: 0.003563156957 | AZ15: 1.4628e-05 | BA15: 0.02426 | BB15: 0.72 | BC15: 15
A16: 37 | S16: 0 | T16: 0 | U16: 0 | V16: 0 | X16: 0 | Y16: 0 | AJ16: 9.81 | AL16: 7.5 | AM16: 0.003563156957 | AN16: 1.4628e-05 | AO16: 0.02426 | AP16: 0.72 | AQ16: 15 | AX16: 7.5 | AY16: 0.003563156957 | AZ16: 1.4628e-05 | BA16: 0.02426 | BB16: 0.72 | BC16: 15
A17: 38 | S17: 0 | T17: 0 | U17: 0 | V17: 0 | X17: 0 | Y17: 0 | AJ17: 9.81 | AL17: 7.5 | AM17: 0.003563156957 | AN17: 1.4628e-05 | AO17: 0.02426 | AP17: 0.72 | AQ17: 15 | AX17: 7.5 | AY17: 0.003563156957 | AZ17: 1.4628e-05 | BA17: 0.02426 | BB17: 0.72 | BC17: 15
A18: 39 | S18: 0 | T18: 0 | U18: 0 | V18: 0 | X18: 0 | Y18: 0 | AJ18: 9.81 | AL18: 7.5 | AM18: 0.003563156957 | AN18: 1.4628e-05 | AO18: 0.02426 | AP18: 0.72 | AQ18: 15 | AX18: 7.5 | AY18: 0.003563156957 | AZ18: 1.4628e-05 | BA18: 0.02426 | BB18: 0.72 | BC18: 15
A19: 40 | S19: 0 | T19: 0 | U19: 0 | V19: 0 | X19: 0 | Y19: 0 | AJ19: 9.81 | AL19: 7.5 | AM19: 0.003563156957 | AN19: 1.4628e-05 | AO19: 0.02426 | AP19: 0.72 | AQ19: 15 | AX19: 7.5 | AY19: 0.003563156957 | AZ19: 1.4628e-05 | BA19: 0.02426 | BB19: 0.72 | BC19: 15
A20: 41 | S20: 0 | T20: 0 | U20: 0 | V20: 0 | X20: 0 | Y20: 0 | AJ20: 9.81 | AL20: 7.5 | AM20: 0.003563156957 | AN20: 1.4628e-05 | AO20: 0.02426 | AP20: 0.72 | AQ20: 15 | AX20: 7.5 | AY20: 0.003563156957 | AZ20: 1.4628e-05 | BA20: 0.02426 | BB20: 0.72 | BC20: 15
A21: 42 | S21: 0 | T21: 0 | U21: 0 | V21: 0 | X21: 0 | Y21: 0 | AJ21: 9.81 | AL21: 7.5 | AM21: 0.003563156957 | AN21: 1.4628e-05 | AO21: 0.02426 | AP21: 0.72 | AQ21: 15 | AX21: 7.5 | AY21: 0.003563156957 | AZ21: 1.4628e-05 | BA21: 0.02426 | BB21: 0.72 | BC21: 15
A22: 43 | S22: 0 | T22: 0 | U22: 0 | V22: 0 | X22: 0 | Y22: 0 | AJ22: 9.81 | AL22: 7.5 | AM22: 0.003563156957 | AN22: 1.4628e-05 | AO22: 0.02426 | AP22: 0.72 | AQ22: 15 | AX22: 7.5 | AY22: 0.003563156957 | AZ22: 1.4628e-05 | BA22: 0.02426 | BB22: 0.72 | BC22: 15
A23: 44 | S23: 0 | T23: 0 | U23: 0 | V23: 0 | X23: 0 | Y23: 0 | AJ23: 9.81 | AL23: 7.5 | AM23: 0.003563156957 | AN23: 1.4628e-05 | AO23: 0.02426 | AP23: 0.72 | AQ23: 15 | AX23: 7.5 | AY23: 0.003563156957 | AZ23: 1.4628e-05 | BA23: 0.02426 | BB23: 0.72 | BC23: 15
A24: 45 | S24: 0 | T24: 0 | U24: 0 | V24: 0 | X24: 0 | Y24: 0 | AJ24: 9.81 | AL24: 7.5 | AM24: 0.003563156957 | AN24: 1.4628e-05 | AO24: 0.02426 | AP24: 0.72 | AQ24: 15 | AX24: 7.5 | AY24: 0.003563156957 | AZ24: 1.4628e-05 | BA24: 0.02426 | BB24: 0.72 | BC24: 15
A25: 46 | S25: 0 | T25: 0 | U25: 0 | V25: 0 | X25: 0 | Y25: 0 | AJ25: 9.81 | AL25: 7.5 | AM25: 0.003563156957 | AN25: 1.4628e-05 | AO25: 0.02426 | AP25: 0.72 | AQ25: 15 | AX25: 7.5 | AY25: 0.003563156957 | AZ25: 1.4628e-05 | BA25: 0.02426 | BB25: 0.72 | BC25: 15
A26: 47 | S26: 0 | T26: 0 | U26: 0 | V26: 0 | X26: 0 | Y26: 0 | AJ26: 9.81 | AL26: 7.5 | AM26: 0.003563156957 | AN26: 1.4628e-05 | AO26: 0.02426 | AP26: 0.72 | AQ26: 15 | AX26: 7.5 | AY26: 0.003563156957 | AZ26: 1.4628e-05 | BA26: 0.02426 | BB26: 0.72 | BC26: 15
A27: 48 | S27: 0 | T27: 0 | U27: 0 | V27: 0 | X27: 0 | Y27: 0 | AJ27: 9.81 | AL27: 7.5 | AM27: 0.003563156957 | AN27: 1.4628e-05 | AO27: 0.02426 | AP27: 0.72 | AQ27: 15 | AX27: 7.5 | AY27: 0.003563156957 | AZ27: 1.4628e-05 | BA27: 0.02426 | BB27: 0.72 | BC27: 15
A28: 49 | S28: 0 | T28: 0 | U28: 0 | V28: 0 | X28: 0 | Y28: 0 | AJ28: 9.81 | AL28: 7.5 | AM28: 0.003563156957 | AN28: 1.4628e-05 | AO28: 0.02426 | AP28: 0.72 | AQ28: 15 | AS28: =IF(AR28*AP28>2*10^7,4,IF(AR28*AP28>5*10^2,3,IF(AR28*AP28>10^-3,2,1))) ->  | AX28: 7.5 | AY28: 0.003563156957 | AZ28: 1.4628e-05 | BA28: 0.02426 | BB28: 0.72 | BC28: 15
A29: =

Sheet Data_fi
C1: 1 | D1: 2 | E1: 3 | F1: 4 | G1: 5 | H1: 6 | I1: 7 | J1: 8 | K1: 9 | L1: 10 | M1: 11 | N1: 12 | O1: 13 | P1: 14 | Q1: 15 | R1: 16 | S1: 17 | T1: 18 | U1: 19 | V1: 20 | W1: 21 | X1: 22 | Y1: 23 | Z1: 24 | AA1: 25 | AB1: 26 | AC1: 27 | AD1: 28 | AE1: 29 | AF1: 30 | AG1: 31 | AH1: 32 | AI1: 33 | AJ1: 34 | AK1: 35 | AL1: 36 | AM1: 37 | AN1: 38 | AO1: 39 | AP1: 40
A2: index | B2: Sp [m2] | C2: =B3 -> = | D2: =B4 -> = | E2: =B5 -> = | F2: =B6 -> = | G2: =B7 -> = | H2: =B8 -> = | I2: =B9 -> = | J2: =B10 -> = | K2: =B11 -> = | L2: =B12 -> = | M2: =B13 -> = | N2: =B14 -> = | O2: =B15 -> = | P2: =B16 -> = | Q2: =B17 -> = | R2: =B18 -> = | S2: =B19 -> = | T2: =B20 -> = | U2: =B21 -> = | V2: =B22 -> = | W2: =B23 -> = | X2: =B24 -> = | Y2: =B25 -> = | Z2: =B26 -> = | AA2: =B27 -> = | AB2: =B28 -> = | AC2: =B29 -> = | AD2: =B30 -> = | AE2: =B31 -> = | AF2: =B32 -> = | AG2: =B33 -> = | AH2: =B34 -> = | AI2: =B35 -> = | AJ2: =B36 -> = | AK2: =B37 -> = | AL2: =B38 -> = | AM2: =B39 -> = | AN2: =B40 -> = | AO2: =B41 -> = | AP2: =B42 -> =
A3: 1 | B3: = | C3: 0
A4: 2 | B4: = | C4: =D$3*$B4/$B$3 ->  | D4: =$C$3 -> 0
A5: 3 | B5: = | C5: =E$3*$B5/$B$3 ->  | D5: =E$4*$B5/$B$4 ->  | E5: =$C$3 -> 0
A6: 4 | B6: = | C6: =F$3*$B6/$B$3 ->  | D6: =F$4*$B6/$B$4 ->  | E6: =F$5*$B6/$B$5 ->  | F6: =$C$3 -> 0
A7: 5 | B7: = | C7: =G$3*$B7/$B$3 ->  | D7: =G$4*$B7/$B$4 ->  | E7: =G$5*$B7/$B$5 ->  | F7: =G$6*$B7/$B$6 ->  | G7: =$C$3 -> 0
A8: 6 | B8: = | C8: =H$3*$B8/$B$3 ->  | D8: =H$4*$B8/$B$4 ->  | E8: =H$5*$B8/$B$5 ->  | F8: =H$6*$B8/$B$6 ->  | G8: =H$7*$B8/$B$7 ->  | H8: =$C$3 -> 0
A9: 7 | B9: = | C9: =I$3*$B9/$B$3 ->  | D9: =I$4*$B9/$B$4 ->  | E9: =I$5*$B9/$B$5 ->  | F9: =I$6*$B9/$B$6 ->  | G9: =I$7*$B9/$B$7 ->  | H9: =I$8*$B9/$B$8 ->  | I9: =$C$3 -> 0
A10: 8 | B10: = | C10: =J$3*$B10/$B$3 ->  | D10: =J$4*$B10/$B$4 ->  | E10: =J$5*$B10/$B$5 ->  | F10: =J$6*$B10/$B$6 ->  | G10: =J$7*$B10/$B$7 ->  | H10: =J$8*$B10/$B$8 ->  | I10: =J$9*$B10/$B$9 ->  | J10: =$C$3 -> 0
A11: 9 | B11: = | C11: =K$3*$B11/$B$3 ->  | D11: =K$4*$B11/$B$4 ->  | E11: =K$5*$B11/$B$5 ->  | F11: =K$6*$B11/$B$6 ->  | G11: =K$7*$B11/$B$7 ->  | H11: =K$8*$B11/$B$8 ->  | I11: =K$9*$B11/$B$9 ->  | J11: =K$10*$B11/$B$10 ->  | K11: =$C$3 -> 0
A12: 10 | B12: = | C12: =L$3*$B12/$B$3 ->  | D12: =L$4*$B12/$B$4 ->  | E12: =L$5*$B12/$B$5 ->  | F12: =L$6*$B12/$B$6 ->  | G12: =L$7*$B12/$B$7 ->  | H12: =L$8*$B12/$B$8 ->  | I12: =L$9*$B12/$B$9 ->  | J12: =L$10*$B12/$B$10 ->  | K12: =L$11*$B12/$B$11 ->  | L12: =$C$3 -> 0
A13: 11 | B13: = | C13: =M$3*$B13/$B$3 ->  | D13: =M$4*$B13/$B$4 ->  | E13: =M$5*$B13/$B$5 ->  | F13: =M$6*$B13/$B$6 ->  | G13: =M$7*$B13/$B$7 ->  | H13: =M$8*$B13/$B$8 ->  | I13: =M$9*$B13/$B$9 ->  | J13: =M$10*$B13/$B$10 ->  | K13: =M$11*$B13/$B$11 ->  | L13: =M$12*$B13/$B$12 ->  | M13: =$C$3 -> 0
A14: 12 | B14: = | C14: =N$3*$B14/$B$3 ->  | D14: =N$4*$B14/$B$4 ->  | E14: =N$5*$B14/$B$5 ->  | F14: =N$6*$B14/$B$6 ->  | G14: =N$7*$B14/$B$7 ->  | H14: =N$8*$B14/$B$8 ->  | I14: =N$9*$B14/$B$9 ->  | J14: =N$10*$B14/$B$10 ->  | K14: =N$11*$B14/$B$11 ->  | L14: =N$12*$B14/$B$12 ->  | M14: =N$13*$B14/$B$13 ->  | N14: =$C$3 -> 0
A15: 13 | B15: = | C15: =O$3*$B15/$B$3 ->  | D15: =O$4*$B15/$B$4 ->  | E15: =O$5*$B15/$B$5 ->  | F15: =O$6*$B15/$B$6 ->  | G15: =O$7*$B15/$B$7 ->  | H15: =O$8*$B15/$B$8 ->  | I15: =O$9*$B15/$B$9 ->  | J15: =O$10*$B15/$B$10 ->  | K15: =O$11*$B15/$B$11 ->  | L15: =O$12*$B15/$B$12 ->  | M15: =O$13*$B15/$B$13 ->  | N15: =O$14*$B15/$B$14 ->  | O15: =$C$3 -> 0
A16: 14 | B16: = | C16: =P$3*$B16/$B$3 ->  | D16: =P$4*$B16/$B$4 ->  | E16: =P$5*$B16/$B$5 ->  | F16: =P$6*$B16/$B$6 ->  | G16: =P$7*$B16/$B$7 ->  | H16: =P$8*$B16/$B$8 ->  | I16: =P$9*$B16/$B$9 ->  | J16: =P$10*$B16/$B$10 ->  | K16: =P$11*$B16/$B$11 ->  | L16: =P$12*$B16/$B$12 ->  | M16: =P$13*$B16/$B$13 ->  | N16: =P$14*$B16/$B$14 ->  | O16: =P$15*$B16/$B$15 ->  | P16: =$C$3 -> 0
A17: 15 | B17: = | C17: =Q$3*$B17/$B$3 ->  | D17: =Q$4*$B17/$B$4 ->  | E17: =Q$5*$B17/$B$5 ->  | F17: =Q$6*$B17/$B$6 ->  | G17: =Q$7*$B17/$B$7 ->  | H17: =Q$8*$B17/$B$8 ->  | I17: =Q$9*$B17/$B$9 ->  | J17: =Q$10*$B17/$B$10 ->  | K17: =Q$11*$B17/$B$11 ->  | L17: =Q$12*$B17/$B$12 ->  | M17: =Q$13*$B17/$B$13 ->  | N17: =Q$14*$B17/$B$14 ->  | O17: =Q$15*$B17/$B$15 ->  | P17: =Q$16*$B17/$B$16 ->  | Q17: =$C$3 -> 0
A18: 16 | B18: = | C18: =R$3*$B18/$B$3 ->  | D18: =R$4*$B18/$B$4 ->  | E18: =R$5*$B18/$B$5 ->  | F18: =R$6*$B18/$B$6 ->  | G18: =R$7*$B18/$B$7 ->  | H18: =R$8*$B18/$B$8 ->  | I18: =R$9*$B18/$B$9 ->  | J18: =R$10*$B18/$B$10 ->  | K18: =R$11*$B18/$B$11 ->  | L18: =R$12*$B18/$B$12 ->  | M18: =R$13*$B18/$B$13 ->  | N18: =R$14*$B18/$B$14 ->  | O18: =R$15*$B18/$B$15 ->  | P18: =R$16*$B18/$B$16 ->  | Q18: =R$17*$B18/$B$17 ->  | R18: =$C$3 -> 0
A19: 17 | B19: = | C19: =S$3*$B19/$B$3 ->  | D19: =S$4*$B19/$B$4 ->  | E19: =S$5*$B19/$B$5 ->  | F19: =S$6*$B19/$B$6 ->  | G19: =S$7*$B19/$B$7 ->  | H19: =S$8*$B19/$B$8 ->  | I19: =S$9*$B19/$B$9 ->  | J19: =S$10*$B19/$B$10 ->  | K19: =S$11*$B19/$B$11 ->  | L19: =S$12*$B19/$B$12 ->  | M19: =S$13*$B19/$B$13 ->  | N19: =S$14*$B19/$B$14 ->  | O19: =S$15*$B19/$B$15 ->  | P19: =S$16*$B19/$B$16 ->  | Q19: =S$17*$B19/$B$17 ->  | R19: =S$18*$B19/$B$18 ->  | S19: =$C$3 -> 0
A20: 18 | B20: = | C20: =T$3*$B20/$B$3 ->  | D20: =T$4*$B20/$B$4 ->  | E20: =T$5*$B20/$B$5 ->  | F20: =T$6*$B20/$B$6 ->  | G20: =T$7*$B20/$B$7 ->  | H20: =T$8*$B20/$B$8 ->  | I20: =T$9*$B20/$B$9 ->  | J20: =T$10*$B20/$B$10 ->  | K20: =T$11*$B20/$B$11 ->  | L20: =T$12*$B20/$B$12 ->  | M20: =T$13*$B20/$B$13 ->  | N20: =T$14*$B20/$B$14 ->  | O20: =T$15*$B20/$B$15 ->  | P20: =T$16*$B20/$B$16 ->  | Q20: =T$17*$B20/$B$17 ->  | R20: =T$18*$B20/$B$18 ->  | S20: =T$19*$B20/$B$19 ->  | T20: =$C$3 -> 0
A21: 19 | B21: = | C21: =U$3*$B21/$B$3 ->  | D21: =U$4*$B21/$B$4 ->  | E21: =U$5*$B21/$B$5 ->  | F21: =U$6*$B21/$B$6 ->  | G21: =U$7*$B21/$B$7 ->  | H21: =U$8*$B21/$B$8 ->  | I21: =U$9*$B21/$B$9 ->  | J21: =U$10*$B21/$B$10 ->  | K21: =U$11*$B21/$B$11 ->  | L21: =U$12*$B21/$B$12 ->  | M21: =U$13*$B21/$B$13 ->  | N21: =U$14*$B21/$B$14 ->  | O21: =U$15*$B21/$B$15 ->  | P21: =U$16*$B21/$B$16 ->  | Q21: =U$17*$B21/$B$17 ->  | R21: =U$18*$B21/$B$18 ->  | S21: =U$19*$B21/$B$19 ->  | T21: =U$20*$B21/$B$20 ->  | U21: =$C$3 -> 0
A22: 20 | B22: = | C22: =V$3*$B22/$B$3 ->  | D22: =V$4*$B22/$B$4 ->  | E22: =V$5*$B22/$B$5 ->  | F22: =V$6*$B22/$B$6 ->  | G22: =V$7*$B22/$B$7 ->  | H22: =V$8*$B22/$B$8 ->  | I22: =V$9*$B22/$B$9 ->  | J22: =V$10*$B22/$B$10 ->  | K22: =V$11*$B22/$B$11 ->  | L22: =V$12*$B22/$B$12 ->  | M22: =V$13*$B22/$B$13 ->  | N22: =V$14*$B22/$B$14 ->  | O22: =V$15*$B22/$B$15 ->  | P22: =V$16*$B22/$B$16 ->  | Q22: =V$17*$B22/$B$17 ->  | R22: =V$18*$B22/$B$18 ->  | S22: =V$19*$B22/$B$19 ->  | T22: =V$20*$B22/$B$20 ->  | U22: =V$21*$B22/$B$21 ->  | V22: =$C$3 -> 0
A23: 21 | B23: = | C23: =W$3*$B23/$B$3 ->  | D23: =W$4*$B23/$B$4 ->  | E23: =W$5*$B23/$B$5 ->  | F23: =W$6*$B23/$B$6 ->  | G23: =W$7*$B23/$B$7 ->  | H23: =W$8*$B23/$B$8 ->  | I23: =W$9*$B23/$B$9 ->  | J23: =W$10*$B23/$B$10 ->  | K23: =W$11*$B23/$B$11 ->  | L23: =W$12*$B23/$B$12 ->  | M23: =W$13*$B23/$B$13 ->  | N23: =W$14*$B23/$B$14 ->  | O23: =W$15*$B23/$B$15 ->  | P23: =W$16*$B23/$B$16 ->  | Q23: =W$17*$B23/$B$17 ->  | R23: =W$18*$B23/$B$18 ->  | S23: =W$19*$B23/$B$19 ->  | T23: =W$20*$B23/$B$20 ->  | U23: =W$21*$B23/$B$21 ->  | V23: =W$22*$B23/$B$22 ->  | W23: =$C$3 -> 0
A24: 22 | B24: = | C24: =X$3*$B24/$B$3 ->  | D24: =X$4*$B24/$B$4 ->  | E24: =X$5*$B24/$B$5 ->  | F24: =X$6*$B24/$B$6 ->  | G24: =X$7*$B24/$B$7 ->  | H24: =X$8*$B24/$B$8 ->  | I24: =X$9*$B24/$B$9 ->  | J24: =X$10*$B24/$B$10 ->  | K24: =X$11*$B24/$B$11 ->  | L24: =X$12*$B24/$B$12 ->  | M24: =X$13*$B24/$B$13 ->  | N24: =X$14*$B24/$B$14 ->  | O24: =X$15*$B24/$B$15 ->  | P24: =X$16*$B24/$B$16 ->  | Q24: =X$17*$B24/$B$17 ->  | R24: =X$18*$B24/$B$18 ->  | S24: =X$19*$B24/$B$19 ->  | T24: =X$20*$B24/$B$20 ->  | U24: =X$21*$B24/$B$21 ->  | V24: =X$22*$B24/$B$22 ->  | W24: =X$23*$B24/$B$23 ->  | X24: =$C$3 -> 0
A25: 23 | B25: = | C25: =Y$3*$B25/$B$3 ->  | D25: =Y$4*$B25/$B$4 ->  | E25: =Y$5*$B25/$B$5 ->  | F25: =Y$6*$B25/$B$6 ->  | G25: =Y$7*$B25/$B$7 ->  | H25: =Y$8*$B25/$B$8 ->  | I25: =Y$9*$B25/$B$9 ->  | J25: =Y$10*$B25/$B$10 ->  | K25: =Y$11*$B25/$B$11 ->  | L25: =Y$12*$B25/$B$12 ->  | M25: =Y$13*$B25/$B$13 ->  | N25: =Y$14*$B25/$B$14 ->  | O25: =Y$15*$B25/$B$15 ->  | P25: =Y$16*$B25/$B$16 ->  | Q25: =Y$17*$B25/$B$17 ->  | R25: =Y$18*$B25/$B$18 ->  | S25: =Y$19*$B25/$B$19 ->  | T25: =Y$20*$B25/$B$20 ->  | U25: =Y$21*$B25/$B$21 ->  | V25: =Y$22*$B25/$B$22 ->  | W25: =Y$23*$B25/$B$23 ->  | X25: =Y$24*$B25/$B$24 ->  | Y25: =$C$3 -> 0
A26: 24 | B26: = | C26: =Z$3*$B26/$B$3 ->  | D26: =Z$4*$B26/$B$4 ->  | E26: =Z$5*$B26/$B$5 ->  | F26: =Z$6*$B26/$B$6 ->  | G26: =Z$7*$B26/$B$7 ->  | H26: =Z$8*$B26/$B$8 ->  | I26: =Z$9*$B26/$B$9 ->  | J26: =Z$10*$B26/$B$10 ->  | K26: =Z$11*$B26/$B$11 ->  | L26: =Z$12*$B26/$B$12 ->  | M26: =Z$13*$B26/$B$13 ->  | N26: =Z$14*$B26/$B$14 ->  | O26: =Z$15*$B26/$B$15 ->  | P26: =Z$16*$B26/$B$16 ->  | Q26: =Z$17*$B26/$B$17 ->  | R26: =Z$18*$B26/$B$18 ->  | S26: =Z$19*$B26/$B$19 ->  | T26: =Z$20*$B26/$B$20 ->  | U26: =Z$21*$B26/$B$21 ->  | V26: =Z$22*$B26/$B$22 ->  | W26: =Z$23*$B26/$B$23 ->  | X26: =Z$24*$B26/$B$24 ->  | Y26: =Z$25*$B26/$B$25 ->  | Z26: =$C$3 -> 0
A27: 25 | B27: = | C27: =AA$3*$B27/$B$3 ->  | D27: =AA$4*$B27/$B$4 ->  | E27: =AA$5*$B27/$B$5 ->  | F27: =AA$6*$B27/$B$6 ->  | G27: =AA$7*$B27/$B$7 ->  | H27: =AA$8*$B27/$B$8 ->  | I27: =AA$9*$B27/$B$9 ->  | J27: =AA$10*$B27/$B$10 ->  | K27: =AA$11*$B27/$B$11 ->  | L27: =AA$12*$B27/$B$12 ->  | M27: =AA$13*$B27/$B$13 ->  | N27: =AA$14*$B27/$B$14 ->  | O27: =AA$15*$B27/$B$15 ->  | P27: =AA$16*$B27/$B$16 ->  | Q27: =AA$17*$B27/$B$17 ->  | R27: =AA$18*$B27/$B$18 ->  | S27: =AA$19*$B27/$B$19 ->  | T27: =AA$20*$B27/$B$20 ->  | U27: =AA$21*$B27/$B$21 ->  | V27: =AA$22*$B27/$B$22 ->  | W27: =AA$23*$B27/$B$23 ->  | X27: =AA$24*$B27/$B$24 ->  | Y27: =AA$25*$B27/$B$25 ->  | Z27: =AA$26*$B27/$B$26 ->  | AA27: =$C$3 -> 0
A28: 26 | B28: = | C28: =AB$3*$B28/$B$3 ->  | D28: =AB$4*$B28/$B$4 ->  | E28: =AB$5*$B28/$B$5 ->  | F28: =AB$6*$B28/$B$6 ->  | G28: =AB$7*$B28/$B$7 ->  | H28: =AB$8*$B28/$B$8 ->  | I28: =AB$9*$B28/$B$9 ->  | J28: =AB$10*$B28/$B$10 ->  | K28: =AB$11*$B28/$B$11 ->  | L28: =AB$12*$B28/$B$12 ->  | M28: =AB$13*$B28/$B$13 ->  | N28: =AB$14*$B28/$B$14 ->  | O28: =AB$15*$B28/$B$15 ->  | P28: =AB$16*$B28/$B$16 ->  | Q28: =AB$17*$B28/$B$17 ->  | R28: =AB$18*$B28/$B$18 ->  | S28: =AB$19*$B28/$B$19 ->  | T28: =AB$20*$B28/$B$20 ->  | U28: =AB$21*$B28/$B$21 ->  | V28: =AB$22*$B28/$B$22 ->  | W28: =AB$23*$B28/$B$23 ->  | X28: =AB$24*$B28/$B$24 ->  | Y28: =AB$25*$B28/$B$25 ->  | Z28: =AB$26*$B28/$B$26 ->  | AA28: =AB$27*$B28/$B$27 ->  | AB28: =$C$3 -> 0
A29: 27 | B29: = | C29: =AC$3*$B29/$B$3 ->  | D29: =AC$4*$B29/$B$4 ->  | E29: =AC$5*$B29/$B$5 ->  | F29: =AC$6*$B29/$B$6 ->  | G29: =AC$7*$B29/$B$7 ->  | H29: =AC$8*$B29/$B$8 ->  | I29: =AC$9*$B29/$B$9 ->  | J29: =AC$10*$B29/$B$10 ->  | K29: =AC$11*$B29/$B$11 ->  | L29: =AC$12*$B29/$B$12 ->  | M29: =AC$13*$B29/$B$13 ->  | N29: =AC$14*$B29/$B$14 ->  | O29: =AC$15*$B29/$B$15 ->  | P29: =AC$16*$B29/$B$16 ->  | Q29: =AC$17*$B29/$B$17 ->  | R29: =AC$18*$B29/$B$18 ->  | S29: =AC$19*$B29/$B$19 ->  | T29: =AC$20*$B29/$B$20 ->  | U29: =AC$21*$B29/$B$21 ->  | V29: =AC$22*$B29/$B$22 ->  | W29: =AC$23*$B29/$B$23 ->  | X29: =AC$24*$B29/$B$24 ->  | Y29: =AC$25*$B29/$B$25 ->  | Z29: =AC$26*$B29/$B$26 ->  | AA29: =AC$27*$B29/$B$27 ->  | AB29: =AC$28*$B29/$B$28 ->  | AC29: =$C$3 -> 0
A30: 28 | B30: = | C30: =AD$3*$B30/$B$3 ->  | D30: =AD$4*$B30/$B$4 ->  | E30: =AD$5*$B30/$B$5 ->  | F30: =AD$6*$B30/$B$6 ->  | G30: =AD$7*$B30/$B$7 ->  | H30: =AD$8*$B30/$B$8 ->  | I30: =AD$9*$B30/$B$9 ->  | J30: =AD$10*$B30/$B$10 ->  | K30: =AD$11*$B30/$B$11 ->  | L30: =AD$12*$B30/$B$12 ->  | M30: =AD$13*$B30/$B$13 ->  | N30: =AD$14*$B30/$B$14 ->  | O30: =AD$15*$B30/$B$15 ->  | P30: =AD$16*$B30/$B$16 ->  | Q30: =AD$17*$B30/$B$17 ->  | R30: =AD$18*$B30/$B$18 ->  | S30: =AD$19*$B30/$B$19 ->  | T30: =AD$20*$B30/$B$20 ->  | U30: =AD$21*$B30/$B$21 ->  | V30: =AD$22*$B30/$B$22 ->  | W30: =AD$23*$B30/$B$23 ->  | X30: =AD$24*$B30/$B$24 ->  | Y30: =AD$25*$B30/$B$25 ->  | Z30: =AD$26*$B30/$B$26 ->  | AA30: =AD$27*$B30/$B$27 ->  | AB30: =AD$28*$B30/$B$28 ->  | AC30: =AD$29*$B30/$B$29 ->  | AD30: =$C$3 -> 0
A31: 29 | B31: = | C31: =AE$3*$B31/$B$3 ->  | D31: =AE$4*$B31/$B$4 ->  | E31: =AE$5*$B31/$B$5 ->  | F31: =AE$6*$B31/$B$6 ->  | G31: =AE$7*$B31/$B$7 ->  | H31: =AE$8*$B31/$B$8 ->  | I31: =AE$9*$B31/$B$9 ->  | J31: =AE$10*$B31/$B$10 ->  | K31: =AE$11*$B31/$B$11 ->  | L31: =AE$12*$B31/$B$12 ->  | M31: =AE$13*$B31/$B$13 ->  | N31: =AE$14*$B31/$B$14 ->  | O31: =AE$15*$B31/$B$15 ->  | P31: =AE$16*$B31/$B$16 ->  | Q31: =AE$17*$B31/$B$17 ->  | R31: =AE$18*$B31/$B$18 ->  | S31: =AE$19*$B31/$B$19 ->  | T31: =AE$20*$B31/$B$20 ->  | U31: =AE$21*$B31/$B$21 ->  | V31: =AE$22*$B31/$B$22 ->  | W31: =AE$23*$B31/$B$23 ->  | X31: =AE$24*$B31/$B$24 ->  | Y31: =AE$25*$B31/$B$25 ->  | Z31: =AE$26*$B31/$B$26 ->  | AA31: =AE$27*$B31/$B$27 ->  | AB31: =AE$28*$B31/$B$28 ->  | AC31: =AE$29*$B31/$B$29 ->  | AD31: =AE$30*$B31/$B$30 ->  | AE31: =$C$3 -> 0
A32: 30 | B32: = | C32: =AF$3*$B32/$B$3 ->  | D32: =AF$4*$B32/$B$4 ->  | E32: =AF$5*$B32/$B$5 ->  | F32: =AF$6*$B32/$B$6 ->  | G32: =AF$7*$B32/$B$7 ->  | H32: =AF$8*$B32/$B$8 ->  | I32: =AF$9*$B32/$B$9 ->  | J32: =AF$10*$B32/$B$10 ->  | K32: =AF$11*$B32/$B$11 ->  | L32: =AF$12*$B32/$B$12 ->  | M32: =AF$13*$B32/$B$13 ->  | N32: =AF$14*$B32/$B$14 ->  | O32: =AF$15*$B32/$B$15 ->  | P32: =AF$16*$B32/$B$16 ->  | Q32: =AF$17*$B32/$B$17 ->  | R32: =AF$18*$B32/$B$18 ->  | S32: =AF$19*$B32/$B$19 ->  | T32: =AF$20*$B32/$B$20 ->  | U32: =AF$21*$B32/$B$21 ->  | V32: =AF$22*$B32/$B$22 ->  | W32: =AF$23*$B32/$B$23 ->  | X32: =AF$24*$B32/$B$24 ->  | Y32: =AF$25*$B32/$B$25 ->  | Z32: =AF$26*$B32/$B$26 ->  | AA32: =AF$27*$B32/$B$27 ->  | AB32: =AF$28*$B32/$B$28 ->  | AC32: =AF$29*$B32/$B$29 ->  | AD32: =AF$30*$B32/$B$30 ->  | AE32: =AF$31*$B32/$B$31 ->  | AF32: =$C$3 -> 0
A33: 31 | B33: = | C33: =AG$3*$B33/$B$3 ->  | D33: =AG$4*$B33/$B$4 ->  | E33: =AG$5*$B33/$B$5 ->  | F33: =AG$6*$B33/$B$6 ->  | G33: =AG$7*$B33/$B$7 ->  | H33: =AG$8*$B33/$B$8 ->  | I33: =AG$9*$B33/$B$9 ->  | J33: =AG$10*$B33/$B$10 ->  | K33: =AG$11*$B33/$B$11 ->  | L33: =AG$12*$B33/$B$12 ->  | M33: =AG$13*$B33/$B$13 ->  | N33: =AG$14*$B33/$B$14 ->  | O33: =AG$15*$B33/$B$15 ->  | P33: =AG$16*$B33/$B$16 ->  | Q33: =AG$17*$B33/$B$17 ->  | R33: =AG$18*$B33/$B$18 ->  | S33: =AG$19*$B33/$B$19 ->  | T33: =AG$20*$B33/$B$20 ->  | U33: =AG$21*$B33/$B$21 ->  | V33: =AG$22*$B33/$B$22 ->  | W33: =AG$23*$B33/$B$23 ->  | X33: =AG$24*$B33/$B$24 ->  | Y33: =AG$25*$B33/$B$25 ->  | Z33: =AG$26*$B33/$B$26 ->  | AA33: =AG$27*$B33/$B$27 ->  | AB33: =AG$28*$B33/$B$28 ->  | AC33: =AG$29*$B33/$B$29 ->  | AD33: =AG$30*$B33/$B$30 ->  | AE33: =AG$31*$B33/$B$31 ->  | AF33: =AG$32*$B33/$B$32 ->  | AG33: =$C$3 -> 0
A34: 32 | B34: = | C34: =AH$3*$B34/$B$3 ->  | D34: =AH$4*$B34/$B$4 ->  | E34: =AH$5*$B34/$B$5 ->  | F34: =AH$6*$B34/$B$6 ->  | G34: =AH$7*$B34/$B$7 ->  | H34: =AH$8*$B34/$B$8 ->  | I34: =AH$9*$B34/$B$9 ->  | J34: =AH$10*$B34/$B$10 ->  | K34: =AH$11*$B34/$B$11 ->  | L34: =AH$12*$B34/$B$12 ->  | M34: =AH$13*$B34/$B$13 ->  | N34: =AH$14*$B34/$B$14 ->  | O34: =AH$15*$B34/$B$15 ->  | P34: =AH$16*$B34/$B$16 ->  | Q34: =AH$17*$B34/$B$17 ->  | R34: =AH$18*$B34/$B$18 ->  | S34: =AH$19*$B34/$B$19 ->  | T34: =AH$20*$B34/$B$20 ->  | U34: =AH$21*$B34/$B$21 ->  | V34: =AH$22*$B34/$B$22 ->  | W34: =AH$23*$B34/$B$23 ->  | X34: =AH$24*$B34/$B$24 ->  | Y34: =AH$25*$B34/$B$25 ->  | Z34: =AH$26*$B34/$B$26 ->  | AA34: =AH$27*$B34/$B$27 ->  | AB34: =AH$28*$B34/$B$28 ->  | AC34: =AH$29*$B34/$B$29 ->  | AD34: =AH$30*$B34/$B$30 ->  | AE34: =AH$31*$B34/$B$31 ->  | AF34: =AH$32*$B34/$B$32 ->  | AG34: =AH$33*$B34/$B$33 ->  | AH34: =$C$3 -> 0
A35: 33 | B35: = | C35: =AI$3*$B35/$B$3 ->  | D35: =AI$4*$B35/$B$4 ->  | E35: =AI$5*$B35/$B$5 ->  | F35: =AI$6*$B35/$B$6 ->  | G35: =AI$7*$B35/$B$7 ->  | H35: =AI$8*$B35/$B$8 ->  | I35: =AI$9*$B35/$B$9 ->  | J35: =AI$10*$B35/$B$10 ->  | K35: =AI$11*$B35/$B$11 ->  | L35: =AI$12*$B35/$B$12 ->  | M35: =AI$13*$B35/$B$13 ->  | N35: =AI$14*$B35/$B$14 ->  | O35: =AI$15*$B35/$B$15 ->  | P35: =AI$16*$B35/$B$16 ->  | Q35: =AI$17*$B35/$B$17 ->  | R35: =AI$18*$B35/$B$18 ->  | S35: =AI$19*$B35/$B$19 ->  | T35: =AI$20*$B35/$B$20 ->  | U35: =AI$21*$B35/$B$21 ->  | V35: =AI$22*$B35/$B$22 ->  | W35: =AI$23*$B35/$B$23 ->  | X35: =AI$24*$B35/$B$24 ->  | Y35: =AI$25*$B35/$B$25 ->  | Z35: =AI$26*$B35/$B$26 ->  | AA35: =AI$27*$B35/$B$27 ->  | AB35: =AI$28*$B35/$B$28 ->  | AC35: =AI$29*$B35/$B$29 ->  | AD35: =AI$30*$B35/$B$30 ->  | AE35: =AI$31*$B35/$B$31 ->  | AF35: =AI$32*$B35/$B$32 ->  | AG35: =AI$33*$B35/$B$33 ->  | AH35: =AI$34*$B35/$B$34 ->  | AI35: =$C$3 -> 0
A36: 34 | B36: = | C36: =AJ$3*$B36/$B$3 ->  | D36: =AJ$4*$B36/$B$4 ->  | E36: =AJ$5*$B36/$B$5 ->  | F36: =AJ$6*$B36/$B$6 ->  | G36: =AJ$7*$B36/$B$7 ->  | H36: =AJ$8*$B36/$B$8 ->  | I36: =AJ$9*$B36/$B$9 ->  | J36: =AJ$10*$B36/$B$10 ->  | K36: =AJ$11*$B36/$B$11 ->  | L36: =AJ$12*$B36/$B$12 ->  | M36: =AJ$13*$B36/$B$13 ->  | N36: =AJ$14*$B36/$B$14 ->  | O36: =AJ$15*$B36/$B$15 ->  | P36: =AJ$16*$B36/$B$16 ->  | Q36: =AJ$17*$B36/$B$17 ->  | R36: =AJ$18*$B36/$B$18 ->  | S36: =AJ$19*$B36/$B$19 ->  | T36: =AJ$20*$B36/$B$20 ->  | U36: =AJ$21*$B36/$B$21 ->  | V36: =AJ$22*$B36/$B$22 ->  | W36: =AJ$23*$B36/$B$23 ->  | X36: =AJ$24*$B36/$B$24 ->  | Y36: =AJ$25*$B36/$B$25 ->  | Z36: =AJ$26*$B36/$B$26 ->  | AA36: =AJ$27*$B36/$B$27 ->  | AB36: =AJ$28*$B36/$B$28 ->  | AC36: =AJ$29*$B36/$B$29 ->  | AD36: =AJ$30*$B36/$B$30 ->  | AE36: =AJ$31*$B36/$B$31 ->  | AF36: =AJ$32*$B36/$B$32 ->  | AG36: =AJ$33*$B36/$B$33 ->  | AH36: =AJ$34*$B36/$B$34 ->  | AI36: =AJ$35*$B36/$B$35 ->  | AJ36: =$C$3 -> 0
A37: 35 | B37: = | C37: =AK$3*$B37/$B$3 ->  | D37: =AK$4*$B37/$B$4 ->  | E37: =AK$5*$B37/$B$5 ->  | F37: =AK$6*$B37/$B$6 ->  | G37: =AK$7*$B37/$B$7 ->  | H37: =AK$8*$B37/$B$8 ->  | I37: =AK$9*$B37/$B$9 ->  | J37: =AK$10*$B37/$B$10 ->  | K37: =AK$11*$B37/$B$11 ->  | L37: =AK$12*$B37/$B$12 ->  | M37: =AK$13*$B37/$B$13 ->  | N37: =AK$14*$B37/$B$14 ->  | O37: =AK$15*$B37/$B$15 ->  | P37: =AK$16*$B37/$B$16 ->  | Q37: =AK$17*$B37/$B$17 ->  | R37: =AK$18*$B37/$B$18 ->  | S37: =AK$19*$B37/$B$19 ->  | T37: =AK$20*$B37/$B$20 ->  | U37: =AK$21*$B37/$B$21 ->  | V37: =AK$22*$B37/$B$22 ->  | W37: =AK$23*$B37/$B$23 ->  | X37: =AK$24*$B37/$B$24 ->  | Y37: =AK$25*$B37/$B$25 ->  | Z37: =AK$26*$B37/$B$26 ->  | AA37: =AK$27*$B37/$B$27 ->  | AB37: =AK$28*$B37/$B$28 ->  | AC37: =AK$29*$B37/$B$29 ->  | AD37: =AK$30*$B37/$B$30 ->  | AE37: =AK$31*$B37/$B$31 ->  | AF37: =AK$32*$B37/$B$32 ->  | AG37: =AK$33*$B37/$B$33 ->  | AH37: =AK$34*$B37/$B$34 ->  | AI37: =AK$35*$B37/$B$35 ->  | AJ37: =AK$36*$B37/$B$36 ->  | AK37: =$C$3 -> 0
A38: 36 | B38: = | C38: =AL$3*$B38/$B$3 ->  | D38: =AL$4*$B38/$B$4 ->  | E38: =AL$5*$B38/$B$5 ->  | F38: =AL$6*$B38/$B$6 ->  | G38: =AL$7*$B38/$B$7 ->  | H38: =AL$8*$B38/$B$8 ->  | I38: =AL$9*$B38/$B$9 ->  | J38: =AL$10*$B38/$B$10 ->  | K38: =AL$11*$B38/$B$11 ->  | L38: =AL$12*$B38/$B$12 ->  | M38: =AL$13*$B38/$B$13 ->  | N38: =AL$14*$B38/$B$14 ->  | O38: =AL$15*$B38/$B$15 ->  | P38: =AL$16*$B38/$B$16 ->  | Q38: =AL$17*$B38/$B$17 ->  | R38: =AL$18*$B38/$B$18 ->  | S38: =AL$19*$B38/$B$19 ->  | T38: =AL$20*$B38/$B$20 ->  | U38: =AL$21*$B38/$B$21 ->  | V38: =AL$22*$B38/$B$22 ->  | W38: =AL$23*$B38/$B$23 ->  | X38: =AL$24*$B38/$B$24 ->  | Y38: =AL$25*$B38/$B$25 ->  | Z38: =AL$26*$B38/$B$26 ->  | AA38: =AL$27*$B38/$B$27 ->  | AB38: =AL$28*$B38/$B$28 ->  | AC38: =AL$29*$B38/$B$29 ->  | AD38: =AL$30*$B38/$B$30 ->  | AE38: =AL$31*$B38/$B$31 ->  | AF38: =AL$32*$B38/$B$32 ->  | AG38: =AL$33*$B38/$B$33 ->  | AH38: =AL$34*$B38/$B$34 ->  | AI38: =AL$35*$B38/$B$35 ->  | AJ38: =AL$36*$B38/$B$36 ->  | AK38: =AL$37*$B38/$B$37 ->  | AL38: =$C$3 -> 0
A39: 37 | B39: = | C39: =AM$3*$B39/$B$3 ->  | D39: =AM$4*$B39/$B$4 ->  | E39: =AM$5*$B39/$B$5 ->  | F39: =AM$6*$B39/$B$6 ->  | G39: =AM$7*$B39/$B$7 ->  | H39: =AM$8*$B39/$B$8 ->  | I39: =AM$9*$B39/$B$9 ->  | J39: =AM$10*$B39/$B$10 ->  | K39: =AM$11*$B39/$B$11 ->  | L39: =AM$12*$B39/$B$12 ->  | M39: =AM$13*$B39/$B$13 ->  | N39: =AM$14*$B39/$B$14 ->  | O39: =AM$15*$B39/$B$15 ->  | P39: =AM$16*$B39/$B$16 ->  | Q39: =AM$17*$B39/$B$17 ->  | R39: =AM$18*$B39/$B$18 ->  | S39: =AM$19*$B39/$B$19 ->  | T39: =AM$20*$B39/$B$20 ->  | U39: =AM$21*$B39/$B$21 ->  | V39: =AM$22*$B39/$B$22 ->  | W39: =AM$23*$B39/$B$23 ->  | X39: =AM$24*$B39/$B$24 ->  | Y39: =AM$25*$B39/$B$25 ->  | Z39: =AM$26*$B39/$B$26 ->  | AA39: =AM$27*$B39/$B$27 ->  | AB39: =AM$28*$B39/$B$28 ->  | AC39: =AM$29*$B39/$B$29 ->  | AD39: =AM$30*$B39/$B$30 ->  | AE39: =AM$31*$B39/$B$31 ->  | AF39: =AM$32*$B39/$B$32 ->  | AG39: =AM$33*$B39/$B$33 ->  | AH39: =AM$34*$B39/$B$34 ->  | AI39: =AM$35*$B39/$B$35 ->  | AJ39: =AM$36*$B39/$B$36 ->  | AK39: =AM$37*$B39/$B$37 ->  | AL39: =AM$38*$B39/$B$38 ->  | AM39: =$C$3 -> 0
A40: 38 | B40: = | C40: =AN$3*$B40/$B$3 ->  | D40: =AN$4*$B40/$B$4 ->  | E40: =AN$5*$B40/$B$5 ->  | F40: =AN$6*$B40/$B$6 ->  | G40: =AN$7*$B40/$B$7 ->  | H40: =AN$8*$B40/$B$8 ->  | I40: =AN$9*$B40/$B$9 ->  | J40: =AN$10*$B40/$B$10 ->  | K40: =AN$11*$B40/$B$11 ->  | L40: =AN$12*$B40/$B$12 ->  | M40: =AN$13*$B40/$B$13 ->  | N40: =AN$14*$B40/$B$14 ->  | O40: =AN$15*$B40/$B$15 ->  | P40: =AN$16*$B40/$B$16 ->  | Q40: =AN$17*$B40/$B$17 ->  | R40: =AN$18*$B40/$B$18 ->  | S40: =AN$19*$B40/$B$19 ->  | T40: =AN$20*$B40/$B$20 ->  | U40: =AN$21*$B40/$B$21 ->  | V40: =AN$22*$B40/$B$22 ->  | W40: =AN$23*$B40/$B$23 ->  | X40: =AN$24*$B40/$B$24 ->  | Y40: =AN$25*$B40/$B$25 ->  | Z40: =AN$26*$B40/$B$26 ->  | AA40: =AN$27*$B40/$B$27 ->  | AB40: =AN$28*$B40/$B$28 ->  | AC40: =AN$29*$B40/$B$29 ->  | AD40: =AN$30*$B40/$B$30 ->  | AE40: =AN$31*$B40/$B$31 ->  | AF40: =AN$32*$B40/$B$32 ->  | AG40: =AN$33*$B40/$B$33 ->  | AH40: =AN$34*$B40/$B$34 ->  | AI40: =AN$35*$B40/$B$35 ->  | AJ40: =AN$36*$B40/$B$36 ->  | AK40: =AN$37*$B40/$B$37 ->  | AL40: =AN$38*$B40/$B$38 ->  | AM40: =AN$39*$B40/$B$39 ->  | AN40: =$C$3 -> 0
A41: 39 | B41: = | C41: =AO$3*$B41/$B$3 ->  | D41: =AO$4*$B41/$B$4 ->  | E41: =AO$5*$B41/$B$5 ->  | F41: =AO$6*$B41/$B$6 ->  | G41: =AO$7*$B41/$B$7 ->  | H41: =AO$8*$B41/$B$8 ->  | I41: =AO$9*$B41/$B$9 ->  | J41: =AO$10*$B41/$B$10 ->  | K41: =AO$11*$B41/$B$11 ->  | L41: =AO$12*$B41/$B$12 ->  | M41: =AO$13*$B41/$B$13 ->  | N41: =AO$14*$B41/$B$14 ->  | O41: =AO$15*$B41/$B$15 ->  | P41: =AO$16*$B41/$B$16 ->  | Q41: =AO$17*$B41/$B$17 ->  | R41: =AO$18*$B41/$B$18 ->  | S41: =AO$19*$B41/$B$19 ->  | T41: =AO$20*$B41/$B$20 ->  | U41: =AO$21*$B41/$B$21 ->  | V41: =AO$22*$B41/$B$22 ->  | W41: =AO$23*$B41/$B$23 ->  | X41: =AO$24*$B41/$B$24 ->  | Y41: =AO$25*$B41/$B$25 ->  | Z41: =AO$26*$B41/$B$26 ->  | AA41: =AO$27*$B41/$B$27 ->  | AB41: =AO$28*$B41/$B$28 ->  | AC41: =AO$29*$B41/$B$29 ->  | AD41: =AO$30*$B41/$B$30 ->  | AE41: =AO$31*$B41/$B$31 ->  | AF41: =AO$32*$B41/$B$32 ->  | AG41: =AO$33*$B41/$B$33 ->  | AH41: =AO$34*$B41/$B$34 ->  | AI41: =AO$35*$B41/$B$35 ->  | AJ41: =AO$36*$B41/$B$36 ->  | AK41: =AO$37*$B41/$B$37 ->  | AL41: =AO$38*$B41/$B$38 ->  | AM41: =AO$39*$B41/$B$39 ->  | AN41: =AO$40*$B41/$B$40 ->  | AO41: =$C$3 -> 0
A42: 40 | B42: = | C42: =AP$3*$B42/$B$3 ->  | D42: =AP$4*$B42/$B$4 ->  | E42: =AP$5*$B42/$B$5 ->  | F42: =AP$6*$B42/$B$6 ->  | G42: =AP$7*$B42/$B$7 ->  | H42: =AP$8*$B42/$B$8 ->  | I42: =AP$9*$B42/$B$9 ->  | J42: =AP$10*$B42/$B$10 ->  | K42: =AP$11*$B42/$B$11 ->  | L42: =AP$12*$B42/$B$12 ->  | M42: =AP$13*$B42/$B$13 ->  | N42: =AP$14*$B42/$B$14 ->  | O42: =AP$15*$B42/$B$15 ->  | P42: =AP$16*$B42/$B$16 ->  | Q42: =AP$17*$B42/$B$17 ->  | R42: =AP$18*$B42/$B$18 ->  | S42: =AP$19*$B42/$B$19 ->  | T42: =AP$20*$B42/$B$20 ->  | U42: =AP$21*$B42/$B$21 ->  | V42: =AP$22*$B42/$B$22 ->  | W42: =AP$23*$B42/$B$23 ->  | X42: =AP$24*$B42/$B$24 ->  | Y42: =AP$25*$B42/$B$25 ->  | Z42: =AP$26*$B42/$B$26 ->  | AA42: =AP$27*$B42/$B$27 ->  | AB42: =AP$28*$B42/$B$28 ->  | AC42: =AP$29*$B42/$B$29 ->  | AD42: =AP$30*$B42/$B$30 ->  | AE42: =AP$31*$B42/$B$31 ->  | AF42: =AP$32*$B42/$B$32 ->  | AG42: =AP$33*$B42/$B$33 ->  | AH42: =AP$34*$B42/$B$34 ->  | AI42: =AP$35*$B42/$B$35 ->  | AJ42: =AP$36*$B42/$B$36 ->  | AK42: =AP$37*$B42/$B$37 ->  | AL42: =AP$38*$B42/$B$38 ->  | AM42: =AP$39*$B42/$B$39 ->  | AN42: =AP$40*$B42/$B$40 ->  | AO42: =AP$41*$B42/$B$41 ->  | AP42: =$C$3 -> 0
B43: =
A45: Vloží plochy jednotlivých konstrukcí předtím, než bude poprvé spuštěn výpočet
A46: Slouží k usnadnění práce uživateli, aby mohl kontrolovat poměry osálání dopočítané pravidlem reciprocity

Sheet Výpočetní pomůcky_fi
B1: Případ poměru osálání | C1: Vzorec | D1: Řešení | E1: Vstupní hodnoty
D2: ϕ2,1 | E2: a [m] | F2: b [m] | G2: c [m]
D3: =(1/(E3*F3*PI()))*(E3*F3*ATAN(E3/F3)-E3*SQRT(F3^2+G3^2)*ATAN(E3/(SQRT(F3^2+G3^2)))+E3*G3*ATAN(E3/G3)+((F3^2)/4)*LN(((E3^2+F3^2+G3^2)*F3^2)/((E3^2+F3^2)*(F3^2+G3^2)))+((G3^2)/4)*LN(((E3^2+F3^2+G3^2)*G3^2)/((E3^2+G3^2)*(F3^2+G3^2)))-((E3^2)/4)*LN(((E3^2+F3^2+G3^2)*E3^2)/((E3^2+F3^2)*(E3^2+G3^2)))) -> 
D13: ϕD,A | E13: AA [m2] | F13: AB [m2] | G13: AAB [m2] | H13: ϕ(CD),(AB) | I13: ϕC,A | J13: ϕD,B
D14: =(1/(2*E14))*(H14*G14-E14*I14-F14*J14) -> 
D24: ϕD,A | E24: AA [m2] | F24: AB [m2] | G24: AAB [m2] | H24: ϕ(CD),(AB) | I24: ϕC,A | J24: ϕD,B
D25: =(1/(2*E25))*(H25*G25-E25*I25-F25*J25) -> 
D35: ϕD,A | E35: AA [m2] | F35: AB [m2] | G35: AAB [m2] | H35: ϕ(CD),(AB) | I35: ϕ(CD),B | J35: ϕC,(AB) | K35: ϕC,B
D36: =(1/E36)*(G36*H36-F36*I36-G36*J36+F36*K36) -> 
D46: ϕC,A | E46: AA [m2] | F46: AB [m2] | G46: AAB [m2] | H46: ϕC,(AB) | I46: ϕC,B
D47: =(1/E47)*(G47*H47-F47*I47) -> 
D57: ϕ2,1 | E57: K1 | F57: K2 | G57: a [m] | H57: b [m] | I57: L [m]
D58: =(2/PI())*((((1+F58^2)^0.5)/F58)*ATAN(E58/((1+F58^2)^0.5))+(((1+E58^2)^0.5)/E58)*ATAN(F58/((1+E58^2)^0.5))-(1/F58)*ATAN(E58)-(1/E58)*ATAN(F58)+(1/(2*E58*F58))*LN(((1+E58^2)*(1+F58^2))/(1+E58^2+F58^2))) ->  | E58: =G58/I58 ->  | F58: =H58/I58 -> 
D68: ϕB',A | E68: AA [m2] | F68: AB [m2] | G68: AAB [m2] | H68: ϕ(A'B'),(AB) | I68: ϕA',A | J68: ϕB',B
D69: =(1/(2*E69))*(G69*H69-E69*I69-F69*J69) -> 
D79: ϕD',A | E79: AA [m2] | F79: AB [m2] | G79: AC [m2] | H79: AD [m2] | I79: AS [m2]
D80: =(1/(4*E80))*(E82*I80-(F82+G82+H82)*E80-(F84+G84+H84)*F80-(F86+G86+H86)*G80-(F88+G88+H88)*H80) -> 
E81: ϕS',S | F81: ϕA',A | G81: ϕB',A | H81: ϕC',A
F83: ϕA',B | G83: ϕB',B | H83: ϕD',B
F85: ϕA',C | G85: ϕC',C | H85: ϕD',C
F87: ϕB',D | G87: ϕC',D | H87: ϕD',D
D90: ϕ1,2 | E90: A1
D91: =SUM(AE98:AE113)/((F92-F91)*(F94-F93)) ->  | E91: x1
D92: ϕ2,1 | E92: x2
D93: =(D91*(F92-F91)*(F94-F93))/((F97-F96)*(F99-F98)) ->  | E93: y1
E94: y2
E95: A2
E96: ξ1 | N96: rovnobezne | Z96: kolme
E97: ξ2 | N97: i | O97: j | P97: k | Q97: l | R97: (-1)i+j+k+l | S97: z | T97: h | U97: x | V97: x | W97: y | X97: G | Y97: iG | Z97: h | AA97: x | AB97: x | AC97: y | AD97: G | AE97: iG
E98: η1 | N98: 1 | O98: 1 | P98: 1 | Q98: 1 | R98: =(-1)^(N98+O98+P98+Q98) -> 1 | S98: =$F$113 -> 0 | T98: =$F$111 -> 0 | U98: =$F$109 -> 0 | V98: =$F$104 -> 0 | W98: =$F$106 -> 0 | X98: =1/2/PI()*((W98-T98)*((V98-U98)^2+S98^2)^0.5*ATAN((W98-T98)/((V98-U98)^2+S98^2)^0.5)+(V98-U98)*((W98-T98)^2+S98^2)^0.5*ATAN((V98-U98)/((W98-T98)^2+S98^2)^0.5)-S98^2/2*LN((V98-U98)^2+(W98-T98)^2+S98^2)) ->  | Y98: =X98*R98 ->  | Z98: =$F$98 -> 0 | AA98: =$F$96 -> 0 | AB98: =$F$91 -> 0 | AC98: =$F$93 -> 0 | AD98: =1/2/PI()*((AC98-Z98)*(AB98^2+AA98^2)^0.5*ATAN((AC98-Z98)/(AB98^2+AA98^2)^0.5)-1/4*(AB98^2+AA98^2-(AC98-Z98)^2)*LN(AB98^2+(AC98-Z98)^2+AA98^2)) ->  | AE98: =AD98*R98 -> 
E99: η2 | N99: 1 | O99: 1 | P99: 1 | Q99: 2 | R99: =(-1)^(N99+O99+P99+Q99) -> -1 | S99: =$F$113 -> 0 | T99: =$F$111 -> 0 | U99: 0 | V99: =$F$104 -> 0 | W99: =$F$107 -> 0 | X99: =1/2/PI()*((W99-T99)*((V99-U99)^2+S99^2)^0.5*ATAN((W99-T99)/((V99-U99)^2+S99^2)^0.5)+(V99-U99)*((W99-T99)^2+S99^2)^0.5*ATAN((V99-U99)/((W99-T99)^2+S99^2)^0.5)-S99^2/2*LN((V99-U99)^2+(W99-T99)^2+S99^2)) ->  | Y99: =X99*R99 ->  | Z99: =Z98 -> 0 | AA99: =AA98 -> 0 | AB99: =AB98 -> 0 | AC99: =$F$94 -> 0 | AD99: =1/2/PI()*((AC99-Z99)*(AB99^2+AA99^2)^0.5*ATAN((AC99-Z99)/(AB99^2+AA99^2)^0.5)-1/4*(AB99^2+AA99^2-(AC99-Z99)^2)*LN(AB99^2+(AC99-Z99)^2+AA99^2)) -> 
N100: 1 | O100: 1 | P100: 2 | Q100: 1 | R100: =(-1)^(N100+O100+P100+Q100) -> -1 | S100: 0 | T100: 0 | U100: 0 | V100: =$F$105 -> 0 | W100: =$F$106 -> 0 | X100: =1/2/PI()*((W100-T100)*((V100-U100)^2+S100^2)^0.5*ATAN((W100-T100)/((V100-U100)^2+S100^2)^0.5)+(V100-U100)*((W100-T100)^2+S100^2)^0.5*ATAN((V100-U100)/((W100-T100)^2+S100^2)^0.5)-S100^2/2*LN((V100-U100)^2+(W100-T100)^2+S100^2)) ->  | Z100: =Z99 -> 0 | AA100: =AA99 -> 0 | AB100: =$F$92 -> 0 | AC100: =$F$93 -> 0
N101: 1 | O101: 1 | P101: 2 | Q101: 2 | R101: =(-1)^(N101+O101+P101+Q101) -> 1 | S101: 0 | T101: 0 | U101: =$F$109 -> 0 | V101: =$F$105 -> 0 | W101: =$F$107 -> 0 | X101: =1/2/PI()*((W101-T101)*((V101-U101)^2+S101^2)^0.5*ATAN((W101-T101)/((V101-U101)^2+S101^2)^0.5)+(V101-U101)*((W101-T101)^2+S101^2)^0.5*ATAN((V101-U101)/((W101-T101)^2+S101^2)^0.5)-S101^2/2*LN((V101-U101)^2+(W101-T101)^2+S101^2)) ->  | Z101: 0 | AA101: 0 | AB101: =$F$92 -> 0 | AC101: =$F$94 -> 0
B102: Převzato z [7] | N102: 1 | O102: 2 | P102: 1 | Q102: 1 | R102: =(-1)^(N102+O102+P102+Q102) -> -1 | S102: 0 | T102: 0 | U102: =$F$110 -> 0 | V102: =$F$104 -> 0 | W102: =$F$106 -> 0 | Z102: 0 | AA102: =$F$97 -> 0 | AB102: =$F$91 -> 0 | AC102: =$F$93 -> 0
D103: ϕ1,2 | E103: A1 | N103: 1 | O103: 2 | P103: 1 | Q103: 2 | R103: 1 | S103: 0 | T103: 0 | U103: =$F$110 -> 0 | V103: =$F$104 -> 0 | W103: =$F$107 -> 0 | Z103: 0 | AA103: =AA102 -> 0 | AB103: =AB102 -> 0 | AC103: =$F$94 -> 0
D104: =SUM(Y98:Y113)/((F105-F104)*(F107-F106)) ->  | E104: x1 | N104: 1 | O104: 2 | P104: 2 | Q104: 1 | R104: 1 | S104: 0 | T104: 0 | U104: =$F$110 -> 0 | V104: =$F$105 -> 0 | W104: =$F$106 -> 0 | Z104: 0 | AA104: =AA103 -> 0 | AB104: =$F$92 -> 0 | AC104: =$F$93 -> 0
D105: ϕ2,1 | E105: x2 | N105: 1 | O105: 2 | P105: 2 | Q105: 2 | R105: -1 | S105: 0 | T105: 0 | U105: =$F$110 -> 0 | V105: =$F$105 -> 0 | W105: =$F$107 -> 0 | Z105: 0 | AA105: =AA104 -> 0 | AB105: =$F$92 -> 0 | AC105: =$F$94 -> 0
D106: =(D104*(F105-F104)*(F107-F106))/((F110-F109)*(F112-F111)) ->  | E106: y1 | N106: 2 | O106: 1 | P106: 1 | Q106: 1 | R106: -1 | S106: 0 | T106: =$F$112 -> 0 | U106: =$F$109 -> 0 | V106: =$F$104 -> 0 | W106: =$F$106 -> 0 | Z106: =$F$99 -> 0 | AA106: =AA98 -> 0 | AB106: =$F$91 -> 0 | AC106: =$F$93 -> 0
E107: y2 | N107: 2 | O107: 1 | P107: 1 | Q107: 2 | R107: 1 | S107: 0 | T107: =$F$112 -> 0 | U107: 0 | V107: =$F$104 -> 0 | W107: =$F$107 -> 0 | Z107: =Z106 -> 0 | AA107: =AA99 -> 0 | AB107: =AB106 -> 0 | AC107: =$F$94 -> 0
E108: A2 | N108: 2 | O108: 1 | P108: 2 | Q108: 1 | R108: 1 | S108: 0 | T108: 0 | U108: 0 | V108: =$F$105 -> 0 | W108: =$F$106 -> 0 | Z108: =Z107 -> 0 | AA108: =AA100 -> 0 | AB108: =$F$92 -> 0 | AC108: =$F$93 -> 0
E109: ξ1 | N109: 2 | O109: 1 | P109: 2 | Q109: 2 | R109: -1 | S109: 0 | T109: 0 | U109: 0 | V109: =$F$105 -> 0 | W109: =$F$107 -> 0 | Z109: 0 | AA109: =AA101 -> 0 | AB109: =$F$92 -> 0 | AC109: =$F$94 -> 0
E110: ξ2 | N110: 2 | O110: 2 | P110: 1 | Q110: 1 | R110: 1 | S110: 0 | T110: 0 | U110: =$F$110 -> 0 | V110: =$F$104 -> 0 | W110: =$F$106 -> 0 | Z110: 0 | AA110: =AA102 -> 0 | AB110: =$F$91 -> 0 | AC110: =$F$93 -> 0
E111: η1 | N111: 2 | O111: 2 | P111: 1 | Q111: 2 | R111: -1 | S111: 0 | T111: 0 | U111: =$F$110 -> 0 | V111: =$F$104 -> 0 | W111: =$F$107 -> 0 | Z111: 0 | AA111: =AA103 -> 0 | AB111: =AB110 -> 0 | AC111: =$F$94 -> 0
E112: η2 | N112: 2 | O112: 2 | P112: 2 | Q112: 1 | R112: -1 | S112: 0 | T112: 0 | U112: =$F$110 -> 0 | V112: =$F$105 -> 0 | W112: =$F$106 -> 0 | Z112: 0 | AA112: 0 | AB112: =$F$92 -> 0 | AC112: =$F$93 -> 0
E113: z | N113: 2 | O113: 2 | P113: 2 | Q113: 2 | R113: 1 | S113: 0 | T113: 0 | U113: =$F$110 -> 0 | V113: =$F$105 -> 0 | W113: =$F$107 -> 0 | Z113: 0 | AA113: =AA105 -> 0 | AB113: =$F$92 -> 0 | AC113: =$F$94 -> 0
B115: Převzato z [7]

Sheet Výsledek

Sheet Data
A1: 1 | B1: 2 | C1: 3 | D1: 4 | E1: 5 | F1: 6 | G1: 7 | H1: 8 | I1: 9 | J1: 10 | K1: 11 | L1: 12 | M1: 13 | N1: 14 | O1: 15 | P1: 16 | Q1: 17 | R1: 18 | S1: 19 | T1: 20 | U1: 21 | V1: 22 | W1: 23 | X1: 24 | Y1: 25 | Z1: 26 | AA1: 27 | AB1: 28 | AC1: 29 | AD1: 30 | AE1: 31 | AF1: 32 | AG1: 33 | AH1: 34 | AI1: 35 | AJ1: 36 | AK1: 37 | AL1: 38 | AM1: 39 | AN1: 40 | AO1: 41 | AP1: 42 | AQ1: 43 | AR1: 44 | AS1: 45 | AT1: 46 | AU1: 47 | AV1: 48 | AW1: 49 | AX1: 50 | AY1: 51 | AZ1: 52 | BA1: 53
B2: index | C2: orientace | D2: tp [°C] | E2: S [m2] | F2: αki [W/m2K] | G2: αke [W/m2K] | H2: te' [°C] | I2: tp' [°C] | J2: ε [-] | K2: ti [°C] | L2: ti' [°C] | M2: te [°C] | N2: plocha s/h? | O2: fiktivni plocha/panel? | P2: index navazujici plochy | Q2: Λ [W/m2K] | W2: tp,vz [°C] | X2: =IF(ISBLANK(Konstrukce!P1),Konstrukce!G1,Konstrukce!P1) -> 0 | Z2: ksi' | AK2: Vykreslovani vysledku:
B3: = | C3: =IF(Data!$B3<MIN(Panely!$A$9:$A$28),VLOOKUP(Data!$B3,tabulka_kce_def,4,FALSE),VLOOKUP(Data!$B3,tabulka_panely_def,4,FALSE)) ->  | D3: =IF(Data!$B3<MIN(Panely!$A$9:$A$28),VLOOKUP(Data!$B3,tabulka_kce_def,23,FALSE),VLOOKUP(Data!$B3,tabulka_panely_def,24,FALSE)) ->  | E3: =IF(Data!$B3<MIN(Panely!$A$9:$A$28),VLOOKUP(Data!$B3,tabulka_kce_def,21,FALSE),VLOOKUP(Data!$B3,tabulka_panely_def,22,FALSE)) ->  | F3: =IF(Data!$B3<MIN(Panely!$A$9:$A$28),VLOOKUP(Data!$B3,tabulka_kce_def,26,FALSE),VLOOKUP(Data!$B3,tabulka_panely_def,31,FALSE)) ->  | G3: =IF(Data!$B3<MIN(Panely!$A$9:$A$28),VLOOKUP(Data!$B3,tabulka_kce_def,27,FALSE),VLOOKUP(Data!$B3,tabulka_panely_def,32,FALSE)) ->  | H3: =IF(VLOOKUP(Data!$B3,tabulka_kce_def,3,FALSE)="",Konstrukce!$G$1,IF(VLOOKUP(Data!$B3,tabulka_kce_def,3,FALSE)="z",Konstrukce!$G$2,VLOOKUP(Data!$B3,tabulka_kce_def,3,FALSE))) ->  | I3: =IF(Data!$B3<MIN(Panely!$A$9:$A$28),0,VLOOKUP(Data!$B3,tabulka_panely_def,25,FALSE)) ->  | J3: =IF(Data!$B3<MIN(Panely!$A$9:$A$28),VLOOKUP(Data!$B3,tabulka_kce_def,24,FALSE),VLOOKUP(Data!$B3,tabulka_panely_def,33,FALSE)) ->  | K3: =Konstrukce!$D$1 -> 15 | L3: =Konstrukce!$D$2 -> 15 | M3: =Konstrukce!$G$1 -> 0 | N3: =IF(Data!$B3<MIN(Panely!$A$9:$A$28),VLOOKUP(Data!$B3,tabulka_kce_def,59,FALSE),VLOOKUP(Data!$B3,tabulka_panely_def,63,FALSE)) ->  | O3: =IF(Data!$B3<MIN(Panely!$A$9:$A$28),VLOOKUP(Data!$B3,tabulka_kce_def,60,FALSE),VLOOKUP(Data!$B3,tabulka_panely_def,64,FALSE)) ->  | P3: =IF(Data!$B3<MIN(Panely!$A$9:$A$28),VLOOKUP(Data!$B3,tabulka_kce_def,61,FALSE),VLOOKUP(Data!$B3,tabulka_panely_def,65,FALSE)) ->  | Q3: =IF(Data!$B3<MIN(Panely!$A$9:$A$28),VLOOKUP(Data!$B3,tabulka_kce_def,25,FALSE),0) -> 0 | R3: =IF(O3="f",VLOOKUP(VALUE(P3),tabulka_data,3,FALSE),D3) ->  | W3: ti [°C] | X3: =K3 -> 15 | AB3: =(((273.15+Z3)^4)-((273.15+AA3)^4))/((10^8)*(Z3-AA3)) ->  | AK3: intervaly
B4: = | C4: =IF(Data!$B4<MIN(Panely!$A$9:$A$28),VLOOKUP(Data!$B4,tabulka_kce_def,4,FALSE),VLOOKUP(Data!$B4,tabulka_panely_def,4,FALSE)) ->  | D4: =IF(Data!$B4<MIN(Panely!$A$9:$A$28),VLOOKUP(Data!$B4,tabulka_kce_def,23,FALSE),VLOOKUP(Data!$B4,tabulka_panely_def,24,FALSE)) ->  | E4: =IF(Data!$B4<MIN(Panely!$A$9:$A$28),VLOOKUP(Data!$B4,tabulka_kce_def,21,FALSE),VLOOKUP(Data!$B4,tabulka_panely_def,22,FALSE)) ->  | F4: =IF(Data!$B4<MIN(Panely!$A$9:$A$28),VLOOKUP(Data!$B4,tabulka_kce_def,26,FALSE),VLOOKUP(Data!$B4,tabulka_panely_def,31,FALSE)) ->  | G4: =IF(Data!$B4<MIN(Panely!$A$9:$A$28),VLOOKUP(Data!$B4,tabulka_kce_def,27,FALSE),VLOOKUP(Data!$B4,tabulka_panely_def,32,FALSE)) ->  | H4: =IF(VLOOKUP(Data!$B4,tabulka_kce_def,3,FALSE)="",Konstrukce!$G$1,IF(VLOOKUP(Data!$B4,tabulka_kce_def,3,FALSE)="z",Konstrukce!$G$2,VLOOKUP(Data!$B4,tabulka_kce_def,3,FALSE))) ->  | I4: =IF(Data!$B4<MIN(Panely!$A$9:$A$28),0,VLOOKUP(Data!$B4,tabulka_panely_def,25,FALSE)) ->  | J4: =IF(Data!$B4<MIN(Panely!$A$9:$A$28),VLOOKUP(Data!$B4,tabulka_kce_def,24,FALSE),VLOOKUP(Data!$B4,tabulka_panely_def,33,FALSE)) ->  | K4: =Konstrukce!$D$1 -> 15 | L4: =Konstrukce!$D$2 -> 15 | M4: =Konstrukce!$G$1 -> 0 | N4: =IF(Data!$B4<MIN(Panely!$A$9:$A$28),VLOOKUP(Data!$B4,tabulka_kce_def,59,FALSE),VLOOKUP(Data!$B4,tabulka_panely_def,63,FALSE)) ->  | O4: =IF(Data!$B4<MIN(Panely!$A$9:$A$28),VLOOKUP(Data!$B4,tabulka_kce_def,60,FALSE),VLOOKUP(Data!$B4,tabulka_panely_def,64,FALSE)) ->  | P4: =IF(Data!$B4<MIN(Panely!$A$9:$A$28),VLOOKUP(Data!$B4,tabulka_kce_def,61,FALSE),VLOOKUP(Data!$B4,tabulka_panely_def,65,FALSE)) ->  | Q4: =IF(Data!$B4<MIN(Panely!$A$9:$A$28),VLOOKUP(Data!$B4,tabulka_kce_def,25,FALSE),0) -> 0 | W4: ti' [°C] | X4: =L3 -> 15 | AK4: od | AL4: do
B5: = | C5: =IF(Data!$B5<MIN(Panely!$A$9:$A$28),VLOOKUP(Data!$B5,tabulka_kce_def,4,FALSE),VLOOKUP(Data!$B5,tabulka_panely_def,4,FALSE)) ->  | D5: =IF(Data!$B5<MIN(Panely!$A$9:$A$28),VLOOKUP(Data!$B5,tabulka_kce_def,23,FALSE),VLOOKUP(Data!$B5,tabulka_panely_def,24,FALSE)) ->  | E5: =IF(Data!$B5<MIN(Panely!$A$9:$A$28),VLOOKUP(Data!$B5,tabulka_kce_def,21,FALSE),VLOOKUP(Data!$B5,tabulka_panely_def,22,FALSE)) ->  | F5: =IF(Data!$B5<MIN(Panely!$A$9:$A$28),VLOOKUP(Data!$B5,tabulka_kce_def,26,FALSE),VLOOKUP(Data!$B5,tabulka_panely_def,31,FALSE)) ->  | G5: =IF(Data!$B5<MIN(Panely!$A$9:$A$28),VLOOKUP(Data!$B5,tabulka_kce_def,27,FALSE),VLOOKUP(Data!$B5,tabulka_panely_def,32,FALSE)) ->  | H5: =IF(VLOOKUP(Data!$B5,tabulka_kce_def,3,FALSE)="",Konstrukce!$G$1,IF(VLOOKUP(Data!$B5,tabulka_kce_def,3,FALSE)="z",Konstrukce!$G$2,VLOOKUP(Data!$B5,tabulka_kce_def,3,FALSE))) ->  | I5: =IF(Data!$B5<MIN(Panely!$A$9:$A$28),0,VLOOKUP(Data!$B5,tabulka_panely_def,25,FALSE)) ->  | J5: =IF(Data!$B5<MIN(Panely!$A$9:$A$28),VLOOKUP(Data!$B5,tabulka_kce_def,24,FALSE),VLOOKUP(Data!$B5,tabulka_panely_def,33,FALSE)) ->  | K5: =Konstrukce!$D$1 -> 15 | L5: =Konstrukce!$D$2 -> 15 | M5: =Konstrukce!$G$1 -> 0 | N5: =IF(Data!$B5<MIN(Panely!$A$9:$A$28),VLOOKUP(Data!$B5,tabulka_kce_def,59,FALSE),VLOOKUP(Data!$B5,tabulka_panely_def,63,FALSE)) ->  | O5: =IF(Data!$B5<MIN(Panely!$A$9:$A$28),VLOOKUP(Data!$B5,tabulka_kce_def,60,FALSE),VLOOKUP(Data!$B5,tabulka_panely_def,64,FALSE)) ->  | P5: =IF(Data!$B5<MIN(Panely!$A$9:$A$28),VLOOKUP(Data!$B5,tabulka_kce_def,61,FALSE),VLOOKUP(Data!$B5,tabulka_panely_def,65,FALSE)) ->  | Q5: =IF(Data!$B5<MIN(Panely!$A$9:$A$28),VLOOKUP(Data!$B5,tabulka_kce_def,25,FALSE),0) -> 0 | W5: te [°C] | X5: =M3 -> 0 | Z5: index | AA5: tm | AB5: m | AC5: l | AD5: Λ2 [W/m2K] | AE5: αkh [W/m2K] | AF5: tw1 [°C] | AG5: tw2 [°C] | AH5: tp | AI5: tp' | AL5: -12
B6: = | C6: =IF(Data!$B6<MIN(Panely!$A$9:$A$28),VLOOKUP(Data!$B6,tabulka_kce_def,4,FALSE),VLOOKUP(Data!$B6,tabulka_panely_def,4,FALSE)) ->  | D6: =IF(Data!$B6<MIN(Panely!$A$9:$A$28),VLOOKUP(Data!$B6,tabulka_kce_def,23,FALSE),VLOOKUP(Data!$B6,tabulka_panely_def,24,FALSE)) ->  | E6: =IF(Data!$B6<MIN(Panely!$A$9:$A$28),VLOOKUP(Data!$B6,tabulka_kce_def,21,FALSE),VLOOKUP(Data!$B6,tabulka_panely_def,22,FALSE)) ->  | F6: =IF(Data!$B6<MIN(Panely!$A$9:$A$28),VLOOKUP(Data!$B6,tabulka_kce_def,26,FALSE),VLOOKUP(Data!$B6,tabulka_panely_def,31,FALSE)) ->  | G6: =IF(Data!$B6<MIN(Panely!$A$9:$A$28),VLOOKUP(Data!$B6,tabulka_kce_def,27,FALSE),VLOOKUP(Data!$B6,tabulka_panely_def,32,FALSE)) ->  | H6: =IF(VLOOKUP(Data!$B6,tabulka_kce_def,3,FALSE)="",Konstrukce!$G$1,IF(VLOOKUP(Data!$B6,tabulka_kce_def,3,FALSE)="z",Konstrukce!$G$2,VLOOKUP(Data!$B6,tabulka_kce_def,3,FALSE))) ->  | I6: =IF(Data!$B6<MIN(Panely!$A$9:$A$28),0,VLOOKUP(Data!$B6,tabulka_panely_def,25,FALSE)) ->  | J6: =IF(Data!$B6<MIN(Panely!$A$9:$A$28),VLOOKUP(Data!$B6,tabulka_kce_def,24,FALSE),VLOOKUP(Data!$B6,tabulka_panely_def,33,FALSE)) ->  | K6: =Konstrukce!$D$1 -> 15 | L6: =Konstrukce!$D$2 -> 15 | M6: =Konstrukce!$G$1 -> 0 | N6: =IF(Data!$B6<MIN(Panely!$A$9:$A$28),VLOOKUP(Data!$B6,tabulka_kce_def,59,FALSE),VLOOKUP(Data!$B6,tabulka_panely_def,63,FALSE)) ->  | O6: =IF(Data!$B6<MIN(Panely!$A$9:$A$28),VLOOKUP(Data!$B6,tabulka_kce_def,60,FALSE),VLOOKUP(Data!$B6,tabulka_panely_def,64,FALSE)) ->  | P6: =IF(Data!$B6<MIN(Panely!$A$9:$A$28),VLOOKUP(Data!$B6,tabulka_kce_def,61,FALSE),VLOOKUP(Data!$B6,tabulka_panely_def,65,FALSE)) ->  | Q6: =IF(Data!$B6<MIN(Panely!$A$9:$A$28),VLOOKUP(Data!$B6,tabulka_kce_def,25,FALSE),0) -> 0 | W6: Mv [kg/s] | X6: =Konstrukce!J1/3600 -> 0 | Z6: 31 | AA6: =(AF6+AG6)/2 -> 0 | AB6: =VLOOKUP($Z$6,tabulka_panely_def,26,FALSE) ->  | AC6: =VLOOKUP($Z$6,tabulka_panely_def,23,FALSE) ->  | AD6: =VLOOKUP($Z$6,tabulka_panely_def,30,FALSE) ->  | AE6: =VLOOKUP($Z$6,tabulka_panely_def,32,FALSE) ->  | AF6: =VLOOKUP($Z$6,tabulka_panely_def,5,FALSE) -> 0 | AG6: =VLOOKUP($Z$6,tabulka_panely_def,6,FALSE) -> 0 | AH6: =X3+(-X3+AA6)*((TANH(AB6*AC6/2))/(AB6*AC6/2)) ->  | AI6: =X4+(AD6/AE6)*(AA6-X4)*((TANH(AB6*AC6/2))/(AB6*AC6/2)) ->  | AK6: =AL5 -> -12 | AL6: -8
B7: = | C7: =IF(Data!$B7<MIN(Panely!$A$9:$A$28),VLOOKUP(Data!$B7,tabulka_kce_def,4,FALSE),VLOOKUP(Data!$B7,tabulka_panely_def,4,FALSE)) ->  | D7: =IF(Data!$B7<MIN(Panely!$A$9:$A$28),VLOOKUP(Data!$B7,tabulka_kce_def,23,FALSE),VLOOKUP(Data!$B7,tabulka_panely_def,24,FALSE)) ->  | E7: =IF(Data!$B7<MIN(Panely!$A$9:$A$28),VLOOKUP(Data!$B7,tabulka_kce_def,21,FALSE),VLOOKUP(Data!$B7,tabulka_panely_def,22,FALSE)) ->  | F7: =IF(Data!$B7<MIN(Panely!$A$9:$A$28),VLOOKUP(Data!$B7,tabulka_kce_def,26,FALSE),VLOOKUP(Data!$B7,tabulka_panely_def,31,FALSE)) ->  | G7: =IF(Data!$B7<MIN(Panely!$A$9:$A$28),VLOOKUP(Data!$B7,tabulka_kce_def,27,FALSE),VLOOKUP(Data!$B7,tabulka_panely_def,32,FALSE)) ->  | H7: =IF(VLOOKUP(Data!$B7,tabulka_kce_def,3,FALSE)="",Konstrukce!$G$1,IF(VLOOKUP(Data!$B7,tabulka_kce_def,3,FALSE)="z",Konstrukce!$G$2,VLOOKUP(Data!$B7,tabulka_kce_def,3,FALSE))) ->  | I7: =IF(Data!$B7<MIN(Panely!$A$9:$A$28),0,VLOOKUP(Data!$B7,tabulka_panely_def,25,FALSE)) ->  | J7: =IF(Data!$B7<MIN(Panely!$A$9:$A$28),VLOOKUP(Data!$B7,tabulka_kce_def,24,FALSE),VLOOKUP(Data!$B7,tabulka_panely_def,33,FALSE)) ->  | K7: =Konstrukce!$D$1 -> 15 | L7: =Konstrukce!$D$2 -> 15 | M7: =Konstrukce!$G$1 -> 0 | N7: =IF(Data!$B7<MIN(Panely!$A$9:$A$28),VLOOKUP(Data!$B7,tabulka_kce_def,59,FALSE),VLOOKUP(Data!$B7,tabulka_panely_def,63,FALSE)) ->  | O7: =IF(Data!$B7<MIN(Panely!$A$9:$A$28),VLOOKUP(Data!$B7,tabulka_kce_def,60,FALSE),VLOOKUP(Data!$B7,tabulka_panely_def,64,FALSE)) ->  | P7: =IF(Data!$B7<MIN(Panely!$A$9:$A$28),VLOOKUP(Data!$B7,tabulka_kce_def,61,FALSE),VLOOKUP(Data!$B7,tabulka_panely_def,65,FALSE)) ->  | Q7: =IF(Data!$B7<MIN(Panely!$A$9:$A$28),VLOOKUP(Data!$B7,tabulka_kce_def,25,FALSE),0) -> 0 | W7: cv [J/kgK] | X7: =Konstrukce!J2 -> 1010 | AK7: -8 | AL7: -3
B8: = | C8: =IF(Data!$B8<MIN(Panely!$A$9:$A$28),VLOOKUP(Data!$B8,tabulka_kce_def,4,FALSE),VLOOKUP(Data!$B8,tabulka_panely_def,4,FALSE)) ->  | D8: =IF(Data!$B8<MIN(Panely!$A$9:$A$28),VLOOKUP(Data!$B8,tabulka_kce_def,23,FALSE),VLOOKUP(Data!$B8,tabulka_panely_def,24,FALSE)) ->  | E8: =IF(Data!$B8<MIN(Panely!$A$9:$A$28),VLOOKUP(Data!$B8,tabulka_kce_def,21,FALSE),VLOOKUP(Data!$B8,tabulka_panely_def,22,FALSE)) ->  | F8: =IF(Data!$B8<MIN(Panely!$A$9:$A$28),VLOOKUP(Data!$B8,tabulka_kce_def,26,FALSE),VLOOKUP(Data!$B8,tabulka_panely_def,31,FALSE)) ->  | G8: =IF(Data!$B8<MIN(Panely!$A$9:$A$28),VLOOKUP(Data!$B8,tabulka_kce_def,27,FALSE),VLOOKUP(Data!$B8,tabulka_panely_def,32,FALSE)) ->  | H8: =IF(VLOOKUP(Data!$B8,tabulka_kce_def,3,FALSE)="",Konstrukce!$G$1,IF(VLOOKUP(Data!$B8,tabulka_kce_def,3,FALSE)="z",Konstrukce!$G$2,VLOOKUP(Data!$B8,tabulka_kce_def,3,FALSE))) ->  | I8: =IF(Data!$B8<MIN(Panely!$A$9:$A$28),0,VLOOKUP(Data!$B8,tabulka_panely_def,25,FALSE)) ->  | J8: =IF(Data!$B8<MIN(Panely!$A$9:$A$28),VLOOKUP(Data!$B8,tabulka_kce_def,24,FALSE),VLOOKUP(Data!$B8,tabulka_panely_def,33,FALSE)) ->  | K8: =Konstrukce!$D$1 -> 15 | L8: =Konstrukce!$D$2 -> 15 | M8: =Konstrukce!$G$1 -> 0 | N8: =IF(Data!$B8<MIN(Panely!$A$9:$A$28),VLOOKUP(Data!$B8,tabulka_kce_def,59,FALSE),VLOOKUP(Data!$B8,tabulka_panely_def,63,FALSE)) ->  | O8: =IF(Data!$B8<MIN(Panely!$A$9:$A$28),VLOOKUP(Data!$B8,tabulka_kce_def,60,FALSE),VLOOKUP(Data!$B8,tabulka_panely_def,64,FALSE)) ->  | P8: =IF(Data!$B8<MIN(Panely!$A$9:$A$28),VLOOKUP(Data!$B8,tabulka_kce_def,61,FALSE),VLOOKUP(Data!$B8,tabulka_panely_def,65,FALSE)) ->  | Q8: =IF(Data!$B8<MIN(Panely!$A$9:$A$28),VLOOKUP(Data!$B8,tabulka_kce_def,25,FALSE),0) -> 0 | W8: w [m/s] | X8: =Konstrukce!P2 -> 0 | AK8: -3 | AL8: 3
B9: = | C9: =IF(Data!$B9<MIN(Panely!$A$9:$A$28),VLOOKUP(Data!$B9,tabulka_kce_def,4,FALSE),VLOOKUP(Data!$B9,tabulka_panely_def,4,FALSE)) ->  | D9: =IF(Data!$B9<MIN(Panely!$A$9:$A$28),VLOOKUP(Data!$B9,tabulka_kce_def,23,FALSE),VLOOKUP(Data!$B9,tabulka_panely_def,24,FALSE)) ->  | E9: =IF(Data!$B9<MIN(Panely!$A$9:$A$28),VLOOKUP(Data!$B9,tabulka_kce_def,21,FALSE),VLOOKUP(Data!$B9,tabulka_panely_def,22,FALSE)) ->  | F9: =IF(Data!$B9<MIN(Panely!$A$9:$A$28),VLOOKUP(Data!$B9,tabulka_kce_def,26,FALSE),VLOOKUP(Data!$B9,tabulka_panely_def,31,FALSE)) ->  | G9: =IF(Data!$B9<MIN(Panely!$A$9:$A$28),VLOOKUP(Data!$B9,tabulka_kce_def,27,FALSE),VLOOKUP(Data!$B9,tabulka_panely_def,32,FALSE)) ->  | H9: =IF(VLOOKUP(Data!$B9,tabulka_kce_def,3,FALSE)="",Konstrukce!$G$1,IF(VLOOKUP(Data!$B9,tabulka_kce_def,3,FALSE)="z",Konstrukce!$G$2,VLOOKUP(Data!$B9,tabulka_kce_def,3,FALSE))) ->  | I9: =IF(Data!$B9<MIN(Panely!$A$9:$A$28),0,VLOOKUP(Data!$B9,tabulka_panely_def,25,FALSE)) ->  | J9: =IF(Data!$B9<MIN(Panely!$A$9:$A$28),VLOOKUP(Data!$B9,tabulka_kce_def,24,FALSE),VLOOKUP(Data!$B9,tabulka_panely_def,33,FALSE)) ->  | K9: =Konstrukce!$D$1 -> 15 | L9: =Konstrukce!$D$2 -> 15 | M9: =Konstrukce!$G$1 -> 0 | N9: =IF(Data!$B9<MIN(Panely!$A$9:$A$28),VLOOKUP(Data!$B9,tabulka_kce_def,59,FALSE),VLOOKUP(Data!$B9,tabulka_panely_def,63,FALSE)) ->  | O9: =IF(Data!$B9<MIN(Panely!$A$9:$A$28),VLOOKUP(Data!$B9,tabulka_kce_def,60,FALSE),VLOOKUP(Data!$B9,tabulka_panely_def,64,FALSE)) ->  | P9: =IF(Data!$B9<MIN(Panely!$A$9:$A$28),VLOOKUP(Data!$B9,tabulka_kce_def,61,FALSE),VLOOKUP(Data!$B9,tabulka_panely_def,65,FALSE)) ->  | Q9: =IF(Data!$B9<MIN(Panely!$A$9:$A$28),VLOOKUP(Data!$B9,tabulka_kce_def,25,FALSE),0) -> 0 | W9: A [-] | X9: =IF(X8>1,0.75*X8^0.16,VLOOKUP(ROUND(X8,1),tab_NarVl361_2007_koef_A,2,FALSE)) -> 0.5 | AA9: 0 | AB9: 0 | AC9: 3 | AK9: 3 | AL9: 8
B10: = | C10: =IF(Data!$B10<MIN(Panely!$A$9:$A$28),VLOOKUP(Data!$B10,tabulka_kce_def,4,FALSE),VLOOKUP(Data!$B10,tabulka_panely_def,4,FALSE)) ->  | D10: =IF(Data!$B10<MIN(Panely!$A$9:$A$28),VLOOKUP(Data!$B10,tabulka_kce_def,23,FALSE),VLOOKUP(Data!$B10,tabulka_panely_def,24,FALSE)) ->  | E10: =IF(Data!$B10<MIN(Panely!$A$9:$A$28),VLOOKUP(Data!$B10,tabulka_kce_def,21,FALSE),VLOOKUP(Data!$B10,tabulka_panely_def,22,FALSE)) ->  | F10: =IF(Data!$B10<MIN(Panely!$A$9:$A$28),VLOOKUP(Data!$B10,tabulka_kce_def,26,FALSE),VLOOKUP(Data!$B10,tabulka_panely_def,31,FALSE)) ->  | G10: =IF(Data!$B10<MIN(Panely!$A$9:$A$28),VLOOKUP(Data!$B10,tabulka_kce_def,27,FALSE),VLOOKUP(Data!$B10,tabulka_panely_def,32,FALSE)) ->  | H10: =IF(VLOOKUP(Data!$B10,tabulka_kce_def,3,FALSE)="",Konstrukce!$G$1,IF(VLOOKUP(Data!$B10,tabulka_kce_def,3,FALSE)="z",Konstrukce!$G$2,VLOOKUP(Data!$B10,tabulka_kce_def,3,FALSE))) ->  | I10: =IF(Data!$B10<MIN(Panely!$A$9:$A$28),0,VLOOKUP(Data!$B10,tabulka_panely_def,25,FALSE)) ->  | J10: =IF(Data!$B10<MIN(Panely!$A$9:$A$28),VLOOKUP(Data!$B10,tabulka_kce_def,24,FALSE),VLOOKUP(Data!$B10,tabulka_panely_def,33,FALSE)) ->  | K10: =Konstrukce!$D$1 -> 15 | L10: =Konstrukce!$D$2 -> 15 | M10: =Konstrukce!$G$1 -> 0 | N10: =IF(Data!$B10<MIN(Panely!$A$9:$A$28),VLOOKUP(Data!$B10,tabulka_kce_def,59,FALSE),VLOOKUP(Data!$B10,tabulka_panely_def,63,FALSE)) ->  | O10: =IF(Data!$B10<MIN(Panely!$A$9:$A$28),VLOOKUP(Data!$B10,tabulka_kce_def,60,FALSE),VLOOKUP(Data!$B10,tabulka_panely_def,64,FALSE)) ->  | P10: =IF(Data!$B10<MIN(Panely!$A$9:$A$28),VLOOKUP(Data!$B10,tabulka_kce_def,61,FALSE),VLOOKUP(Data!$B10,tabulka_panely_def,65,FALSE)) ->  | Q10: =IF(Data!$B10<MIN(Panely!$A$9:$A$28),VLOOKUP(Data!$B10,tabulka_kce_def,25,FALSE),0) -> 0 | AK10: 8 | AL10: 12
B11: = | C11: =IF(Data!$B11<MIN(Panely!$A$9:$A$28),VLOOKUP(Data!$B11,tabulka_kce_def,4,FALSE),VLOOKUP(Data!$B11,tabulka_panely_def,4,FALSE)) ->  | D11: =IF(Data!$B11<MIN(Panely!$A$9:$A$28),VLOOKUP(Data!$B11,tabulka_kce_def,23,FALSE),VLOOKUP(Data!$B11,tabulka_panely_def,24,FALSE)) ->  | E11: =IF(Data!$B11<MIN(Panely!$A$9:$A$28),VLOOKUP(Data!$B11,tabulka_kce_def,21,FALSE),VLOOKUP(Data!$B11,tabulka_panely_def,22,FALSE)) ->  | F11: =IF(Data!$B11<MIN(Panely!$A$9:$A$28),VLOOKUP(Data!$B11,tabulka_kce_def,26,FALSE),VLOOKUP(Data!$B11,tabulka_panely_def,31,FALSE)) ->  | G11: =IF(Data!$B11<MIN(Panely!$A$9:$A$28),VLOOKUP(Data!$B11,tabulka_kce_def,27,FALSE),VLOOKUP(Data!$B11,tabulka_panely_def,32,FALSE)) ->  | H11: =IF(VLOOKUP(Data!$B11,tabulka_kce_def,3,FALSE)="",Konstrukce!$G$1,IF(VLOOKUP(Data!$B11,tabulka_kce_def,3,FALSE)="z",Konstrukce!$G$2,VLOOKUP(Data!$B11,tabulka_kce_def,3,FALSE))) ->  | I11: =IF(Data!$B11<MIN(Panely!$A$9:$A$28),0,VLOOKUP(Data!$B11,tabulka_panely_def,25,FALSE)) ->  | J11: =IF(Data!$B11<MIN(Panely!$A$9:$A$28),VLOOKUP(Data!$B11,tabulka_kce_def,24,FALSE),VLOOKUP(Data!$B11,tabulka_panely_def,33,FALSE)) ->  | K11: =Konstrukce!$D$1 -> 15 | L11: =Konstrukce!$D$2 -> 15 | M11: =Konstrukce!$G$1 -> 0 | N11: =IF(Data!$B11<MIN(Panely!$A$9:$A$28),VLOOKUP(Data!$B11,tabulka_kce_def,59,FALSE),VLOOKUP(Data!$B11,tabulka_panely_def,63,FALSE)) ->  | O11: =IF(Data!$B11<MIN(Panely!$A$9:$A$28),VLOOKUP(Data!$B11,tabulka_kce_def,60,FALSE),VLOOKUP(Data!$B11,tabulka_panely_def,64,FALSE)) ->  | P11: =IF(Data!$B11<MIN(Panely!$A$9:$A$28),VLOOKUP(Data!$B11,tabulka_kce_def,61,FALSE),VLOOKUP(Data!$B11,tabulka_panely_def,65,FALSE)) ->  | Q11: =IF(Data!$B11<MIN(Panely!$A$9:$A$28),VLOOKUP(Data!$B11,tabulka_kce_def,25,FALSE),0) -> 0 | AK11: 12
B12: = | C12: =IF(Data!$B12<MIN(Panely!$A$9:$A$28),VLOOKUP(Data!$B12,tabulka_kce_def,4,FALSE),VLOOKUP(Data!$B12,tabulka_panely_def,4,FALSE)) ->  | D12: =IF(Data!$B12<MIN(Panely!$A$9:$A$28),VLOOKUP(Data!$B12,tabulka_kce_def,23,FALSE),VLOOKUP(Data!$B12,tabulka_panely_def,24,FALSE)) ->  | E12: =IF(Data!$B12<MIN(Panely!$A$9:$A$28),VLOOKUP(Data!$B12,tabulka_kce_def,21,FALSE),VLOOKUP(Data!$B12,tabulka_panely_def,22,FALSE)) ->  | F12: =IF(Data!$B12<MIN(Panely!$A$9:$A$28),VLOOKUP(Data!$B12,tabulka_kce_def,26,FALSE),VLOOKUP(Data!$B12,tabulka_panely_def,31,FALSE)) ->  | G12: =IF(Data!$B12<MIN(Panely!$A$9:$A$28),VLOOKUP(Data!$B12,tabulka_kce_def,27,FALSE),VLOOKUP(Data!$B12,tabulka_panely_def,32,FALSE)) ->  | H12: =IF(VLOOKUP(Data!$B12,tabulka_kce_def,3,FALSE)="",Konstrukce!$G$1,IF(VLOOKUP(Data!$B12,tabulka_kce_def,3,FALSE)="z",Konstrukce!$G$2,VLOOKUP(Data!$B12,tabulka_kce_def,3,FALSE))) ->  | I12: =IF(Data!$B12<MIN(Panely!$A$9:$A$28),0,VLOOKUP(Data!$B12,tabulka_panely_def,25,FALSE)) ->  | J12: =IF(Data!$B12<MIN(Panely!$A$9:$A$28),VLOOKUP(Data!$B12,tabulka_kce_def,24,FALSE),VLOOKUP(Data!$B12,tabulka_panely_def,33,FALSE)) ->  | K12: =Konstrukce!$D$1 -> 15 | L12: =Konstrukce!$D$2 -> 15 | M12: =Konstrukce!$G$1 -> 0 | N12: =IF(Data!$B12<MIN(Panely!$A$9:$A$28),VLOOKUP(Data!$B12,tabulka_kce_def,59,FALSE),VLOOKUP(Data!$B12,tabulka_panely_def,63,FALSE)) ->  | O12: =IF(Data!$B12<MIN(Panely!$A$9:$A$28),VLOOKUP(Data!$B12,tabulka_kce_def,60,FALSE),VLOOKUP(Data!$B12,tabulka_panely_def,64,FALSE)) ->  | P12: =IF(Data!$B12<MIN(Panely!$A$9:$A$28),VLOOKUP(Data!$B12,tabulka_kce_def,61,FALSE),VLOOKUP(Data!$B12,tabulka_panely_def,65,FALSE)) ->  | Q12: =IF(Data!$B12<MIN(Panely!$A$9:$A$28),VLOOKUP(Data!$B12,tabulka_kce_def,25,FALSE),0) -> 0
B13: = | C13: =IF(Data!$B13<MIN(Panely!$A$9:$A$28),VLOOKUP(Data!$B13,tabulka_kce_def,4,FALSE),VLOOKUP(Data!$B13,tabulka_panely_def,4,FALSE)) ->  | D13: =IF(Data!$B13<MIN(Panely!$A$9:$A$28),VLOOKUP(Data!$B13,tabulka_kce_def,23,FALSE),VLOOKUP(Data!$B13,tabulka_panely_def,24,FALSE)) ->  | E13: =IF(Data!$B13<MIN(Panely!$A$9:$A$28),VLOOKUP(Data!$B13,tabulka_kce_def,21,FALSE),VLOOKUP(Data!$B13,tabulka_panely_def,22,FALSE)) ->  | F13: =IF(Data!$B13<MIN(Panely!$A$9:$A$28),VLOOKUP(Data!$B13,tabulka_kce_def,26,FALSE),VLOOKUP(Data!$B13,tabulka_panely_def,31,FALSE)) ->  | G13: =IF(Data!$B13<MIN(Panely!$A$9:$A$28),VLOOKUP(Data!$B13,tabulka_kce_def,27,FALSE),VLOOKUP(Data!$B13,tabulka_panely_def,32,FALSE)) ->  | H13: =IF(VLOOKUP(Data!$B13,tabulka_kce_def,3,FALSE)="",Konstrukce!$G$1,IF(VLOOKUP(Data!$B13,tabulka_kce_def,3,FALSE)="z",Konstrukce!$G$2,VLOOKUP(Data!$B13,tabulka_kce_def,3,FALSE))) ->  | I13: =IF(Data!$B13<MIN(Panely!$A$9:$A$28),0,VLOOKUP(Data!$B13,tabulka_panely_def,25,FALSE)) ->  | J13: =IF(Data!$B13<MIN(Panely!$A$9:$A$28),VLOOKUP(Data!$B13,tabulka_kce_def,24,FALSE),VLOOKUP(Data!$B13,tabulka_panely_def,33,FALSE)) ->  | K13: =Konstrukce!$D$1 -> 15 | L13: =Konstrukce!$D$2 -> 15 | M13: =Konstrukce!$G$1 -> 0 | N13: =IF(Data!$B13<MIN(Panely!$A$9:$A$28),VLOOKUP(Data!$B13,tabulka_kce_def,59,FALSE),VLOOKUP(Data!$B13,tabulka_panely_def,63,FALSE)) ->  | O13: =IF(Data!$B13<MIN(Panely!$A$9:$A$28),VLOOKUP(Data!$B13,tabulka_kce_def,60,FALSE),VLOOKUP(Data!$B13,tabulka_panely_def,64,FALSE)) ->  | P13: =IF(Data!$B13<MIN(Panely!$A$9:$A$28),VLOOKUP(Data!$B13,tabulka_kce_def,61,FALSE),VLOOKUP(Data!$B13,tabulka_panely_def,65,FALSE)) ->  | Q13: =IF(Data!$B13<MIN(Panely!$A$9:$A$28),VLOOKUP(Data!$B13,tabulka_kce_def,25,FALSE),0) -> 0 | Y13: rozměry
B14: = | C14: =IF(Data!$B14<MIN(Panely!$A$9:$A$28),VLOOKUP(Data!$B14,tabulka_kce_def,4,FALSE),VLOOKUP(Data!$B14,tabulka_panely_def,4,FALSE)) ->  | D14: =IF(Data!$B14<MIN(Panely!$A$9:$A$28),VLOOKUP(Data!$B14,tabulka_kce_def,23,FALSE),VLOOKUP(Data!$B14,tabulka_panely_def,24,FALSE)) ->  | E14: =IF(Data!$B14<MIN(Panely!$A$9:$A$28),VLOOKUP(Data!$B14,tabulka_kce_def,21,FALSE),VLOOKUP(Data!$B14,tabulka_panely_def,22,FALSE)) ->  | F14: =IF(Data!$B14<MIN(Panely!$A$9:$A$28),VLOOKUP(Data!$B14,tabulka_kce_def,26,FALSE),VLOOKUP(Data!$B14,tabulka_panely_def,31,FALSE)) ->  | G14: =IF(Data!$B14<MIN(Panely!$A$9:$A$28),VLOOKUP(Data!$B14,tabulka_kce_def,27,FALSE),VLOOKUP(Data!$B14,tabulka_panely_def,32,FALSE)) ->  | H14: =IF(VLOOKUP(Data!$B14,tabulka_kce_def,3,FALSE)="",Konstrukce!$G$1,IF(VLOOKUP(Data!$B14,tabulka_kce_def,3,FALSE)="z",Konstrukce!$G$2,VLOOKUP(Data!$B14,tabulka_kce_def,3,FALSE))) ->  | I14: =IF(Data!$B14<MIN(Panely!$A$9:$A$28),0,VLOOKUP(Data!$B14,tabulka_panely_def,25,FALSE)) ->  | J14: =IF(Data!$B14<MIN(Panely!$A$9:$A$28),VLOOKUP(Data!$B14,tabulka_kce_def,24,FALSE),VLOOKUP(Data!$B14,tabulka_panely_def,33,FALSE)) ->  | K14: =Konstrukce!$D$1 -> 15 | L14: =Konstrukce!$D$2 -> 15 | M14: =Konstrukce!$G$1 -> 0 | N14: =IF(Data!$B14<MIN(Panely!$A$9:$A$28),VLOOKUP(Data!$B14,tabulka_kce_def,59,FALSE),VLOOKUP(Data!$B14,tabulka_panely_def,63,FALSE)) ->  | O14: =IF(Data!$B14<MIN(Panely!$A$9:$A$28),VLOOKUP(Data!$B14,tabulka_kce_def,60,FALSE),VLOOKUP(Data!$B14,tabulka_panely_def,64,FALSE)) ->  | P14: =IF(Data!$B14<MIN(Panely!$A$9:$A$28),VLOOKUP(Data!$B14,tabulka_kce_def,61,FALSE),VLOOKUP(Data!$B14,tabulka_panely_def,65,FALSE)) ->  | Q14: =IF(Data!$B14<MIN(Panely!$A$9:$A$28),VLOOKUP(Data!$B14,tabulka_kce_def,25,FALSE),0) -> 0 | Y14: bod1 | AB14: bod2 | AE14: bod3 | AH14: bod4
B15: = | C15: =IF(Data!$B15<MIN(Panely!$A$9:$A$28),VLOOKUP(Data!$B15,tabulka_kce_def,4,FALSE),VLOOKUP(Data!$B15,tabulka_panely_def,4,FALSE)) ->  | D15: =IF(Data!$B15<MIN(Panely!$A$9:$A$28),VLOOKUP(Data!$B15,tabulka_kce_def,23,FALSE),VLOOKUP(Data!$B15,tabulka_panely_def,24,FALSE)) ->  | E15: =IF(Data!$B15<MIN(Panely!$A$9:$A$28),VLOOKUP(Data!$B15,tabulka_kce_def,21,FALSE),VLOOKUP(Data!$B15,tabulka_panely_def,22,FALSE)) ->  | F15: =IF(Data!$B15<MIN(Panely!$A$9:$A$28),VLOOKUP(Data!$B15,tabulka_kce_def,26,FALSE),VLOOKUP(Data!$B15,tabulka_panely_def,31,FALSE)) ->  | G15: =IF(Data!$B15<MIN(Panely!$A$9:$A$28),VLOOKUP(Data!$B15,tabulka_kce_def,27,FALSE),VLOOKUP(Data!$B15,tabulka_panely_def,32,FALSE)) ->  | H15: =IF(VLOOKUP(Data!$B15,tabulka_kce_def,3,FALSE)="",Konstrukce!$G$1,IF(VLOOKUP(Data!$B15,tabulka_kce_def,3,FALSE)="z",Konstrukce!$G$2,VLOOKUP(Data!$B15,tabulka_kce_def,3,FALSE))) ->  | I15: =IF(Data!$B15<MIN(Panely!$A$9:$A$28),0,VLOOKUP(Data!$B15,tabulka_panely_def,25,FALSE)) ->  | J15: =IF(Data!$B15<MIN(Panely!$A$9:$A$28),VLOOKUP(Data!$B15,tabulka_kce_def,24,FALSE),VLOOKUP(Data!$B15,tabulka_panely_def,33,FALSE)) ->  | K15: =Konstrukce!$D$1 -> 15 | L15: =Konstrukce!$D$2 -> 15 | M15: =Konstrukce!$G$1 -> 0 | N15: =IF(Data!$B15<MIN(Panely!$A$9:$A$28),VLOOKUP(Data!$B15,tabulka_kce_def,59,FALSE),VLOOKUP(Data!$B15,tabulka_panely_def,63,FALSE)) ->  | O15: =IF(Data!$B15<MIN(Panely!$A$9:$A$28),VLOOKUP(Data!$B15,tabulka_kce_def,60,FALSE),VLOOKUP(Data!$B15,tabulka_panely_def,64,FALSE)) ->  | P15: =IF(Data!$B15<MIN(Panely!$A$9:$A$28),VLOOKUP(Data!$B15,tabulka_kce_def,61,FALSE),VLOOKUP(Data!$B15,tabulka_panely_def,65,FALSE)) ->  | Q15: =IF(Data!$B15<MIN(Panely!$A$9:$A$28),VLOOKUP(Data!$B15,tabulka_kce_def,25,FALSE),0) -> 0 | W15: index | X15: orientace | Y15: x | Z15: y | AA15: z | AB15: x | AC15: y | AD15: z | AE15: x | AF15: y | AG15: z | AH15: x | AI15: y | AJ15: z | AK15: X [m] | AL15: Y [m] | AM15: Z [m] | AN15: celli | AO15: ma otvor? | AP15: obdelnik | AQ15: tp [°C] | AR15: ϕi | AS15: ϕi.Tp4 | AT15: tr [°C] | AU15: jsem otvor? | AV15: jsem fiktivni otvor? | AW15: index | AX15: jsem fiktivni okno? | AY15: jsem panel?
B16: = | C16: =IF(Data!$B16<MIN(Panely!$A$9:$A$28),VLOOKUP(Data!$B16,tabulka_kce_def,4,FALSE),VLOOKUP(Data!$B16,tabulka_panely_def,4,FALSE)) ->  | D16: =IF(Data!$B16<MIN(Panely!$A$9:$A$28),VLOOKUP(Data!$B16,tabulka_kce_def,23,FALSE),VLOOKUP(Data!$B16,tabulka_panely_def,24,FALSE)) ->  | E16: =IF(Data!$B16<MIN(Panely!$A$9:$A$28),VLOOKUP(Data!$B16,tabulka_kce_def,21,FALSE),VLOOKUP(Data!$B16,tabulka_panely_def,22,FALSE)) ->  | F16: =IF(Data!$B16<MIN(Panely!$A$9:$A$28),VLOOKUP(Data!$B16,tabulka_kce_def,26,FALSE),VLOOKUP(Data!$B16,tabulka_panely_def,31,FALSE)) ->  | G16: =IF(Data!$B16<MIN(Panely!$A$9:$A$28),VLOOKUP(Data!$B16,tabulka_kce_def,27,FALSE),VLOOKUP(Data!$B16,tabulka_panely_def,32,FALSE)) ->  | H16: =IF(VLOOKUP(Data!$B16,tabulka_kce_def,3,FALSE)="",Konstrukce!$G$1,IF(VLOOKUP(Data!$B16,tabulka_kce_def,3,FALSE)="z",Konstrukce!$G$2,VLOOKUP(Data!$B16,tabulka_kce_def,3,FALSE))) ->  | I16: =IF(Data!$B16<MIN(Panely!$A$9:$A$28),0,VLOOKUP(Data!$B16,tabulka_panely_def,25,FALSE)) ->  | J16: =IF(Data!$B16<MIN(Panely!$A$9:$A$28),VLOOKUP(Data!$B16,tabulka_kce_def,24,FALSE),VLOOKUP(Data!$B16,tabulka_panely_def,33,FALSE)) ->  | K16: =Konstrukce!$D$1 -> 15 | L16: =Konstrukce!$D$2 -> 15 | M16: =Konstrukce!$G$1 -> 0 | N16: =IF(Data!$B16<MIN(Panely!$A$9:$A$28),VLOOKUP(Data!$B16,tabulka_kce_def,59,FALSE),VLOOKUP(Data!$B16,tabulka_panely_def,63,FALSE)) ->  | O16: =IF(Data!$B16<MIN(Panely!$A$9:$A$28),VLOOKUP(Data!$B16,tabulka_kce_def,60,FALSE),VLOOKUP(Data!$B16,tabulka_panely_def,64,FALSE)) ->  | P16: =IF(Data!$B16<MIN(Panely!$A$9:$A$28),VLOOKUP(Data!$B16,tabulka_kce_def,61,FALSE),VLOOKUP(Data!$B16,tabulka_panely_def,65,FALSE)) ->  | Q16: =IF(Data!$B16<MIN(Panely!$A$9:$A$28),VLOOKUP(Data!$B16,tabulka_kce_def,25,FALSE),0) -> 0 | W16: = | X16: =IF(Data!$W16<MIN(Panely!$A$9:$A$28),VLOOKUP(Data!$W16,tabulka_kce_def,62,FALSE),VLOOKUP(Data!$W16,tabulka_panely_def,65,FALSE)) ->  | Y16: =IF(Data!$W16<MIN(Panely!$A$9:$A$28),VLOOKUP(Data!$W16,tabulka_kce_def,Y$1-20,FALSE),VLOOKUP(Data!$W16,tabulka_panely_def,Y$1-18,FALSE)) ->  | Z16: =IF(Data!$W16<MIN(Panely!$A$9:$A$28),VLOOKUP(Data!$W16,tabulka_kce_def,Z$1-20,FALSE),VLOOKUP(Data!$W16,tabulka_panely_def,Z$1-18,FALSE)) ->  | AA16: =IF(Data!$W16<MIN(Panely!$A$9:$A$28),VLOOKUP(Data!$W16,tabulka_kce_def,AA$1-20,FALSE),VLOOKUP(Data!$W16,tabulka_panely_def,AA$1-18,FALSE)) ->  | AB16: =IF(Data!$W16<MIN(Panely!$A$9:$A$28),VLOOKUP(Data!$W16,tabulka_kce_def,AB$1-20,FALSE),VLOOKUP(Data!$W16,tabulka_panely_def,AB$1-18,FALSE)) ->  | AC16: =IF(Data!$W16<MIN(Panely!$A$9:$A$28),VLOOKUP(Data!$W16,tabulka_kce_def,AC$1-20,FALSE),VLOOKUP(Data!$W16,tabulka_panely_def,AC$1-18,FALSE)) ->  | AD16: =IF(Data!$W16<MIN(Panely!$A$9:$A$28),VLOOKUP(Data!$W16,tabulka_kce_def,AD$1-20,FALSE),VLOOKUP(Data!$W16,tabulka_panely_def,AD$1-18,FALSE)) ->  | AE16: =IF(Data!$W16<MIN(Panely!$A$9:$A$28),VLOOKUP(Data!$W16,tabulka_kce_def,AE$1-20,FALSE),VLOOKUP(Data!$W16,tabulka_panely_def,AE$1-18,FALSE)) ->  | AF16: =IF(Data!$W16<MIN(Panely!$A$9:$A$28),VLOOKUP(Data!$W16,tabulka_kce_def,AF$1-20,FALSE),VLOOKUP(Data!$W16,tabulka_panely_def,AF$1-18,FALSE)) ->  | AG16: =IF(Data!$W16<MIN(Panely!$A$9:$A$28),VLOOKUP(Data!$W16,tabulka_kce_def,AG$1-20,FALSE),VLOOKUP(Data!$W16,tabulka_panely_def,AG$1-18,FALSE)) ->  | AH16: =IF(Data!$W16<MIN(Panely!$A$9:$A$28),VLOOKUP(Data!$W16,tabulka_kce_def,AH$1-20,FALSE),VLOOKUP(Data!$W16,tabulka_panely_def,AH$1-18,FALSE)) ->  | AI16: =IF(Data!$W16<MIN(Panely!$A$9:$A$28),VLOOKUP(Data!$W16,tabulka_kce_def,AI$1-20,FALSE),VLOOKUP(Data!$W16,tabulka_panely_def,AI$1-18,FALSE)) ->  | AJ16: =IF(Data!$W16<MIN(Panely!$A$9:$A$28),VLOOKUP(Data!$W16,tabulka_kce_def,AJ$1-20,FALSE),VLOOKUP(Data!$W16,tabulka_panely_def,AJ$1-18,FALSE)) ->  | AK16: =IF(Data!$W16<MIN(Panely!$A$9:$A$28),VLOOKUP(Data!$W16,tabulka_kce_def,AK$1-20,FALSE),VLOOKUP(Data!$W16,tabulka_panely_def,AK$1-18,FALSE)) ->  | AL16: =IF(Data!$W16<MIN(Panely!$A$9:$A$28),VLOOKUP(Data!$W16,tabulka_kce_def,AL$1-20,FALSE),VLOOKUP(Data!$W16,tabulka_panely_def,AL$1-18,FALSE)) ->  | AM16: =IF(Data!$W16<MIN(Panely!$A$9:$A$28),VLOOKUP(Data!$W16,tabulka_kce_def,AM$1-20,FALSE),VLOOKUP(Data!$W16,tabulka_panely_def,AM$1-18,FALSE)) ->  | AN16: 16 | AO16: =IF(Data!$W16<MIN(Panely!$A$9:$A$28),VLOOKUP(Data!$W16,tabulka_kce_def,63,FALSE),0) -> 0 | AP16: =IF(Data!$W16<MIN(Panely!$A$9:$A$28),VLOOKUP(Data!$W16,tabulka_kce_def,28,FALSE),1) -> 1 | AQ16: =IF(Data!$W16<MIN(Panely!$A$9:$A$28),VLOOKUP(Data!$W16,tabulka_kce_def,23,FALSE),VLOOKUP(Data!$W16,tabulka_panely_def,24,FALSE)) ->  | AS16: =IF(ISERROR(AR16*(273.15+AQ16)^4),0,AR16*((273.15+AQ16)^4)) -> 0 | AT16: =(((1/SUM(AR16:AR190))*SUM(AS16:AS190))^0.25)-273.15 ->  | AU16: =IF(ISERROR(MID(VLOOKUP($W16,tabulka_kce_def,2,FALSE),1,3)="ooz"),0,IF(MID(VLOOKUP($W16,tabulka_kce_def,2,FALSE),1,3)="ooz",1,0)) -> 0 | AV16: =IF(ISERROR(MID(VLOOKUP($W16,tabulka_kce_def,60,FALSE),1,1)="f"),0,IF(MID(VLOOKUP($W16,tabulka_kce_def,60,FALSE),1,1)="f",1,0)) -> 0 | AW16: =VALUE(VLOOKUP($W16,tabulka_kce_def,61,FALSE)) ->  | AX16: =IF(AV16=1,IF(MID(VLOOKUP(AW16,tabulka_kce_def,2,FALSE),1,3)="ooz",1,0),0) -> 0 | AY16: =IF(AND(W16>MAX(Konstrukce!A:A),ISNUMBER(W16)),1,0) -> 0
B17: = | C17: =IF(Data!$B17<MIN(Panely!$A$9:$A$28),VLOOKUP(Data!$B17,tabulka_kce_def,4,FALSE),VLOOKUP(Data!$B17,tabulka_panely_def,4,FALSE)) ->  | D17: =IF(Data!$B17<MIN(Panely!$A$9:$A$28),VLOOKUP(Data!$B17,tabulka_kce_def,23,FALSE),VLOOKUP(Data!$B17,tabulka_panely_def,24,FALSE)) ->  | E17: =IF(Data!$B17<MIN(Panely!$A$9:$A$28),VLOOKUP(Data!$B17,tabulka_kce_def,21,FALSE),VLOOKUP(Data!$B17,tabulka_panely_def,22,FALSE)) ->  | F17: =IF(Data!$B17<MIN(Panely!$A$9:$A$28),VLOOKUP(Data!$B17,tabulka_kce_def,26,FALSE),VLOOKUP(Data!$B17,tabulka_panely_def,31,FALSE)) ->  | G17: =IF(Data!$B17<MIN(Panely!$A$9:$A$28),VLOOKUP(Data!$B17,tabulka_kce_def,27,FALSE),VLOOKUP(Data!$B17,tabulka_panely_def,32,FALSE)) ->  | H17: =IF(VLOOKUP(Data!$B17,tabulka_kce_def,3,FALSE)="",Konstrukce!$G$1,IF(VLOOKUP(Data!$B17,tabulka_kce_def,3,FALSE)="z",Konstrukce!$G$2,VLOOKUP(Data!$B17,tabulka_kce_def,3,FALSE))) ->  | I17: =IF(Data!$B17<MIN(Panely!$A$9:$A$28),0,VLOOKUP(Data!$B17,tabulka_panely_def,25,FALSE)) ->  | J17: =IF(Data!$B17<MIN(Panely!$A$9:$A$28),VLOOKUP(Data!$B17,tabulka_kce_def,24,FALSE),VLOOKUP(Data!$B17,tabulka_panely_def,33,FALSE)) ->  | K17: =Konstrukce!$D$1 -> 15 | L17: =Konstrukce!$D$2 -> 15 | M17: =Konstrukce!$G$1 -> 0 | N17: =IF(Data!$B17<MIN(Panely!$A$9:$A$28),VLOOKUP(Data!$B17,tabulka_kce_def,59,FALSE),VLOOKUP(Data!$B17,tabulka_panely_def,63,FALSE)) ->  | O17: =IF(Data!$B17<MIN(Panely!$A$9:$A$28),VLOOKUP(Data!$B17,tabulka_kce_def,60,FALSE),VLOOKUP(Data!$B17,tabulka_panely_def,64,FALSE)) ->  | P17: =IF(Data!$B17<MIN(Panely!$A$9:$A$28),VLOOKUP(Data!$B17,tabulka_kce_def,61,FALSE),VLOOKUP(Data!$B17,tabulka_panely_def,65,FALSE)) ->  | Q17: =IF(Data!$B17<MIN(Panely!$A$9:$A$28),VLOOKUP(Data!$B17,tabulka_kce_def,25,FALSE),0) -> 0 | W17: = | X17: =IF(Data!$W17<MIN(Panely!$A$9:$A$28),VLOOKUP(Data!$W17,tabulka_kce_def,62,FALSE),VLOOKUP(Data!$W17,tabulka_panely_def,65,FALSE)) ->  | Y17: =IF(Data!$W17<MIN(Panely!$A$9:$A$28),VLOOKUP(Data!$W17,tabulka_kce_def,Y$1-20,FALSE),VLOOKUP(Data!$W17,tabulka_panely_def,Y$1-18,FALSE)) ->  | Z17: =IF(Data!$W17<MIN(Panely!$A$9:$A$28),VLOOKUP(Data!$W17,tabulka_kce_def,Z$1-20,FALSE),VLOOKUP(Data!$W17,tabulka_panely_def,Z$1-18,FALSE)) ->  | AA17: =IF(Data!$W17<MIN(Panely!$A$9:$A$28),VLOOKUP(Data!$W17,tabulka_kce_def,AA$1-20,FALSE),VLOOKUP(Data!$W17,tabulka_panely_def,AA$1-18,FALSE)) ->  | AB17: =IF(Data!$W17<MIN(Panely!$A$9:$A$28),VLOOKUP(Data!$W17,tabulka_kce_def,AB$1-20,FALSE),VLOOKUP(Data!$W17,tabulka_panely_def,AB$1-18,FALSE)) ->  | AC17: =IF(Data!$W17<MIN(Panely!$A$9:$A$28),VLOOKUP(Data!$W17,tabulka_kce_def,AC$1-20,FALSE),VLOOKUP(Data!$W17,tabulka_panely_def,AC$1-18,FALSE)) ->  | AD17: =IF(Data!$W17<MIN(Panely!$A$9:$A$28),VLOOKUP(Data!$W17,tabulka_kce_def,AD$1-20,FALSE),VLOOKUP(Data!$W17,tabulka_panely_def,AD$1-18,FALSE)) ->  | AE17: =IF(Data!$W17<MIN(Panely!$A$9:$A$28),VLOOKUP(Data!$W17,tabulka_kce_def,AE$1-20,FALSE),VLOOKUP(Data!$W17,tabulka_panely_def,AE$1-18,FALSE)) ->  | AF17: =IF(Data!$W17<MIN(Panely!$A$9:$A$28),VLOOKUP(Data!$W17,tabulka_kce_def,AF$1-20,FALSE),VLOOKUP(Data!$W17,tabulka_panely_def,AF$1-18,FALSE)) ->  | AG17: =IF(Data!$W17<MIN(Panely!$A$9:$A$28),VLOOKUP(Data!$W17,tabulka_kce_def,AG$1-20,FALSE),VLOOKUP(Data!$W17,tabulka_panely_def,AG$1-18,FALSE)) ->  | AH17: =IF(Data!$W17<MIN(Panely!$A$9:$A$28),VLOOKUP(Data!$W17,tabulka_kce_def,AH$1-20,FALSE),VLOOKUP(Data!$W17,tabulka_panely_def,AH$1-18,FALSE)) ->  | AI17: =IF(Data!$W17<MIN(Panely!$A$9:$A$28),VLOOKUP(Data!$W17,tabulka_kce_def,AI$1-20,FALSE),VLOOKUP(Data!$W17,tabulka_panely_def,AI$1-18,FALSE)) ->  | AJ17: =IF(Data!$W17<MIN(Panely!$A$9:$A$28),VLOOKUP(Data!$W17,tabulka_kce_def,AJ$1-20,FALSE),VLOOKUP(Data!$W17,tabulka_panely_def,AJ$1-18,FALSE)) ->  | AK17: =IF(Data!$W17<MIN(Panely!$A$9:$A$28),VLOOKUP(Data!$W17,tabulka_kce_def,AK$1-20,FALSE),VLOOKUP(Data!$W17,tabulka_panely_def,AK$1-18,FALSE)) ->  | AL17: =IF(Data!$W17<MIN(Panely!$A$9:$A$28),VLOOKUP(Data!$W17,tabulka_kce_def,AL$1-20,FALSE),VLOOKUP(Data!$W17,tabulka_panely_def,AL$1-18,FALSE)) ->  | AM17: =IF(Data!$W17<MIN(Panely!$A$9:$A$28),VLOOKUP(Data!$W17,tabulka_kce_def,AM$1-20,FALSE),VLOOKUP(Data!$W17,tabulka_panely_def,AM$1-18,FALSE)) ->  | AN17: =AN16+1 -> 17 | AO17: =IF(Data!$W17<MIN(Panely!$A$9:$A$28),VLOOKUP(Data!$W17,tabulka_kce_def,63,FALSE),0) -> 0 | AP17: =IF(Data!$W17<MIN(Panely!$A$9:$A$28),VLOOKUP(Data!$W17,tabulka_kce_def,28,FALSE),1) -> 1 | AQ17: =IF(Data!$W17<MIN(Panely!$A$9:$A$28),VLOOKUP(Data!$W17,tabulka_kce_def,23,FALSE),VLOOKUP(Data!$W17,tabulka_panely_def,24,FALSE)) ->  | AS17: =IF(ISERROR(AR17*(273.15+AQ17)^4),0,AR17*((273.15+AQ17)^4)) -> 0 | AU17: 0 | AV17: 0 | AX17: 0 | AY17: =IF(AND(W17>MAX(Konstrukce!A:A),ISNUMBER(W17)),1,0) -> 0
B18: = | C18: =IF(Data!$B18<MIN(Panely!$A$9:$A$28),VLOOKUP(Data!$B18,tabulka_kce_def,4,FALSE),VLOOKUP(Data!$B18,tabulka_panely_def,4,FALSE)) ->  | D18: =IF(Data!$B18<MIN(Panely!$A$9:$A$28),VLOOKUP(Data!$B18,tabulka_kce_def,23,FALSE),VLOOKUP(Data!$B18,tabulka_panely_def,24,FALSE)) ->  | E18: =IF(Data!$B18<MIN(Panely!$A$9:$A$28),VLOOKUP(Data!$B18,tabulka_kce_def,21,FALSE),VLOOKUP(Data!$B18,tabulka_panely_def,22,FALSE)) ->  | F18: =IF(Data!$B18<MIN(Panely!$A$9:$A$28),VLOOKUP(Data!$B18,tabulka_kce_def,26,FALSE),VLOOKUP(Data!$B18,tabulka_panely_def,31,FALSE)) ->  | G18: =IF(Data!$B18<MIN(Panely!$A$9:$A$28),VLOOKUP(Data!$B18,tabulka_kce_def,27,FALSE),VLOOKUP(Data!$B18,tabulka_panely_def,32,FALSE)) ->  | H18: =IF(VLOOKUP(Data!$B18,tabulka_kce_def,3,FALSE)="",Konstrukce!$G$1,IF(VLOOKUP(Data!$B18,tabulka_kce_def,3,FALSE)="z",Konstrukce!$G$2,VLOOKUP(Data!$B18,tabulka_kce_def,3,FALSE))) ->  | I18: =IF(Data!$B18<MIN(Panely!$A$9:$A$28),0,VLOOKUP(Data!$B18,tabulka_panely_def,25,FALSE)) ->  | J18: =IF(Data!$B18<MIN(Panely!$A$9:$A$28),VLOOKUP(Data!$B18,tabulka_kce_def,24,FALSE),VLOOKUP(Data!$B18,tabulka_panely_def,33,FALSE)) ->  | K18: =Konstrukce!$D$1 -> 15 | L18: =Konstrukce!$D$2 -> 15 | M18: =Konstrukce!$G$1 -> 0 | N18: =IF(Data!$B18<MIN(Panely!$A$9:$A$28),VLOOKUP(Data!$B18,tabulka_kce_def,59,FALSE),VLOOKUP(Data!$B18,tabulka_panely_def,63,FALSE)) ->  | O18: =IF(Data!$B18<MIN(Panely!$A$9:$A$28),VLOOKUP(Data!$B18,tabulka_kce_def,60,FALSE),VLOOKUP(Data!$B18,tabulka_panely_def,64,FALSE)) ->  | P18: =IF(Data!$B18<MIN(Panely!$A$9:$A$28),VLOOKUP(Data!$B18,tabulka_kce_def,61,FALSE),VLOOKUP(Data!$B18,tabulka_panely_def,65,FALSE)) ->  | Q18: =IF(Data!$B18<MIN(Panely!$A$9:$A$28),VLOOKUP(Data!$B18,tabulka_kce_def,25,FALSE),0) -> 0 | W18: = | X18: =IF(Data!$W18<MIN(Panely!$A$9:$A$28),VLOOKUP(Data!$W18,tabulka_kce_def,62,FALSE),VLOOKUP(Data!$W18,tabulka_panely_def,65,FALSE)) ->  | Y18: =IF(Data!$W18<MIN(Panely!$A$9:$A$28),VLOOKUP(Data!$W18,tabulka_kce_def,Y$1-20,FALSE),VLOOKUP(Data!$W18,tabulka_panely_def,Y$1-18,FALSE)) ->  | Z18: =IF(Data!$W18<MIN(Panely!$A$9:$A$28),VLOOKUP(Data!$W18,tabulka_kce_def,Z$1-20,FALSE),VLOOKUP(Data!$W18,tabulka_panely_def,Z$1-18,FALSE)) ->  | AA18: =IF(Data!$W18<MIN(Panely!$A$9:$A$28),VLOOKUP(Data!$W18,tabulka_kce_def,AA$1-20,FALSE),VLOOKUP(Data!$W18,tabulka_panely_def,AA$1-18,FALSE)) ->  | AB18: =IF(Data!$W18<MIN(Panely!$A$9:$A$28),VLOOKUP(Data!$W18,tabulka_kce_def,AB$1-20,FALSE),VLOOKUP(Data!$W18,tabulka_panely_def,AB$1-18,FALSE)) ->  | AC18: =IF(Data!$W18<MIN(Panely!$A$9:$A$28),VLOOKUP(Data!$W18,tabulka_kce_def,AC$1-20,FALSE),VLOOKUP(Data!$W18,tabulka_panely_def,AC$1-18,FALSE)) ->  | AD18: =IF(Data!$W18<MIN(Panely!$A$9:$A$28),VLOOKUP(Data!$W18,tabulka_kce_def,AD$1-20,FALSE),VLOOKUP(Data!$W18,tabulka_panely_def,AD$1-18,FALSE)) ->  | AE18: =IF(Data!$W18<MIN(Panely!$A$9:$A$28),VLOOKUP(Data!$W18,tabulka_kce_def,AE$1-20,FALSE),VLOOKUP(Data!$W18,tabulka_panely_def,AE$1-18,FALSE)) ->  | AF18: =IF(Data!$W18<MIN(Panely!$A$9:$A$28),VLOOKUP(Data!$W18,tabulka_kce_def,AF$1-20,FALSE),VLOOKUP(Data!$W18,tabulka_panely_def,AF$1-18,FALSE)) ->  | AG18: =IF(Data!$W18<MIN(Panely!$A$9:$A$28),VLOOKUP(Data!$W18,tabulka_kce_def,AG$1-20,FALSE),VLOOKUP(Data!$W18,tabulka_panely_def,AG$1-18,FALSE)) ->  | AH18: =IF(Data!$W18<MIN(Panely!$A$9:$A$28),VLOOKUP(Data!$W18,tabulka_kce_def,AH$1-20,FALSE),VLOOKUP(Data!$W18,tabulka_panely_def,AH$1-18,FALSE)) ->  | AI18: =IF(Data!$W18<MIN(Panely!$A$9:$A$28),VLOOKUP(Data!$W18,tabulka_kce_def,AI$1-20,FALSE),VLOOKUP(Data!$W18,tabulka_panely_def,AI$1-18,FALSE)) ->  | AJ18: =IF(Data!$W18<MIN(Panely!$A$9:$A$28),VLOOKUP(Data!$W18,tabulka_kce_def,AJ$1-20,FALSE),VLOOKUP(Data!$W18,tabulka_panely_def,AJ$1-18,FALSE)) ->  | AK18: =IF(Data!$W18<MIN(Panely!$A$9:$A$28),VLOOKUP(Data!$W18,tabulka_kce_def,AK$1-20,FALSE),VLOOKUP(Data!$W18,tabulka_panely_def,AK$1-18,FALSE)) ->  | AL18: =IF(Data!$W18<MIN(Panely!$A$9:$A$28),VLOOKUP(Data!$W18,tabulka_kce_def,AL$1-20,FALSE),VLOOKUP(Data!$W18,tabulka_panely_def,AL$1-18,FALSE)) ->  | AM18: =IF(Data!$W18<MIN(Panely!$A$9:$A$28),VLOOKUP(Data!$W18,tabulka_kce_def,AM$1-20,FALSE),VLOOKUP(Data!$W18,tabulka_panely_def,AM$1-18,FALSE)) ->  | AN18: =AN17+1 -> 18 | AO18: =IF(Data!$W18<MIN(Panely!$A$9:$A$28),VLOOKUP(Data!$W18,tabulka_kce_def,63,FALSE),0) -> 0 | AP18: =IF(Data!$W18<MIN(Panely!$A$9:$A$28),VLOOKUP(Data!$W18,tabulka_kce_def,28,FALSE),1) -> 1 | AQ18: =IF(Data!$W18<MIN(Panely!$A$9:$A$28),VLOOKUP(Data!$W18,tabulka_kce_def,23,FALSE),VLOOKUP(Data!$W18,tabulka_panely_def,24,FALSE)) ->  | AS18: 0 | AU18: 0 | AV18: 0 | AX18: 0 | AY18: =IF(AND(W18>MAX(Konstrukce!A:A),ISNUMBER(W18)),1,0) -> 0
B19: = | C19: =IF(Data!$B19<MIN(Panely!$A$9:$A$28),VLOOKUP(Data!$B19,tabulka_kce_def,4,FALSE),VLOOKUP(Data!$B19,tabulka_panely_def,4,FALSE)) ->  | D19: =IF(Data!$B19<MIN(Panely!$A$9:$A$28),VLOOKUP(Data!$B19,tabulka_kce_def,23,FALSE),VLOOKUP(Data!$B19,tabulka_panely_def,24,FALSE)) ->  | E19: =IF(Data!$B19<MIN(Panely!$A$9:$A$28),VLOOKUP(Data!$B19,tabulka_kce_def,21,FALSE),VLOOKUP(Data!$B19,tabulka_panely_def,22,FALSE)) ->  | F19: =IF(Data!$B19<MIN(Panely!$A$9:$A$28),VLOOKUP(Data!$B19,tabulka_kce_def,26,FALSE),VLOOKUP(Data!$B19,tabulka_panely_def,31,FALSE)) ->  | G19: =IF(Data!$B19<MIN(Panely!$A$9:$A$28),VLOOKUP(Data!$B19,tabulka_kce_def,27,FALSE),VLOOKUP(Data!$B19,tabulka_panely_def,32,FALSE)) ->  | H19: =IF(VLOOKUP(Data!$B19,tabulka_kce_def,3,FALSE)="",Konstrukce!$G$1,IF(VLOOKUP(Data!$B19,tabulka_kce_def,3,FALSE)="z",Konstrukce!$G$2,VLOOKUP(Data!$B19,tabulka_kce_def,3,FALSE))) ->  | I19: =IF(Data!$B19<MIN(Panely!$A$9:$A$28),0,VLOOKUP(Data!$B19,tabulka_panely_def,25,FALSE)) ->  | J19: =IF(Data!$B19<MIN(Panely!$A$9:$A$28),VLOOKUP(Data!$B19,tabulka_kce_def,24,FALSE),VLOOKUP(Data!$B19,tabulka_panely_def,33,FALSE)) ->  | K19: =Konstrukce!$D$1 -> 15 | L19: =Konstrukce!$D$2 -> 15 | M19: =Konstrukce!$G$1 -> 0 | N19: =IF(Data!$B19<MIN(Panely!$A$9:$A$28),VLOOKUP(Data!$B19,tabulka_kce_def,59,FALSE),VLOOKUP(Data!$B19,tabulka_panely_def,63,FALSE)) ->  | O19: =IF(Data!$B19<MIN(Panely!$A$9:$A$28),VLOOKUP(Data!$B19,tabulka_kce_def,60,FALSE),VLOOKUP(Data!$B19,tabulka_panely_def,64,FALSE)) ->  | P19: =IF(Data!$B19<MIN(Panely!$A$9:$A$28),VLOOKUP(Data!$B19,tabulka_kce_def,61,FALSE),VLOOKUP(Data!$B19,tabulka_panely_def,65,FALSE)) ->  | Q19: =IF(Data!$B19<MIN(Panely!$A$9:$A$28),VLOOKUP(Data!$B19,tabulka_kce_def,25,FALSE),0) -> 0 | W19: = | X19: =IF(Data!$W19<MIN(Panely!$A$9:$A$28),VLOOKUP(Data!$W19,tabulka_kce_def,62,FALSE),VLOOKUP(Data!$W19,tabulka_panely_def,65,FALSE)) ->  | Y19: =IF(Data!$W19<MIN(Panely!$A$9:$A$28),VLOOKUP(Data!$W19,tabulka_kce_def,Y$1-20,FALSE),VLOOKUP(Data!$W19,tabulka_panely_def,Y$1-18,FALSE)) ->  | Z19: =IF(Data!$W19<MIN(Panely!$A$9:$A$28),VLOOKUP(Data!$W19,tabulka_kce_def,Z$1-20,FALSE),VLOOKUP(Data!$W19,tabulka_panely_def,Z$1-18,FALSE)) ->  | AA19: =IF(Data!$W19<MIN(Panely!$A$9:$A$28),VLOOKUP(Data!$W19,tabulka_kce_def,AA$1-20,FALSE),VLOOKUP(Data!$W19,tabulka_panely_def,AA$1-18,FALSE)) ->  | AB19: =IF(Data!$W19<MIN(Panely!$A$9:$A$28),VLOOKUP(Data!$W19,tabulka_kce_def,AB$1-20,FALSE),VLOOKUP(Data!$W19,tabulka_panely_def,AB$1-18,FALSE)) ->  | AC19: =IF(Data!$W19<MIN(Panely!$A$9:$A$28),VLOOKUP(Data!$W19,tabulka_kce_def,AC$1-20,FALSE),VLOOKUP(Data!$W19,tabulka_panely_def,AC$1-18,FALSE)) ->  | AD19: =IF(Data!$W19<MIN(Panely!$A$9:$A$28),VLOOKUP(Data!$W19,tabulka_kce_def,AD$1-20,FALSE),VLOOKUP(Data!$W19,tabulka_panely_def,AD$1-18,FALSE)) ->  | AE19: =IF(Data!$W19<MIN(Panely!$A$9:$A$28),VLOOKUP(Data!$W19,tabulka_kce_def,AE$1-20,FALSE),VLOOKUP(Data!$W19,tabulka_panely_def,AE$1-18,FALSE)) ->  | AF19: =IF(Data!$W19<MIN(Panely!$A$9:$A$28),VLOOKUP(Data!$W19,tabulka_kce_def,AF$1-20,FALSE),VLOOKUP(Data!$W19,tabulka_panely_def,AF$1-18,FALSE)) ->  | AG19: =IF(Data!$W19<MIN(Panely!$A$9:$A$28),VLOOKUP(Data!$W19,tabulka_kce_def,AG$1-20,FALSE),VLOOKUP(Data!$W19,tabulka_panely_def,AG$1-18,FALSE)) ->  | AH19: =IF(Data!$W19<MIN(Panely!$A$9:$A$28),VLOOKUP(Data!$W19,tabulka_kce_def,AH$1-20,FALSE),VLOOKUP(Data!$W19,tabulka_panely_def,AH$1-18,FALSE)) ->  | AI19: =IF(Data!$W19<MIN(Panely!$A$9:$A$28),VLOOKUP(Data!$W19,tabulka_kce_def,AI$1-20,FALSE),VLOOKUP(Data!$W19,tabulka_panely_def,AI$1-18,FALSE)) ->  | AJ19: =IF(Data!$W19<MIN(Panely!$A$9:$A$28),VLOOKUP(Data!$W19,tabulka_kce_def,AJ$1-20,FALSE),VLOOKUP(Data!$W19,tabulka_panely_def,AJ$1-18,FALSE)) ->  | AK19: =IF(Data!$W19<MIN(Panely!$A$9:$A$28),VLOOKUP(Data!$W19,tabulka_kce_def,AK$1-20,FALSE),VLOOKUP(Data!$W19,tabulka_panely_def,AK$1-18,FALSE)) ->  | AL19: =IF(Data!$W19<MIN(Panely!$A$9:$A$28),VLOOKUP(Data!$W19,tabulka_kce_def,AL$1-20,FALSE),VLOOKUP(Data!$W19,tabulka_panely_def,AL$1-18,FALSE)) ->  | AM19: =IF(Data!$W19<MIN(Panely!$A$9:$A$28),VLOOKUP(Data!$W19,tabulka_kce_def,AM$1-20,FALSE),VLOOKUP(Data!$W19,tabulka_panely_def,AM$1-18,FALSE)) ->  | AN19: 19 | AO19: =IF(Data!$W19<MIN(Panely!$A$9:$A$28),VLOOKUP(Data!$W19,tabulka_kce_def,63,FALSE),0) -> 0 | AP19: =IF(Data!$W19<MIN(Panely!$A$9:$A$28),VLOOKUP(Data!$W19,tabulka_kce_def,28,FALSE),1) -> 1 | AQ19: =IF(Data!$W19<MIN(Panely!$A$9:$A$28),VLOOKUP(Data!$W19,tabulka_kce_def,23,FALSE),VLOOKUP(Data!$W19,tabulka_panely_def,24,FALSE)) ->  | AS19: 0 | AU19: 0 | AV19: 0 | AX19: 0 | AY19: =IF(AND(W19>MAX(Konstrukce!A:A),ISNUMBER(W19)),1,0) -> 0
B20: = | C20: =IF(Data!$B20<MIN(Panely!$A$9:$A$28),VLOOKUP(Data!$B20,tabulka_kce_def,4,FALSE),VLOOKUP(Data!$B20,tabulka_panely_def,4,FALSE)) ->  | D20: =IF(Data!$B20<MIN(Panely!$A$9:$A$28),VLOOKUP(Data!$B20,tabulka_kce_def,23,FALSE),VLOOKUP(Data!$B20,tabulka_panely_def,24,FALSE)) ->  | E20: =IF(Data!$B20<MIN(Panely!$A$9:$A$28),VLOOKUP(Data!$B20,tabulka_kce_def,21,FALSE),VLOOKUP(Data!$B20,tabulka_panely_def,22,FALSE)) ->  | F20: =IF(Data!$B20<MIN(Panely!$A$9:$A$28),VLOOKUP(Data!$B20,tabulka_kce_def,26,FALSE),VLOOKUP(Data!$B20,tabulka_panely_def,31,FALSE)) ->  | G20: =IF(Data!$B20<MIN(Panely!$A$9:$A$28),VLOOKUP(Data!$B20,tabulka_kce_def,27,FALSE),VLOOKUP(Data!$B20,tabulka_panely_def,32,FALSE)) ->  | H20: =IF(VLOOKUP(Data!$B20,tabulka_kce_def,3,FALSE)="",Konstrukce!$G$1,IF(VLOOKUP(Data!$B20,tabulka_kce_def,3,FALSE)="z",Konstrukce!$G$2,VLOOKUP(Data!$B20,tabulka_kce_def,3,FALSE))) ->  | I20: =IF(Data!$B20<MIN(Panely!$A$9:$A$28),0,VLOOKUP(Data!$B20,tabulka_panely_def,25,FALSE)) ->  | J20: =IF(Data!$B20<MIN(Panely!$A$9:$A$28),VLOOKUP(Data!$B20,tabulka_kce_def,24,FALSE),VLOOKUP(Data!$B20,tabulka_panely_def,33,FALSE)) ->  | K20: =Konstrukce!$D$1 -> 15 | L20: =Konstrukce!$D$2 -> 15 | M20: =Konstrukce!$G$1 -> 0 | N20: =IF(Data!$B20<MIN(Panely!$A$9:$A$28),VLOOKUP(Data!$B20,tabulka_kce_def,59,FALSE),VLOOKUP(Data!$B20,tabulka_panely_def,63,FALSE)) ->  | O20: =IF(Data!$B20<MIN(Panely!$A$9:$A$28),VLOOKUP(Data!$B20,tabulka_kce_def,60,FALSE),VLOOKUP(Data!$B20,tabulka_panely_def,64,FALSE)) ->  | P20: =IF(Data!$B20<MIN(Panely!$A$9:$A$28),VLOOKUP(Data!$B20,tabulka_kce_def,61,FALSE),VLOOKUP(Data!$B20,tabulka_panely_def,65,FALSE)) ->  | Q20: =IF(Data!$B20<MIN(Panely!$A$9:$A$28),VLOOKUP(Data!$B20,tabulka_kce_def,25,FALSE),0) -> 0 | W20: = | X20: =IF(Data!$W20<MIN(Panely!$A$9:$A$28),VLOOKUP(Data!$W20,tabulka_kce_def,62,FALSE),VLOOKUP(Data!$W20,tabulka_panely_def,65,FALSE)) ->  | Y20: =IF(Data!$W20<MIN(Panely!$A$9:$A$28),VLOOKUP(Data!$W20,tabulka_kce_def,Y$1-20,FALSE),VLOOKUP(Data!$W20,tabulka_panely_def,Y$1-18,FALSE)) ->  | Z20: =IF(Data!$W20<MIN(Panely!$A$9:$A$28),VLOOKUP(Data!$W20,tabulka_kce_def,Z$1-20,FALSE),VLOOKUP(Data!$W20,tabulka_panely_def,Z$1-18,FALSE)) ->  | AA20: =IF(Data!$W20<MIN(Panely!$A$9:$A$28),VLOOKUP(Data!$W20,tabulka_kce_def,AA$1-20,FALSE),VLOOKUP(Data!$W20,tabulka_panely_def,AA$1-18,FALSE)) ->  | AB20: =IF(Data!$W20<MIN(Panely!$A$9:$A$28),VLOOKUP(Data!$W20,tabulka_kce_def,AB$1-20,FALSE),VLOOKUP(Data!$W20,tabulka_panely_def,AB$1-18,FALSE)) ->  | AC20: =IF(Data!$W20<MIN(Panely!$A$9:$A$28),VLOOKUP(Data!$W20,tabulka_kce_def,AC$1-20,FALSE),VLOOKUP(Data!$W20,tabulka_panely_def,AC$1-18,FALSE)) ->  | AD20: =IF(Data!$W20<MIN(Panely!$A$9:$A$28),VLOOKUP(Data!$W20,tabulka_kce_def,AD$1-20,FALSE),VLOOKUP(Data!$W20,tabulka_panely_def,AD$1-18,FALSE)) ->  | AE20: =IF(Data!$W20<MIN(Panely!$A$9:$A$28),VLOOKUP(Data!$W20,tabulka_kce_def,AE$1-20,FALSE),VLOOKUP(Data!$W20,tabulka_panely_def,AE$1-18,FALSE)) ->  | AF20: =IF(Data!$W20<MIN(Panely!$A$9:$A$28),VLOOKUP(Data!$W20,tabulka_kce_def,AF$1-20,FALSE),VLOOKUP(Data!$W20,tabulka_panely_def,AF$1-18,FALSE)) ->  | AG20: =IF(Data!$W20<MIN(Panely!$A$9:$A$28),VLOOKUP(Data!$W20,tabulka_kce_def,AG$1-20,FALSE),VLOOKUP(Data!$W20,tabulka_panely_def,AG$1-18,FALSE)) ->  | AH20: =IF(Data!$W20<MIN(Panely!$A$9:$A$28),VLOOKUP(Data!$W20,tabulka_kce_def,AH$1-20,FALSE),VLOOKUP(Data!$W20,tabulka_panely_def,AH$1-18,FALSE)) ->  | AI20: =IF(Data!$W20<MIN(Panely!$A$9:$A$28),VLOOKUP(Data!$W20,tabulka_kce_def,AI$1-20,FALSE),VLOOKUP(Data!$W20,tabulka_panely_def,AI$1-18,FALSE)) ->  | AJ20: =IF(Data!$W20<MIN(Panely!$A$9:$A$28),VLOOKUP(Data!$W20,tabulka_kce_def,AJ$1-20,FALSE),VLOOKUP(Data!$W20,tabulka_panely_def,AJ$1-18,FALSE)) ->  | AK20: =IF(Data!$W20<MIN(Panely!$A$9:$A$28),VLOOKUP(Data!$W20,tabulka_kce_def,AK$1-20,FALSE),VLOOKUP(Data!$W20,tabulka_panely_def,AK$1-18,FALSE)) ->  | AL20: =IF(Data!$W20<MIN(Panely!$A$9:$A$28),VLOOKUP(Data!$W20,tabulka_kce_def,AL$1-20,FALSE),VLOOKUP(Data!$W20,tabulka_panely_def,AL$1-18,FALSE)) ->  | AM20: =IF(Data!$W20<MIN(Panely!$A$9:$A$28),VLOOKUP(Data!$W20,tabulka_kce_def,AM$1-20,FALSE),VLOOKUP(Data!$W20,tabulka_panely_def,AM$1-18,FALSE)) ->  | AN20: 20 | AO20: =IF(Data!$W20<MIN(Panely!$A$9:$A$28),VLOOKUP(Data!$W20,tabulka_kce_def,63,FALSE),0) -> 0 | AP20: =IF(Data!$W20<MIN(Panely!$A$9:$A$28),VLOOKUP(Data!$W20,tabulka_kce_def,28,FALSE),1) -> 1 | AQ20: =IF(Data!$W20<MIN(Panely!$A$9:$A$28),VLOOKUP(Data!$W20,tabulka_kce_def,23,FALSE),VLOOKUP(Data!$W20,tabulka_panely_def,24,FALSE)) ->  | AS20: 0 | AU20: 0 | AV20: 0 | AX20: 0 | AY20: =IF(AND(W20>MAX(Konstrukce!A:A),ISNUMBER(W20)),1,0) -> 0
B21: = | C21: =IF(Data!$B21<MIN(Panely!$A$9:$A$28),VLOOKUP(Data!$B21,tabulka_kce_def,4,FALSE),VLOOKUP(Data!$B21,tabulka_panely_def,4,FALSE)) ->  | D21: =IF(Data!$B21<MIN(Panely!$A$9:$A$28),VLOOKUP(Data!$B21,tabulka_kce_def,23,FALSE),VLOOKUP(Data!$B21,tabulka_panely_def,24,FALSE)) ->  | E21: =IF(Data!$B21<MIN(Panely!$A$9:$A$28),VLOOKUP(Data!$B21,tabulka_kce_def,21,FALSE),VLOOKUP(Data!$B21,tabulka_panely_def,22,FALSE)) ->  | F21: =IF(Data!$B21<MIN(Panely!$A$9:$A$28),VLOOKUP(Data!$B21,tabulka_kce_def,26,FALSE),VLOOKUP(Data!$B21,tabulka_panely_def,31,FALSE)) ->  | G21: =IF(Data!$B21<MIN(Panely!$A$9:$A$28),VLOOKUP(Data!$B21,tabulka_kce_def,27,FALSE),VLOOKUP(Data!$B21,tabulka_panely_def,32,FALSE)) ->  | H21: =IF(VLOOKUP(Data!$B21,tabulka_kce_def,3,FALSE)="",Konstrukce!$G$1,IF(VLOOKUP(Data!$B21,tabulka_kce_def,3,FALSE)="z",Konstrukce!$G$2,VLOOKUP(Data!$B21,tabulka_kce_def,3,FALSE))) ->  | I21: =IF(Data!$B21<MIN(Panely!$A$9:$A$28),0,VLOOKUP(Data!$B21,tabulka_panely_def,25,FALSE)) ->  | J21: =IF(Data!$B21<MIN(Panely!$A$9:$A$28),VLOOKUP(Data!$B21,tabulka_kce_def,24,FALSE),VLOOKUP(Data!$B21,tabulka_panely_def,33,FALSE)) ->  | K21: =Konstrukce!$D$1 -> 15 | L21: =Konstrukce!$D$2 -> 15 | M21: =Konstrukce!$G$1 -> 0 | N21: =IF(Data!$B21<MIN(Panely!$A$9:$A$28),VLOOKUP(Data!$B21,tabulka_kce_def,59,FALSE),VLOOKUP(Data!$B21,tabulka_panely_def,63,FALSE)) ->  | O21: =IF(Data!$B21<MIN(Panely!$A$9:$A$28),VLOOKUP(Data!$B21,tabulka_kce_def,60,FALSE),VLOOKUP(Data!$B21,tabulka_panely_def,64,FALSE)) ->  | P21: =IF(Data!$B21<MIN(Panely!$A$9:$A$28),VLOOKUP(Data!$B21,tabulka_kce_def,61,FALSE),VLOOKUP(Data!$B21,tabulka_panely_def,65,FALSE)) ->  | Q21: =IF(Data!$B21<MIN(Panely!$A$9:$A$28),VLOOKUP(Data!$B21,tabulka_kce_def,25,FALSE),0) -> 0 | W21: = | X21: =IF(Data!$W21<MIN(Panely!$A$9:$A$28),VLOOKUP(Data!$W21,tabulka_kce_def,62,FALSE),VLOOKUP(Data!$W21,tabulka_panely_def,65,FALSE)) ->  | Y21: =IF(Data!$W21<MIN(Panely!$A$9:$A$28),VLOOKUP(Data!$W21,tabulka_kce_def,Y$1-20,FALSE),VLOOKUP(Data!$W21,tabulka_panely_def,Y$1-18,FALSE)) ->  | Z21: =IF(Data!$W21<MIN(Panely!$A$9:$A$28),VLOOKUP(Data!$W21,tabulka_kce_def,Z$1-20,FALSE),VLOOKUP(Data!$W21,tabulka_panely_def,Z$1-18,FALSE)) ->  | AA21: =IF(Data!$W21<MIN(Panely!$A$9:$A$28),VLOOKUP(Data!$W21,tabulka_kce_def,AA$1-20,FALSE),VLOOKUP(Data!$W21,tabulka_panely_def,AA$1-18,FALSE)) ->  | AB21: =IF(Data!$W21<MIN(Panely!$A$9:$A$28),VLOOKUP(Data!$W21,tabulka_kce_def,AB$1-20,FALSE),VLOOKUP(Data!$W21,tabulka_panely_def,AB$1-18,FALSE)) ->  | AC21: =IF(Data!$W21<MIN(Panely!$A$9:$A$28),VLOOKUP(Data!$W21,tabulka_kce_def,AC$1-20,FALSE),VLOOKUP(Data!$W21,tabulka_panely_def,AC$1-18,FALSE)) ->  | AD21: =IF(Data!$W21<MIN(Panely!$A$9:$A$28),VLOOKUP(Data!$W21,tabulka_kce_def,AD$1-20,FALSE),VLOOKUP(Data!$W21,tabulka_panely_def,AD$1-18,FALSE)) ->  | AE21: =IF(Data!$W21<MIN(Panely!$A$9:$A$28),VLOOKUP(Data!$W21,tabulka_kce_def,AE$1-20,FALSE),VLOOKUP(Data!$W21,tabulka_panely_def,AE$1-18,FALSE)) ->  | AF21: =IF(Data!$W21<MIN(Panely!$A$9:$A$28),VLOOKUP(Data!$W21,tabulka_kce_def,AF$1-20,FALSE),VLOOKUP(Data!$W21,tabulka_panely_def,AF$1-18,FALSE)) ->  | AG21: =IF(Data!$W21<MIN(Panely!$A$9:$A$28),VLOOKUP(Data!$W21,tabulka_kce_def,AG$1-20,FALSE),VLOOKUP(Data!$W21,tabulka_panely_def,AG$1-18,FALSE)) ->  | AH21: =IF(Data!$W21<MIN(Panely!$A$9:$A$28),VLOOKUP(Data!$W21,tabulka_kce_def,AH$1-20,FALSE),VLOOKUP(Data!$W21,tabulka_panely_def,AH$1-18,FALSE)) ->  | AI21: =IF(Data!$W21<MIN(Panely!$A$9:$A$28),VLOOKUP(Data!$W21,tabulka_kce_def,AI$1-20,FALSE),VLOOKUP(Data!$W21,tabulka_panely_def,AI$1-18,FALSE)) ->  | AJ21: =IF(Data!$W21<MIN(Panely!$A$9:$A$28),VLOOKUP(Data!$W21,tabulka_kce_def,AJ$1-20,FALSE),VLOOKUP(Data!$W21,tabulka_panely_def,AJ$1-18,FALSE)) ->  | AK21: =IF(Data!$W21<MIN(Panely!$A$9:$A$28),VLOOKUP(Data!$W21,tabulka_kce_def,AK$1-20,FALSE),VLOOKUP(Data!$W21,tabulka_panely_def,AK$1-18,FALSE)) ->  | AL21: =IF(Data!$W21<MIN(Panely!$A$9:$A$28),VLOOKUP(Data!$W21,tabulka_kce_def,AL$1-20,FALSE),VLOOKUP(Data!$W21,tabulka_panely_def,AL$1-18,FALSE)) ->  | AM21: =IF(Data!$W21<MIN(Panely!$A$9:$A$28),VLOOKUP(Data!$W21,tabulka_kce_def,AM$1-20,FALSE),VLOOKUP(Data!$W21,tabulka_panely_def,AM$1-18,FALSE)) ->  | AN21: 21 | AO21: =IF(Data!$W21<MIN(Panely!$A$9:$A$28),VLOOKUP(Data!$W21,tabulka_kce_def,63,FALSE),0) -> 0 | AP21: =IF(Data!$W21<MIN(Panely!$A$9:$A$28),VLOOKUP(Data!$W21,tabulka_kce_def,28,FALSE),1) -> 1 | AQ21: =IF(Data!$W21<MIN(Panely!$A$9:$A$28),VLOOKUP(Data!$W21,tabulka_kce_def,23,FALSE),VLOOKUP(Data!$W21,tabulka_panely_def,24,FALSE)) ->  | AS21: 0 | AU21: 0 | AV21: 0 | AX21: 0 | AY21: =IF(AND(W21>MAX(Konstrukce!A:A),ISNUMBER(W21)),1,0) -> 0
B22: = | C22: =IF(Data!$B22<MIN(Panely!$A$9:$A$28),VLOOKUP(Data!$B22,tabulka_kce_def,4,FALSE),VLOOKUP(Data!$B22,tabulka_panely_def,4,FALSE)) ->  | D22: =IF(Data!$B22<MIN(Panely!$A$9:$A$28),VLOOKUP(Data!$B22,tabulka_kce_def,23,FALSE),VLOOKUP(Data!$B22,tabulka_panely_def,24,FALSE)) ->  | E22: =IF(Data!$B22<MIN(Panely!$A$9:$A$28),VLOOKUP(Data!$B22,tabulka_kce_def,21,FALSE),VLOOKUP(Data!$B22,tabulka_panely_def,22,FALSE)) ->  | F22: =IF(Data!$B22<MIN(Panely!$A$9:$A$28),VLOOKUP(Data!$B22,tabulka_kce_def,26,FALSE),VLOOKUP(Data!$B22,tabulka_panely_def,31,FALSE)) ->  | G22: =IF(Data!$B22<MIN(Panely!$A$9:$A$28),VLOOKUP(Data!$B22,tabulka_kce_def,27,FALSE),VLOOKUP(Data!$B22,tabulka_panely_def,32,FALSE)) ->  | H22: =IF(VLOOKUP(Data!$B22,tabulka_kce_def,3,FALSE)="",Konstrukce!$G$1,IF(VLOOKUP(Data!$B22,tabulka_kce_def,3,FALSE)="z",Konstrukce!$G$2,VLOOKUP(Data!$B22,tabulka_kce_def,3,FALSE))) ->  | I22: =IF(Data!$B22<MIN(Panely!$A$9:$A$28),0,VLOOKUP(Data!$B22,tabulka_panely_def,25,FALSE)) ->  | J22: =IF(Data!$B22<MIN(Panely!$A$9:$A$28),VLOOKUP(Data!$B22,tabulka_kce_def,24,FALSE),VLOOKUP(Data!$B22,tabulka_panely_def,33,FALSE)) ->  | K22: =Konstrukce!$D$1 -> 15 | L22: =Konstrukce!$D$2 -> 15 | M22: =Konstrukce!$G$1 -> 0 | N22: =IF(Data!$B22<MIN(Panely!$A$9:$A$28),VLOOKUP(Data!$B22,tabulka_kce_def,59,FALSE),VLOOKUP(Data!$B22,tabulka_panely_def,63,FALSE)) ->  | O22: =IF(Data!$B22<MIN(Panely!$A$9:$A$28),VLOOKUP(Data!$B22,tabulka_kce_def,60,FALSE),VLOOKUP(Data!$B22,tabulka_panely_def,64,FALSE)) ->  | P22: =IF(Data!$B22<MIN(Panely!$A$9:$A$28),VLOOKUP(Data!$B22,tabulka_kce_def,61,FALSE),VLOOKUP(Data!$B22,tabulka_panely_def,65,FALSE)) ->  | Q22: =IF(Data!$B22<MIN(Panely!$A$9:$A$28),VLOOKUP(Data!$B22,tabulka_kce_def,25,FALSE),0) -> 0 | W22: = | X22: =IF(Data!$W22<MIN(Panely!$A$9:$A$28),VLOOKUP(Data!$W22,tabulka_kce_def,62,FALSE),VLOOKUP(Data!$W22,tabulka_panely_def,65,FALSE)) ->  | Y22: =IF(Data!$W22<MIN(Panely!$A$9:$A$28),VLOOKUP(Data!$W22,tabulka_kce_def,Y$1-20,FALSE),VLOOKUP(Data!$W22,tabulka_panely_def,Y$1-18,FALSE)) ->  | Z22: =IF(Data!$W22<MIN(Panely!$A$9:$A$28),VLOOKUP(Data!$W22,tabulka_kce_def,Z$1-20,FALSE),VLOOKUP(Data!$W22,tabulka_panely_def,Z$1-18,FALSE)) ->  | AA22: =IF(Data!$W22<MIN(Panely!$A$9:$A$28),VLOOKUP(Data!$W22,tabulka_kce_def,AA$1-20,FALSE),VLOOKUP(Data!$W22,tabulka_panely_def,AA$1-18,FALSE)) ->  | AB22: =IF(Data!$W22<MIN(Panely!$A$9:$A$28),VLOOKUP(Data!$W22,tabulka_kce_def,AB$1-20,FALSE),VLOOKUP(Data!$W22,tabulka_panely_def,AB$1-18,FALSE)) ->  | AC22: =IF(Data!$W22<MIN(Panely!$A$9:$A$28),VLOOKUP(Data!$W22,tabulka_kce_def,AC$1-20,FALSE),VLOOKUP(Data!$W22,tabulka_panely_def,AC$1-18,FALSE)) ->  | AD22: =IF(Data!$W22<MIN(Panely!$A$9:$A$28),VLOOKUP(Data!$W22,tabulka_kce_def,AD$1-20,FALSE),VLOOKUP(Data!$W22,tabulka_panely_def,AD$1-18,FALSE)) ->  | AE22: =IF(Data!$W22<MIN(Panely!$A$9:$A$28),VLOOKUP(Data!$W22,tabulka_kce_def,AE$1-20,FALSE),VLOOKUP(Data!$W22,tabulka_panely_def,AE$1-18,FALSE)) ->  | AF22: =IF(Data!$W22<MIN(Panely!$A$9:$A$28),VLOOKUP(Data!$W22,tabulka_kce_def,AF$1-20,FALSE),VLOOKUP(Data!$W22,tabulka_panely_def,AF$1-18,FALSE)) ->  | AG22: =IF(Data!$W22<MIN(Panely!$A$9:$A$28),VLOOKUP(Data!$W22,tabulka_kce_def,AG$1-20,FALSE),VLOOKUP(Data!$W22,tabulka_panely_def,AG$1-18,FALSE)) ->  | AH22: =IF(Data!$W22<MIN(Panely!$A$9:$A$28),VLOOKUP(Data!$W22,tabulka_kce_def,AH$1-20,FALSE),VLOOKUP(Data!$W22,tabulka_panely_def,AH$1-18,FALSE)) ->  | AI22: =IF(Data!$W22<MIN(Panely!$A$9:$A$28),VLOOKUP(Data!$W22,tabulka_kce_def,AI$1-20,FALSE),VLOOKUP(Data!$W22,tabulka_panely_def,AI$1-18,FALSE)) ->  | AJ22: =IF(Data!$W22<MIN(Panely!$A$9:$A$28),VLOOKUP(Data!$W22,tabulka_kce_def,AJ$1-20,FALSE),VLOOKUP(Data!$W22,tabulka_panely_def,AJ$1-18,FALSE)) ->  | AK22: =IF(Data!$W22<MIN(Panely!$A$9:$A$28),VLOOKUP(Data!$W22,tabulka_kce_def,AK$1-20,FALSE),VLOOKUP(Data!$W22,tabulka_panely_def,AK$1-18,FALSE)) ->  | AL22: =IF(Data!$W22<MIN(Panely!$A$9:$A$28),VLOOKUP(Data!$W22,tabulka_kce_def,AL$1-20,FALSE),VLOOKUP(Data!$W22,tabulka_panely_def,AL$1-18,FALSE)) ->  | AM22: =IF(Data!$W22<MIN(Panely!$A$9:$A$28),VLOOKUP(Data!$W22,tabulka_kce_def,AM$1-20,FALSE),VLOOKUP(Data!$W22,tabulka_panely_def,AM$1-18,FALSE)) ->  | AN22: 22 | AO22: =IF(Data!$W22<MIN(Panely!$A$9:$A$28),VLOOKUP(Data!$W22,tabulka_kce_def,63,FALSE),0) -> 0 | AP22: =IF(Data!$W22<MIN(Panely!$A$9:$A$28),VLOOKUP(Data!$W22,tabulka_kce_def,28,FALSE),1) -> 1 | AQ22: =IF(Data!$W22<MIN(Panely!$A$9:$A$28),VLOOKUP(Data!$W22,tabulka_kce_def,23,FALSE),VLOOKUP(Data!$W22,tabulka_panely_def,24,FALSE)) ->  | AS22: 0 | AU22: 0 | AV22: 0 | AX22: 0 | AY22: =IF(AND(W22>MAX(Konstrukce!A:A),ISNUMBER(W22)),1,0) -> 0
B23: = | C23: =IF(Data!$B23<MIN(Panely!$A$9:$A$28),VLOOKUP(Data!$B23,tabulka_kce_def,4,FALSE),VLOOKUP(Data!$B23,tabulka_panely_def,4,FALSE)) ->  | D23: =IF(Data!$B23<MIN(Panely!$A$9:$A$28),VLOOKUP(Data!$B23,tabulka_kce_def,23,FALSE),VLOOKUP(Data!$B23,tabulka_panely_def,24,FALSE)) ->  | E23: =IF(Data!$B23<MIN(Panely!$A$9:$A$28),VLOOKUP(Data!$B23,tabulka_kce_def,21,FALSE),VLOOKUP(Data!$B23,tabulka_panely_def,22,FALSE)) ->  | F23: =IF(Data!$B23<MIN(Panely!$A$9:$A$28),VLOOKUP(Data!$B23,tabulka_kce_def,26,FALSE),VLOOKUP(Data!$B23,tabulka_panely_def,31,FALSE)) ->  | G23: =IF(Data!$B23<MIN(Panely!$A$9:$A$28),VLOOKUP(Data!$B23,tabulka_kce_def,27,FALSE),VLOOKUP(Data!$B23,tabulka_panely_def,32,FALSE)) ->  | H23: =IF(VLOOKUP(Data!$B23,tabulka_kce_def,3,FALSE)="",Konstrukce!$G$1,IF(VLOOKUP(Data!$B23,tabulka_kce_def,3,FALSE)="z",Konstrukce!$G$2,VLOOKUP(Data!$B23,tabulka_kce_def,3,FALSE))) ->  | I23: =IF(Data!$B23<MIN(Panely!$A$9:$A$28),0,VLOOKUP(Data!$B23,tabulka_panely_def,25,FALSE)) ->  | J23: =IF(Data!$B23<MIN(Panely!$A$9:$A$28),VLOOKUP(Data!$B23,tabulka_kce_def,24,FALSE),VLOOKUP(Data!$B23,tabulka_panely_def,33,FALSE)) ->  | K23: =Konstrukce!$D$1 -> 15 | L23: =Konstrukce!$D$2 -> 15 | M23: =Konstrukce!$G$1 -> 0 | N23: =IF(Data!$B23<MIN(Panely!$A$9:$A$28),VLOOKUP(Data!$B23,tabulka_kce_def,59,FALSE),VLOOKUP(Data!$B23,tabulka_panely_def,63,FALSE)) ->  | O23: =IF(Data!$B23<MIN(Panely!$A$9:$A$28),VLOOKUP(Data!$B23,tabulka_kce_def,60,FALSE),VLOOKUP(Data!$B23,tabulka_panely_def,64,FALSE)) ->  | P23: =IF(Data!$B23<MIN(Panely!$A$9:$A$28),VLOOKUP(Data!$B23,tabulka_kce_def,61,FALSE),VLOOKUP(Data!$B23,tabulka_panely_def,65,FALSE)) ->  | Q23: =IF(Data!$B23<MIN(Panely!$A$9:$A$28),VLOOKUP(Data!$B23,tabulka_kce_def,25,FALSE),0) -> 0 | W23: = | X23: =IF(Data!$W23<MIN(Panely!$A$9:$A$28),VLOOKUP(Data!$W23,tabulka_kce_def,62,FALSE),VLOOKUP(Data!$W23,tabulka_panely_def,65,FALSE)) ->  | Y23: =IF(Data!$W23<MIN(Panely!$A$9:$A$28),VLOOKUP(Data!$W23,tabulka_kce_def,Y$1-20,FALSE),VLOOKUP(Data!$W23,tabulka_panely_def,Y$1-18,FALSE)) ->  | Z23: =IF(Data!$W23<MIN(Panely!$A$9:$A$28),VLOOKUP(Data!$W23,tabulka_kce_def,Z$1-20,FALSE),VLOOKUP(Data!$W23,tabulka_panely_def,Z$1-18,FALSE)) ->  | AA23: =IF(Data!$W23<MIN(Panely!$A$9:$A$28),VLOOKUP(Data!$W23,tabulka_kce_def,AA$1-20,FALSE),VLOOKUP(Data!$W23,tabulka_panely_def,AA$1-18,FALSE)) ->  | AB23: =IF(Data!$W23<MIN(Panely!$A$9:$A$28),VLOOKUP(Data!$W23,tabulka_kce_def,AB$1-20,FALSE),VLOOKUP(Data!$W23,tabulka_panely_def,AB$1-18,FALSE)) ->  | AC23: =IF(Data!$W23<MIN(Panely!$A$9:$A$28),VLOOKUP(Data!$W23,tabulka_kce_def,AC$1-20,FALSE),VLOOKUP(Data!$W23,tabulka_panely_def,AC$1-18,FALSE)) ->  | AD23: =IF(Data!$W23<MIN(Panely!$A$9:$A$28),VLOOKUP(Data!$W23,tabulka_kce_def,AD$1-20,FALSE),VLOOKUP(Data!$W23,tabulka_panely_def,AD$1-18,FALSE)) ->  | AE23: =IF(Data!$W23<MIN(Panely!$A$9:$A$28),VLOOKUP(Data!$W23,tabulka_kce_def,AE$1-20,FALSE),VLOOKUP(Data!$W23,tabulka_panely_def,AE$1-18,FALSE)) ->  | AF23: =IF(Data!$W23<MIN(Panely!$A$9:$A$28),VLOOKUP(Data!$W23,tabulka_kce_def,AF$1-20,FALSE),VLOOKUP(Data!$W23,tabulka_panely_def,AF$1-18,FALSE)) ->  | AG23: =IF(Data!$W23<MIN(Panely!$A$9:$A$28),VLOOKUP(Data!$W23,tabulka_kce_def,AG$1-20,FALSE),VLOOKUP(Data!$W23,tabulka_panely_def,AG$1-18,FALSE)) ->  | AH23: =IF(Data!$W23<MIN(Panely!$A$9:$A$28),VLOOKUP(Data!$W23,tabulka_kce_def,AH$1-20,FALSE),VLOOKUP(Data!$W23,tabulka_panely_def,AH$1-18,FALSE)) ->  | AI23: =IF(Data!$W23<MIN(Panely!$A$9:$A$28),VLOOKUP(Data!$W23,tabulka_kce_def,AI$1-20,FALSE),VLOOKUP(Data!$W23,tabulka_panely_def,AI$1-18,FALSE)) ->  | AJ23: =IF(Data!$W23<MIN(Panely!$A$9:$A$28),VLOOKUP(Data!$W23,tabulka_kce_def,AJ$1-20,FALSE),VLOOKUP(Data!$W23,tabulka_panely_def,AJ$1-18,FALSE)) ->  | AK23: =IF(Data!$W23<MIN(Panely!$A$9:$A$28),VLOOKUP(Data!$W23,tabulka_kce_def,AK$1-20,FALSE),VLOOKUP(Data!$W23,tabulka_panely_def,AK$1-18,FALSE)) ->  | AL23: =IF(Data!$W23<MIN(Panely!$A$9:$A$28),VLOOKUP(Data!$W23,tabulka_kce_def,AL$1-20,FALSE),VLOOKUP(Data!$W23,tabulka_panely_def,AL$1-18,FALSE)) ->  | AM23: =IF(Data!$W23<MIN(Panely!$A$9:$A$28),VLOOKUP(Data!$W23,tabulka_kce_def,AM$1-20,FALSE),VLOOKUP(Data!$W23,tabulka_panely_def,AM$1-18,FALSE)) ->  | AN23: 23 | AO23: =IF(Data!$W23<MIN(Panely!$A$9:$A$28),VLOOKUP(Data!$W23,tabulka_kce_def,63,FALSE),0) -> 0 | AP23: =IF(Data!$W23<MIN(Panely!$A$9:$A$28),VLOOKUP(Data!$W23,tabulka_kce_def,28,FALSE),1) -> 1 | AQ23: =IF(Data!$W23<MIN(Panely!$A$9:$A$28),VLOOKUP(Data!$W23,tabulka_kce_def,23,FALSE),VLOOKUP(Data!$W23,tabulka_panely_def,24,FALSE)) ->  | AS23: 0 | AU23: 0 | AV23: 0 | AX23: 0 | AY23: =IF(AND(W23>MAX(Konstrukce!A:A),ISNUMBER(W23)),1,0) -> 0
B24: = | C24: =IF(Data!$B24<MIN(Panely!$A$9:$A$28),VLOOKUP(Data!$B24,tabulka_kce_def,4,FALSE),VLOOKUP(Data!$B24,tabulka_panely_def,4,FALSE)) ->  | D24: =IF(Data!$B24<MIN(Panely!$A$9:$A$28),VLOOKUP(Data!$B24,tabulka_kce_def,23,FALSE),VLOOKUP(Data!$B24,tabulka_panely_def,24,FALSE)) ->  | E24: =IF(Data!$B24<MIN(Panely!$A$9:$A$28),VLOOKUP(Data!$B24,tabulka_kce_def,21,FALSE),VLOOKUP(Data!$B24,tabulka_panely_def,22,FALSE)) ->  | F24: =IF(Data!$B24<MIN(Panely!$A$9:$A$28),VLOOKUP(Data!$B24,tabulka_kce_def,26,FALSE),VLOOKUP(Data!$B24,tabulka_panely_def,31,FALSE)) ->  | G24: =IF(Data!$B24<MIN(Panely!$A$9:$A$28),VLOOKUP(Data!$B24,tabulka_kce_def,27,FALSE),VLOOKUP(Data!$B24,tabulka_panely_def,32,FALSE)) ->  | H24: =IF(VLOOKUP(Data!$B24,tabulka_kce_def,3,FALSE)="",Konstrukce!$G$1,IF(VLOOKUP(Data!$B24,tabulka_kce_def,3,FALSE)="z",Konstrukce!$G$2,VLOOKUP(Data!$B24,tabulka_kce_def,3,FALSE))) ->  | I24: =IF(Data!$B24<MIN(Panely!$A$9:$A$28),0,VLOOKUP(Data!$B24,tabulka_panely_def,25,FALSE)) ->  | J24: =IF(Data!$B24<MIN(Panely!$A$9:$A$28),VLOOKUP(Data!$B24,tabulka_kce_def,24,FALSE),VLOOKUP(Data!$B24,tabulka_panely_def,33,FALSE)) ->  | K24: =Konstrukce!$D$1 -> 15 | L24: =Konstrukce!$D$2 -> 15 | M24: =Konstrukce!$G$1 -> 0 | N24: =IF(Data!$B24<MIN(Panely!$A$9:$A$28),VLOOKUP(Data!$B24,tabulka_kce_def,59,FALSE),VLOOKUP(Data!$B24,tabulka_panely_def,63,FALSE)) ->  | O24: =IF(Data!$B24<MIN(Panely!$A$9:$A$28),VLOOKUP(Data!$B24,tabulka_kce_def,60,FALSE),VLOOKUP(Data!$B24,tabulka_panely_def,64,FALSE)) ->  | P24: =IF(Data!$B24<MIN(Panely!$A$9:$A$28),VLOOKUP(Data!$B24,tabulka_kce_def,61,FALSE),VLOOKUP(Data!$B24,tabulka_panely_def,65,FALSE)) ->  | Q24: =IF(Data!$B24<MIN(Panely!$A$9:$A$28),VLOOKUP(Data!$B24,tabulka_kce_def,25,FALSE),0) -> 0 | W24: = | X24: =IF(Data!$W24<MIN(Panely!$A$9:$A$28),VLOOKUP(Data!$W24,tabulka_kce_def,62,FALSE),VLOOKUP(Data!$W24,tabulka_panely_def,65,FALSE)) ->  | Y24: =IF(Data!$W24<MIN(Panely!$A$9:$A$28),VLOOKUP(Data!$W24,tabulka_kce_def,Y$1-20,FALSE),VLOOKUP(Data!$W24,tabulka_panely_def,Y$1-18,FALSE)) ->  | Z24: =IF(Data!$W24<MIN(Panely!$A$9:$A$28),VLOOKUP(Data!$W24,tabulka_kce_def,Z$1-20,FALSE),VLOOKUP(Data!$W24,tabulka_panely_def,Z$1-18,FALSE)) ->  | AA24: =IF(Data!$W24<MIN(Panely!$A$9:$A$28),VLOOKUP(Data!$W24,tabulka_kce_def,AA$1-20,FALSE),VLOOKUP(Data!$W24,tabulka_panely_def,AA$1-18,FALSE)) ->  | AB24: =IF(Data!$W24<MIN(Panely!$A$9:$A$28),VLOOKUP(Data!$W24,tabulka_kce_def,AB$1-20,FALSE),VLOOKUP(Data!$W24,tabulka_panely_def,AB$1-18,FALSE)) ->  | AC24: =IF(Data!$W24<MIN(Panely!$A$9:$A$28),VLOOKUP(Data!$W24,tabulka_kce_def,AC$1-20,FALSE),VLOOKUP(Data!$W24,tabulka_panely_def,AC$1-18,FALSE)) ->  | AD24: =IF(Data!$W24<MIN(Panely!$A$9:$A$28),VLOOKUP(Data!$W24,tabulka_kce_def,AD$1-20,FALSE),VLOOKUP(Data!$W24,tabulka_panely_def,AD$1-18,FALSE)) ->  | AE24: =IF(Data!$W24<MIN(Panely!$A$9:$A$28),VLOOKUP(Data!$W24,tabulka_kce_def,AE$1-20,FALSE),VLOOKUP(Data!$W24,tabulka_panely_def,AE$1-18,FALSE)) ->  | AF24: =IF(Data!$W24<MIN(Panely!$A$9:$A$28),VLOOKUP(Data!$W24,tabulka_kce_def,AF$1-20,FALSE),VLOOKUP(Data!$W24,tabulka_panely_def,AF$1-18,FALSE)) ->  | AG24: =IF(Data!$W24<MIN(Panely!$A$9:$A$28),VLOOKUP(Data!$W24,tabulka_kce_def,AG$1-20,FALSE),VLOOKUP(Data!$W24,tabulka_panely_def,AG$1-18,FALSE)) ->  | AH24: =IF(Data!$W24<MIN(Panely!$A$9:$A$28),VLOOKUP(Data!$W24,tabulka_kce_def,AH$1-20,FALSE),VLOOKUP(Data!$W24,tabulka_panely_def,AH$1-18,FALSE)) ->  | AI24: =IF(Data!$W24<MIN(Panely!$A$9:$A$28),VLOOKUP(Data!$W24,tabulka_kce_def,AI$1-20,FALSE),VLOOKUP(Data!$W24,tabulka_panely_def,AI$1-18,FALSE)) ->  | AJ24: =IF(Data!$W24<MIN(Panely!$A$9:$A$28),VLOOKUP(Data!$W24,tabulka_kce_def,AJ$1-20,FALSE),VLOOKUP(Data!$W24,tabulka_panely_def,AJ$1-18,FALSE)) ->  | AK24: =IF(Data!$W24<MIN(Panely!$A$9:$A$28),VLOOKUP(Data!$W24,tabulka_kce_def,AK$1-20,FALSE),VLOOKUP(Data!$W24,tabulka_panely_def,AK$1-18,FALSE)) ->  | AL24: =IF(Data!$W24<MIN(Panely!$A$9:$A$28),VLOOKUP(Data!$W24,tabulka_kce_def,AL$1-20,FALSE),VLOOKUP(Data!$W24,tabulka_panely_def,AL$1-18,FALSE)) ->  | AM24: =IF(Data!$W24<MIN(Panely!$A$9:$A$28),VLOOKUP(Data!$W24,tabulka_kce_def,AM$1-20,FALSE),VLOOKUP(Data!$W24,tabulka_panely_def,AM$1-18,FALSE)) ->  | AN24: 24 | AO24: =IF(Data!$W24<MIN(Panely!$A$9:$A$28),VLOOKUP(Data!$W24,tabulka_kce_def,63,FALSE),0) -> 0 | AP24: =IF(Data!$W24<MIN(Panely!$A$9:$A$28),VLOOKUP(Data!$W24,tabulka_kce_def,28,FALSE),1) -> 1 | AQ24: =IF(Data!$W24<MIN(Panely!$A$9:$A$28),VLOOKUP(Data!$W24,tabulka_kce_def,23,FALSE),VLOOKUP(Data!$W24,tabulka_panely_def,24,FALSE)) ->  | AS24: 0 | AU24: 0 | AV24: 0 | AX24: 0 | AY24: =IF(AND(W24>MAX(Konstrukce!A:A),ISNUMBER(W24)),1,0) -> 0
B25: = | C25: =IF(Data!$B25<MIN(Panely!$A$9:$A$28),VLOOKUP(Data!$B25,tabulka_kce_def,4,FALSE),VLOOKUP(Data!$B25,tabulka_panely_def,4,FALSE)) ->  | D25: =IF(Data!$B25<MIN(Panely!$A$9:$A$28),VLOOKUP(Data!$B25,tabulka_kce_def,23,FALSE),VLOOKUP(Data!$B25,tabulka_panely_def,24,FALSE)) ->  | E25: =IF(Data!$B25<MIN(Panely!$A$9:$A$28),VLOOKUP(Data!$B25,tabulka_kce_def,21,FALSE),VLOOKUP(Data!$B25,tabulka_panely_def,22,FALSE)) ->  | F25: =IF(Data!$B25<MIN(Panely!$A$9:$A$28),VLOOKUP(Data!$B25,tabulka_kce_def,26,FALSE),VLOOKUP(Data!$B25,tabulka_panely_def,31,FALSE)) ->  | G25: =IF(Data!$B25<MIN(Panely!$A$9:$A$28),VLOOKUP(Data!$B25,tabulka_kce_def,27,FALSE),VLOOKUP(Data!$B25,tabulka_panely_def,32,FALSE)) ->  | H25: =IF(VLOOKUP(Data!$B25,tabulka_kce_def,3,FALSE)="",Konstrukce!$G$1,IF(VLOOKUP(Data!$B25,tabulka_kce_def,3,FALSE)="z",Konstrukce!$G$2,VLOOKUP(Data!$B25,tabulka_kce_def,3,FALSE))) ->  | I25: =IF(Data!$B25<MIN(Panely!$A$9:$A$28),0,VLOOKUP(Data!$B25,tabulka_panely_def,25,FALSE)) ->  | J25: =IF(Data!$B25<MIN(Panely!$A$9:$A$28),VLOOKUP(Data!$B25,tabulka_kce_def,24,FALSE),VLOOKUP(Data!$B25,tabulka_panely_def,33,FALSE)) ->  | K25: =Konstrukce!$D$1 -> 15 | L25: =Konstrukce!$D$2 -> 15 | M25: =Konstrukce!$G$1 -> 0 | N25: =IF(Data!$B25<MIN(Panely!$A$9:$A$28),VLOOKUP(Data!$B25,tabulka_kce_def,59,FALSE),VLOOKUP(Data!$B25,tabulka_panely_def,63,FALSE)) ->  | O25: =IF(Data!$B25<MIN(Panely!$A$9:$A$28),VLOOKUP(Data!$B25,tabulka_kce_def,60,FALSE),VLOOKUP(Data!$B25,tabulka_panely_def,64,FALSE)) ->  | P25: =IF(Data!$B25<MIN(Panely!$A$9:$A$28),VLOOKUP(Data!$B25,tabulka_kce_def,61,FALSE),VLOOKUP(Data!$B25,tabulka_panely_def,65,FALSE)) ->  | Q25: =IF(Data!$B25<MIN(Panely!$A$9:$A$28),VLOOKUP(Data!$B25,tabulka_kce_def,25,FALSE),0) -> 0 | W25: = | X25: =IF(Data!$W25<MIN(Panely!$A$9:$A$28),VLOOKUP(Data!$W25,tabulka_kce_def,62,FALSE),VLOOKUP(Data!$W25,tabulka_panely_def,65,FALSE)) ->  | Y25: =IF(Data!$W25<MIN(Panely!$A$9:$A$28),VLOOKUP(Data!$W25,tabulka_kce_def,Y$1-20,FALSE),VLOOKUP(Data!$W25,tabulka_panely_def,Y$1-18,FALSE)) ->  | Z25: =IF(Data!$W25<MIN(Panely!$A$9:$A$28),VLOOKUP(Data!$W25,tabulka_kce_def,Z$1-20,FALSE),VLOOKUP(Data!$W25,tabulka_panely_def,Z$1-18,FALSE)) ->  | AA25: =IF(Data!$W25<MIN(Panely!$A$9:$A$28),VLOOKUP(Data!$W25,tabulka_kce_def,AA$1-20,FALSE),VLOOKUP(Data!$W25,tabulka_panely_def,AA$1-18,FALSE)) ->  | AB25: =IF(Data!$W25<MIN(Panely!$A$9:$A$28),VLOOKUP(Data!$W25,tabulka_kce_def,AB$1-20,FALSE),VLOOKUP(Data!$W25,tabulka_panely_def,AB$1-18,FALSE)) ->  | AC25: =IF(Data!$W25<MIN(Panely!$A$9:$A$28),VLOOKUP(Data!$W25,tabulka_kce_def,AC$1-20,FALSE),VLOOKUP(Data!$W25,tabulka_panely_def,AC$1-18,FALSE)) ->  | AD25: =IF(Data!$W25<MIN(Panely!$A$9:$A$28),VLOOKUP(Data!$W25,tabulka_kce_def,AD$1-20,FALSE),VLOOKUP(Data!$W25,tabulka_panely_def,AD$1-18,FALSE)) ->  | AE25: =IF(Data!$W25<MIN(Panely!$A$9:$A$28),VLOOKUP(Data!$W25,tabulka_kce_def,AE$1-20,FALSE),VLOOKUP(Data!$W25,tabulka_panely_def,AE$1-18,FALSE)) ->  | AF25: =IF(Data!$W25<MIN(Panely!$A$9:$A$28),VLOOKUP(Data!$W25,tabulka_kce_def,AF$1-20,FALSE),VLOOKUP(Data!$W25,tabulka_panely_def,AF$1-18,FALSE)) ->  | AG25: =IF(Data!$W25<MIN(Panely!$A$9:$A$28),VLOOKUP(Data!$W25,tabulka_kce_def,AG$1-20,FALSE),VLOOKUP(Data!$W25,tabulka_panely_def,AG$1-18,FALSE)) ->  | AH25: =IF(Data!$W25<MIN(Panely!$A$9:$A$28),VLOOKUP(Data!$W25,tabulka_kce_def,AH$1-20,FALSE),VLOOKUP(Data!$W25,tabulka_panely_def,AH$1-18,FALSE)) ->  | AI25: =IF(Data!$W25<MIN(Panely!$A$9:$A$28),VLOOKUP(Data!$W25,tabulka_kce_def,AI$1-20,FALSE),VLOOKUP(Data!$W25,tabulka_panely_def,AI$1-18,FALSE)) ->  | AJ25: =IF(Data!$W25<MIN(Panely!$A$9:$A$28),VLOOKUP(Data!$W25,tabulka_kce_def,AJ$1-20,FALSE),VLOOKUP(Data!$W25,tabulka_panely_def,AJ$1-18,FALSE)) ->  | AK25: =IF(Data!$W25<MIN(Panely!$A$9:$A$28),VLOOKUP(Data!$W25,tabulka_kce_def,AK$1-20,FALSE),VLOOKUP(Data!$W25,tabulka_panely_def,AK$1-18,FALSE)) ->  | AL25: =IF(Data!$W25<MIN(Panely!$A$9:$A$28),VLOOKUP(Data!$W25,tabulka_kce_def,AL$1-20,FALSE),VLOOKUP(Data!$W25,tabulka_panely_def,AL$1-18,FALSE)) ->  | AM25: =IF(Data!$W25<MIN(Panely!$A$9:$A$28),VLOOKUP(Data!$W25,tabulka_kce_def,AM$1-20,FALSE),VLOOKUP(Data!$W25,tabulka_panely_def,AM$1-18,FALSE)) ->  | AN25: 25 | AO25: =IF(Data!$W25<MIN(Panely!$A$9:$A$28),VLOOKUP(Data!$W25,tabulka_kce_def,63,FALSE),0) -> 0 | AP25: =IF(Data!$W25<MIN(Panely!$A$9:$A$28),VLOOKUP(Data!$W25,tabulka_kce_def,28,FALSE),1) -> 1 | AQ25: =IF(Data!$W25<MIN(Panely!$A$9:$A$28),VLOOKUP(Data!$W25,tabulka_kce_def,23,FALSE),VLOOKUP(Data!$W25,tabulka_panely_def,24,FALSE)) ->  | AS25: 0 | AU25: 0 | AV25: 0 | AX25: 0 | AY25: =IF(AND(W25>MAX(Konstrukce!A:A),ISNUMBER(W25)),1,0) -> 0
B26: = | C26: =IF(Data!$B26<MIN(Panely!$A$9:$A$28),VLOOKUP(Data!$B26,tabulka_kce_def,4,FALSE),VLOOKUP(Data!$B26,tabulka_panely_def,4,FALSE)) ->  | D26: =IF(Data!$B26<MIN(Panely!$A$9:$A$28),VLOOKUP(Data!$B26,tabulka_kce_def,23,FALSE),VLOOKUP(Data!$B26,tabulka_panely_def,24,FALSE)) ->  | E26: =IF(Data!$B26<MIN(Panely!$A$9:$A$28),VLOOKUP(Data!$B26,tabulka_kce_def,21,FALSE),VLOOKUP(Data!$B26,tabulka_panely_def,22,FALSE)) ->  | F26: =IF(Data!$B26<MIN(Panely!$A$9:$A$28),VLOOKUP(Data!$B26,tabulka_kce_def,26,FALSE),VLOOKUP(Data!$B26,tabulka_panely_def,31,FALSE)) ->  | G26: =IF(Data!$B26<MIN(Panely!$A$9:$A$28),VLOOKUP(Data!$B26,tabulka_kce_def,27,FALSE),VLOOKUP(Data!$B26,tabulka_panely_def,32,FALSE)) ->  | H26: =IF(VLOOKUP(Data!$B26,tabulka_kce_def,3,FALSE)="",Konstrukce!$G$1,IF(VLOOKUP(Data!$B26,tabulka_kce_def,3,FALSE)="z",Konstrukce!$G$2,VLOOKUP(Data!$B26,tabulka_kce_def,3,FALSE))) ->  | I26: =IF(Data!$B26<MIN(Panely!$A$9:$A$28),0,VLOOKUP(Data!$B26,tabulka_panely_def,25,FALSE)) ->  | J26: =IF(Data!$B26<MIN(Panely!$A$9:$A$28),VLOOKUP(Data!$B26,tabulka_kce_def,24,FALSE),VLOOKUP(Data!$B26,tabulka_panely_def,33,FALSE)) ->  | K26: =Konstrukce!$D$1 -> 15 | L26: =Konstrukce!$D$2 -> 15 | M26: =Konstrukce!$G$1 -> 0 | N26: =IF(Data!$B26<MIN(Panely!$A$9:$A$28),VLOOKUP(Data!$B26,tabulka_kce_def,59,FALSE),VLOOKUP(Data!$B26,tabulka_panely_def,63,FALSE)) ->  | O26: =IF(Data!$B26<MIN(Panely!$A$9:$A$28),VLOOKUP(Data!$B26,tabulka_kce_def,60,FALSE),VLOOKUP(Data!$B26,tabulka_panely_def,64,FALSE)) ->  | P26: =IF(Data!$B26<MIN(Panely!$A$9:$A$28),VLOOKUP(Data!$B26,tabulka_kce_def,61,FALSE),VLOOKUP(Data!$B26,tabulka_panely_def,65,FALSE)) ->  | Q26: =IF(Data!$B26<MIN(Panely!$A$9:$A$28),VLOOKUP(Data!$B26,tabulka_kce_def,25,FALSE),0) -> 0 | W26: = | X26: =IF(Data!$W26<MIN(Panely!$A$9:$A$28),VLOOKUP(Data!$W26,tabulka_kce_def,62,FALSE),VLOOKUP(Data!$W26,tabulka_panely_def,65,FALSE)) ->  | Y26: =IF(Data!$W26<MIN(Panely!$A$9:$A$28),VLOOKUP(Data!$W26,tabulka_kce_def,Y$1-20,FALSE),VLOOKUP(Data!$W26,tabulka_panely_def,Y$1-18,FALSE)) ->  | Z26: =IF(Data!$W26<MIN(Panely!$A$9:$A$28),VLOOKUP(Data!$W26,tabulka_kce_def,Z$1-20,FALSE),VLOOKUP(Data!$W26,tabulka_panely_def,Z$1-18,FALSE)) ->  | AA26: =IF(Data!$W26<MIN(Panely!$A$9:$A$28),VLOOKUP(Data!$W26,tabulka_kce_def,AA$1-20,FALSE),VLOOKUP(Data!$W26,tabulka_panely_def,AA$1-18,FALSE)) ->  | AB26: =IF(Data!$W26<MIN(Panely!$A$9:$A$28),VLOOKUP(Data!$W26,tabulka_kce_def,AB$1-20,FALSE),VLOOKUP(Data!$W26,tabulka_panely_def,AB$1-18,FALSE)) ->  | AC26: =IF(Data!$W26<MIN(Panely!$A$9:$A$28),VLOOKUP(Data!$W26,tabulka_kce_def,AC$1-20,FALSE),VLOOKUP(Data!$W26,tabulka_panely_def,AC$1-18,FALSE)) ->  | AD26: =IF(Data!$W26<MIN(Panely!$A$9:$A$28),VLOOKUP(Data!$W26,tabulka_kce_def,AD$1-20,FALSE),VLOOKUP(Data!$W26,tabulka_panely_def,AD$1-18,FALSE)) ->  | AE26: =IF(Data!$W26<MIN(Panely!$A$9:$A$28),VLOOKUP(Data!$W26,tabulka_kce_def,AE$1-20,FALSE),VLOOKUP(Data!$W26,tabulka_panely_def,AE$1-18,FALSE)) ->  | AF26: =IF(Data!$W26<MIN(Panely!$A$9:$A$28),VLOOKUP(Data!$W26,tabulka_kce_def,AF$1-20,FALSE),VLOOKUP(Data!$W26,tabulka_panely_def,AF$1-18,FALSE)) ->  | AG26: =IF(Data!$W26<MIN(Panely!$A$9:$A$28),VLOOKUP(Data!$W26,tabulka_kce_def,AG$1-20,FALSE),VLOOKUP(Data!$W26,tabulka_panely_def,AG$1-18,FALSE)) ->  | AH26: =IF(Data!$W26<MIN(Panely!$A$9:$A$28),VLOOKUP(Data!$W26,tabulka_kce_def,AH$1-20,FALSE),VLOOKUP(Data!$W26,tabulka_panely_def,AH$1-18,FALSE)) ->  | AI26: =IF(Data!$W26<MIN(Panely!$A$9:$A$28),VLOOKUP(Data!$W26,tabulka_kce_def,AI$1-20,FALSE),VLOOKUP(Data!$W26,tabulka_panely_def,AI$1-18,FALSE)) ->  | AJ26: =IF(Data!$W26<MIN(Panely!$A$9:$A$28),VLOOKUP(Data!$W26,tabulka_kce_def,AJ$1-20,FALSE),VLOOKUP(Data!$W26,tabulka_panely_def,AJ$1-18,FALSE)) ->  | AK26: =IF(Data!$W26<MIN(Panely!$A$9:$A$28),VLOOKUP(Data!$W26,tabulka_kce_def,AK$1-20,FALSE),VLOOKUP(Data!$W26,tabulka_panely_def,AK$1-18,FALSE)) ->  | AL26: =IF(Data!$W26<MIN(Panely!$A$9:$A$28),VLOOKUP(Data!$W26,tabulka_kce_def,AL$1-20,FALSE),VLOOKUP(Data!$W26,tabulka_panely_def,AL$1-18,FALSE)) ->  | AM26: =IF(Data!$W26<MIN(Panely!$A$9:$A$28),VLOOKUP(Data!$W26,tabulka_kce_def,AM$1-20,FALSE),VLOOKUP(Data!$W26,tabulka_panely_def,AM$1-18,FALSE)) ->  | AN26: 26 | AO26: =IF(Data!$W26<MIN(Panely!$A$9:$A$28),VLOOKUP(Data!$W26,tabulka_kce_def,63,FALSE),0) -> 0 | AP26: =IF(Data!$W26<MIN(Panely!$A$9:$A$28),VLOOKUP(Data!$W26,tabulka_kce_def,28,FALSE),1) -> 1 | AQ26: =IF(Data!$W26<MIN(Panely!$A$9:$A$28),VLOOKUP(Data!$W26,tabulka_kce_def,23,FALSE),VLOOKUP(Data!$W26,tabulka_panely_def,24,FALSE)) ->  | AS26: 0 | AU26: 0 | AV26: 0 | AX26: 0 | AY26: =IF(AND(W26>MAX(Konstrukce!A:A),ISNUMBER(W26)),1,0) -> 0
B27: = | C27: =IF(Data!$B27<MIN(Panely!$A$9:$A$28),VLOOKUP(Data!$B27,tabulka_kce_def,4,FALSE),VLOOKUP(Data!$B27,tabulka_panely_def,4,FALSE)) ->  | D27: =IF(Data!$B27<MIN(Panely!$A$9:$A$28),VLOOKUP(Data!$B27,tabulka_kce_def,23,FALSE),VLOOKUP(Data!$B27,tabulka_panely_def,24,FALSE)) ->  | E27: =IF(Data!$B27<MIN(Panely!$A$9:$A$28),VLOOKUP(Data!$B27,tabulka_kce_def,21,FALSE),VLOOKUP(Data!$B27,tabulka_panely_def,22,FALSE)) ->  | F27: =IF(Data!$B27<MIN(Panely!$A$9:$A$28),VLOOKUP(Data!$B27,tabulka_kce_def,26,FALSE),VLOOKUP(Data!$B27,tabulka_panely_def,31,FALSE)) ->  | G27: =IF(Data!$B27<MIN(Panely!$A$9:$A$28),VLOOKUP(Data!$B27,tabulka_kce_def,27,FALSE),VLOOKUP(Data!$B27,tabulka_panely_def,32,FALSE)) ->  | H27: =IF(VLOOKUP(Data!$B27,tabulka_kce_def,3,FALSE)="",Konstrukce!$G$1,IF(VLOOKUP(Data!$B27,tabulka_kce_def,3,FALSE)="z",Konstrukce!$G$2,VLOOKUP(Data!$B27,tabulka_kce_def,3,FALSE))) ->  | I27: =IF(Data!$B27<MIN(Panely!$A$9:$A$28),0,VLOOKUP(Data!$B27,tabulka_panely_def,25,FALSE)) ->  | J27: =IF(Data!$B27<MIN(Panely!$A$9:$A$28),VLOOKUP(Data!$B27,tabulka_kce_def,24,FALSE),VLOOKUP(Data!$B27,tabulka_panely_def,33,FALSE)) ->  | K27: =Konstrukce!$D$1 -> 15 | L27: =Konstrukce!$D$2 -> 15 | M27: =Konstrukce!$G$1 -> 0 | N27: =IF(Data!$B27<MIN(Panely!$A$9:$A$28),VLOOKUP(Data!$B27,tabulka_kce_def,59,FALSE),VLOOKUP(Data!$B27,tabulka_panely_def,63,FALSE)) ->  | O27: =IF(Data!$B27<MIN(Panely!$A$9:$A$28),VLOOKUP(Data!$B27,tabulka_kce_def,60,FALSE),VLOOKUP(Data!$B27,tabulka_panely_def,64,FALSE)) ->  | P27: =IF(Data!$B27<MIN(Panely!$A$9:$A$28),VLOOKUP(Data!$B27,tabulka_kce_def,61,FALSE),VLOOKUP(Data!$B27,tabulka_panely_def,65,FALSE)) ->  | Q27: =IF(Data!$B27<MIN(Panely!$A$9:$A$28),VLOOKUP(Data!$B27,tabulka_kce_def,25,FALSE),0) -> 0 | W27: = | X27: =IF(Data!$W27<MIN(Panely!$A$9:$A$28),VLOOKUP(Data!$W27,tabulka_kce_def,62,FALSE),VLOOKUP(Data!$W27,tabulka_panely_def,65,FALSE)) ->  | Y27: =IF(Data!$W27<MIN(Panely!$A$9:$A$28),VLOOKUP(Data!$W27,tabulka_kce_def,Y$1-20,FALSE),VLOOKUP(Data!$W27,tabulka_panely_def,Y$1-18,FALSE)) ->  | Z27: =IF(Data!$W27<MIN(Panely!$A$9:$A$28),VLOOKUP(Data!$W27,tabulka_kce_def,Z$1-20,FALSE),VLOOKUP(Data!$W27,tabulka_panely_def,Z$1-18,FALSE)) ->  | AA27: =IF(Data!$W27<MIN(Panely!$A$9:$A$28),VLOOKUP(Data!$W27,tabulka_kce_def,AA$1-20,FALSE),VLOOKUP(Data!$W27,tabulka_panely_def,AA$1-18,FALSE)) ->  | AB27: =IF(Data!$W27<MIN(Panely!$A$9:$A$28),VLOOKUP(Data!$W27,tabulka_kce_def,AB$1-20,FALSE),VLOOKUP(Data!$W27,tabulka_panely_def,AB$1-18,FALSE)) ->  | AC27: =IF(Data!$W27<MIN(Panely!$A$9:$A$28),VLOOKUP(Data!$W27,tabulka_kce_def,AC$1-20,FALSE),VLOOKUP(Data!$W27,tabulka_panely_def,AC$1-18,FALSE)) ->  | AD27: =IF(Data!$W27<MIN(Panely!$A$9:$A$28),VLOOKUP(Data!$W27,tabulka_kce_def,AD$1-20,FALSE),VLOOKUP(Data!$W27,tabulka_panely_def,AD$1-18,FALSE)) ->  | AE27: =IF(Data!$W27<MIN(Panely!$A$9:$A$28),VLOOKUP(Data!$W27,tabulka_kce_def,AE$1-20,FALSE),VLOOKUP(Data!$W27,tabulka_panely_def,AE$1-18,FALSE)) ->  | AF27: =IF(Data!$W27<MIN(Panely!$A$9:$A$28),VLOOKUP(Data!$W27,tabulka_kce_def,AF$1-20,FALSE),VLOOKUP(Data!$W27,tabulka_panely_def,AF$1-18,FALSE)) ->  | AG27: =IF(Data!$W27<MIN(Panely!$A$9:$A$28),VLOOKUP(Data!$W27,tabulka_kce_def,AG$1-20,FALSE),VLOOKUP(Data!$W27,tabulka_panely_def,AG$1-18,FALSE)) ->  | AH27: =IF(Data!$W27<MIN(Panely!$A$9:$A$28),VLOOKUP(Data!$W27,tabulka_kce_def,AH$1-20,FALSE),VLOOKUP(Data!$W27,tabulka_panely_def,AH$1-18,FALSE)) ->  | AI27: =IF(Data!$W27<MIN(Panely!$A$9:$A$28),VLOOKUP(Data!$W27,tabulka_kce_def,AI$1-20,FALSE),VLOOKUP(Data!$W27,tabulka_panely_def,AI$1-18,FALSE)) ->  | AJ27: =IF(Data!$W27<MIN(Panely!$A$9:$A$28),VLOOKUP(Data!$W27,tabulka_kce_def,AJ$1-20,FALSE),VLOOKUP(Data!$W27,tabulka_panely_def,AJ$1-18,FALSE)) ->  | AK27: =IF(Data!$W27<MIN(Panely!$A$9:$A$28),VLOOKUP(Data!$W27,tabulka_kce_def,AK$1-20,FALSE),VLOOKUP(Data!$W27,tabulka_panely_def,AK$1-18,FALSE)) ->  | AL27: =IF(Data!$W27<MIN(Panely!$A$9:$A$28),VLOOKUP(Data!$W27,tabulka_kce_def,AL$1-20,FALSE),VLOOKUP(Data!$W27,tabulka_panely_def,AL$1-18,FALSE)) ->  | AM27: =IF(Data!$W27<MIN(Panely!$A$9:$A$28),VLOOKUP(Data!$W27,tabulka_kce_def,AM$1-20,FALSE),VLOOKUP(Data!$W27,tabulka_panely_def,AM$1-18,FALSE)) ->  | AN27: 27 | AO27: =IF(Data!$W27<MIN(Panely!$A$9:$A$28),VLOOKUP(Data!$W27,tabulka_kce_def,63,FALSE),0) -> 0 | AP27: =IF(Data!$W27<MIN(Panely!$A$9:$A$28),VLOOKUP(Data!$W27,tabulka_kce_def,28,FALSE),1) -> 1 | AQ27: =IF(Data!$W27<MIN(Panely!$A$9:$A$28),VLOOKUP(Data!$W27,tabulka_kce_def,23,FALSE),VLOOKUP(Data!$W27,tabulka_panely_def,24,FALSE)) ->  | AS27: 0 | AU27: 0 | AV27: 0 | AX27: 0 | AY27: =IF(AND(W27>MAX(Konstrukce!A:A),ISNUMBER(W27)),1,0) -> 0
B28: = | C28: =IF(Data!$B28<MIN(Panely!$A$9:$A$28),VLOOKUP(Data!$B28,tabulka_kce_def,4,FALSE),VLOOKUP(Data!$B28,tabulka_panely_def,4,FALSE)) ->  | D28: =IF(Data!$B28<MIN(Panely!$A$9:$A$28),VLOOKUP(Data!$B28,tabulka_kce_def,23,FALSE),VLOOKUP(Data!$B28,tabulka_panely_def,24,FALSE)) ->  | E28: =IF(Data!$B28<MIN(Panely!$A$9:$A$28),VLOOKUP(Data!$B28,tabulka_kce_def,21,FALSE),VLOOKUP(Data!$B28,tabulka_panely_def,22,FALSE)) ->  | F28: =IF(Data!$B28<MIN(Panely!$A$9:$A$28),VLOOKUP(Data!$B28,tabulka_kce_def,26,FALSE),VLOOKUP(Data!$B28,tabulka_panely_def,31,FALSE)) ->  | G28: =IF(Data!$B28<MIN(Panely!$A$9:$A$28),VLOOKUP(Data!$B28,tabulka_kce_def,27,FALSE),VLOOKUP(Data!$B28,tabulka_panely_def,32,FALSE)) ->  | H28: =IF(VLOOKUP(Data!$B28,tabulka_kce_def,3,FALSE)="",Konstrukce!$G$1,IF(VLOOKUP(Data!$B28,tabulka_kce_def,3,FALSE)="z",Konstrukce!$G$2,VLOOKUP(Data!$B28,tabulka_kce_def,3,FALSE))) ->  | I28: =IF(Data!$B28<MIN(Panely!$A$9:$A$28),0,VLOOKUP(Data!$B28,tabulka_panely_def,25,FALSE)) ->  | J28: =IF(Data!$B28<MIN(Panely!$A$9:$A$28),VLOOKUP(Data!$B28,tabulka_kce_def,24,FALSE),VLOOKUP(Data!$B28,tabulka_panely_def,33,FALSE)) ->  | K28: =Konstrukce!$D$1 -> 15 | L28: =Konstrukce!$D$2 -> 15 | M28: =Konstrukce!$G$1 -> 0 | N28: =IF(Data!$B28<MIN(Panely!$A$9:$A$28),VLOOKUP(Data!$B28,tabulka_kce_def,59,FALSE),VLOOKUP(Data!$B28,tabulka_panely_def,63,FALSE)) ->  | O28: =IF(Data!$B28<MIN(Panely!$A$9:$A$28),VLOOKUP(Data!$B28,tabulka_kce_def,60,FALSE),VLOOKUP(Data!$B28,tabulka_panely_def,64,FALSE)) ->  | P28: =IF(Data!$B28<MIN(Panely!$A$9:$A$28),VLOOKUP(Data!$B28,tabulka_kce_def,61,FALSE),VLOOKUP(Data!$B28,tabulka_panely_def,65,FALSE)) ->  | Q28: =IF(Data!$B28<MIN(Panely!$A$9:$A$28),VLOOKUP(Data!$B28,tabulka_kce_def,25,FALSE),0) -> 0 | W28: = | X28: =IF(Data!$W28<MIN(Panely!$A$9:$A$28),VLOOKUP(Data!$W28,tabulka_kce_def,62,FALSE),VLOOKUP(Data!$W28,tabulka_panely_def,65,FALSE)) ->  | Y28: =IF(Data!$W28<MIN(Panely!$A$9:$A$28),VLOOKUP(Data!$W28,tabulka_kce_def,Y$1-20,FALSE),VLOOKUP(Data!$W28,tabulka_panely_def,Y$1-18,FALSE)) ->  | Z28: =IF(Data!$W28<MIN(Panely!$A$9:$A$28),VLOOKUP(Data!$W28,tabulka_kce_def,Z$1-20,FALSE),VLOOKUP(Data!$W28,tabulka_panely_def,Z$1-18,FALSE)) ->  | AA28: =IF(Data!$W28<MIN(Panely!$A$9:$A$28),VLOOKUP(Data!$W28,tabulka_kce_def,AA$1-20,FALSE),VLOOKUP(Data!$W28,tabulka_panely_def,AA$1-18,FALSE)) ->  | AB28: =IF(Data!$W28<MIN(Panely!$A$9:$A$28),VLOOKUP(Data!$W28,tabulka_kce_def,AB$1-20,FALSE),VLOOKUP(Data!$W28,tabulka_panely_def,AB$1-18,FALSE)) ->  | AC28: =IF(Data!$W28<MIN(Panely!$A$9:$A$28),VLOOKUP(Data!$W28,tabulka_kce_def,AC$1-20,FALSE),VLOOKUP(Data!$W28,tabulka_panely_def,AC$1-18,FALSE)) ->  | AD28: =IF(Data!$W28<MIN(Panely!$A$9:$A$28),VLOOKUP(Data!$W28,tabulka_kce_def,AD$1-20,FALSE),VLOOKUP(Data!$W28,tabulka_panely_def,AD$1-18,FALSE)) ->  | AE28: =IF(Data!$W28<MIN(Panely!$A$9:$A$28),VLOOKUP(Data!$W28,tabulka_kce_def,AE$1-20,FALSE),VLOOKUP(Data!$W28,tabulka_panely_def,AE$1-18,FALSE)) ->  | AF28: =IF(Data!$W28<MIN(Panely!$A$9:$A$28),VLOOKUP(Data!$W28,tabulka_kce_def,AF$1-20,FALSE),VLOOKUP(Data!$W28,tabulka_panely_def,AF$1-18,FALSE)) ->  | AG28: =IF(Data!$W28<MIN(Panely!$A$9:$A$28),VLOOKUP(Data!$W28,tabulka_kce_def,AG$1-20,FALSE),VLOOKUP(Data!$W28,tabulka_panely_def,AG$1-18,FALSE)) ->  | AH28: =IF(Data!$W28<MIN(Panely!$A$9:$A$28),VLOOKUP(Data!$W28,tabulka_kce_def,AH$1-20,FALSE),VLOOKUP(Data!$W28,tabulka_panely_def,AH$1-18,FALSE)) ->  | AI28: =IF(Data!$W28<MIN(Panely!$A$9:$A$28),VLOOKUP(Data!$W28,tabulka_kce_def,AI$1-20,FALSE),VLOOKUP(Data!$W28,tabulka_panely_def,AI$1-18,FALSE)) ->  | AJ28: =IF(Data!$W28<MIN(Panely!$A$9:$A$28),VLOOKUP(Data!$W28,tabulka_kce_def,AJ$1-20,FALSE),VLOOKUP(Data!$W28,tabulka_panely_def,AJ$1-18,FALSE)) ->  | AK28: =IF(Data!$W28<MIN(Panely!$A$9:$A$28),VLOOKUP(Data!$W28,tabulka_kce_def,AK$1-20,FALSE),VLOOKUP(Data!$W28,tabulka_panely_def,AK$1-18,FALSE)) ->  | AL28: =IF(Data!$W28<MIN(Panely!$A$9:$A$28),VLOOKUP(Data!$W28,tabulka_kce_def,AL$1-20,FALSE),VLOOKUP(Data!$W28,tabulka_panely_def,AL$1-18,FALSE)) ->  | AM28: =IF(Data!$W28<MIN(Panely!$A$9:$A$28),VLOOKUP(Data!$W28,tabulka_kce_def,AM$1-20,FALSE),VLOOKUP(Data!$W28,tabulka_panely_def,AM$1-18,FALSE)) ->  | AN28: 28 | AO28: =IF(Data!$W28<MIN(Panely!$A$9:$A$28),VLOOKUP(Data!$W28,tabulka_kce_def,63,FALSE),0) -> 0 | AP28: =IF(Data!$W28<MIN(Panely!$A$9:$A$28),VLOOKUP(Data!$W28,tabulka_kce_def,28,FALSE),1) -> 1 | AQ28: =IF(Data!$W28<MIN(Panely!$A$9:$A$28),VLOOKUP(Data!$W28,tabulka_kce_def,23,FALSE),VLOOKUP(Data!$W28,tabulka_panely_def,24,FALSE)) ->  | AS28: 0 | AU28: 0 | AV28: 0 | AX28: 0 | AY28: =IF(AND(W28>MAX(Konstrukce!A:A),ISNUMBER(W28)),1,0) -> 0
B29: = | C29: =IF(Data!$B29<MIN(Panely!$A$9:$A$28),VLOOKUP(Data!$B29,tabulka_kce_def,4,FALSE),VLOOKUP(Data!$B29,tabulka_panely_def,4,FALSE)) ->  | D29: =IF(Data!$B29<MIN(Panely!$A$9:$A$28),VLOOKUP(Data!$B29,tabulka_kce_def,23,FALSE),VLOOKUP(Data!$B29,tabulka_panely_def,24,FALSE)) ->  | E29: =IF(Data!$B29<MIN(Panely!$A$9:$A$28),VLOOKUP(Data!$B29,tabulka_kce_def,21,FALSE),VLOOKUP(Data!$B29,tabulka_panely_def,22,FALSE)) ->  | F29: =IF(Data!$B29<MIN(Panely!$A$9:$A$28),VLOOKUP(Data!$B29,tabulka_kce_def,26,FALSE),VLOOKUP(Data!$B29,tabulka_panely_def,31,FALSE)) ->  | G29: =IF(Data!$B29<MIN(Panely!$A$9:$A$28),VLOOKUP(Data!$B29,tabulka_kce_def,27,FALSE),VLOOKUP(Data!$B29,tabulka_panely_def,32,FALSE)) ->  | H29: =IF(VLOOKUP(Data!$B29,tabulka_kce_def,3,FALSE)="",Konstrukce!$G$1,IF(VLOOKUP(Data!$B29,tabulka_kce_def,3,FALSE)="z",Konstrukce!$G$2,VLOOKUP(Data!$B29,tabulka_kce_def,3,FALSE))) ->  | I29: =IF(Data!$B29<MIN(Panely!$A$9:$A$28),0,VLOOKUP(Data!$B29,tabulka_panely_def,25,FALSE)) ->  | J29: =IF(Data!$B29<MIN(Panely!$A$9:$A$28),VLOOKUP(Data!$B29,tabulka_kce_def,24,FALSE),VLOOKUP(Data!$B29,tabulka_panely_def,33,FALSE)) ->  | K29: =Konstrukce!$D$1 -> 15 | L29: =Konstrukce!$D$2 -> 15 | M29: =Konstrukce!$G$1 -> 0 | N29: =IF(Data!$B29<MIN(Panely!$A$9:$A$28),VLOOKUP(Data!$B29,tabulka_kce_def,59,FALSE),VLOOKUP(Data!$B29,tabulka_panely_def,63,FALSE)) ->  | O29: =IF(Data!$B29<MIN(Panely!$A$9:$A$28),VLOOKUP(Data!$B29,tabulka_kce_def,60,FALSE),VLOOKUP(Data!$B29,tabulka_panely_def,64,FALSE)) ->  | P29: =IF(Data!$B29<MIN(Panely!$A$9:$A$28),VLOOKUP(Data!$B29,tabulka_kce_def,61,FALSE),VLOOKUP(Data!$B29,tabulka_panely_def,65,FALSE)) ->  | Q29: =IF(Data!$B29<MIN(Panely!$A$9:$A$28),VLOOKUP(Data!$B29,tabulka_kce_def,25,FALSE),0) -> 0 | W29: = | X29: =IF(Data!$W29<MIN(Panely!$A$9:$A$28),VLOOKUP(Data!$W29,tabulka_kce_def,62,FALSE),VLOOKUP(Data!$W29,tabulka_panely_def,65,FALSE)) ->  | Y29: =IF(Data!$W29<MIN(Panely!$A$9:$A$28),VLOOKUP(Data!$W29,tabulka_kce_def,Y$1-20,FALSE),VLOOKUP(Data!$W29,tabulka_panely_def,Y$1-18,FALSE)) ->  | Z29: =IF(Data!$W29<MIN(Panely!$A$9:$A$28),VLOOKUP(Data!$W29,tabulka_kce_def,Z$1-20,FALSE),VLOOKUP(Data!$W29,tabulka_panely_def,Z$1-18,FALSE)) ->  | AA29: =IF(Data!$W29<MIN(Panely!$A$9:$A$28),VLOOKUP(Data!$W29,tabulka_kce_def,AA$1-20,FALSE),VLOOKUP(Data!$W29,tabulka_panely_def,AA$1-18,FALSE)) ->  | AB29: =IF(Data!$W29<MIN(Panely!$A$9:$A$28),VLOOKUP(Data!$W29,tabulka_kce_def,AB$1-20,FALSE),VLOOKUP(Data!$W29,tabulka_panely_def,AB$1-18,FALSE)) ->  | AC29: =IF(Data!$W29<MIN(Panely!$A$9:$A$28),VLOOKUP(Data!$W29,tabulka_kce_def,AC$1-20,FALSE),VLOOKUP(Data!$W29,tabulka_panely_def,AC$1-18,FALSE)) ->  | AD29: =IF(Data!$W29<MIN(Panely!$A$9:$A$28),VLOOKUP(Data!$W29,tabulka_kce_def,AD$1-20,FALSE),VLOOKUP(Data!$W29,tabulka_panely_def,AD$1-18,FALSE)) ->  | AE29: =IF(Data!$W29<MIN(Panely!$A$9:$A$28),VLOOKUP(Data!$W29,tabulka_kce_def,AE$1-20,FALSE),VLOOKUP(Data!$W29,tabulka_panely_def,AE$1-18,FALSE)) ->  | AF29: =IF(Data!$W29<MIN(Panely!$A$9:$A$28),VLOOKUP(Data!$W29,tabulka_kce_def,AF$1-20,FALSE),VLOOKUP(Data!$W29,tabulka_panely_def,AF$1-18,FALSE)) ->  | AG29: =IF(Data!$W29<MIN(Panely!$A$9:$A$28),VLOOKUP(Data!$W29,tabulka_kce_def,AG$1-20,FALSE),VLOOKUP(Data!$W29,tabulka_panely_def,AG$1-18,FALSE)) ->  | AH29: =IF(Data!$W29<MIN(Panely!$A$9:$A$28),VLOOKUP(Data!$W29,tabulka_kce_def,AH$1-20,FALSE),VLOOKUP(Data!$W29,tabulka_panely_def,AH$1-18,FALSE)) ->  | AI29: =IF(Data!$W29<MIN(Panely!$A$9:$A$28),VLOOKUP(Data!$W29,tabulka_kce_def,AI$1-20,FALSE),VLOOKUP(Data!$W29,tabulka_panely_def,AI$1-18,FALSE)) ->  | AJ29: =IF(Data!$W29<MIN(Panely!$A$9:$A$28),VLOOKUP(Data!$W29,tabulka_kce_def,AJ$1-20,FALSE),VLOOKUP(Data!$W29,tabulka_panely_def,AJ$1-18,FALSE)) ->  | AK29: =IF(Data!$W29<MIN(Panely!$A$9:$A$28),VLOOKUP(Data!$W29,tabulka_kce_def,AK$1-20,FALSE),VLOOKUP(Data!$W29,tabulka_panely_def,AK$1-18,FALSE)) ->  | AL29: =IF(Data!$W29<MIN(Panely!$A$9:$A$28),VLOOKUP(Data!$W29,tabulka_kce_def,AL$1-20,FALSE),VLOOKUP(Data!$W29,tabulka_panely_def,AL$1-18,FALSE)) ->  | AM29: =IF(Data!$W29<MIN(Panely!$A$9:$A$28),VLOOKUP(Data!$W29,tabulka_kce_def,AM$1-20,FALSE),VLOOKUP(Data!$W29,tabulka_panely_def,AM$1-18,FALSE)) ->  | AN29: 29 | AO29: =IF(Data!$W29<MIN(Panely!$A$9:$A$28),VLOOKUP(Data!$W29,tabulka_kce_def,63,FALSE),0) -> 0 | AP29: =IF(Data!$W29<MIN(Panely!$A$9:$A$28),VLOOKUP(Data!$W29,tabulka_kce_def,28,FALSE),1) -> 1 | AQ29: =IF(Data!$W29<MIN(Panely!$A$9:$A$28),VLOOKUP(Data!$W29,tabulka_kce_def,23,FALSE),VLOOKUP(Data!$W29,tabulka_panely_def,24,FALSE)) ->  | AS29: 0 | AU29: 0 | AV29: 0 | AX29: 0 | AY29: =IF(AND(W29>MAX(Konstrukce!A:A),ISNUMBER(W29)),1,0) -> 0
B30: = | C30: =IF(Data!$B30<MIN(Panely!$A$9:$A$28),VLOOKUP(Data!$B30,tabulka_kce_def,4,FALSE),VLOOKUP(Data!$B30,tabulka_panely_def,4,FALSE)) ->  | D30: =IF(Data!$B30<MIN(Panely!$A$9:$A$28),VLOOKUP(Data!$B30,tabulka_kce_def,23,FALSE),VLOOKUP(Data!$B30,tabulka_panely_def,24,FALSE)) ->  | E30: =IF(Data!$B30<MIN(Panely!$A$9:$A$28),VLOOKUP(Data!$B30,tabulka_kce_def,21,FALSE),VLOOKUP(Data!$B30,tabulka_panely_def,22,FALSE)) ->  | F30: =IF(Data!$B30<MIN(Panely!$A$9:$A$28),VLOOKUP(Data!$B30,tabulka_kce_def,26,FALSE),VLOOKUP(Data!$B30,tabulka_panely_def,31,FALSE)) ->  | G30: =IF(Data!$B30<MIN(Panely!$A$9:$A$28),VLOOKUP(Data!$B30,tabulka_kce_def,27,FALSE),VLOOKUP(Data!$B30,tabulka_panely_def,32,FALSE)) ->  | H30: =IF(VLOOKUP(Data!$B30,tabulka_kce_def,3,FALSE)="",Konstrukce!$G$1,IF(VLOOKUP(Data!$B30,tabulka_kce_def,3,FALSE)="z",Konstrukce!$G$2,VLOOKUP(Data!$B30,tabulka_kce_def,3,FALSE))) ->  | I30: =IF(Data!$B30<MIN(Panely!$A$9:$A$28),0,VLOOKUP(Data!$B30,tabulka_panely_def,25,FALSE)) ->  | J30: =IF(Data!$B30<MIN(Panely!$A$9:$A$28),VLOOKUP(Data!$B30,tabulka_kce_def,24,FALSE),VLOOKUP(Data!$B30,tabulka_panely_def,33,FALSE)) ->  | K30: =Konstrukce!$D$1 -> 15 | L30: =Konstrukce!$D$2 -> 15 | M30: =Konstrukce!$G$1 -> 0 | N30: =IF(Data!$B30<MIN(Panely!$A$9:$A$28),VLOOKUP(Data!$B30,tabulka_kce_def,59,FALSE),VLOOKUP(Data!$B30,tabulka_panely_def,63,FALSE)) ->  | O30: =IF(Data!$B30<MIN(Panely!$A$9:$A$28),VLOOKUP(Data!$B30,tabulka_kce_def,60,FALSE),VLOOKUP(Data!$B30,tabulka_panely_def,64,FALSE)) ->  | P30: =IF(Data!$B30<MIN(Panely!$A$9:$A$28),VLOOKUP(Data!$B30,tabulka_kce_def,61,FALSE),VLOOKUP(Data!$B30,tabulka_panely_def,65,FALSE)) ->  | Q30: =IF(Data!$B30<MIN(Panely!$A$9:$A$28),VLOOKUP(Data!$B30,tabulka_kce_def,25,FALSE),0) -> 0 | W30: = | X30: =IF(Data!$W30<MIN(Panely!$A$9:$A$28),VLOOKUP(Data!$W30,tabulka_kce_def,62,FALSE),VLOOKUP(Data!$W30,tabulka_panely_def,65,FALSE)) ->  | Y30: =IF(Data!$W30<MIN(Panely!$A$9:$A$28),VLOOKUP(Data!$W30,tabulka_kce_def,Y$1-20,FALSE),VLOOKUP(Data!$W30,tabulka_panely_def,Y$1-18,FALSE)) ->  | Z30: =IF(Data!$W30<MIN(Panely!$A$9:$A$28),VLOOKUP(Data!$W30,tabulka_kce_def,Z$1-20,FALSE),VLOOKUP(Data!$W30,tabulka_panely_def,Z$1-18,FALSE)) ->  | AA30: =IF(Data!$W30<MIN(Panely!$A$9:$A$28),VLOOKUP(Data!$W30,tabulka_kce_def,AA$1-20,FALSE),VLOOKUP(Data!$W30,tabulka_panely_def,AA$1-18,FALSE)) ->  | AB30: =IF(Data!$W30<MIN(Panely!$A$9:$A$28),VLOOKUP(Data!$W30,tabulka_kce_def,AB$1-20,FALSE),VLOOKUP(Data!$W30,tabulka_panely_def,AB$1-18,FALSE)) ->  | AC30: =IF(Data!$W30<MIN(Panely!$A$9:$A$28),VLOOKUP(Data!$W30,tabulka_kce_def,AC$1-20,FALSE),VLOOKUP(Data!$W30,tabulka_panely_def,AC$1-18,FALSE)) ->  | AD30: =IF(Data!$W30<MIN(Panely!$A$9:$A$28),VLOOKUP(Data!$W30,tabulka_kce_def,AD$1-20,FALSE),VLOOKUP(Data!$W30,tabulka_panely_def,AD$1-18,FALSE)) ->  | AE30: =IF(Data!$W30<MIN(Panely!$A$9:$A$28),VLOOKUP(Data!$W30,tabulka_kce_def,AE$1-20,FALSE),VLOOKUP(Data!$W30,tabulka_panely_def,AE$1-18,FALSE)) ->  | AF30: =IF(Data!$W30<MIN(Panely!$A$9:$A$28),VLOOKUP(Data!$W30,tabulka_kce_def,AF$1-20,FALSE),VLOOKUP(Data!$W30,tabulka_panely_def,AF$1-18,FALSE)) ->  | AG30: =IF(Data!$W30<MIN(Panely!$A$9:$A$28),VLOOKUP(Data!$W30,tabulka_kce_def,AG$1-20,FALSE),VLOOKUP(Data!$W30,tabulka_panely_def,AG$1-18,FALSE)) ->  | AH30: =IF(Data!$W30<MIN(Panely!$A$9:$A$28),VLOOKUP(Data!$W30,tabulka_kce_def,AH$1-20,FALSE),VLOOKUP(Data!$W30,tabulka_panely_def,AH$1-18,FALSE)) ->  | AI30: =IF(Data!$W30<MIN(Panely!$A$9:$A$28),VLOOKUP(Data!$W30,tabulka_kce_def,AI$1-20,FALSE),VLOOKUP(Data!$W30,tabulka_panely_def,AI$1-18,FALSE)) ->  | AJ30: =IF(Data!$W30<MIN(Panely!$A$9:$A$28),VLOOKUP(Data!$W30,tabulka_kce_def,AJ$1-20,FALSE),VLOOKUP(Data!$W30,tabulka_panely_def,AJ$1-18,FALSE)) ->  | AK30: =IF(Data!$W30<MIN(Panely!$A$9:$A$28),VLOOKUP(Data!$W30,tabulka_kce_def,AK$1-20,FALSE),VLOOKUP(Data!$W30,tabulka_panely_def,AK$1-18,FALSE)) ->  | AL30: =IF(Data!$W30<MIN(Panely!$A$9:$A$28),VLOOKUP(Data!$W30,tabulka_kce_def,AL$1-20,FALSE),VLOOKUP(Data!$W30,tabulka_panely_def,AL$1-18,FALSE)) ->  | AM30: =IF(Data!$W30<MIN(Panely!$A$9:$A$28),VLOOKUP(Data!$W30,tabulka_kce_def,AM$1-20,FALSE),VLOOKUP(Data!$W30,tabulka_panely_def,AM$1-18,FALSE)) ->  | AN30: 30 | AO30: =IF(Data!$W30<MIN(Panely!$A$9:$A$28),VLOOKUP(Data!$W30,tabulka_kce_def,63,FALSE),0) -> 0 | AP30: =IF(Data!$W30<MIN(Panely!$A$9:$A$28),VLOOKUP(Data!$W30,tabulka_kce_def,28,FALSE),1) -> 1 | AQ30: =IF(Data!$W30<MIN(Panely!$A$9:$A$28),VLOOKUP(Data!$W30,tabulka_kce_def,23,FALSE),VLOOKUP(Data!$W30,tabulka_panely_def,24,FALSE)) ->  | AS30: 0 | AU30: 0 | AV30: 0 | AX30: 0 | AY30: =IF(AND(W30>MAX(Konstrukce!A:A),ISNUMBER(W30)),1,0) -> 0
B31: = | C31: =IF(Data!$B31<MIN(Panely!$A$9:$A$28),VLOOKUP(Data!$B31,tabulka_kce_def,4,FALSE),VLOOKUP(Data!$B31,tabulka_panely_def,4,FALSE)) ->  | D31: =IF(Data!$B31<MIN(Panely!$A$9:$A$28),VLOOKUP(Data!$B31,tabulka_kce_def,23,FALSE),VLOOKUP(Data!$B31,tabulka_panely_def,24,FALSE)) ->  | E31: =IF(Data!$B31<MIN(Panely!$A$9:$A$28),VLOOKUP(Data!$B31,tabulka_kce_def,21,FALSE),VLOOKUP(Data!$B31,tabulka_panely_def,22,FALSE)) ->  | F31: =IF(Data!$B31<MIN(Panely!$A$9:$A$28),VLOOKUP(Data!$B31,tabulka_kce_def,26,FALSE),VLOOKUP(Data!$B31,tabulka_panely_def,31,FALSE)) ->  | G31: =IF(Data!$B31<MIN(Panely!$A$9:$A$28),VLOOKUP(Data!$B31,tabulka_kce_def,27,FALSE),VLOOKUP(Data!$B31,tabulka_panely_def,32,FALSE)) ->  | H31: =IF(VLOOKUP(Data!$B31,tabulka_kce_def,3,FALSE)="",Konstrukce!$G$1,IF(VLOOKUP(Data!$B31,tabulka_kce_def,3,FALSE)="z",Konstrukce!$G$2,VLOOKUP(Data!$B31,tabulka_kce_def,3,FALSE))) ->  | I31: =IF(Data!$B31<MIN(Panely!$A$9:$A$28),0,VLOOKUP(Data!$B31,tabulka_panely_def,25,FALSE)) ->  | J31: =IF(Data!$B31<MIN(Panely!$A$9:$A$28),VLOOKUP(Data!$B31,tabulka_kce_def,24,FALSE),VLOOKUP(Data!$B31,tabulka_panely_def,33,FALSE)) ->  | K31: =Konstrukce!$D$1 -> 15 | L31: =Konstrukce!$D$2 -> 15 | M31: =Konstrukce!$G$1 -> 0 | N31: =IF(Data!$B31<MIN(Panely!$A$9:$A$28),VLOOKUP(Data!$B31,tabulka_kce_def,59,FALSE),VLOOKUP(Data!$B31,tabulka_panely_def,63,FALSE)) ->  | O31: =IF(Data!$B31<MIN(Panely!$A$9:$A$28),VLOOKUP(Data!$B31,tabulka_kce_def,60,FALSE),VLOOKUP(Data!$B31,tabulka_panely_def,64,FALSE)) ->  | P31: =IF(Data!$B31<MIN(Panely!$A$9:$A$28),VLOOKUP(Data!$B31,tabulka_kce_def,61,FALSE),VLOOKUP(Data!$B31,tabulka_panely_def,65,FALSE)) ->  | Q31: =IF(Data!$B31<MIN(Panely!$A$9:$A$28),VLOOKUP(Data!$B31,tabulka_kce_def,25,FALSE),0) -> 0 | W31: = | X31: =IF(Data!$W31<MIN(Panely!$A$9:$A$28),VLOOKUP(Data!$W31,tabulka_kce_def,62,FALSE),VLOOKUP(Data!$W31,tabulka_panely_def,65,FALSE)) ->  | Y31: =IF(Data!$W31<MIN(Panely!$A$9:$A$28),VLOOKUP(Data!$W31,tabulka_kce_def,Y$1-20,FALSE),VLOOKUP(Data!$W31,tabulka_panely_def,Y$1-18,FALSE)) ->  | Z31: =IF(Data!$W31<MIN(Panely!$A$9:$A$28),VLOOKUP(Data!$W31,tabulka_kce_def,Z$1-20,FALSE),VLOOKUP(Data!$W31,tabulka_panely_def,Z$1-18,FALSE)) ->  | AA31: =IF(Data!$W31<MIN(Panely!$A$9:$A$28),VLOOKUP(Data!$W31,tabulka_kce_def,AA$1-20,FALSE),VLOOKUP(Data!$W31,tabulka_panely_def,AA$1-18,FALSE)) ->  | AB31: =IF(Data!$W31<MIN(Panely!$A$9:$A$28),VLOOKUP(Data!$W31,tabulka_kce_def,AB$1-20,FALSE),VLOOKUP(Data!$W31,tabulka_panely_def,AB$1-18,FALSE)) ->  | AC31: =IF(Data!$W31<MIN(Panely!$A$9:$A$28),VLOOKUP(Data!$W31,tabulka_kce_def,AC$1-20,FALSE),VLOOKUP(Data!$W31,tabulka_panely_def,AC$1-18,FALSE)) ->  | AD31: =IF(Data!$W31<MIN(Panely!$A$9:$A$28),VLOOKUP(Data!$W31,tabulka_kce_def,AD$1-20,FALSE),VLOOKUP(Data!$W31,tabulka_panely_def,AD$1-18,FALSE)) ->  | AE31: =IF(Data!$W31<MIN(Panely!$A$9:$A$28),VLOOKUP(Data!$W31,tabulka_kce_def,AE$1-20,FALSE),VLOOKUP(Data!$W31,tabulka_panely_def,AE$1-18,FALSE)) ->  | AF31: =IF(Data!$W31<MIN(Panely!$A$9:$A$28),VLOOKUP(Data!$W31,tabulka_kce_def,AF$1-20,FALSE),VLOOKUP(Data!$W31,tabulka_panely_def,AF$1-18,FALSE)) ->  | AG31: =IF(Data!$W31<MIN(Panely!$A$9:$A$28),VLOOKUP(Data!$W31,tabulka_kce_def,AG$1-20,FALSE),VLOOKUP(Data!$W31,tabulka_panely_def,AG$1-18,FALSE)) ->  | AH31: =IF(Data!$W31<MIN(Panely!$A$9:$A$28),VLOOKUP(Data!$W31,tabulka_kce_def,AH$1-20,FALSE),VLOOKUP(Data!$W31,tabulka_panely_def,AH$1-18,FALSE)) ->  | AI31: =IF(Data!$W31<MIN(Panely!$A$9:$A$28),VLOOKUP(Data!$W31,tabulka_kce_def,AI$1-20,FALSE),VLOOKUP(Data!$W31,tabulka_panely_def,AI$1-18,FALSE)) ->  | AJ31: =IF(Data!$W31<MIN(Panely!$A$9:$A$28),VLOOKUP(Data!$W31,tabulka_kce_def,AJ$1-20,FALSE),VLOOKUP(Data!$W31,tabulka_panely_def,AJ$1-18,FALSE)) ->  | AK31: =IF(Data!$W31<MIN(Panely!$A$9:$A$28),VLOOKUP(Data!$W31,tabulka_kce_def,AK$1-20,FALSE),VLOOKUP(Data!$W31,tabulka_panely_def,AK$1-18,FALSE)) ->  | AL31: =IF(Data!$W31<MIN(Panely!$A$9:$A$28),VLOOKUP(Data!$W31,tabulka_kce_def,AL$1-20,FALSE),VLOOKUP(Data!$W31,tabulka_panely_def,AL$1-18,FALSE)) ->  | AM31: =IF(Data!$W31<MIN(Panely!$A$9:$A$28),VLOOKUP(Data!$W31,tabulka_kce_def,AM$1-20,FALSE),VLOOKUP(Data!$W31,tabulka_panely_def,AM$1-18,FALSE)) ->  | AN31: 31 | AO31: =IF(Data!$W31<MIN(Panely!$A$9:$A$28),VLOOKUP(Data!$W31,tabulka_kce_def,63,FALSE),0) -> 0 | AP31: =IF(Data!$W31<MIN(Panely!$A$9:$A$28),VLOOKUP(Data!$W31,tabulka_kce_def,28,FALSE),1) -> 1 | AQ31: =IF(Data!$W31<MIN(Panely!$A$9:$A$28),VLOOKUP(Data!$W31,tabulka_kce_def,23,FALSE),VLOOKUP(Data!$W31,tabulka_panely_def,24,FALSE)) ->  | AS31: 0 | AU31: 0 | AV31: 0 | AX31: 0 | AY31: =IF(AND(W31>MAX(Konstrukce!A:A),ISNUMBER(W31)),1,0) -> 0
B32: = | C32: =IF(Data!$B32<MIN(Panely!$A$9:$A$28),VLOOKUP(Data!$B32,tabulka_kce_def,4,FALSE),VLOOKUP(Data!$B32,tabulka_panely_def,4,FALSE)) ->  | D32: =IF(Data!$B32<MIN(Panely!$A$9:$A$28),VLOOKUP(Data!$B32,tabulka_kce_def,23,FALSE),VLOOKUP(Data!$B32,tabulka_panely_def,24,FALSE)) ->  | E32: =IF(Data!$B32<MIN(Panely!$A$9:$A$28),VLOOKUP(Data!$B32,tabulka_kce_def,21,FALSE),VLOOKUP(Data!$B32,tabulka_panely_def,22,FALSE)) ->  | F32: =IF(Data!$B32<MIN(Panely!$A$9:$A$28),VLOOKUP(Data!$B32,tabulka_kce_def,26,FALSE),VLOOKUP(Data!$B32,tabulka_panely_def,31,FALSE)) ->  | G32: =IF(Data!$B32<MIN(Panely!$A$9:$A$28),VLOOKUP(Data!$B32,tabulka_kce_def,27,FALSE),VLOOKUP(Data!$B32,tabulka_panely_def,32,FALSE)) ->  | H32: =IF(VLOOKUP(Data!$B32,tabulka_kce_def,3,FALSE)="",Konstrukce!$G$1,IF(VLOOKUP(Data!$B32,tabulka_kce_def,3,FALSE)="z",Konstrukce!$G$2,VLOOKUP(Data!$B32,tabulka_kce_def,3,FALSE))) ->  | I32: =IF(Data!$B32<MIN(Panely!$A$9:$A$28),0,VLOOKUP(Data!$B32,tabulka_panely_def,25,FALSE)) ->  | J32: =IF(Data!$B32<MIN(Panely!$A$9:$A$28),VLOOKUP(Data!$B32,tabulka_kce_def,24,FALSE),VLOOKUP(Data!$B32,tabulka_panely_def,33,FALSE)) ->  | K32: =Konstrukce!$D$1 -> 15 | L32: =Konstrukce!$D$2 -> 15 | M32: =Konstrukce!$G$1 -> 0 | N32: =IF(Data!$B32<MIN(Panely!$A$9:$A$28),VLOOKUP(Data!$B32,tabulka_kce_def,59,FALSE),VLOOKUP(Data!$B32,tabulka_panely_def,63,FALSE)) ->  | O32: =IF(Data!$B32<MIN(Panely!$A$9:$A$28),VLOOKUP(Data!$B32,tabulka_kce_def,60,FALSE),VLOOKUP(Data!$B32,tabulka_panely_def,64,FALSE)) ->  | P32: =IF(Data!$B32<MIN(Panely!$A$9:$A$28),VLOOKUP(Data!$B32,tabulka_kce_def,61,FALSE),VLOOKUP(Data!$B32,tabulka_panely_def,65,FALSE)) ->  | Q32: =IF(Data!$B32<MIN(Panely!$A$9:$A$28),VLOOKUP(Data!$B32,tabulka_kce_def,25,FALSE),0) -> 0 | W32: = | X32: =IF(Data!$W32<MIN(Panely!$A$9:$A$28),VLOOKUP(Data!$W32,tabulka_kce_def,62,FALSE),VLOOKUP(Data!$W32,tabulka_panely_def,65,FALSE)) ->  | Y32: =IF(Data!$W32<MIN(Panely!$A$9:$A$28),VLOOKUP(Data!$W32,tabulka_kce_def,Y$1-20,FALSE),VLOOKUP(Data!$W32,tabulka_panely_def,Y$1-18,FALSE)) ->  | Z32: =IF(Data!$W32<MIN(Panely!$A$9:$A$28),VLOOKUP(Data!$W32,tabulka_kce_def,Z$1-20,FALSE),VLOOKUP(Data!$W32,tabulka_panely_def,Z$1-18,FALSE)) ->  | AA32: =IF(Data!$W32<MIN(Panely!$A$9:$A$28),VLOOKUP(Data!$W32,tabulka_kce_def,AA$1-20,FALSE),VLOOKUP(Data!$W32,tabulka_panely_def,AA$1-18,FALSE)) ->  | AB32: =IF(Data!$W32<MIN(Panely!$A$9:$A$28),VLOOKUP(Data!$W32,tabulka_kce_def,AB$1-20,FALSE),VLOOKUP(Data!$W32,tabulka_panely_def,AB$1-18,FALSE)) ->  | AC32: =IF(Data!$W32<MIN(Panely!$A$9:$A$28),VLOOKUP(Data!$W32,tabulka_kce_def,AC$1-20,FALSE),VLOOKUP(Data!$W32,tabulka_panely_def,AC$1-18,FALSE)) ->  | AD32: =IF(Data!$W32<MIN(Panely!$A$9:$A$28),VLOOKUP(Data!$W32,tabulka_kce_def,AD$1-20,FALSE),VLOOKUP(Data!$W32,tabulka_panely_def,AD$1-18,FALSE)) ->  | AE32: =IF(Data!$W32<MIN(Panely!$A$9:$A$28),VLOOKUP(Data!$W32,tabulka_kce_def,AE$1-20,FALSE),VLOOKUP(Data!$W32,tabulka_panely_def,AE$1-18,FALSE)) ->  | AF32: =IF(Data!$W32<MIN(Panely!$A$9:$A$28),VLOOKUP(Data!$W32,tabulka_kce_def,AF$1-20,FALSE),VLOOKUP(Data!$W32,tabulka_panely_def,AF$1-18,FALSE)) ->  | AG32: =IF(Data!$W32<MIN(Panely!$A$9:$A$28),VLOOKUP(Data!$W32,tabulka_kce_def,AG$1-20,FALSE),VLOOKUP(Data!$W32,tabulka_panely_def,AG$1-18,FALSE)) ->  | AH32: =IF(Data!$W32<MIN(Panely!$A$9:$A$28),VLOOKUP(Data!$W32,tabulka_kce_def,AH$1-20,FALSE),VLOOKUP(Data!$W32,tabulka_panely_def,AH$1-18,FALSE)) ->  | AI32: =IF(Data!$W32<MIN(Panely!$A$9:$A$28),VLOOKUP(Data!$W32,tabulka_kce_def,AI$1-20,FALSE),VLOOKUP(Data!$W32,tabulka_panely_def,AI$1-18,FALSE)) ->  | AJ32: =IF(Data!$W32<MIN(Panely!$A$9:$A$28),VLOOKUP(Data!$W32,tabulka_kce_def,AJ$1-20,FALSE),VLOOKUP(Data!$W32,tabulka_panely_def,AJ$1-18,FALSE)) ->  | AK32: =IF(Data!$W32<MIN(Panely!$A$9:$A$28),VLOOKUP(Data!$W32,tabulka_kce_def,AK$1-20,FALSE),VLOOKUP(Data!$W32,tabulka_panely_def,AK$1-18,FALSE)) ->  | AL32: =IF(Data!$W32<MIN(Panely!$A$9:$A$28),VLOOKUP(Data!$W32,tabulka_kce_def,AL$1-20,FALSE),VLOOKUP(Data!$W32,tabulka_panely_def,AL$1-18,FALSE)) ->  | AM32: =IF(Data!$W32<MIN(Panely!$A$9:$A$28),VLOOKUP(Data!$W32,tabulka_kce_def,AM$1-20,FALSE),VLOOKUP(Data!$W32,tabulka_panely_def,AM$1-18,FALSE)) ->  | AN32: 32 | AO32: =IF(Data!$W32<MIN(Panely!$A$9:$A$28),VLOOKUP(Data!$W32,tabulka_kce_def,63,FALSE),0) -> 0 | AP32: =IF(Data!$W32<MIN(Panely!$A$9:$A$28),VLOOKUP(Data!$W32,tabulka_kce_def,28,FALSE),1) -> 1 | AQ32: =IF(Data!$W32<MIN(Panely!$A$9:$A$28),VLOOKUP(Data!$W32,tabulka_kce_def,23,FALSE),VLOOKUP(Data!$W32,tabulka_panely_def,24,FALSE)) ->  | AS32: 0 | AU32: 0 | AV32: 0 | AX32: 0 | AY32: =IF(AND(W32>MAX(Konstrukce!A:A),ISNUMBER(W32)),1,0) -> 0
B33: = | C33: =IF(Data!$B33<MIN(Panely!$A$9:$A$28),VLOOKUP(Data!$B33,tabulka_kce_def,4,FALSE),VLOOKUP(Data!$B33,tabulka_panely_def,4,FALSE)) ->  | D33: =IF(Data!$B33<MIN(Panely!$A$9:$A$28),VLOOKUP(Data!$B33,tabulka_kce_def,23,FALSE),VLOOKUP(Data!$B33,tabulka_panely_def,24,FALSE)) ->  | E33: =IF(Data!$B33<MIN(Panely!$A$9:$A$28),VLOOKUP(Data!$B33,tabulka_kce_def,21,FALSE),VLOOKUP(Data!$B33,tabulka_panely_def,22,FALSE)) ->  | F33: =IF(Data!$B33<MIN(Panely!$A$9:$A$28),VLOOKUP(Data!$B33,tabulka_kce_def,26,FALSE),VLOOKUP(Data!$B33,tabulka_panely_def,31,FALSE)) ->  | G33: =IF(Data!$B33<MIN(Panely!$A$9:$A$28),VLOOKUP(Data!$B33,tabulka_kce_def,27,FALSE),VLOOKUP(Data!$B33,tabulka_panely_def,32,FALSE)) ->  | H33: =IF(VLOOKUP(Data!$B33,tabulka_kce_def,3,FALSE)="",Konstrukce!$G$1,IF(VLOOKUP(Data!$B33,tabulka_kce_def,3,FALSE)="z",Konstrukce!$G$2,VLOOKUP(Data!$B33,tabulka_kce_def,3,FALSE))) ->  | I33: =IF(Data!$B33<MIN(Panely!$A$9:$A$28),0,VLOOKUP(Data!$B33,tabulka_panely_def,25,FALSE)) ->  | J33: =IF(Data!$B33<MIN(Panely!$A$9:$A$28),VLOOKUP(Data!$B33,tabulka_kce_def,24,FALSE),VLOOKUP(Data!$B33,tabulka_panely_def,33,FALSE)) ->  | K33: =Konstrukce!$D$1 -> 15 | L33: =Konstrukce!$D$2 -> 15 | M33: =Konstrukce!$G$1 -> 0 | N33: =IF(Data!$B33<MIN(Panely!$A$9:$A$28),VLOOKUP(Data!$B33,tabulka_kce_def,59,FALSE),VLOOKUP(Data!$B33,tabulka_panely_def,63,FALSE)) ->  | O33: =IF(Data!$B33<MIN(Panely!$A$9:$A$28),VLOOKUP(Data!$B33,tabulka_kce_def,60,FALSE),VLOOKUP(Data!$B33,tabulka_panely_def,64,FALSE)) ->  | P33: =IF(Data!$B33<MIN(Panely!$A$9:$A$28),VLOOKUP(Data!$B33,tabulka_kce_def,61,FALSE),VLOOKUP(Data!$B33,tabulka_panely_def,65,FALSE)) ->  | Q33: =IF(Data!$B33<MIN(Panely!$A$9:$A$28),VLOOKUP(Data!$B33,tabulka_kce_def,25,FALSE),0) -> 0 | W33: = | X33: =IF(Data!$W33<MIN(Panely!$A$9:$A$28),VLOOKUP(Data!$W33,tabulka_kce_def,62,FALSE),VLOOKUP(Data!$W33,tabulka_panely_def,65,FALSE)) ->  | Y33: =IF(Data!$W33<MIN(Panely!$A$9:$A$28),VLOOKUP(Data!$W33,tabulka_kce_def,Y$1-20,FALSE),VLOOKUP(Data!$W33,tabulka_panely_def,Y$1-18,FALSE)) ->  | Z33: =IF(Data!$W33<MIN(Panely!$A$9:$A$28),VLOOKUP(Data!$W33,tabulka_kce_def,Z$1-20,FALSE),VLOOKUP(Data!$W33,tabulka_panely_def,Z$1-18,FALSE)) ->  | AA33: =IF(Data!$W33<MIN(Panely!$A$9:$A$28),VLOOKUP(Data!$W33,tabulka_kce_def,AA$1-20,FALSE),VLOOKUP(Data!$W33,tabulka_panely_def,AA$1-18,FALSE)) ->  | AB33: =IF(Data!$W33<MIN(Panely!$A$9:$A$28),VLOOKUP(Data!$W33,tabulka_kce_def,AB$1-20,FALSE),VLOOKUP(Data!$W33,tabulka_panely_def,AB$1-18,FALSE)) ->  | AC33: =IF(Data!$W33<MIN(Panely!$A$9:$A$28),VLOOKUP(Data!$W33,tabulka_kce_def,AC$1-20,FALSE),VLOOKUP(Data!$W33,tabulka_panely_def,AC$1-18,FALSE)) ->  | AD33: =IF(Data!$W33<MIN(Panely!$A$9:$A$28),VLOOKUP(Data!$W33,tabulka_kce_def,AD$1-20,FALSE),VLOOKUP(Data!$W33,tabulka_panely_def,AD$1-18,FALSE)) ->  | AE33: =IF(Data!$W33<MIN(Panely!$A$9:$A$28),VLOOKUP(Data!$W33,tabulka_kce_def,AE$1-20,FALSE),VLOOKUP(Data!$W33,tabulka_panely_def,AE$1-18,FALSE)) ->  | AF33: =IF(Data!$W33<MIN(Panely!$A$9:$A$28),VLOOKUP(Data!$W33,tabulka_kce_def,AF$1-20,FALSE),VLOOKUP(Data!$W33,tabulka_panely_def,AF$1-18,FALSE)) ->  | AG33: =IF(Data!$W33<MIN(Panely!$A$9:$A$28),VLOOKUP(Data!$W33,tabulka_kce_def,AG$1-20,FALSE),VLOOKUP(Data!$W33,tabulka_panely_def,AG$1-18,FALSE)) ->  | AH33: =IF(Data!$W33<MIN(Panely!$A$9:$A$28),VLOOKUP(Data!$W33,tabulka_kce_def,AH$1-20,FALSE),VLOOKUP(Data!$W33,tabulka_panely_def,AH$1-18,FALSE)) ->  | AI33: =IF(Data!$W33<MIN(Panely!$A$9:$A$28),VLOOKUP(Data!$W33,tabulka_kce_def,AI$1-20,FALSE),VLOOKUP(Data!$W33,tabulka_panely_def,AI$1-18,FALSE)) ->  | AJ33: =IF(Data!$W33<MIN(Panely!$A$9:$A$28),VLOOKUP(Data!$W33,tabulka_kce_def,AJ$1-20,FALSE),VLOOKUP(Data!$W33,tabulka_panely_def,AJ$1-18,FALSE)) ->  | AK33: =IF(Data!$W33<MIN(Panely!$A$9:$A$28),VLOOKUP(Data!$W33,tabulka_kce_def,AK$1-20,FALSE),VLOOKUP(Data!$W33,tabulka_panely_def,AK$1-18,FALSE)) ->  | AL33: =IF(Data!$W33<MIN(Panely!$A$9:$A$28),VLOOKUP(Data!$W33,tabulka_kce_def,AL$1-20,FALSE),VLOOKUP(Data!$W33,tabulka_panely_def,AL$1-18,FALSE)) ->  | AM33: =IF(Data!$W33<MIN(Panely!$A$9:$A$28),VLOOKUP(Data!$W33,tabulka_kce_def,AM$1-20,FALSE),VLOOKUP(Data!$W33,tabulka_panely_def,AM$1-18,FALSE)) ->  | AN33: 33 | AO33: =IF(Data!$W33<MIN(Panely!$A$9:$A$28),VLOOKUP(Data!$W33,tabulka_kce_def,63,FALSE),0) -> 0 | AP33: =IF(Data!$W33<MIN(Panely!$A$9:$A$28),VLOOKUP(Data!$W33,tabulka_kce_def,28,FALSE),1) -> 1 | AQ33: =IF(Data!$W33<MIN(Panely!$A$9:$A$28),VLOOKUP(Data!$W33,tabulka_kce_def,23,FALSE),VLOOKUP(Data!$W33,tabulka_panely_def,24,FALSE)) ->  | AS33: 0 | AU33: 0 | AV33: 0 | AX33: 0 | AY33: =IF(AND(W33>MAX(Konstrukce!A:A),ISNUMBER(W33)),1,0) -> 0
B34: = | C34: =IF(Data!$B34<MIN(Panely!$A$9:$A$28),VLOOKUP(Data!$B34,tabulka_kce_def,4,FALSE),VLOOKUP(Data!$B34,tabulka_panely_def,4,FALSE)) ->  | D34: =IF(Data!$B34<MIN(Panely!$A$9:$A$28),VLOOKUP(Data!$B34,tabulka_kce_def,23,FALSE),VLOOKUP(Data!$B34,tabulka_panely_def,24,FALSE)) ->  | E34: =IF(Data!$B34<MIN(Panely!$A$9:$A$28),VLOOKUP(Data!$B34,tabulka_kce_def,21,FALSE),VLOOKUP(Data!$B34,tabulka_panely_def,22,FALSE)) ->  | F34: =IF(Data!$B34<MIN(Panely!$A$9:$A$28),VLOOKUP(Data!$B34,tabulka_kce_def,26,FALSE),VLOOKUP(Data!$B34,tabulka_panely_def,31,FALSE)) ->  | G34: =IF(Data!$B34<MIN(Panely!$A$9:$A$28),VLOOKUP(Data!$B34,tabulka_kce_def,27,FALSE),VLOOKUP(Data!$B34,tabulka_panely_def,32,FALSE)) ->  | H34: =IF(VLOOKUP(Data!$B34,tabulka_kce_def,3,FALSE)="",Konstrukce!$G$1,IF(VLOOKUP(Data!$B34,tabulka_kce_def,3,FALSE)="z",Konstrukce!$G$2,VLOOKUP(Data!$B34,tabulka_kce_def,3,FALSE))) ->  | I34: =IF(Data!$B34<MIN(Panely!$A$9:$A$28),0,VLOOKUP(Data!$B34,tabulka_panely_def,25,FALSE)) ->  | J34: =IF(Data!$B34<MIN(Panely!$A$9:$A$28),VLOOKUP(Data!$B34,tabulka_kce_def,24,FALSE),VLOOKUP(Data!$B34,tabulka_panely_def,33,FALSE)) ->  | K34: =Konstrukce!$D$1 -> 15 | L34: =Konstrukce!$D$2 -> 15 | M34: =Konstrukce!$G$1 -> 0 | N34: =IF(Data!$B34<MIN(Panely!$A$9:$A$28),VLOOKUP(Data!$B34,tabulka_kce_def,59,FALSE),VLOOKUP(Data!$B34,tabulka_panely_def,63,FALSE)) ->  | O34: =IF(Data!$B34<MIN(Panely!$A$9:$A$28),VLOOKUP(Data!$B34,tabulka_kce_def,60,FALSE),VLOOKUP(Data!$B34,tabulka_panely_def,64,FALSE)) ->  | P34: =IF(Data!$B34<MIN(Panely!$A$9:$A$28),VLOOKUP(Data!$B34,tabulka_kce_def,61,FALSE),VLOOKUP(Data!$B34,tabulka_panely_def,65,FALSE)) ->  | Q34: =IF(Data!$B34<MIN(Panely!$A$9:$A$28),VLOOKUP(Data!$B34,tabulka_kce_def,25,FALSE),0) -> 0 | W34: = | X34: =IF(Data!$W34<MIN(Panely!$A$9:$A$28),VLOOKUP(Data!$W34,tabulka_kce_def,62,FALSE),VLOOKUP(Data!$W34,tabulka_panely_def,65,FALSE)) ->  | Y34: =IF(Data!$W34<MIN(Panely!$A$9:$A$28),VLOOKUP(Data!$W34,tabulka_kce_def,Y$1-20,FALSE),VLOOKUP(Data!$W34,tabulka_panely_def,Y$1-18,FALSE)) ->  | Z34: =IF(Data!$W34<MIN(Panely!$A$9:$A$28),VLOOKUP(Data!$W34,tabulka_kce_def,Z$1-20,FALSE),VLOOKUP(Data!$W34,tabulka_panely_def,Z$1-18,FALSE)) ->  | AA34: =IF(Data!$W34<MIN(Panely!$A$9:$A$28),VLOOKUP(Data!$W34,tabulka_kce_def,AA$1-20,FALSE),VLOOKUP(Data!$W34,tabulka_panely_def,AA$1-18,FALSE)) ->  | AB34: =IF(Data!$W34<MIN(Panely!$A$9:$A$28),VLOOKUP(Data!$W34,tabulka_kce_def,AB$1-20,FALSE),VLOOKUP(Data!$W34,tabulka_panely_def,AB$1-18,FALSE)) ->  | AC34: =IF(Data!$W34<MIN(Panely!$A$9:$A$28),VLOOKUP(Data!$W34,tabulka_kce_def,AC$1-20,FALSE),VLOOKUP(Data!$W34,tabulka_panely_def,AC$1-18,FALSE)) ->  | AD34: =IF(Data!$W34<MIN(Panely!$A$9:$A$28),VLOOKUP(Data!$W34,tabulka_kce_def,AD$1-20,FALSE),VLOOKUP(Data!$W34,tabulka_panely_def,AD$1-18,FALSE)) ->  | AE34: =IF(Data!$W34<MIN(Panely!$A$9:$A$28),VLOOKUP(Data!$W34,tabulka_kce_def,AE$1-20,FALSE),VLOOKUP(Data!$W34,tabulka_panely_def,AE$1-18,FALSE)) ->  | AF34: =IF(Data!$W34<MIN(Panely!$A$9:$A$28),VLOOKUP(Data!$W34,tabulka_kce_def,AF$1-20,FALSE),VLOOKUP(Data!$W34,tabulka_panely_def,AF$1-18,FALSE)) ->  | AG34: =IF(Data!$W34<MIN(Panely!$A$9:$A$28),VLOOKUP(Data!$W34,tabulka_kce_def,AG$1-20,FALSE),VLOOKUP(Data!$W34,tabulka_panely_def,AG$1-18,FALSE)) ->  | AH34: =IF(Data!$W34<MIN(Panely!$A$9:$A$28),VLOOKUP(Data!$W34,tabulka_kce_def,AH$1-20,FALSE),VLOOKUP(Data!$W34,tabulka_panely_def,AH$1-18,FALSE)) ->  | AI34: =IF(Data!$W34<MIN(Panely!$A$9:$A$28),VLOOKUP(Data!$W34,tabulka_kce_def,AI$1-20,FALSE),VLOOKUP(Data!$W34,tabulka_panely_def,AI$1-18,FALSE)) ->  | AJ34: =IF(Data!$W34<MIN(Panely!$A$9:$A$28),VLOOKUP(Data!$W34,tabulka_kce_def,AJ$1-20,FALSE),VLOOKUP(Data!$W34,tabulka_panely_def,AJ$1-18,FALSE)) ->  | AK34: =IF(Data!$W34<MIN(Panely!$A$9:$A$28),VLOOKUP(Data!$W34,tabulka_kce_def,AK$1-20,FALSE),VLOOKUP(Data!$W34,tabulka_panely_def,AK$1-18,FALSE)) ->  | AL34: =IF(Data!$W34<MIN(Panely!$A$9:$A$28),VLOOKUP(Data!$W34,tabulka_kce_def,AL$1-20,FALSE),VLOOKUP(Data!$W34,tabulka_panely_def,AL$1-18,FALSE)) ->  | AM34: =IF(Data!$W34<MIN(Panely!$A$9:$A$28),VLOOKUP(Data!$W34,tabulka_kce_def,AM$1-20,FALSE),VLOOKUP(Data!$W34,tabulka_panely_def,AM$1-18,FALSE)) ->  | AN34: 34 | AO34: =IF(Data!$W34<MIN(Panely!$A$9:$A$28),VLOOKUP(Data!$W34,tabulka_kce_def,63,FALSE),0) -> 0 | AP34: =IF(Data!$W34<MIN(Panely!$A$9:$A$28),VLOOKUP(Data!$W34,tabulka_kce_def,28,FALSE),1) -> 1 | AQ34: =IF(Data!$W34<MIN(Panely!$A$9:$A$28),VLOOKUP(Data!$W34,tabulka_kce_def,23,FALSE),VLOOKUP(Data!$W34,tabulka_panely_def,24,FALSE)) ->  | AS34: 0 | AU34: 0 | AV34: 0 | AX34: 0 | AY34: =IF(AND(W34>MAX(Konstrukce!A:A),ISNUMBER(W34)),1,0) -> 0
B35: = | C35: =IF(Data!$B35<MIN(Panely!$A$9:$A$28),VLOOKUP(Data!$B35,tabulka_kce_def,4,FALSE),VLOOKUP(Data!$B35,tabulka_panely_def,4,FALSE)) ->  | D35: =IF(Data!$B35<MIN(Panely!$A$9:$A$28),VLOOKUP(Data!$B35,tabulka_kce_def,23,FALSE),VLOOKUP(Data!$B35,tabulka_panely_def,24,FALSE)) ->  | E35: =IF(Data!$B35<MIN(Panely!$A$9:$A$28),VLOOKUP(Data!$B35,tabulka_kce_def,21,FALSE),VLOOKUP(Data!$B35,tabulka_panely_def,22,FALSE)) ->  | F35: =IF(Data!$B35<MIN(Panely!$A$9:$A$28),VLOOKUP(Data!$B35,tabulka_kce_def,26,FALSE),VLOOKUP(Data!$B35,tabulka_panely_def,31,FALSE)) ->  | G35: =IF(Data!$B35<MIN(Panely!$A$9:$A$28),VLOOKUP(Data!$B35,tabulka_kce_def,27,FALSE),VLOOKUP(Data!$B35,tabulka_panely_def,32,FALSE)) ->  | H35: =IF(VLOOKUP(Data!$B35,tabulka_kce_def,3,FALSE)="",Konstrukce!$G$1,IF(VLOOKUP(Data!$B35,tabulka_kce_def,3,FALSE)="z",Konstrukce!$G$2,VLOOKUP(Data!$B35,tabulka_kce_def,3,FALSE))) ->  | I35: =IF(Data!$B35<MIN(Panely!$A$9:$A$28),0,VLOOKUP(Data!$B35,tabulka_panely_def,25,FALSE)) ->  | J35: =IF(Data!$B35<MIN(Panely!$A$9:$A$28),VLOOKUP(Data!$B35,tabulka_kce_def,24,FALSE),VLOOKUP(Data!$B35,tabulka_panely_def,33,FALSE)) ->  | K35: =Konstrukce!$D$1 -> 15 | L35: =Konstrukce!$D$2 -> 15 | M35: =Konstrukce!$G$1 -> 0 | N35: =IF(Data!$B35<MIN(Panely!$A$9:$A$28),VLOOKUP(Data!$B35,tabulka_kce_def,59,FALSE),VLOOKUP(Data!$B35,tabulka_panely_def,63,FALSE)) ->  | O35: =IF(Data!$B35<MIN(Panely!$A$9:$A$28),VLOOKUP(Data!$B35,tabulka_kce_def,60,FALSE),VLOOKUP(Data!$B35,tabulka_panely_def,64,FALSE)) ->  | P35: =IF(Data!$B35<MIN(Panely!$A$9:$A$28),VLOOKUP(Data!$B35,tabulka_kce_def,61,FALSE),VLOOKUP(Data!$B35,tabulka_panely_def,65,FALSE)) ->  | Q35: =IF(Data!$B35<MIN(Panely!$A$9:$A$28),VLOOKUP(Data!$B35,tabulka_kce_def,25,FALSE),0) -> 0 | R35: =IF(O35="f",VLOOKUP(VALUE(P35),tabulka_data,3,FALSE),D35) ->  | W35: = | X35: =IF(Data!$W35<MIN(Panely!$A$9:$A$28),VLOOKUP(Data!$W35,tabulka_kce_def,62,FALSE),VLOOKUP(Data!$W35,tabulka_panely_def,65,FALSE)) ->  | Y35: =IF(Data!$W35<MIN(Panely!$A$9:$A$28),VLOOKUP(Data!$W35,tabulka_kce_def,Y$1-20,FALSE),VLOOKUP(Data!$W35,tabulka_panely_def,Y$1-18,FALSE)) ->  | Z35: =IF(Data!$W35<MIN(Panely!$A$9:$A$28),VLOOKUP(Data!$W35,tabulka_kce_def,Z$1-20,FALSE),VLOOKUP(Data!$W35,tabulka_panely_def,Z$1-18,FALSE)) ->  | AA35: =IF(Data!$W35<MIN(Panely!$A$9:$A$28),VLOOKUP(Data!$W35,tabulka_kce_def,AA$1-20,FALSE),VLOOKUP(Data!$W35,tabulka_panely_def,AA$1-18,FALSE)) ->  | AB35: =IF(Data!$W35<MIN(Panely!$A$9:$A$28),VLOOKUP(Data!$W35,tabulka_kce_def,AB$1-20,FALSE),VLOOKUP(Data!$W35,tabulka_panely_def,AB$1-18,FALSE)) ->  | AC35: =IF(Data!$W35<MIN(Panely!$A$9:$A$28),VLOOKUP(Data!$W35,tabulka_kce_def,AC$1-20,FALSE),VLOOKUP(Data!$W35,tabulka_panely_def,AC$1-18,FALSE)) ->  | AD35: =IF(Data!$W35<MIN(Panely!$A$9:$A$28),VLOOKUP(Data!$W35,tabulka_kce_def,AD$1-20,FALSE),VLOOKUP(Data!$W35,tabulka_panely_def,AD$1-18,FALSE)) ->  | AE35: =IF(Data!$W35<MIN(Panely!$A$9:$A$28),VLOOKUP(Data!$W35,tabulka_kce_def,AE$1-20,FALSE),VLOOKUP(Data!$W35,tabulka_panely_def,AE$1-18,FALSE)) ->  | AF35: =IF(Data!$W35<MIN(Panely!$A$9:$A$28),VLOOKUP(Data!$W35,tabulka_kce_def,AF$1-20,FALSE),VLOOKUP(Data!$W35,tabulka_panely_def,AF$1-18,FALSE)) ->  | AG35: =IF(Data!$W35<MIN(Panely!$A$9:$A$28),VLOOKUP(Data!$W35,tabulka_kce_def,AG$1-20,FALSE),VLOOKUP(Data!$W35,tabulka_panely_def,AG$1-18,FALSE)) ->  | AH35: =IF(Data!$W35<MIN(Panely!$A$9:$A$28),VLOOKUP(Data!$W35,tabulka_kce_def,AH$1-20,FALSE),VLOOKUP(Data!$W35,tabulka_panely_def,AH$1-18,FALSE)) ->  | AI35: =IF(Data!$W35<MIN(Panely!$A$9:$A$28),VLOOKUP(Data!$W35,tabulka_kce_def,AI$1-20,FALSE),VLOOKUP(Data!$W35,tabulka_panely_def,AI$1-18,FALSE)) ->  | AJ35: =IF(Data!$W35<MIN(Panely!$A$9:$A$28),VLOOKUP(Data!$W35,tabulka_kce_def,AJ$1-20,FALSE),VLOOKUP(Data!$W35,tabulka_panely_def,AJ$1-18,FALSE)) ->  | AK35: =IF(Data!$W35<MIN(Panely!$A$9:$A$28),VLOOKUP(Data!$W35,tabulka_kce_def,AK$1-20,FALSE),VLOOKUP(Data!$W35,tabulka_panely_def,AK$1-18,FALSE)) ->  | AL35: =IF(Data!$W35<MIN(Panely!$A$9:$A$28),VLOOKUP(Data!$W35,tabulka_kce_def,AL$1-20,FALSE),VLOOKUP(Data!$W35,tabulka_panely_def,AL$1-18,FALSE)) ->  | AM35: =IF(Data!$W35<MIN(Panely!$A$9:$A$28),VLOOKUP(Data!$W35,tabulka_kce_def,AM$1-20,FALSE),VLOOKUP(Data!$W35,tabulka_panely_def,AM$1-18,FALSE)) ->  | AN35: 35 | AO35: =IF(Data!$W35<MIN(Panely!$A$9:$A$28),VLOOKUP(Data!$W35,tabulka_kce_def,63,FALSE),0) -> 0 | AP35: =IF(Data!$W35<MIN(Panely!$A$9:$A$28),VLOOKUP(Data!$W35,tabulka_kce_def,28,FALSE),1) -> 1 | AQ35: =IF(Data!$W35<MIN(Panely!$A$9:$A$28),VLOOKUP(Data!$W35,tabulka_kce_def,23,FALSE),VLOOKUP(Data!$W35,tabulka_panely_def,24,FALSE)) ->  | AS35: 0 | AU35: 0 | AV35: 0 | AX35: 0 | AY35: =IF(AND(W35>MAX(Konstrukce!A:A),ISNUMBER(W35)),1,0) -> 0
B36: = | C36: =IF(Data!$B36<MIN(Panely!$A$9:$A$28),VLOOKUP(Data!$B36,tabulka_kce_def,4,FALSE),VLOOKUP(Data!$B36,tabulka_panely_def,4,FALSE)) ->  | D36: =IF(Data!$B36<MIN(Panely!$A$9:$A$28),VLOOKUP(Data!$B36,tabulka_kce_def,23,FALSE),VLOOKUP(Data!$B36,tabulka_panely_def,24,FALSE)) ->  | E36: =IF(Data!$B36<MIN(Panely!$A$9:$A$28),VLOOKUP(Data!$B36,tabulka_kce_def,21,FALSE),VLOOKUP(Data!$B36,tabulka_panely_def,22,FALSE)) ->  | F36: =IF(Data!$B36<MIN(Panely!$A$9:$A$28),VLOOKUP(Data!$B36,tabulka_kce_def,26,FALSE),VLOOKUP(Data!$B36,tabulka_panely_def,31,FALSE)) ->  | G36: =IF(Data!$B36<MIN(Panely!$A$9:$A$28),VLOOKUP(Data!$B36,tabulka_kce_def,27,FALSE),VLOOKUP(Data!$B36,tabulka_panely_def,32,FALSE)) ->  | H36: =IF(VLOOKUP(Data!$B36,tabulka_kce_def,3,FALSE)="",Konstrukce!$G$1,IF(VLOOKUP(Data!$B36,tabulka_kce_def,3,FALSE)="z",Konstrukce!$G$2,VLOOKUP(Data!$B36,tabulka_kce_def,3,FALSE))) ->  | I36: =IF(Data!$B36<MIN(Panely!$A$9:$A$28),0,VLOOKUP(Data!$B36,tabulka_panely_def,25,FALSE)) ->  | J36: =IF(Data!$B36<MIN(Panely!$A$9:$A$28),VLOOKUP(Data!$B36,tabulka_kce_def,24,FALSE),VLOOKUP(Data!$B36,tabulka_panely_def,33,FALSE)) ->  | K36: =Konstrukce!$D$1 -> 15 | L36: =Konstrukce!$D$2 -> 15 | M36: =Konstrukce!$G$1 -> 0 | N36: =IF(Data!$B36<MIN(Panely!$A$9:$A$28),VLOOKUP(Data!$B36,tabulka_kce_def,59,FALSE),VLOOKUP(Data!$B36,tabulka_panely_def,63,FALSE)) ->  | O36: =IF(Data!$B36<MIN(Panely!$A$9:$A$28),VLOOKUP(Data!$B36,tabulka_kce_def,60,FALSE),VLOOKUP(Data!$B36,tabulka_panely_def,64,FALSE)) ->  | P36: =IF(Data!$B36<MIN(Panely!$A$9:$A$28),VLOOKUP(Data!$B36,tabulka_kce_def,61,FALSE),VLOOKUP(Data!$B36,tabulka_panely_def,65,FALSE)) ->  | Q36: =IF(Data!$B36<MIN(Panely!$A$9:$A$28),VLOOKUP(Data!$B36,tabulka_kce_def,25,FALSE),0) -> 0 | W36: = | X36: =IF(Data!$W36<MIN(Panely!$A$9:$A$28),VLOOKUP(Data!$W36,tabulka_kce_def,62,FALSE),VLOOKUP(Data!$W36,tabulka_panely_def,65,FALSE)) ->  | Y36: =IF(Data!$W36<MIN(Panely!$A$9:$A$28),VLOOKUP(Data!$W36,tabulka_kce_def,Y$1-20,FALSE),VLOOKUP(Data!$W36,tabulka_panely_def,Y$1-18,FALSE)) ->  | Z36: =IF(Data!$W36<MIN(Panely!$A$9:$A$28),VLOOKUP(Data!$W36,tabulka_kce_def,Z$1-20,FALSE),VLOOKUP(Data!$W36,tabulka_panely_def,Z$1-18,FALSE)) ->  | AA36: =IF(Data!$W36<MIN(Panely!$A$9:$A$28),VLOOKUP(Data!$W36,tabulka_kce_def,AA$1-20,FALSE),VLOOKUP(Data!$W36,tabulka_panely_def,AA$1-18,FALSE)) ->  | AB36: =IF(Data!$W36<MIN(Panely!$A$9:$A$28),VLOOKUP(Data!$W36,tabulka_kce_def,AB$1-20,FALSE),VLOOKUP(Data!$W36,tabulka_panely_def,AB$1-18,FALSE)) ->  | AC36: =IF(Data!$W36<MIN(Panely!$A$9:$A$28),VLOOKUP(Data!$W36,tabulka_kce_def,AC$1-20,FALSE),VLOOKUP(Data!$W36,tabulka_panely_def,AC$1-18,FALSE)) ->  | AD36: =IF(Data!$W36<MIN(Panely!$A$9:$A$28),VLOOKUP(Data!$W36,tabulka_kce_def,AD$1-20,FALSE),VLOOKUP(Data!$W36,tabulka_panely_def,AD$1-18,FALSE)) ->  | AE36: =IF(Data!$W36<MIN(Panely!$A$9:$A$28),VLOOKUP(Data!$W36,tabulka_kce_def,AE$1-20,FALSE),VLOOKUP(Data!$W36,tabulka_panely_def,AE$1-18,FALSE)) ->  | AF36: =IF(Data!$W36<MIN(Panely!$A$9:$A$28),VLOOKUP(Data!$W36,tabulka_kce_def,AF$1-20,FALSE),VLOOKUP(Data!$W36,tabulka_panely_def,AF$1-18,FALSE)) ->  | AG36: =IF(Data!$W36<MIN(Panely!$A$9:$A$28),VLOOKUP(Data!$W36,tabulka_kce_def,AG$1-20,FALSE),VLOOKUP(Data!$W36,tabulka_panely_def,AG$1-18,FALSE)) ->  | AH36: =IF(Data!$W36<MIN(Panely!$A$9:$A$28),VLOOKUP(Data!$W36,tabulka_kce_def,AH$1-20,FALSE),VLOOKUP(Data!$W36,tabulka_panely_def,AH$1-18,FALSE)) ->  | AI36: =IF(Data!$W36<MIN(Panely!$A$9:$A$28),VLOOKUP(Data!$W36,tabulka_kce_def,AI$1-20,FALSE),VLOOKUP(Data!$W36,tabulka_panely_def,AI$1-18,FALSE)) ->  | AJ36: =IF(Data!$W36<MIN(Panely!$A$9:$A$28),VLOOKUP(Data!$W36,tabulka_kce_def,AJ$1-20,FALSE),VLOOKUP(Data!$W36,tabulka_panely_def,AJ$1-18,FALSE)) ->  | AK36: =IF(Data!$W36<MIN(Panely!$A$9:$A$28),VLOOKUP(Data!$W36,tabulka_kce_def,AK$1-20,FALSE),VLOOKUP(Data!$W36,tabulka_panely_def,AK$1-18,FALSE)) ->  | AL36: =IF(Data!$W36<MIN(Panely!$A$9:$A$28),VLOOKUP(Data!$W36,tabulka_kce_def,AL$1-20,FALSE),VLOOKUP(Data!$W36,tabulka_panely_def,AL$1-18,FALSE)) ->  | AM36: =IF(Data!$W36<MIN(Panely!$A$9:$A$28),VLOOKUP(Data!$W36,tabulka_kce_def,AM$1-20,FALSE),VLOOKUP(Data!$W36,tabulka_panely_def,AM$1-18,FALSE)) ->  | AN36: 36 | AO36: =IF(Data!$W36<MIN(Panely!$A$9:$A$28),VLOOKUP(Data!$W36,tabulka_kce_def,63,FALSE),0) -> 0 | AP36: =IF(Data!$W36<MIN(Panely!$A$9:$A$28),VLOOKUP(Data!$W36,tabulka_kce_def,28,FALSE),1) -> 1 | AQ36: =IF(Data!$W36<MIN(Panely!$A$9:$A$28),VLOOKUP(Data!$W36,tabulka_kce_def,23,FALSE),VLOOKUP(Data!$W36,tabulka_panely_def,24,FALSE)) ->  | AS36: 0 | AU36: 0 | AV36: 0 | AX36: 0 | AY36: =IF(AND(W36>MAX(Konstrukce!A:A),ISNUMBER(W36)),1,0) -> 0
B37: = | C37: =IF(Data!$B37<MIN(Panely!$A$9:$A$28),VLOOKUP(Data!$B37,tabulka_kce_def,4,FALSE),VLOOKUP(Data!$B37,tabulka_panely_def,4,FALSE)) ->  | D37: =IF(Data!$B37<MIN(Panely!$A$9:$A$28),VLOOKUP(Data!$B37,tabulka_kce_def,23,FALSE),VLOOKUP(Data!$B37,tabulka_panely_def,24,FALSE)) ->  | E37: =IF(Data!$B37<MIN(Panely!$A$9:$A$28),VLOOKUP(Data!$B37,tabulka_kce_def,21,FALSE),VLOOKUP(Data!$B37,tabulka_panely_def,22,FALSE)) ->  | F37: =IF(Data!$B37<MIN(Panely!$A$9:$A$28),VLOOKUP(Data!$B37,tabulka_kce_def,26,FALSE),VLOOKUP(Data!$B37,tabulka_panely_def,31,FALSE)) ->  | G37: =IF(Data!$B37<MIN(Panely!$A$9:$A$28),VLOOKUP(Data!$B37,tabulka_kce_def,27,FALSE),VLOOKUP(Data!$B37,tabulka_panely_def,32,FALSE)) ->  | H37: =IF(VLOOKUP(Data!$B37,tabulka_kce_def,3,FALSE)="",Konstrukce!$G$1,IF(VLOOKUP(Data!$B37,tabulka_kce_def,3,FALSE)="z",Konstrukce!$G$2,VLOOKUP(Data!$B37,tabulka_kce_def,3,FALSE))) ->  | I37: =IF(Data!$B37<MIN(Panely!$A$9:$A$28),0,VLOOKUP(Data!$B37,tabulka_panely_def,25,FALSE)) ->  | J37: =IF(Data!$B37<MIN(Panely!$A$9:$A$28),VLOOKUP(Data!$B37,tabulka_kce_def,24,FALSE),VLOOKUP(Data!$B37,tabulka_panely_def,33,FALSE)) ->  | K37: =Konstrukce!$D$1 -> 15 | L37: =Konstrukce!$D$2 -> 15 | M37: =Konstrukce!$G$1 -> 0 | N37: =IF(Data!$B37<MIN(Panely!$A$9:$A$28),VLOOKUP(Data!$B37,tabulka_kce_def,59,FALSE),VLOOKUP(Data!$B37,tabulka_panely_def,63,FALSE)) ->  | O37: =IF(Data!$B37<MIN(Panely!$A$9:$A$28),VLOOKUP(Data!$B37,tabulka_kce_def,60,FALSE),VLOOKUP(Data!$B37,tabulka_panely_def,64,FALSE)) ->  | P37: =IF(Data!$B37<MIN(Panely!$A$9:$A$28),VLOOKUP(Data!$B37,tabulka_kce_def,61,FALSE),VLOOKUP(Data!$B37,tabulka_panely_def,65,FALSE)) ->  | Q37: =IF(Data!$B37<MIN(Panely!$A$9:$A$28),VLOOKUP(Data!$B37,tabulka_kce_def,25,FALSE),0) -> 0 | W37: = | X37: =IF(Data!$W37<MIN(Panely!$A$9:$A$28),VLOOKUP(Data!$W37,tabulka_kce_def,62,FALSE),VLOOKUP(Data!$W37,tabulka_panely_def,65,FALSE)) ->  | Y37: =IF(Data!$W37<MIN(Panely!$A$9:$A$28),VLOOKUP(Data!$W37,tabulka_kce_def,Y$1-20,FALSE),VLOOKUP(Data!$W37,tabulka_panely_def,Y$1-18,FALSE)) ->  | Z37: =IF(Data!$W37<MIN(Panely!$A$9:$A$28),VLOOKUP(Data!$W37,tabulka_kce_def,Z$1-20,FALSE),VLOOKUP(Data!$W37,tabulka_panely_def,Z$1-18,FALSE)) ->  | AA37: =IF(Data!$W37<MIN(Panely!$A$9:$A$28),VLOOKUP(Data!$W37,tabulka_kce_def,AA$1-20,FALSE),VLOOKUP(Data!$W37,tabulka_panely_def,AA$1-18,FALSE)) ->  | AB37: =IF(Data!$W37<MIN(Panely!$A$9:$A$28),VLOOKUP(Data!$W37,tabulka_kce_def,AB$1-20,FALSE),VLOOKUP(Data!$W37,tabulka_panely_def,AB$1-18,FALSE)) ->  | AC37: =IF(Data!$W37<MIN(Panely!$A$9:$A$28),VLOOKUP(Data!$W37,tabulka_kce_def,AC$1-20,FALSE),VLOOKUP(Data!$W37,tabulka_panely_def,AC$1-18,FALSE)) ->  | AD37: =IF(Data!$W37<MIN(Panely!$A$9:$A$28),VLOOKUP(Data!$W37,tabulka_kce_def,AD$1-20,FALSE),VLOOKUP(Data!$W37,tabulka_panely_def,AD$1-18,FALSE)) ->  | AE37: =IF(Data!$W37<MIN(Panely!$A$9:$A$28),VLOOKUP(Data!$W37,tabulka_kce_def,AE$1-20,FALSE),VLOOKUP(Data!$W37,tabulka_panely_def,AE$1-18,FALSE)) ->  | AF37: =IF(Data!$W37<MIN(Panely!$A$9:$A$28),VLOOKUP(Data!$W37,tabulka_kce_def,AF$1-20,FALSE),VLOOKUP(Data!$W37,tabulka_panely_def,AF$1-18,FALSE)) ->  | AG37: =IF(Data!$W37<MIN(Panely!$A$9:$A$28),VLOOKUP(Data!$W37,tabulka_kce_def,AG$1-20,FALSE),VLOOKUP(Data!$W37,tabulka_panely_def,AG$1-18,FALSE)) ->  | AH37: =IF(Data!$W37<MIN(Panely!$A$9:$A$28),VLOOKUP(Data!$W37,tabulka_kce_def,AH$1-20,FALSE),VLOOKUP(Data!$W37,tabulka_panely_def,AH$1-18,FALSE)) ->  | AI37: =IF(Data!$W37<MIN(Panely!$A$9:$A$28),VLOOKUP(Data!$W37,tabulka_kce_def,AI$1-20,FALSE),VLOOKUP(Data!$W37,tabulka_panely_def,AI$1-18,FALSE)) ->  | AJ37: =IF(Data!$W37<MIN(Panely!$A$9:$A$28),VLOOKUP(Data!$W37,tabulka_kce_def,AJ$1-20,FALSE),VLOOKUP(Data!$W37,tabulka_panely_def,AJ$1-18,FALSE)) ->  | AK37: =IF(Data!$W37<MIN(Panely!$A$9:$A$28),VLOOKUP(Data!$W37,tabulka_kce_def,AK$1-20,FALSE),VLOOKUP(Data!$W37,tabulka_panely_def,AK$1-18,FALSE)) ->  | AL37: =IF(Data!$W37<MIN(Panely!$A$9:$A$28),VLOOKUP(Data!$W37,tabulka_kce_def,AL$1-20,FALSE),VLOOKUP(Data!$W37,tabulka_panely_def,AL$1-18,FALSE)) ->  | AM37: =IF(Data!$W37<MIN(Panely!$A$9:$A$28),VLOOKUP(Data!$W37,tabulka_kce_def,AM$1-20,FALSE),VLOOKUP(Data!$W37,tabulka_panely_def,AM$1-18,FALSE)) ->  | AN37: 37 | AO37: =IF(Data!$W37<MIN(Panely!$A$9:$A$28),VLOOKUP(Data!$W37,tabulka_kce_def,63,FALSE),0) -> 0 | AP37: =IF(Data!$W37<MIN(Panely!$A$9:$A$28),VLOOKUP(Data!$W37,tabulka_kce_def,28,FALSE),1) -> 1 | AQ37: =IF(Data!$W37<MIN(Panely!$A$9:$A$28),VLOOKUP(Data!$W37,tabulka_kce_def,23,FALSE),VLOOKUP(Data!$W37,tabulka_panely_def,24,FALSE)) ->  | AS37: 0 | AU37: 0 | AV37: 0 | AX37: 0 | AY37: =IF(AND(W37>MAX(Konstrukce!A:A),ISNUMBER(W37)),1,0) -> 0
B38: = | C38: =IF(Data!$B38<MIN(Panely!$A$9:$A$28),VLOOKUP(Data!$B38,tabulka_kce_def,4,FALSE),VLOOKUP(Data!$B38,tabulka_panely_def,4,FALSE)) ->  | D38: =IF(Data!$B38<MIN(Panely!$A$9:$A$28),VLOOKUP(Data!$B38,tabulka_kce_def,23,FALSE),VLOOKUP(Data!$B38,tabulka_panely_def,24,FALSE)) ->  | E38: =IF(Data!$B38<MIN(Panely!$A$9:$A$28),VLOOKUP(Data!$B38,tabulka_kce_def,21,FALSE),VLOOKUP(Data!$B38,tabulka_panely_def,22,FALSE)) ->  | F38: =IF(Data!$B38<MIN(Panely!$A$9:$A$28),VLOOKUP(Data!$B38,tabulka_kce_def,26,FALSE),VLOOKUP(Data!$B38,tabulka_panely_def,31,FALSE)) ->  | G38: =IF(Data!$B38<MIN(Panely!$A$9:$A$28),VLOOKUP(Data!$B38,tabulka_kce_def,27,FALSE),VLOOKUP(Data!$B38,tabulka_panely_def,32,FALSE)) ->  | H38: =IF(VLOOKUP(Data!$B38,tabulka_kce_def,3,FALSE)="",Konstrukce!$G$1,IF(VLOOKUP(Data!$B38,tabulka_kce_def,3,FALSE)="z",Konstrukce!$G$2,VLOOKUP(Data!$B38,tabulka_kce_def,3,FALSE))) ->  | I38: =IF(Data!$B38<MIN(Panely!$A$9:$A$28),0,VLOOKUP(Data!$B38,tabulka_panely_def,25,FALSE)) ->  | J38: =IF(Data!$B38<MIN(Panely!$A$9:$A$28),VLOOKUP(Data!$B38,tabulka_kce_def,24,FALSE),VLOOKUP(Data!$B38,tabulka_panely_def,33,FALSE)) ->  | K38: =Konstrukce!$D$1 -> 15 | L38: =Konstrukce!$D$2 -> 15 | M38: =Konstrukce!$G$1 -> 0 | N38: =IF(Data!$B38<MIN(Panely!$A$9:$A$28),VLOOKUP(Data!$B38,tabulka_kce_def,59,FALSE),VLOOKUP(Data!$B38,tabulka_panely_def,63,FALSE)) ->  | O38: =IF(Data!$B38<MIN(Panely!$A$9:$A$28),VLOOKUP(Data!$B38,tabulka_kce_def,60,FALSE),VLOOKUP(Data!$B38,tabulka_panely_def,64,FALSE)) ->  | P38: =IF(Data!$B38<MIN(Panely!$A$9:$A$28),VLOOKUP(Data!$B38,tabulka_kce_def,61,FALSE),VLOOKUP(Data!$B38,tabulka_panely_def,65,FALSE)) ->  | Q38: =IF(Data!$B38<MIN(Panely!$A$9:$A$28),VLOOKUP(Data!$B38,tabulka_kce_def,25,FALSE),0) -> 0 | W38: = | X38: =IF(Data!$W38<MIN(Panely!$A$9:$A$28),VLOOKUP(Data!$W38,tabulka_kce_def,62,FALSE),VLOOKUP(Data!$W38,tabulka_panely_def,65,FALSE)) ->  | Y38: =IF(Data!$W38<MIN(Panely!$A$9:$A$28),VLOOKUP(Data!$W38,tabulka_kce_def,Y$1-20,FALSE),VLOOKUP(Data!$W38,tabulka_panely_def,Y$1-18,FALSE)) ->  | Z38: =IF(Data!$W38<MIN(Panely!$A$9:$A$28),VLOOKUP(Data!$W38,tabulka_kce_def,Z$1-20,FALSE),VLOOKUP(Data!$W38,tabulka_panely_def,Z$1-18,FALSE)) ->  | AA38: =IF(Data!$W38<MIN(Panely!$A$9:$A$28),VLOOKUP(Data!$W38,tabulka_kce_def,AA$1-20,FALSE),VLOOKUP(Data!$W38,tabulka_panely_def,AA$1-18,FALSE)) ->  | AB38: =IF(Data!$W38<MIN(Panely!$A$9:$A$28),VLOOKUP(Data!$W38,tabulka_kce_def,AB$1-20,FALSE),VLOOKUP(Data!$W38,tabulka_panely_def,AB$1-18,FALSE)) ->  | AC38: =IF(Data!$W38<MIN(Panely!$A$9:$A$28),VLOOKUP(Data!$W38,tabulka_kce_def,AC$1-20,FALSE),VLOOKUP(Data!$W38,tabulka_panely_def,AC$1-18,FALSE)) ->  | AD38: =IF(Data!$W38<MIN(Panely!$A$9:$A$28),VLOOKUP(Data!$W38,tabulka_kce_def,AD$1-20,FALSE),VLOOKUP(Data!$W38,tabulka_panely_def,AD$1-18,FALSE)) ->  | AE38: =IF(Data!$W38<MIN(Panely!$A$9:$A$28),VLOOKUP(Data!$W38,tabulka_kce_def,AE$1-20,FALSE),VLOOKUP(Data!$W38,tabulka_panely_def,AE$1-18,FALSE)) ->  | AF38: =IF(Data!$W38<MIN(Panely!$A$9:$A$28),VLOOKUP(Data!$W38,tabulka_kce_def,AF$1-20,FALSE),VLOOKUP(Data!$W38,tabulka_panely_def,AF$1-18,FALSE)) ->  | AG38: =IF(Data!$W38<MIN(Panely!$A$9:$A$28),VLOOKUP(Data!$W38,tabulka_kce_def,AG$1-20,FALSE),VLOOKUP(Data!$W38,tabulka_panely_def,AG$1-18,FALSE)) ->  | AH38: =IF(Data!$W38<MIN(Panely!$A$9:$A$28),VLOOKUP(Data!$W38,tabulka_kce_def,AH$1-20,FALSE),VLOOKUP(Data!$W38,tabulka_panely_def,AH$1-18,FALSE)) ->  | AI38: =IF(Data!$W38<MIN(Panely!$A$9:$A$28),VLOOKUP(Data!$W38,tabulka_kce_def,AI$1-20,FALSE),VLOOKUP(Data!$W38,tabulka_panely_def,AI$1-18,FALSE)) ->  | AJ38: =IF(Data!$W38<MIN(Panely!$A$9:$A$28),VLOOKUP(Data!$W38,tabulka_kce_def,AJ$1-20,FALSE),VLOOKUP(Data!$W38,tabulka_panely_def,AJ$1-18,FALSE)) ->  | AK38: =IF(Data!$W38<MIN(Panely!$A$9:$A$28),VLOOKUP(Data!$W38,tabulka_kce_def,AK$1-20,FALSE),VLOOKUP(Data!$W38,tabulka_panely_def,AK$1-18,FALSE)) ->  | AL38: =IF(Data!$W38<MIN(Panely!$A$9:$A$28),VLOOKUP(Data!$W38,tabulka_kce_def,AL$1-20,FALSE),VLOOKUP(Data!$W38,tabulka_panely_def,AL$1-18,FALSE)) ->  | AM38: =IF(Data!$W38<MIN(Panely!$A$9:$A$28),VLOOKUP(Data!$W38,tabulka_kce_def,AM$1-20,FALSE),VLOOKUP(Data!$W38,tabulka_panely_def,AM$1-18,FALSE)) ->  | AN38: 38 | AO38: =IF(Data!$W38<MIN(Panely!$A$9:$A$28),VLOOKUP(Data!$W38,tabulka_kce_def,63,FALSE),0) -> 0 | AP38: =IF(Data!$W38<MIN(Panely!$A$9:$A$28),VLOOKUP(Data!$W38,tabulka_kce_def,28,FALSE),1) -> 1 | AQ38: =IF(Data!$W38<MIN(Panely!$A$9:$A$28),VLOOKUP(Data!$W38,tabulka_kce_def,23,FALSE),VLOOKUP(Data!$W38,tabulka_panely_def,24,FALSE)) ->  | AS38: 0 | AU38: 0 | AV38: 0 | AX38: 0 | AY38: =IF(AND(W38>MAX(Konstrukce!A:A),ISNUMBER(W38)),1,0) -> 0
B39: = | C39: =IF(Data!$B39<MIN(Panely!$A$9:$A$28),VLOOKUP(Data!$B39,tabulka_kce_def,4,FALSE),VLOOKUP(Data!$B39,tabulka_panely_def,4,FALSE)) ->  | D39: =IF(Data!$B39<MIN(Panely!$A$9:$A$28),VLOOKUP(Data!$B39,tabulka_kce_def,23,FALSE),VLOOKUP(Data!$B39,tabulka_panely_def,24,FALSE)) ->  | E39: =IF(Data!$B39<MIN(Panely!$A$9:$A$28),VLOOKUP(Data!$B39,tabulka_kce_def,21,FALSE),VLOOKUP(Data!$B39,tabulka_panely_def,22,FALSE)) ->  | F39: =IF(Data!$B39<MIN(Panely!$A$9:$A$28),VLOOKUP(Data!$B39,tabulka_kce_def,26,FALSE),VLOOKUP(Data!$B39,tabulka_panely_def,31,FALSE)) ->  | G39: =IF(Data!$B39<MIN(Panely!$A$9:$A$28),VLOOKUP(Data!$B39,tabulka_kce_def,27,FALSE),VLOOKUP(Data!$B39,tabulka_panely_def,32,FALSE)) ->  | H39: =IF(VLOOKUP(Data!$B39,tabulka_kce_def,3,FALSE)="",Konstrukce!$G$1,IF(VLOOKUP(Data!$B39,tabulka_kce_def,3,FALSE)="z",Konstrukce!$G$2,VLOOKUP(Data!$B39,tabulka_kce_def,3,FALSE))) ->  | I39: =IF(Data!$B39<MIN(Panely!$A$9:$A$28),0,VLOOKUP(Data!$B39,tabulka_panely_def,25,FALSE)) ->  | J39: =IF(Data!$B39<MIN(Panely!$A$9:$A$28),VLOOKUP(Data!$B39,tabulka_kce_def,24,FALSE),VLOOKUP(Data!$B39,tabulka_panely_def,33,FALSE)) ->  | K39: =Konstrukce!$D$1 -> 15 | L39: =Konstrukce!$D$2 -> 15 | M39: =Konstrukce!$G$1 -> 0 | N39: =IF(Data!$B39<MIN(Panely!$A$9:$A$28),VLOOKUP(Data!$B39,tabulka_kce_def,59,FALSE),VLOOKUP(Data!$B39,tabulka_panely_def,63,FALSE)) ->  | O39: =IF(Data!$B39<MIN(Panely!$A$9:$A$28),VLOOKUP(Data!$B39,tabulka_kce_def,60,FALSE),VLOOKUP(Data!$B39,tabulka_panely_def,64,FALSE)) ->  | P39: =IF(Data!$B39<MIN(Panely!$A$9:$A$28),VLOOKUP(Data!$B39,tabulka_kce_def,61,FALSE),VLOOKUP(Data!$B39,tabulka_panely_def,65,FALSE)) ->  | Q39: =IF(Data!$B39<MIN(Panely!$A$9:$A$28),VLOOKUP(Data!$B39,tabulka_kce_def,25,FALSE),0) -> 0 | W39: = | X39: =IF(Data!$W39<MIN(Panely!$A$9:$A$28),VLOOKUP(Data!$W39,tabulka_kce_def,62,FALSE),VLOOKUP(Data!$W39,tabulka_panely_def,65,FALSE)) ->  | Y39: =IF(Data!$W39<MIN(Panely!$A$9:$A$28),VLOOKUP(Data!$W39,tabulka_kce_def,Y$1-20,FALSE),VLOOKUP(Data!$W39,tabulka_panely_def,Y$1-18,FALSE)) ->  | Z39: =IF(Data!$W39<MIN(Panely!$A$9:$A$28),VLOOKUP(Data!$W39,tabulka_kce_def,Z$1-20,FALSE),VLOOKUP(Data!$W39,tabulka_panely_def,Z$1-18,FALSE)) ->  | AA39: =IF(Data!$W39<MIN(Panely!$A$9:$A$28),VLOOKUP(Data!$W39,tabulka_kce_def,AA$1-20,FALSE),VLOOKUP(Data!$W39,tabulka_panely_def,AA$1-18,FALSE)) ->  | AB39: =IF(Data!$W39<MIN(Panely!$A$9:$A$28),VLOOKUP(Data!$W39,tabulka_kce_def,AB$1-20,FALSE),VLOOKUP(Data!$W39,tabulka_panely_def,AB$1-18,FALSE)) ->  | AC39: =IF(Data!$W39<MIN(Panely!$A$9:$A$28),VLOOKUP(Data!$W39,tabulka_kce_def,AC$1-20,FALSE),VLOOKUP(Data!$W39,tabulka_panely_def,AC$1-18,FALSE)) ->  | AD39: =IF(Data!$W39<MIN(Panely!$A$9:$A$28),VLOOKUP(Data!$W39,tabulka_kce_def,AD$1-20,FALSE),VLOOKUP(Data!$W39,tabulka_panely_def,AD$1-18,FALSE)) ->  | AE39: =IF(Data!$W39<MIN(Panely!$A$9:$A$28),VLOOKUP(Data!$W39,tabulka_kce_def,AE$1-20,FALSE),VLOOKUP(Data!$W39,tabulka_panely_def,AE$1-18,FALSE)) ->  | AF39: =IF(Data!$W39<MIN(Panely!$A$9:$A$28),VLOOKUP(Data!$W39,tabulka_kce_def,AF$1-20,FALSE),VLOOKUP(Data!$W39,tabulka_panely_def,AF$1-18,FALSE)) ->  | AG39: =IF(Data!$W39<MIN(Panely!$A$9:$A$28),VLOOKUP(Data!$W39,tabulka_kce_def,AG$1-20,FALSE),VLOOKUP(Data!$W39,tabulka_panely_def,AG$1-18,FALSE)) ->  | AH39: =IF(Data!$W39<MIN(Panely!$A$9:$A$28),VLOOKUP(Data!$W39,tabulka_kce_def,AH$1-20,FALSE),VLOOKUP(Data!$W39,tabulka_panely_def,AH$1-18,FALSE)) ->  | AI39: =IF(Data!$W39<MIN(Panely!$A$9:$A$28),VLOOKUP(Data!$W39,tabulka_kce_def,AI$1-20,FALSE),VLOOKUP(Data!$W39,tabulka_panely_def,AI$1-18,FALSE)) ->  | AJ39: =IF(Data!$W39<MIN(Panely!$A$9:$A$28),VLOOKUP(Data!$W39,tabulka_kce_def,AJ$1-20,FALSE),VLOOKUP(Data!$W39,tabulka_panely_def,AJ$1-18,FALSE)) ->  | AK39: =IF(Data!$W39<MIN(Panely!$A$9:$A$28),VLOOKUP(Data!$W39,tabulka_kce_def,AK$1-20,FALSE),VLOOKUP(Data!$W39,tabulka_panely_def,AK$1-18,FALSE)) ->  | AL39: =IF(Data!$W39<MIN(Panely!$A$9:$A$28),VLOOKUP(Data!$W39,tabulka_kce_def,AL$1-20,FALSE),VLOOKUP(Data!$W39,tabulka_panely_def,AL$1-18,FALSE)) ->  | AM39: =IF(Data!$W39<MIN(Panely!$A$9:$A$28),VLOOKUP(Data!$W39,tabulka_kce_def,AM$1-20,FALSE),VLOOKUP(Data!$W39,tabulka_panely_def,AM$1-18,FALSE)) ->  | AN39: 39 | AO39: =IF(Data!$W39<MIN(Panely!$A$9:$A$28),VLOOKUP(Data!$W39,tabulka_kce_def,63,FALSE),0) -> 0 | AP39: =IF(Data!$W39<MIN(Panely!$A$9:$A$28),VLOOKUP(Data!$W39,tabulka_kce_def,28,FALSE),1) -> 1 | AQ39: =IF(Data!$W39<MIN(Panely!$A$9:$A$28),VLOOKUP(Data!$W39,tabulka_kce_def,23,FALSE),VLOOKUP(Data!$W39,tabulka_panely_def,24,FALSE)) ->  | AS39: 0 | AU39: 0 | AV39: 0 | AX39: 0 | AY39: =IF(AND(W39>MAX(Konstrukce!A:A),ISNUMBER(W39)),1,0) -> 0
B40: = | C40: =IF(Data!$B40<MIN(Panely!$A$9:$A$28),VLOOKUP(Data!$B40,tabulka_kce_def,4,FALSE),VLOOKUP(Data!$B40,tabulka_panely_def,4,FALSE)) ->  | D40: =IF(Data!$B40<MIN(Panely!$A$9:$A$28),VLOOKUP(Data!$B40,tabulka_kce_def,23,FALSE),VLOOKUP(Data!$B40,tabulka_panely_def,24,FALSE)) ->  | E40: =IF(Data!$B40<MIN(Panely!$A$9:$A$28),VLOOKUP(Data!$B40,tabulka_kce_def,21,FALSE),VLOOKUP(Data!$B40,tabulka_panely_def,22,FALSE)) ->  | F40: =IF(Data!$B40<MIN(Panely!$A$9:$A$28),VLOOKUP(Data!$B40,tabulka_kce_def,26,FALSE),VLOOKUP(Data!$B40,tabulka_panely_def,31,FALSE)) ->  | G40: =IF(Data!$B40<MIN(Panely!$A$9:$A$28),VLOOKUP(Data!$B40,tabulka_kce_def,27,FALSE),VLOOKUP(Data!$B40,tabulka_panely_def,32,FALSE)) ->  | H40: =IF(VLOOKUP(Data!$B40,tabulka_kce_def,3,FALSE)="",Konstrukce!$G$1,IF(VLOOKUP(Data!$B40,tabulka_kce_def,3,FALSE)="z",Konstrukce!$G$2,VLOOKUP(Data!$B40,tabulka_kce_def,3,FALSE))) ->  | I40: =IF(Data!$B40<MIN(Panely!$A$9:$A$28),0,VLOOKUP(Data!$B40,tabulka_panely_def,25,FALSE)) ->  | J40: =IF(Data!$B40<MIN(Panely!$A$9:$A$28),VLOOKUP(Data!$B40,tabulka_kce_def,24,FALSE),VLOOKUP(Data!$B40,tabulka_panely_def,33,FALSE)) ->  | K40: =Konstrukce!$D$1 -> 15 | L40: =Konstrukce!$D$2 -> 15 | M40: =Konstrukce!$G$1 -> 0 | N40: =IF(Data!$B40<MIN(Panely!$A$9:$A$28),VLOOKUP(Data!$B40,tabulka_kce_def,59,FALSE),VLOOKUP(Data!$B40,tabulka_panely_def,63,FALSE)) ->  | O40: =IF(Data!$B40<MIN(Panely!$A$9:$A$28),VLOOKUP(Data!$B40,tabulka_kce_def,60,FALSE),VLOOKUP(Data!$B40,tabulka_panely_def,64,FALSE)) ->  | P40: =IF(Data!$B40<MIN(Panely!$A$9:$A$28),VLOOKUP(Data!$B40,tabulka_kce_def,61,FALSE),VLOOKUP(Data!$B40,tabulka_panely_def,65,FALSE)) ->  | Q40: =IF(Data!$B40<MIN(Panely!$A$9:$A$28),VLOOKUP(Data!$B40,tabulka_kce_def,25,FALSE),0) -> 0 | W40: = | X40: =IF(Data!$W40<MIN(Panely!$A$9:$A$28),VLOOKUP(Data!$W40,tabulka_kce_def,62,FALSE),VLOOKUP(Data!$W40,tabulka_panely_def,65,FALSE)) ->  | Y40: =IF(Data!$W40<MIN(Panely!$A$9:$A$28),VLOOKUP(Data!$W40,tabulka_kce_def,Y$1-20,FALSE),VLOOKUP(Data!$W40,tabulka_panely_def,Y$1-18,FALSE)) ->  | Z40: =IF(Data!$W40<MIN(Panely!$A$9:$A$28),VLOOKUP(Data!$W40,tabulka_kce_def,Z$1-20,FALSE),VLOOKUP(Data!$W40,tabulka_panely_def,Z$1-18,FALSE)) ->  | AA40: =IF(Data!$W40<MIN(Panely!$A$9:$A$28),VLOOKUP(Data!$W40,tabulka_kce_def,AA$1-20,FALSE),VLOOKUP(Data!$W40,tabulka_panely_def,AA$1-18,FALSE)) ->  | AB40: =IF(Data!$W40<MIN(Panely!$A$9:$A$28),VLOOKUP(Data!$W40,tabulka_kce_def,AB$1-20,FALSE),VLOOKUP(Data!$W40,tabulka_panely_def,AB$1-18,FALSE)) ->  | AC40: =IF(Data!$W40<MIN(Panely!$A$9:$A$28),VLOOKUP(Data!$W40,tabulka_kce_def,AC$1-20,FALSE),VLOOKUP(Data!$W40,tabulka_panely_def,AC$1-18,FALSE)) ->  | AD40: =IF(Data!$W40<MIN(Panely!$A$9:$A$28),VLOOKUP(Data!$W40,tabulka_kce_def,AD$1-20,FALSE),VLOOKUP(Data!$W40,tabulka_panely_def,AD$1-18,FALSE)) ->  | AE40: =IF(Data!$W40<MIN(Panely!$A$9:$A$28),VLOOKUP(Data!$W40,tabulka_kce_def,AE$1-20,FALSE),VLOOKUP(Data!$W40,tabulka_panely_def,AE$1-18,FALSE)) ->  | AF40: =IF(Data!$W40<MIN(Panely!$A$9:$A$28),VLOOKUP(Data!$W40,tabulka_kce_def,AF$1-20,FALSE),VLOOKUP(Data!$W40,tabulka_panely_def,AF$1-18,FALSE)) ->  | AG40: =IF(Data!$W40<MIN(Panely!$A$9:$A$28),VLOOKUP(Data!$W40,tabulka_kce_def,AG$1-20,FALSE),VLOOKUP(Data!$W40,tabulka_panely_def,AG$1-18,FALSE)) ->  | AH40: =IF(Data!$W40<MIN(Panely!$A$9:$A$28),VLOOKUP(Data!$W40,tabulka_kce_def,AH$1-20,FALSE),VLOOKUP(Data!$W40,tabulka_panely_def,AH$1-18,FALSE)) ->  | AI40: =IF(Data!$W40<MIN(Panely!$A$9:$A$28),VLOOKUP(Data!$W40,tabulka_kce_def,AI$1-20,FALSE),VLOOKUP(Data!$W40,tabulka_panely_def,AI$1-18,FALSE)) ->  | AJ40: =IF(Data!$W40<MIN(Panely!$A$9:$A$28),VLOOKUP(Data!$W40,tabulka_kce_def,AJ$1-20,FALSE),VLOOKUP(Data!$W40,tabulka_panely_def,AJ$1-18,FALSE)) ->  | AK40: =IF(Data!$W40<MIN(Panely!$A$9:$A$28),VLOOKUP(Data!$W40,tabulka_kce_def,AK$1-20,FALSE),VLOOKUP(Data!$W40,tabulka_panely_def,AK$1-18,FALSE)) ->  | AL40: =IF(Data!$W40<MIN(Panely!$A$9:$A$28),VLOOKUP(Data!$W40,tabulka_kce_def,AL$1-20,FALSE),VLOOKUP(Data!$W40,tabulka_panely_def,AL$1-18,FALSE)) ->  | AM40: =IF(Data!$W40<MIN(Panely!$A$9:$A$28),VLOOKUP(Data!$W40,tabulka_kce_def,AM$1-20,FALSE),VLOOKUP(Data!$W40,tabulka_panely_def,AM$1-18,FALSE)) ->  | AN40: 40 | AO40: =IF(Data!$W40<MIN(Panely!$A$9:$A$28),VLOOKUP(Data!$W40,tabulka_kce_def,63,FALSE),0) -> 0 | AP40: =IF(Data!$W40<MIN(Panely!$A$9:$A$28),VLOOKUP(Data!$W40,tabulka_kce_def,28,FALSE),1) -> 1 | AQ40: =IF(Data!$W40<MIN(Panely!$A$9:$A$28),VLOOKUP(Data!$W40,tabulka_kce_def,23,FALSE),VLOOKUP(Data!$W40,tabulka_panely_def,24,FALSE)) ->  | AS40: 0 | AU40: 0 | AV40: 0 | AX40: 0 | AY40: =IF(AND(W40>MAX(Konstrukce!A:A),ISNUMBER(W40)),1,0) -> 0
B41: = | C41: =IF(Data!$B41<MIN(Panely!$A$9:$A$28),VLOOKUP(Data!$B41,tabulka_kce_def,4,FALSE),VLOOKUP(Data!$B41,tabulka_panely_def,4,FALSE)) ->  | D41: =IF(Data!$B41<MIN(Panely!$A$9:$A$28),VLOOKUP(Data!$B41,tabulka_kce_def,23,FALSE),VLOOKUP(Data!$B41,tabulka_panely_def,24,FALSE)) ->  | E41: =IF(Data!$B41<MIN(Panely!$A$9:$A$28),VLOOKUP(Data!$B41,tabulka_kce_def,21,FALSE),VLOOKUP(Data!$B41,tabulka_panely_def,22,FALSE)) ->  | F41: =IF(Data!$B41<MIN(Panely!$A$9:$A$28),VLOOKUP(Data!$B41,tabulka_kce_def,26,FALSE),VLOOKUP(Data!$B41,tabulka_panely_def,31,FALSE)) ->  | G41: =IF(Data!$B41<MIN(Panely!$A$9:$A$28),VLOOKUP(Data!$B41,tabulka_kce_def,27,FALSE),VLOOKUP(Data!$B41,tabulka_panely_def,32,FALSE)) ->  | H41: =IF(VLOOKUP(Data!$B41,tabulka_kce_def,3,FALSE)="",Konstrukce!$G$1,IF(VLOOKUP(Data!$B41,tabulka_kce_def,3,FALSE)="z",Konstrukce!$G$2,VLOOKUP(Data!$B41,tabulka_kce_def,3,FALSE))) ->  | I41: =IF(Data!$B41<MIN(Panely!$A$9:$A$28),0,VLOOKUP(Data!$B41,tabulka_panely_def,25,FALSE)) ->  | J41: =IF(Data!$B41<MIN(Panely!$A$9:$A$28),VLOOKUP(Data!$B41,tabulka_kce_def,24,FALSE),VLOOKUP(Data!$B41,tabulka_panely_def,33,FALSE)) ->  | K41: =Konstrukce!$D$1 -> 15 | L41: =Konstrukce!$D$2 -> 15 | M41: =Konstrukce!$G$1 -> 0 | N41: =IF(Data!$B41<MIN(Panely!$A$9:$A$28),VLOOKUP(Data!$B41,tabulka_kce_def,59,FALSE),VLOOKUP(Data!$B41,tabulka_panely_def,63,FALSE)) ->  | O41: =IF(Data!$B41<MIN(Panely!$A$9:$A$28),VLOOKUP(Data!$B41,tabulka_kce_def,60,FALSE),VLOOKUP(Data!$B41,tabulka_panely_def,64,FALSE)) ->  | P41: =IF(Data!$B41<MIN(Panely!$A$9:$A$28),VLOOKUP(Data!$B41,tabulka_kce_def,61,FALSE),VLOOKUP(Data!$B41,tabulka_panely_def,65,FALSE)) ->  | Q41: =IF(Data!$B41<MIN(Panely!$A$9:$A$28),VLOOKUP(Data!$B41,tabulka_kce_def,25,FALSE),0) -> 0 | W41: = | X41: =IF(Data!$W41<MIN(Panely!$A$9:$A$28),VLOOKUP(Data!$W41,tabulka_kce_def,62,FALSE),VLOOKUP(Data!$W41,tabulka_panely_def,65,FALSE)) ->  | Y41: =IF(Data!$W41<MIN(Panely!$A$9:$A$28),VLOOKUP(Data!$W41,tabulka_kce_def,Y$1-20,FALSE),VLOOKUP(Data!$W41,tabulka_panely_def,Y$1-18,FALSE)) ->  | Z41: =IF(Data!$W41<MIN(Panely!$A$9:$A$28),VLOOKUP(Data!$W41,tabulka_kce_def,Z$1-20,FALSE),VLOOKUP(Data!$W41,tabulka_panely_def,Z$1-18,FALSE)) ->  | AA41: =IF(Data!$W41<MIN(Panely!$A$9:$A$28),VLOOKUP(Data!$W41,tabulka_kce_def,AA$1-20,FALSE),VLOOKUP(Data!$W41,tabulka_panely_def,AA$1-18,FALSE)) ->  | AB41: =IF(Data!$W41<MIN(Panely!$A$9:$A$28),VLOOKUP(Data!$W41,tabulka_kce_def,AB$1-20,FALSE),VLOOKUP(Data!$W41,tabulka_panely_def,AB$1-18,FALSE)) ->  | AC41: =IF(Data!$W41<MIN(Panely!$A$9:$A$28),VLOOKUP(Data!$W41,tabulka_kce_def,AC$1-20,FALSE),VLOOKUP(Data!$W41,tabulka_panely_def,AC$1-18,FALSE)) ->  | AD41: =IF(Data!$W41<MIN(Panely!$A$9:$A$28),VLOOKUP(Data!$W41,tabulka_kce_def,AD$1-20,FALSE),VLOOKUP(Data!$W41,tabulka_panely_def,AD$1-18,FALSE)) ->  | AE41: =IF(Data!$W41<MIN(Panely!$A$9:$A$28),VLOOKUP(Data!$W41,tabulka_kce_def,AE$1-20,FALSE),VLOOKUP(Data!$W41,tabulka_panely_def,AE$1-18,FALSE)) ->  | AF41: =IF(Data!$W41<MIN(Panely!$A$9:$A$28),VLOOKUP(Data!$W41,tabulka_kce_def,AF$1-20,FALSE),VLOOKUP(Data!$W41,tabulka_panely_def,AF$1-18,FALSE)) ->  | AG41: =IF(Data!$W41<MIN(Panely!$A$9:$A$28),VLOOKUP(Data!$W41,tabulka_kce_def,AG$1-20,FALSE),VLOOKUP(Data!$W41,tabulka_panely_def,AG$1-18,FALSE)) ->  | AH41: =IF(Data!$W41<MIN(Panely!$A$9:$A$28),VLOOKUP(Data!$W41,tabulka_kce_def,AH$1-20,FALSE),VLOOKUP(Data!$W41,tabulka_panely_def,AH$1-18,FALSE)) ->  | AI41: =IF(Data!$W41<MIN(Panely!$A$9:$A$28),VLOOKUP(Data!$W41,tabulka_kce_def,AI$1-20,FALSE),VLOOKUP(Data!$W41,tabulka_panely_def,AI$1-18,FALSE)) ->  | AJ41: =IF(Data!$W41<MIN(Panely!$A$9:$A$28),VLOOKUP(Data!$W41,tabulka_kce_def,AJ$1-20,FALSE),VLOOKUP(Data!$W41,tabulka_panely_def,AJ$1-18,FALSE)) ->  | AK41: =IF(Data!$W41<MIN(Panely!$A$9:$A$28),VLOOKUP(Data!$W41,tabulka_kce_def,AK$1-20,FALSE),VLOOKUP(Data!$W41,tabulka_panely_def,AK$1-18,FALSE)) ->  | AL41: =IF(Data!$W41<MIN(Panely!$A$9:$A$28),VLOOKUP(Data!$W41,tabulka_kce_def,AL$1-20,FALSE),VLOOKUP(Data!$W41,tabulka_panely_def,AL$1-18,FALSE)) ->  | AM41: =IF(Data!$W41<MIN(Panely!$A$9:$A$28),VLOOKUP(Data!$W41,tabulka_kce_def,AM$1-20,FALSE),VLOOKUP(Data!$W41,tabulka_panely_def,AM$1-18,FALSE)) ->  | AN41: 41 | AO41: =IF(Data!$W41<MIN(Panely!$A$9:$A$28),VLOOKUP(Data!$W41,tabulka_kce_def,63,FALSE),0) -> 0 | AP41: =IF(Data!$W41<MIN(Panely!$A$9:$A$28),VLOOKUP(Data!$W41,tabulka_kce_def,28,FALSE),1) -> 1 | AQ41: =IF(Data!$W41<MIN(Panely!$A$9:$A$28),VLOOKUP(Data!$W41,tabulka_kce_def,23,FALSE),VLOOKUP(Data!$W41,tabulka_panely_def,24,FALSE)) ->  | AS41: 0 | AU41: 0 | AV41: 0 | AX41: 0 | AY41: =IF(AND(W41>MAX(Konstrukce!A:A),ISNUMBER(W41)),1,0) -> 0
B42: = | C42: =IF(Data!$B42<MIN(Panely!$A$9:$A$28),VLOOKUP(Data!$B42,tabulka_kce_def,4,FALSE),VLOOKUP(Data!$B42,tabulka_panely_def,4,FALSE)) ->  | D42: =IF(Data!$B42<MIN(Panely!$A$9:$A$28),VLOOKUP(Data!$B42,tabulka_kce_def,23,FALSE),VLOOKUP(Data!$B42,tabulka_panely_def,24,FALSE)) ->  | E42: =IF(Data!$B42<MIN(Panely!$A$9:$A$28),VLOOKUP(Data!$B42,tabulka_kce_def,21,FALSE),VLOOKUP(Data!$B42,tabulka_panely_def,22,FALSE)) ->  | F42: =IF(Data!$B42<MIN(Panely!$A$9:$A$28),VLOOKUP(Data!$B42,tabulka_kce_def,26,FALSE),VLOOKUP(Data!$B42,tabulka_panely_def,31,FALSE)) ->  | G42: =IF(Data!$B42<MIN(Panely!$A$9:$A$28),VLOOKUP(Data!$B42,tabulka_kce_def,27,FALSE),VLOOKUP(Data!$B42,tabulka_panely_def,32,FALSE)) ->  | H42: =IF(VLOOKUP(Data!$B42,tabulka_kce_def,3,FALSE)="",Konstrukce!$G$1,IF(VLOOKUP(Data!$B42,tabulka_kce_def,3,FALSE)="z",Konstrukce!$G$2,VLOOKUP(Data!$B42,tabulka_kce_def,3,FALSE))) ->  | I42: =IF(Data!$B42<MIN(Panely!$A$9:$A$28),0,VLOOKUP(Data!$B42,tabulka_panely_def,25,FALSE)) ->  | J42: =IF(Data!$B42<MIN(Panely!$A$9:$A$28),VLOOKUP(Data!$B42,tabulka_kce_def,24,FALSE),VLOOKUP(Data!$B42,tabulka_panely_def,33,FALSE)) ->  | K42: =Konstrukce!$D$1 -> 15 | L42: =Konstrukce!$D$2 -> 15 | M42: =Konstrukce!$G$1 -> 0 | N42: =IF(Data!$B42<MIN(Panely!$A$9:$A$28),VLOOKUP(Data!$B42,tabulka_kce_def,59,FALSE),VLOOKUP(Data!$B42,tabulka_panely_def,63,FALSE)) ->  | O42: =IF(Data!$B42<MIN(Panely!$A$9:$A$28),VLOOKUP(Data!$B42,tabulka_kce_def,60,FALSE),VLOOKUP(Data!$B42,tabulka_panely_def,64,FALSE)) ->  | P42: =IF(Data!$B42<MIN(Panely!$A$9:$A$28),VLOOKUP(Data!$B42,tabulka_kce_def,61,FALSE),VLOOKUP(Data!$B42,tabulka_panely_def,65,FALSE)) ->  | Q42: =IF(Data!$B42<MIN(Panely!$A$9:$A$28),VLOOKUP(Data!$B42,tabulka_kce_def,25,FALSE),0) -> 0 | W42: = | X42: =IF(Data!$W42<MIN(Panely!$A$9:$A$28),VLOOKUP(Data!$W42,tabulka_kce_def,62,FALSE),VLOOKUP(Data!$W42,tabulka_panely_def,65,FALSE)) ->  | Y42: =IF(Data!$W42<MIN(Panely!$A$9:$A$28),VLOOKUP(Data!$W42,tabulka_kce_def,Y$1-20,FALSE),VLOOKUP(Data!$W42,tabulka_panely_def,Y$1-18,FALSE)) ->  | Z42: =IF(Data!$W42<MIN(Panely!$A$9:$A$28),VLOOKUP(Data!$W42,tabulka_kce_def,Z$1-20,FALSE),VLOOKUP(Data!$W42,tabulka_panely_def,Z$1-18,FALSE)) ->  | AA42: =IF(Data!$W42<MIN(Panely!$A$9:$A$28),VLOOKUP(Data!$W42,tabulka_kce_def,AA$1-20,FALSE),VLOOKUP(Data!$W42,tabulka_panely_def,AA$1-18,FALSE)) ->  | AB42: =IF(Data!$W42<MIN(Panely!$A$9:$A$28),VLOOKUP(Data!$W42,tabulka_kce_def,AB$1-20,FALSE),VLOOKUP(Data!$W42,tabulka_panely_def,AB$1-18,FALSE)) ->  | AC42: =IF(Data!$W42<MIN(Panely!$A$9:$A$28),VLOOKUP(Data!$W42,tabulka_kce_def,AC$1-20,FALSE),VLOOKUP(Data!$W42,tabulka_panely_def,AC$1-18,FALSE)) ->  | AD42: =IF(Data!$W42<MIN(Panely!$A$9:$A$28),VLOOKUP(Data!$W42,tabulka_kce_def,AD$1-20,FALSE),VLOOKUP(Data!$W42,tabulka_panely_def,AD$1-18,FALSE)) ->  | AE42: =IF(Data!$W42<MIN(Panely!$A$9:$A$28),VLOOKUP(Data!$W42,tabulka_kce_def,AE$1-20,FALSE),VLOOKUP(Data!$W42,tabulka_panely_def,AE$1-18,FALSE)) ->  | AF42: =IF(Data!$W42<MIN(Panely!$A$9:$A$28),VLOOKUP(Data!$W42,tabulka_kce_def,AF$1-20,FALSE),VLOOKUP(Data!$W42,tabulka_panely_def,AF$1-18,FALSE)) ->  | AG42: =IF(Data!$W42<MIN(Panely!$A$9:$A$28),VLOOKUP(Data!$W42,tabulka_kce_def,AG$1-20,FALSE),VLOOKUP(Data!$W42,tabulka_panely_def,AG$1-18,FALSE)) ->  | AH42: =IF(Data!$W42<MIN(Panely!$A$9:$A$28),VLOOKUP(Data!$W42,tabulka_kce_def,AH$1-20,FALSE),VLOOKUP(Data!$W42,tabulka_panely_def,AH$1-18,FALSE)) ->  | AI42: =IF(Data!$W42<MIN(Panely!$A$9:$A$28),VLOOKUP(Data!$W42,tabulka_kce_def,AI$1-20,FALSE),VLOOKUP(Data!$W42,tabulka_panely_def,AI$1-18,FALSE)) ->  | AJ42: =IF(Data!$W42<MIN(Panely!$A$9:$A$28),VLOOKUP(Data!$W42,tabulka_kce_def,AJ$1-20,FALSE),VLOOKUP(Data!$W42,tabulka_panely_def,AJ$1-18,FALSE)) ->  | AK42: =IF(Data!$W42<MIN(Panely!$A$9:$A$28),VLOOKUP(Data!$W42,tabulka_kce_def,AK$1-20,FALSE),VLOOKUP(Data!$W42,tabulka_panely_def,AK$1-18,FALSE)) ->  | AL42: =IF(Data!$W42<MIN(Panely!$A$9:$A$28),VLOOKUP(Data!$W42,tabulka_kce_def,AL$1-20,FALSE),VLOOKUP(Data!$W42,tabulka_panely_def,AL$1-18,FALSE)) ->  | AM42: =IF(Data!$W42<MIN(Panely!$A$9:$A$28),VLOOKUP(Data!$W42,tabulka_kce_def,AM$1-20,FALSE),VLOOKUP(Data!$W42,tabulka_panely_def,AM$1-18,FALSE)) ->  | AN42: 42 | AO42: =IF(Data!$W42<MIN(Panely!$A$9:$A$28),VLOOKUP(Data!$W42,tabulka_kce_def,63,FALSE),0) -> 0 | AP42: =IF(Data!$W42<MIN(Panely!$A$9:$A$28),VLOOKUP(Data!$W42,tabulka_kce_def,28,FALSE),1) -> 1 | AQ42: =IF(Data!$W42<MIN(Panely!$A$9:$A$28),VLOOKUP(Data!$W42,tabulka_kce_def,23,FALSE),VLOOKUP(Data!$W42,tabulka_panely_def,24,FALSE)) ->  | AS42: 0 | AU42: 0 | AV42: 0 | AX42: 0 | AY42: =IF(AND(W42>MAX(Konstrukce!A:A),ISNUMBER(W42)),1,0) -> 0
B43: = | C43: =IF(Data!$B43<MIN(Panely!$A$9:$A$28),VLOOKUP(Data!$B43,tabulka_kce_def,4,FALSE),VLOOKUP(Data!$B43,tabulka_panely_def,4,FALSE)) ->  | D43: =IF(Data!$B43<MIN(Panely!$A$9:$A$28),VLOOKUP(Data!$B43,tabulka_kce_def,23,FALSE),VLOOKUP(Data!$B43,tabulka_panely_def,24,FALSE)) ->  | E43: =IF(Data!$B43<MIN(Panely!$A$9:$A$28),VLOOKUP(Data!$B43,tabulka_kce_def,21,FALSE),VLOOKUP(Data!$B43,tabulka_panely_def,22,FALSE)) ->  | F43: =IF(Data!$B43<MIN(Panely!$A$9:$A$28),VLOOKUP(Data!$B43,tabulka_kce_def,26,FALSE),VLOOKUP(Data!$B43,tabulka_panely_def,31,FALSE)) ->  | G43: =IF(Data!$B43<MIN(Panely!$A$9:$A$28),VLOOKUP(Data!$B43,tabulka_kce_def,27,FALSE),VLOOKUP(Data!$B43,tabulka_panely_def,32,FALSE)) ->  | H43: =IF(VLOOKUP(Data!$B43,tabulka_kce_def,3,FALSE)="",Konstrukce!$G$1,IF(VLOOKUP(Data!$B43,tabulka_kce_def,3,FALSE)="z",Konstrukce!$G$2,VLOOKUP(Data!$B43,tabulka_kce_def,3,FALSE))) ->  | I43: =IF(Data!$B43<MIN(Panely!$A$9:$A$28),0,VLOOKUP(Data!$B43,tabulka_panely_def,25,FALSE)) ->  | J43: =IF(Data!$B43<MIN(Panely!$A$9:$A$28),VLOOKUP(Data!$B43,tabulka_kce_def,24,FALSE),VLOOKUP(Data!$B43,tabulka_panely_def,33,FALSE)) ->  | K43: =Konstrukce!$D$1 -> 15 | L43: =Konstrukce!$D$2 -> 15 | M43: =Konstrukce!$G$1 -> 0 | N43: =IF(Data!$B43<MIN(Panely!$A$9:$A$28),VLOOKUP(Data!$B43,tabulka_kce_def,59,FALSE),VLOOKUP(Data!$B43,tabulka_panely_def,63,FALSE)) ->  | O43: =IF(Data!$B43<MIN(Panely!$A$9:$A$28),VLOOKUP(Data!$B43,tabulka_kce_def,60,FALSE),VLOOKUP(Data!$B43,tabulka_panely_def,64,FALSE)) ->  | P43: =IF(Data!$B43<MIN(Panely!$A$9:$A$28),VLOOKUP(Data!$B43,tabulka_kce_def,61,FALSE),VLOOKUP(Data!$B43,tabulka_panely_def,65,FALSE)) ->  | Q43: =IF(Data!$B43<MIN(Panely!$A$9:$A$28),VLOOKUP(Data!$B43,tabulka_kce_def,25,FALSE),0) -> 0 | W43: = | X43: =IF(Data!$W43<MIN(Panely!$A$9:$A$28),VLOOKUP(Data!$W43,tabulka_kce_def,62,FALSE),VLOOKUP(Data!$W43,tabulka_panely_def,65,FALSE)) ->  | Y43: =IF(Data!$W43<MIN(Panely!$A$9:$A$28),VLOOKUP(Data!$W43,tabulka_kce_def,Y$1-20,FALSE),VLOOKUP(Data!$W43,tabulka_panely_def,Y$1-18,FALSE)) ->  | Z43: =IF(Data!$W43<MIN(Panely!$A$9:$A$28),VLOOKUP(Data!$W43,tabulka_kce_def,Z$1-20,FALSE),VLOOKUP(Data!$W43,tabulka_panely_def,Z$1-18,FALSE)) ->  | AA43: =IF(Data!$W43<MIN(Panely!$A$9:$A$28),VLOOKUP(Data!$W43,tabulka_kce_def,AA$1-20,FALSE),VLOOKUP(Data!$W43,tabulka_panely_def,AA$1-18,FALSE)) ->  | AB43: =IF(Data!$W43<MIN(Panely!$A$9:$A$28),VLOOKUP(Data!$W43,tabulka_kce_def,AB$1-20,FALSE),VLOOKUP(Data!$W43,tabulka_panely_def,AB$1-18,FALSE)) ->  | AC43: =IF(Data!$W43<MIN(Panely!$A$9:$A$28),VLOOKUP(Data!$W43,tabulka_kce_def,AC$1-20,FALSE),VLOOKUP(Data!$W43,tabulka_panely_def,AC$1-18,FALSE)) ->  | AD43: =IF(Data!$W43<MIN(Panely!$A$9:$A$28),VLOOKUP(Data!$W43,tabulka_kce_def,AD$1-20,FALSE),VLOOKUP(Data!$W43,tabulka_panely_def,AD$1-18,FALSE)) ->  | AE43: =IF(Data!$W43<MIN(Panely!$A$9:$A$28),VLOOKUP(Data!$W43,tabulka_kce_def,AE$1-20,FALSE),VLOOKUP(Data!$W43,tabulka_panely_def,AE$1-18,FALSE)) ->  | AF43: =IF(Data!$W43<MIN(Panely!$A$9:$A$28),VLOOKUP(Data!$W43,tabulka_kce_def,AF$1-20,FALSE),VLOOKUP(Data!$W43,tabulka_panely_def,AF$1-18,FALSE)) ->  | AG43: =IF(Data!$W43<MIN(Panely!$A$9:$A$28),VLOOKUP(Data!$W43,tabulka_kce_def,AG$1-20,FALSE),VLOOKUP(Data!$W43,tabulka_panely_def,AG$1-18,FALSE)) ->  | AH43: =IF(Data!$W43<MIN(Panely!$A$9:$A$28),VLOOKUP(Data!$W43,tabulka_kce_def,AH$1-20,FALSE),VLOOKUP(Data!$W43,tabulka_panely_def,AH$1-18,FALSE)) ->  | AI43: =IF(Data!$W43<MIN(Panely!$A$9:$A$28),VLOOKUP(Data!$W43,tabulka_kce_def,AI$1-20,FALSE),VLOOKUP(Data!$W43,tabulka_panely_def,AI$1-18,FALSE)) ->  | AJ43: =IF(Data!$W43<MIN(Panely!$A$9:$A$28),VLOOKUP(Data!$W43,tabulka_kce_def,AJ$1-20,FALSE),VLOOKUP(Data!$W43,tabulka_panely_def,AJ$1-18,FALSE)) ->  | AK43: =IF(Data!$W43<MIN(Panely!$A$9:$A$28),VLOOKUP(Data!$W43,tabulka_kce_def,AK$1-20,FALSE),VLOOKUP(Data!$W43,tabulka_panely_def,AK$1-18,FALSE)) ->  | AL43: =IF(Data!$W43<MIN(Panely!$A$9:$A$28),VLOOKUP(Data!$W43,tabulka_kce_def,AL$1-20,FALSE),VLOOKUP(Data!$W43,tabulka_panely_def,AL$1-18,FALSE)) ->  | AM43: =IF(Data!$W43<MIN(Panely!$A$9:$A$28),VLOOKUP(Data!$W43,tabulka_kce_def,AM$1-20,FALSE),VLOOKUP(Data!$W43,tabulka_panely_def,AM$1-18,FALSE)) ->  | AN43: 43 | AO43: =IF(Data!$W43<MIN(Panely!$A$9:$A$28),VLOOKUP(Data!$W43,tabulka_kce_def,63,FALSE),0) -> 0 | AP43: =IF(Data!$W43<MIN(Panely!$A$9:$A$28),VLOOKUP(Data!$W43,tabulka_kce_def,28,FALSE),1) -> 1 | AQ43: =IF(Data!$W43<MIN(Panely!$A$9:$A$28),VLOOKUP(Data!$W43,tabulka_kce_def,23,FALSE),VLOOKUP(Data!$W43,tabulka_panely_def,24,FALSE)) ->  | AS43: 0 | AU43: 0 | AV43: 0 | AX43: 0 | AY43: =IF(AND(W43>MAX(Konstrukce!A:A),ISNUMBER(W43)),1,0) -> 0
B44: = | C44: =IF(Data!$B44<MIN(Panely!$A$9:$A$28),VLOOKUP(Data!$B44,tabulka_kce_def,4,FALSE),VLOOKUP(Data!$B44,tabulka_panely_def,4,FALSE)) ->  | D44: =IF(Data!$B44<MIN(Panely!$A$9:$A$28),VLOOKUP(Data!$B44,tabulka_kce_def,23,FALSE),VLOOKUP(Data!$B44,tabulka_panely_def,24,FALSE)) ->  | E44: =IF(Data!$B44<MIN(Panely!$A$9:$A$28),VLOOKUP(Data!$B44,tabulka_kce_def,21,FALSE),VLOOKUP(Data!$B44,tabulka_panely_def,22,FALSE)) ->  | F44: =IF(Data!$B44<MIN(Panely!$A$9:$A$28),VLOOKUP(Data!$B44,tabulka_kce_def,26,FALSE),VLOOKUP(Data!$B44,tabulka_panely_def,31,FALSE)) ->  | G44: =IF(Data!$B44<MIN(Panely!$A$9:$A$28),VLOOKUP(Data!$B44,tabulka_kce_def,27,FALSE),VLOOKUP(Data!$B44,tabulka_panely_def,32,FALSE)) ->  | H44: =IF(VLOOKUP(Data!$B44,tabulka_kce_def,3,FALSE)="",Konstrukce!$G$1,IF(VLOOKUP(Data!$B44,tabulka_kce_def,3,FALSE)="z",Konstrukce!$G$2,VLOOKUP(Data!$B44,tabulka_kce_def,3,FALSE))) ->  | I44: =IF(Data!$B44<MIN(Panely!$A$9:$A$28),0,VLOOKUP(Data!$B44,tabulka_panely_def,25,FALSE)) ->  | J44: =IF(Data!$B44<MIN(Panely!$A$9:$A$28),VLOOKUP(Data!$B44,tabulka_kce_def,24,FALSE),VLOOKUP(Data!$B44,tabulka_panely_def,33,FALSE)) ->  | K44: =Konstrukce!$D$1 -> 15 | L44: =Konstrukce!$D$2 -> 15 | M44: =Konstrukce!$G$1 -> 0 | N44: =IF(Data!$B44<MIN(Panely!$A$9:$A$28),VLOOKUP(Data!$B44,tabulka_kce_def,59,FALSE),VLOOKUP(Data!$B44,tabulka_panely_def,63,FALSE)) ->  | O44: =IF(Data!$B44<MIN(Panely!$A$9:$A$28),VLOOKUP(Data!$B44,tabulka_kce_def,60,FALSE),VLOOKUP(Data!$B44,tabulka_panely_def,64,FALSE)) ->  | P44: =IF(Data!$B44<MIN(Panely!$A$9:$A$28),VLOOKUP(Data!$B44,tabulka_kce_def,61,FALSE),VLOOKUP(Data!$B44,tabulka_panely_def,65,FALSE)) ->  | Q44: =IF(Data!$B44<MIN(Panely!$A$9:$A$28),VLOOKUP(Data!$B44,tabulka_kce_def,25,FALSE),0) -> 0 | W44: = | X44: =IF(Data!$W44<MIN(Panely!$A$9:$A$28),VLOOKUP(Data!$W44,tabulka_kce_def,62,FALSE),VLOOKUP(Data!$W44,tabulka_panely_def,65,FALSE)) ->  | Y44: =IF(Data!$W44<MIN(Panely!$A$9:$A$28),VLOOKUP(Data!$W44,tabulka_kce_def,Y$1-20,FALSE),VLOOKUP(Data!$W44,tabulka_panely_def,Y$1-18,FALSE)) ->  | Z44: =IF(Data!$W44<MIN(Panely!$A$9:$A$28),VLOOKUP(Data!$W44,tabulka_kce_def,Z$1-20,FALSE),VLOOKUP(Data!$W44,tabulka_panely_def,Z$1-18,FALSE)) ->  | AA44: =IF(Data!$W44<MIN(Panely!$A$9:$A$28),VLOOKUP(Data!$W44,tabulka_kce_def,AA$1-20,FALSE),VLOOKUP(Data!$W44,tabulka_panely_def,AA$1-18,FALSE)) ->  | AB44: =IF(Data!$W44<MIN(Panely!$A$9:$A$28),VLOOKUP(Data!$W44,tabulka_kce_def,AB$1-20,FALSE),VLOOKUP(Data!$W44,tabulka_panely_def,AB$1-18,FALSE)) ->  | AC44: =IF(Data!$W44<MIN(Panely!$A$9:$A$28),VLOOKUP(Data!$W44,tabulka_kce_def,AC$1-20,FALSE),VLOOKUP(Data!$W44,tabulka_panely_def,AC$1-18,FALSE)) ->  | AD44: =IF(Data!$W44<MIN(Panely!$A$9:$A$28),VLOOKUP(Data!$W44,tabulka_kce_def,AD$1-20,FALSE),VLOOKUP(Data!$W44,tabulka_panely_def,AD$1-18,FALSE)) ->  | AE44: =IF(Data!$W44<MIN(Panely!$A$9:$A$28),VLOOKUP(Data!$W44,tabulka_kce_def,AE$1-20,FALSE),VLOOKUP(Data!$W44,tabulka_panely_def,AE$1-18,FALSE)) ->  | AF44: =IF(Data!$W44<MIN(Panely!$A$9:$A$28),VLOOKUP(Data!$W44,tabulka_kce_def,AF$1-20,FALSE),VLOOKUP(Data!$W44,tabulka_panely_def,AF$1-18,FALSE)) ->  | AG44: =IF(Data!$W44<MIN(Panely!$A$9:$A$28),VLOOKUP(Data!$W44,tabulka_kce_def,AG$1-20,FALSE),VLOOKUP(Data!$W44,tabulka_panely_def,AG$1-18,FALSE)) ->  | AH44: =IF(Data!$W44<MIN(Panely!$A$9:$A$28),VLOOKUP(Data!$W44,tabulka_kce_def,AH$1-20,FALSE),VLOOKUP(Data!$W44,tabulka_panely_def,AH$1-18,FALSE)) ->  | AI44: =IF(Data!$W44<MIN(Panely!$A$9:$A$28),VLOOKUP(Data!$W44,tabulka_kce_def,AI$1-20,FALSE),VLOOKUP(Data!$W44,tabulka_panely_def,AI$1-18,FALSE)) ->  | AJ44: =IF(Data!$W44<MIN(Panely!$A$9:$A$28),VLOOKUP(Data!$W44,tabulka_kce_def,AJ$1-20,FALSE),VLOOKUP(Data!$W44,tabulka_panely_def,AJ$1-18,FALSE)) ->  | AK44: =IF(Data!$W44<MIN(Panely!$A$9:$A$28),VLOOKUP(Data!$W44,tabulka_kce_def,AK$1-20,FALSE),VLOOKUP(Data!$W44,tabulka_panely_def,AK$1-18,FALSE)) ->  | AL44: =IF(Data!$W44<MIN(Panely!$A$9:$A$28),VLOOKUP(Data!$W44,tabulka_kce_def,AL$1-20,FALSE),VLOOKUP(Data!$W44,tabulka_panely_def,AL$1-18,FALSE)) ->  | AM44: =IF(Data!$W44<MIN(Panely!$A$9:$A$28),VLOOKUP(Data!$W44,tabulka_kce_def,AM$1-20,FALSE),VLOOKUP(Data!$W44,tabulka_panely_def,AM$1-18,FALSE)) ->  | AN44: 44 | AO44: =IF(Data!$W44<MIN(Panely!$A$9:$A$28),VLOOKUP(Data!$W44,tabulka_kce_def,63,FALSE),0) -> 0 | AP44: =IF(Data!$W44<MIN(Panely!$A$9:$A$28),VLOOKUP(Data!$W44,tabulka_kce_def,28,FALSE),1) -> 1 | AQ44: =IF(Data!$W44<MIN(Panely!$A$9:$A$28),VLOOKUP(Data!$W44,tabulka_kce_def,23,FALSE),VLOOKUP(Data!$W44,tabulka_panely_def,24,FALSE)) ->  | AS44: 0 | AU44: 0 | AV44: 0 | AX44: 0 | AY44: =IF(AND(W44>MAX(Konstrukce!A:A),ISNUMBER(W44)),1,0) -> 0
B45: = | C45: =IF(Data!$B45<MIN(Panely!$A$9:$A$28),VLOOKUP(Data!$B45,tabulka_kce_def,4,FALSE),VLOOKUP(Data!$B45,tabulka_panely_def,4,FALSE)) ->  | D45: =IF(Data!$B45<MIN(Panely!$A$9:$A$28),VLOOKUP(Data!$B45,tabulka_kce_def,23,FALSE),VLOOKUP(Data!$B45,tabulka_panely_def,24,FALSE)) ->  | E45: =IF(Data!$B45<MIN(Panely!$A$9:$A$28),VLOOKUP(Data!$B45,tabulka_kce_def,21,FALSE),VLOOKUP(Data!$B45,tabulka_panely_def,22,FALSE)) ->  | F45: =IF(Data!$B45<MIN(Panely!$A$9:$A$28),VLOOKUP(Data!$B45,tabulka_kce_def,26,FALSE),VLOOKUP(Data!$B45,tabulka_panely_def,31,FALSE)) ->  | G45: =IF(Data!$B45<MIN(Panely!$A$9:$A$28),VLOOKUP(Data!$B45,tabulka_kce_def,27,FALSE),VLOOKUP(Data!$B45,tabulka_panely_def,32,FALSE)) ->  | H45: =IF(VLOOKUP(Data!$B45,tabulka_kce_def,3,FALSE)="",Konstrukce!$G$1,IF(VLOOKUP(Data!$B45,tabulka_kce_def,3,FALSE)="z",Konstrukce!$G$2,VLOOKUP(Data!$B45,tabulka_kce_def,3,FALSE))) ->  | I45: =IF(Data!$B45<MIN(Panely!$A$9:$A$28),0,VLOOKUP(Data!$B45,tabulka_panely_def,25,FALSE)) ->  | J45: =IF(Data!$B45<MIN(Panely!$A$9:$A$28),VLOOKUP(Data!$B45,tabulka_kce_def,24,FALSE),VLOOKUP(Data!$B45,tabulka_panely_def,33,FALSE)) ->  | K45: =Konstrukce!$D$1 -> 15 | L45: =Konstrukce!$D$2 -> 15 | M45: =Konstrukce!$G$1 -> 0 | N45: =IF(Data!$B45<MIN(Panely!$A$9:$A$28),VLOOKUP(Data!$B45,tabulka_kce_def,59,FALSE),VLOOKUP(Data!$B45,tabulka_panely_def,63,FALSE)) ->  | O45: =IF(Data!$B45<MIN(Panely!$A$9:$A$28),VLOOKUP(Data!$B45,tabulka_kce_def,60,FALSE),VLOOKUP(Data!$B45,tabulka_panely_def,64,FALSE)) ->  | P45: =IF(Data!$B45<MIN(Panely!$A$9:$A$28),VLOOKUP(Data!$B45,tabulka_kce_def,61,FALSE),VLOOKUP(Data!$B45,tabulka_panely_def,65,FALSE)) ->  | Q45: =IF(Data!$B45<MIN(Panely!$A$9:$A$28),VLOOKUP(Data!$B45,tabulka_kce_def,25,FALSE),0) -> 0 | W45: = | X45: =IF(Data!$W45<MIN(Panely!$A$9:$A$28),VLOOKUP(Data!$W45,tabulka_kce_def,62,FALSE),VLOOKUP(Data!$W45,tabulka_panely_def,65,FALSE)) ->  | Y45: =IF(Data!$W45<MIN(Panely!$A$9:$A$28),VLOOKUP(Data!$W45,tabulka_kce_def,Y$1-20,FALSE),VLOOKUP(Data!$W45,tabulka_panely_def,Y$1-18,FALSE)) ->  | Z45: =IF(Data!$W45<MIN(Panely!$A$9:$A$28),VLOOKUP(Data!$W45,tabulka_kce_def,Z$1-20,FALSE),VLOOKUP(Data!$W45,tabulka_panely_def,Z$1-18,FALSE)) ->  | AA45: =IF(Data!$W45<MIN(Panely!$A$9:$A$28),VLOOKUP(Data!$W45,tabulka_kce_def,AA$1-20,FALSE),VLOOKUP(Data!$W45,tabulka_panely_def,AA$1-18,FALSE)) ->  | AB45: =IF(Data!$W45<MIN(Panely!$A$9:$A$28),VLOOKUP(Data!$W45,tabulka_kce_def,AB$1-20,FALSE),VLOOKUP(Data!$W45,tabulka_panely_def,AB$1-18,FALSE)) ->  | AC45: =IF(Data!$W45<MIN(Panely!$A$9:$A$28),VLOOKUP(Data!$W45,tabulka_kce_def,AC$1-20,FALSE),VLOOKUP(Data!$W45,tabulka_panely_def,AC$1-18,FALSE)) ->  | AD45: =IF(Data!$W45<MIN(Panely!$A$9:$A$28),VLOOKUP(Data!$W45,tabulka_kce_def,AD$1-20,FALSE),VLOOKUP(Data!$W45,tabulka_panely_def,AD$1-18,FALSE)) ->  | AE45: =IF(Data!$W45<MIN(Panely!$A$9:$A$28),VLOOKUP(Data!$W45,tabulka_kce_def,AE$1-20,FALSE),VLOOKUP(Data!$W45,tabulka_panely_def,AE$1-18,FALSE)) ->  | AF45: =IF(Data!$W45<MIN(Panely!$A$9:$A$28),VLOOKUP(Data!$W45,tabulka_kce_def,AF$1-20,FALSE),VLOOKUP(Data!$W45,tabulka_panely_def,AF$1-18,FALSE)) ->  | AG45: =IF(Data!$W45<MIN(Panely!$A$9:$A$28),VLOOKUP(Data!$W45,tabulka_kce_def,AG$1-20,FALSE),VLOOKUP(Data!$W45,tabulka_panely_def,AG$1-18,FALSE)) ->  | AH45: =IF(Data!$W45<MIN(Panely!$A$9:$A$28),VLOOKUP(Data!$W45,tabulka_kce_def,AH$1-20,FALSE),VLOOKUP(Data!$W45,tabulka_panely_def,AH$1-18,FALSE)) ->  | AI45: =IF(Data!$W45<MIN(Panely!$A$9:$A$28),VLOOKUP(Data!$W45,tabulka_kce_def,AI$1-20,FALSE),VLOOKUP(Data!$W45,tabulka_panely_def,AI$1-18,FALSE)) ->  | AJ45: =IF(Data!$W45<MIN(Panely!$A$9:$A$28),VLOOKUP(Data!$W45,tabulka_kce_def,AJ$1-20,FALSE),VLOOKUP(Data!$W45,tabulka_panely_def,AJ$1-18,FALSE)) ->  | AK45: =IF(Data!$W45<MIN(Panely!$A$9:$A$28),VLOOKUP(Data!$W45,tabulka_kce_def,AK$1-20,FALSE),VLOOKUP(Data!$W45,tabulka_panely_def,AK$1-18,FALSE)) ->  | AL45: =IF(Data!$W45<MIN(Panely!$A$9:$A$28),VLOOKUP(Data!$W45,tabulka_kce_def,AL$1-20,FALSE),VLOOKUP(Data!$W45,tabulka_panely_def,AL$1-18,FALSE)) ->  | AM45: =IF(Data!$W45<MIN(Panely!$A$9:$A$28),VLOOKUP(Data!$W45,tabulka_kce_def,AM$1-20,FALSE),VLOOKUP(Data!$W45,tabulka_panely_def,AM$1-18,FALSE)) ->  | AN45: 45 | AO45: =IF(Data!$W45<MIN(Panely!$A$9:$A$28),VLOOKUP(Data!$W45,tabulka_kce_def,63,FALSE),0) -> 0 | AP45: =IF(Data!$W45<MIN(Panely!$A$9:$A$28),VLOOKUP(Data!$W45,tabulka_kce_def,28,FALSE),1) -> 1 | AQ45: =IF(Data!$W45<MIN(Panely!$A$9:$A$28),VLOOKUP(Data!$W45,tabulka_kce_def,23,FALSE),VLOOKUP(Data!$W45,tabulka_panely_def,24,FALSE)) ->  | AS45: 0 | AU45: 0 | AV45: 0 | AX45: 0 | AY45: =IF(AND(W45>MAX(Konstrukce!A:A),ISNUMBER(W45)),1,0) -> 0
B46: = | C46: =IF(Data!$B46<MIN(Panely!$A$9:$A$28),VLOOKUP(Data!$B46,tabulka_kce_def,4,FALSE),VLOOKUP(Data!$B46,tabulka_panely_def,4,FALSE)) ->  | D46: =IF(Data!$B46<MIN(Panely!$A$9:$A$28),VLOOKUP(Data!$B46,tabulka_kce_def,23,FALSE),VLOOKUP(Data!$B46,tabulka_panely_def,24,FALSE)) ->  | E46: =IF(Data!$B46<MIN(Panely!$A$9:$A$28),VLOOKUP(Data!$B46,tabulka_kce_def,21,FALSE),VLOOKUP(Data!$B46,tabulka_panely_def,22,FALSE)) ->  | F46: =IF(Data!$B46<MIN(Panely!$A$9:$A$28),VLOOKUP(Data!$B46,tabulka_kce_def,26,FALSE),VLOOKUP(Data!$B46,tabulka_panely_def,31,FALSE)) ->  | G46: =IF(Data!$B46<MIN(Panely!$A$9:$A$28),VLOOKUP(Data!$B46,tabulka_kce_def,27,FALSE),VLOOKUP(Data!$B46,tabulka_panely_def,32,FALSE)) ->  | H46: =IF(VLOOKUP(Data!$B46,tabulka_kce_def,3,FALSE)="",Konstrukce!$G$1,IF(VLOOKUP(Data!$B46,tabulka_kce_def,3,FALSE)="z",Konstrukce!$G$2,VLOOKUP(Data!$B46,tabulka_kce_def,3,FALSE))) ->  | I46: =IF(Data!$B46<MIN(Panely!$A$9:$A$28),0,VLOOKUP(Data!$B46,tabulka_panely_def,25,FALSE)) ->  | J46: =IF(Data!$B46<MIN(Panely!$A$9:$A$28),VLOOKUP(Data!$B46,tabulka_kce_def,24,FALSE),VLOOKUP(Data!$B46,tabulka_panely_def,33,FALSE)) ->  | K46: =Konstrukce!$D$1 -> 15 | L46: =Konstrukce!$D$2 -> 15 | M46: =Konstrukce!$G$1 -> 0 | N46: =IF(Data!$B46<MIN(Panely!$A$9:$A$28),VLOOKUP(Data!$B46,tabulka_kce_def,59,FALSE),VLOOKUP(Data!$B46,tabulka_panely_def,63,FALSE)) ->  | O46: =IF(Data!$B46<MIN(Panely!$A$9:$A$28),VLOOKUP(Data!$B46,tabulka_kce_def,60,FALSE),VLOOKUP(Data!$B46,tabulka_panely_def,64,FALSE)) ->  | P46: =IF(Data!$B46<MIN(Panely!$A$9:$A$28),VLOOKUP(Data!$B46,tabulka_kce_def,61,FALSE),VLOOKUP(Data!$B46,tabulka_panely_def,65,FALSE)) ->  | Q46: =IF(Data!$B46<MIN(Panely!$A$9:$A$28),VLOOKUP(Data!$B46,tabulka_kce_def,25,FALSE),0) -> 0 | W46: = | X46: =IF(Data!$W46<MIN(Panely!$A$9:$A$28),VLOOKUP(Data!$W46,tabulka_kce_def,62,FALSE),VLOOKUP(Data!$W46,tabulka_panely_def,65,FALSE)) ->  | Y46: =IF(Data!$W46<MIN(Panely!$A$9:$A$28),VLOOKUP(Data!$W46,tabulka_kce_def,Y$1-20,FALSE),VLOOKUP(Data!$W46,tabulka_panely_def,Y$1-18,FALSE)) ->  | Z46: =IF(Data!$W46<MIN(Panely!$A$9:$A$28),VLOOKUP(Data!$W46,tabulka_kce_def,Z$1-20,FALSE),VLOOKUP(Data!$W46,tabulka_panely_def,Z$1-18,FALSE)) ->  | AA46: =IF(Data!$W46<MIN(Panely!$A$9:$A$28),VLOOKUP(Data!$W46,tabulka_kce_def,AA$1-20,FALSE),VLOOKUP(Data!$W46,tabulka_panely_def,AA$1-18,FALSE)) ->  | AB46: =IF(Data!$W46<MIN(Panely!$A$9:$A$28),VLOOKUP(Data!$W46,tabulka_kce_def,AB$1-20,FALSE),VLOOKUP(Data!$W46,tabulka_panely_def,AB$1-18,FALSE)) ->  | AC46: =IF(Data!$W46<MIN(Panely!$A$9:$A$28),VLOOKUP(Data!$W46,tabulka_kce_def,AC$1-20,FALSE),VLOOKUP(Data!$W46,tabulka_panely_def,AC$1-18,FALSE)) ->  | AD46: =IF(Data!$W46<MIN(Panely!$A$9:$A$28),VLOOKUP(Data!$W46,tabulka_kce_def,AD$1-20,FALSE),VLOOKUP(Data!$W46,tabulka_panely_def,AD$1-18,FALSE)) ->  | AE46: =IF(Data!$W46<MIN(Panely!$A$9:$A$28),VLOOKUP(Data!$W46,tabulka_kce_def,AE$1-20,FALSE),VLOOKUP(Data!$W46,tabulka_panely_def,AE$1-18,FALSE)) ->  | AF46: =IF(Data!$W46<MIN(Panely!$A$9:$A$28),VLOOKUP(Data!$W46,tabulka_kce_def,AF$1-20,FALSE),VLOOKUP(Data!$W46,tabulka_panely_def,AF$1-18,FALSE)) ->  | AG46: =IF(Data!$W46<MIN(Panely!$A$9:$A$28),VLOOKUP(Data!$W46,tabulka_kce_def,AG$1-20,FALSE),VLOOKUP(Data!$W46,tabulka_panely_def,AG$1-18,FALSE)) ->  | AH46: =IF(Data!$W46<MIN(Panely!$A$9:$A$28),VLOOKUP(Data!$W46,tabulka_kce_def,AH$1-20,FALSE),VLOOKUP(Data!$W46,tabulka_panely_def,AH$1-18,FALSE)) ->  | AI46: =IF(Data!$W46<MIN(Panely!$A$9:$A$28),VLOOKUP(Data!$W46,tabulka_kce_def,AI$1-20,FALSE),VLOOKUP(Data!$W46,tabulka_panely_def,AI$1-18,FALSE)) ->  | AJ46: =IF(Data!$W46<MIN(Panely!$A$9:$A$28),VLOOKUP(Data!$W46,tabulka_kce_def,AJ$1-20,FALSE),VLOOKUP(Data!$W46,tabulka_panely_def,AJ$1-18,FALSE)) ->  | AK46: =IF(Data!$W46<MIN(Panely!$A$9:$A$28),VLOOKUP(Data!$W46,tabulka_kce_def,AK$1-20,FALSE),VLOOKUP(Data!$W46,tabulka_panely_def,AK$1-18,FALSE)) ->  | AL46: =IF(Data!$W46<MIN(Panely!$A$9:$A$28),VLOOKUP(Data!$W46,tabulka_kce_def,AL$1-20,FALSE),VLOOKUP(Data!$W46,tabulka_panely_def,AL$1-18,FALSE)) ->  | AM46: =IF(Data!$W46<MIN(Panely!$A$9:$A$28),VLOOKUP(Data!$W46,tabulka_kce_def,AM$1-20,FALSE),VLOOKUP(Data!$W46,tabulka_panely_def,AM$1-18,FALSE)) ->  | AN46: 46 | AO46: =IF(Data!$W46<MIN(Panely!$A$9:$A$28),VLOOKUP(Data!$W46,tabulka_kce_def,63,FALSE),0) -> 0 | AP46: =IF(Data!$W46<MIN(Panely!$A$9:$A$28),VLOOKUP(Data!$W46,tabulka_kce_def,28,FALSE),1) -> 1 | AQ46: =IF(Data!$W46<MIN(Panely!$A$9:$A$28),VLOOKUP(Data!$W46,tabulka_kce_def,23,FALSE),VLOOKUP(Data!$W46,tabulka_panely_def,24,FALSE)) ->  | AS46: 0 | AU46: 0 | AV46: 0 | AX46: 0 | AY46: =IF(AND(W46>MAX(Konstrukce!A:A),ISNUMBER(W46)),1,0) -> 0
B47: = | C47: =IF(Data!$B47<MIN(Panely!$A$9:$A$28),VLOOKUP(Data!$B47,tabulka_kce_def,4,FALSE),VLOOKUP(Data!$B47,tabulka_panely_def,4,FALSE)) ->  | D47: =IF(Data!$B47<MIN(Panely!$A$9:$A$28),VLOOKUP(Data!$B47,tabulka_kce_def,23,FALSE),VLOOKUP(Data!$B47,tabulka_panely_def,24,FALSE)) ->  | E47: =IF(Data!$B47<MIN(Panely!$A$9:$A$28),VLOOKUP(Data!$B47,tabulka_kce_def,21,FALSE),VLOOKUP(Data!$B47,tabulka_panely_def,22,FALSE)) ->  | F47: =IF(Data!$B47<MIN(Panely!$A$9:$A$28),VLOOKUP(Data!$B47,tabulka_kce_def,26,FALSE),VLOOKUP(Data!$B47,tabulka_panely_def,31,FALSE)) ->  | G47: =IF(Data!$B47<MIN(Panely!$A$9:$A$28),VLOOKUP(Data!$B47,tabulka_kce_def,27,FALSE),VLOOKUP(Data!$B47,tabulka_panely_def,32,FALSE)) ->  | H47: =IF(VLOOKUP(Data!$B47,tabulka_kce_def,3,FALSE)="",Konstrukce!$G$1,IF(VLOOKUP(Data!$B47,tabulka_kce_def,3,FALSE)="z",Konstrukce!$G$2,VLOOKUP(Data!$B47,tabulka_kce_def,3,FALSE))) ->  | I47: =IF(Data!$B47<MIN(Panely!$A$9:$A$28),0,VLOOKUP(Data!$B47,tabulka_panely_def,25,FALSE)) ->  | J47: =IF(Data!$B47<MIN(Panely!$A$9:$A$28),VLOOKUP(Data!$B47,tabulka_kce_def,24,FALSE),VLOOKUP(Data!$B47,tabulka_panely_def,33,FALSE)) ->  | K47: =Konstrukce!$D$1 -> 15 | L47: =Konstrukce!$D$2 -> 15 | M47: =Konstrukce!$G$1 -> 0 | N47: =IF(Data!$B47<MIN(Panely!$A$9:$A$28),VLOOKUP(Data!$B47,tabulka_kce_def,59,FALSE),VLOOKUP(Data!$B47,tabulka_panely_def,63,FALSE)) ->  | O47: =IF(Data!$B47<MIN(Panely!$A$9:$A$28),VLOOKUP(Data!$B47,tabulka_kce_def,60,FALSE),VLOOKUP(Data!$B47,tabulka_panely_def,64,FALSE)) ->  | P47: =IF(Data!$B47<MIN(Panely!$A$9:$A$28),VLOOKUP(Data!$B47,tabulka_kce_def,61,FALSE),VLOOKUP(Data!$B47,tabulka_panely_def,65,FALSE)) ->  | Q47: =IF(Data!$B47<MIN(Panely!$A$9:$A$28),VLOOKUP(Data!$B47,tabulka_kce_def,25,FALSE),0) -> 0 | W47: = | X47: =IF(Data!$W47<MIN(Panely!$A$9:$A$28),VLOOKUP(Data!$W47,tabulka_kce_def,62,FALSE),VLOOKUP(Data!$W47,tabulka_panely_def,65,FALSE)) ->  | Y47: =IF(Data!$W47<MIN(Panely!$A$9:$A$28),VLOOKUP(Data!$W47,tabulka_kce_def,Y$1-20,FALSE),VLOOKUP(Data!$W47,tabulka_panely_def,Y$1-18,FALSE)) ->  | Z47: =IF(Data!$W47<MIN(Panely!$A$9:$A$28),VLOOKUP(Data!$W47,tabulka_kce_def,Z$1-20,FALSE),VLOOKUP(Data!$W47,tabulka_panely_def,Z$1-18,FALSE)) ->  | AA47: =IF(Data!$W47<MIN(Panely!$A$9:$A$28),VLOOKUP(Data!$W47,tabulka_kce_def,AA$1-20,FALSE),VLOOKUP(Data!$W47,tabulka_panely_def,AA$1-18,FALSE)) ->  | AB47: =IF(Data!$W47<MIN(Panely!$A$9:$A$28),VLOOKUP(Data!$W47,tabulka_kce_def,AB$1-20,FALSE),VLOOKUP(Data!$W47,tabulka_panely_def,AB$1-18,FALSE)) ->  | AC47: =IF(Data!$W47<MIN(Panely!$A$9:$A$28),VLOOKUP(Data!$W47,tabulka_kce_def,AC$1-20,FALSE),VLOOKUP(Data!$W47,tabulka_panely_def,AC$1-18,FALSE)) ->  | AD47: =IF(Data!$W47<MIN(Panely!$A$9:$A$28),VLOOKUP(Data!$W47,tabulka_kce_def,AD$1-20,FALSE),VLOOKUP(Data!$W47,tabulka_panely_def,AD$1-18,FALSE)) ->  | AE47: =IF(Data!$W47<MIN(Panely!$A$9:$A$28),VLOOKUP(Data!$W47,tabulka_kce_def,AE$1-20,FALSE),VLOOKUP(Data!$W47,tabulka_panely_def,AE$1-18,FALSE)) ->  | AF47: =IF(Data!$W47<MIN(Panely!$A$9:$A$28),VLOOKUP(Data!$W47,tabulka_kce_def,AF$1-20,FALSE),VLOOKUP(Data!$W47,tabulka_panely_def,AF$1-18,FALSE)) ->  | AG47: =IF(Data!$W47<MIN(Panely!$A$9:$A$28),VLOOKUP(Data!$W47,tabulka_kce_def,AG$1-20,FALSE),VLOOKUP(Data!$W47,tabulka_panely_def,AG$1-18,FALSE)) ->  | AH47: =IF(Data!$W47<MIN(Panely!$A$9:$A$28),VLOOKUP(Data!$W47,tabulka_kce_def,AH$1-20,FALSE),VLOOKUP(Data!$W47,tabulka_panely_def,AH$1-18,FALSE)) ->  | AI47: =IF(Data!$W47<MIN(Panely!$A$9:$A$28),VLOOKUP(Data!$W47,tabulka_kce_def,AI$1-20,FALSE),VLOOKUP(Data!$W47,tabulka_panely_def,AI$1-18,FALSE)) ->  | AJ47: =IF(Data!$W47<MIN(Panely!$A$9:$A$28),VLOOKUP(Data!$W47,tabulka_kce_def,AJ$1-20,FALSE),VLOOKUP(Data!$W47,tabulka_panely_def,AJ$1-18,FALSE)) ->  | AK47: =IF(Data!$W47<MIN(Panely!$A$9:$A$28),VLOOKUP(Data!$W47,tabulka_kce_def,AK$1-20,FALSE),VLOOKUP(Data!$W47,tabulka_panely_def,AK$1-18,FALSE)) ->  | AL47: =IF(Data!$W47<MIN(Panely!$A$9:$A$28),VLOOKUP(Data!$W47,tabulka_kce_def,AL$1-20,FALSE),VLOOKUP(Data!$W47,tabulka_panely_def,AL$1-18,FALSE)) ->  | AM47: =IF(Data!$W47<MIN(Panely!$A$9:$A$28),VLOOKUP(Data!$W47,tabulka_kce_def,AM$1-20,FALSE),VLOOKUP(Data!$W47,tabulka_panely_def,AM$1-18,FALSE)) ->  | AN47: 47 | AO47: =IF(Data!$W47<MIN(Panely!$A$9:$A$28),VLOOKUP(Data!$W47,tabulka_kce_def,63,FALSE),0) -> 0 | AP47: =IF(Data!$W47<MIN(Panely!$A$9:$A$28),VLOOKUP(Data!$W47,tabulka_kce_def,28,FALSE),1) -> 1 | AQ47: =IF(Data!$W47<MIN(Panely!$A$9:$A$28),VLOOKUP(Data!$W47,tabulka_kce_def,23,FALSE),VLOOKUP(Data!$W47,tabulka_panely_def,24,FALSE)) ->  | AS47: 0 | AU47: 0 | AV47: 0 | AX47: 0 | AY47: =IF(AND(W47>MAX(Konstrukce!A:A),ISNUMBER(W47)),1,0) -> 0
B48: = | C48: =IF(Data!$B48<MIN(Panely!$A$9:$A$28),VLOOKUP(Data!$B48,tabulka_kce_def,4,FALSE),VLOOKUP(Data!$B48,tabulka_panely_def,4,FALSE)) ->  | D48: =IF(Data!$B48<MIN(Panely!$A$9:$A$28),VLOOKUP(Data!$B48,tabulka_kce_def,23,FALSE),VLOOKUP(Data!$B48,tabulka_panely_def,24,FALSE)) ->  | E48: =IF(Data!$B48<MIN(Panely!$A$9:$A$28),VLOOKUP(Data!$B48,tabulka_kce_def,21,FALSE),VLOOKUP(Data!$B48,tabulka_panely_def,22,FALSE)) ->  | F48: =IF(Data!$B48<MIN(Panely!$A$9:$A$28),VLOOKUP(Data!$B48,tabulka_kce_def,26,FALSE),VLOOKUP(Data!$B48,tabulka_panely_def,31,FALSE)) ->  | G48: =IF(Data!$B48<MIN(Panely!$A$9:$A$28),VLOOKUP(Data!$B48,tabulka_kce_def,27,FALSE),VLOOKUP(Data!$B48,tabulka_panely_def,32,FALSE)) ->  | H48: =IF(VLOOKUP(Data!$B48,tabulka_kce_def,3,FALSE)="",Konstrukce!$G$1,IF(VLOOKUP(Data!$B48,tabulka_kce_def,3,FALSE)="z",Konstrukce!$G$2,VLOOKUP(Data!$B48,tabulka_kce_def,3,FALSE))) ->  | I48: =IF(Data!$B48<MIN(Panely!$A$9:$A$28),0,VLOOKUP(Data!$B48,tabulka_panely_def,25,FALSE)) ->  | J48: =IF(Data!$B48<MIN(Panely!$A$9:$A$28),VLOOKUP(Data!$B48,tabulka_kce_def,24,FALSE),VLOOKUP(Data!$B48,tabulka_panely_def,33,FALSE)) ->  | K48: =Konstrukce!$D$1 -> 15 | L48: =Konstrukce!$D$2 -> 15 | M48: =Konstrukce!$G$1 -> 0 | N48: =IF(Data!$B48<MIN(Panely!$A$9:$A$28),VLOOKUP(Data!$B48,tabulka_kce_def,59,FALSE),VLOOKUP(Data!$B48,tabulka_panely_def,63,FALSE)) ->  | O48: =IF(Data!$B48<MIN(Panely!$A$9:$A$28),VLOOKUP(Data!$B48,tabulka_kce_def,60,FALSE),VLOOKUP(Data!$B48,tabulka_panely_def,64,FALSE)) ->  | P48: =IF(Data!$B48<MIN(Panely!$A$9:$A$28),VLOOKUP(Data!$B48,tabulka_kce_def,61,FALSE),VLOOKUP(Data!$B48,tabulka_panely_def,65,FALSE)) ->  | Q48: =IF(Data!$B48<MIN(Panely!$A$9:$A$28),VLOOKUP(Data!$B48,tabulka_kce_def,25,FALSE),0) -> 0 | W48: = | X48: =IF(Data!$W48<MIN(Panely!$A$9:$A$28),VLOOKUP(Data!$W48,tabulka_kce_def,62,FALSE),VLOOKUP(Data!$W48,tabulka_panely_def,65,FALSE)) ->  | Y48: =IF(Data!$W48<MIN(Panely!$A$9:$A$28),VLOOKUP(Data!$W48,tabulka_kce_def,Y$1-20,FALSE),VLOOKUP(Data!$W48,tabulka_panely_def,Y$1-18,FALSE)) ->  | Z48: =IF(Data!$W48<MIN(Panely!$A$9:$A$28),VLOOKUP(Data!$W48,tabulka_kce_def,Z$1-20,FALSE),VLOOKUP(Data!$W48,tabulka_panely_def,Z$1-18,FALSE)) ->  | AA48: =IF(Data!$W48<MIN(Panely!$A$9:$A$28),VLOOKUP(Data!$W48,tabulka_kce_def,AA$1-20,FALSE),VLOOKUP(Data!$W48,tabulka_panely_def,AA$1-18,FALSE)) ->  | AB48: =IF(Data!$W48<MIN(Panely!$A$9:$A$28),VLOOKUP(Data!$W48,tabulka_kce_def,AB$1-20,FALSE),VLOOKUP(Data!$W48,tabulka_panely_def,AB$1-18,FALSE)) ->  | AC48: =IF(Data!$W48<MIN(Panely!$A$9:$A$28),VLOOKUP(Data!$W48,tabulka_kce_def,AC$1-20,FALSE),VLOOKUP(Data!$W48,tabulka_panely_def,AC$1-18,FALSE)) ->  | AD48: =IF(Data!$W48<MIN(Panely!$A$9:$A$28),VLOOKUP(Data!$W48,tabulka_kce_def,AD$1-20,FALSE),VLOOKUP(Data!$W48,tabulka_panely_def,AD$1-18,FALSE)) ->  | AE48: =IF(Data!$W48<MIN(Panely!$A$9:$A$28),VLOOKUP(Data!$W48,tabulka_kce_def,AE$1-20,FALSE),VLOOKUP(Data!$W48,tabulka_panely_def,AE$1-18,FALSE)) ->  | AF48: =IF(Data!$W48<MIN(Panely!$A$9:$A$28),VLOOKUP(Data!$W48,tabulka_kce_def,AF$1-20,FALSE),VLOOKUP(Data!$W48,tabulka_panely_def,AF$1-18,FALSE)) ->  | AG48: =IF(Data!$W48<MIN(Panely!$A$9:$A$28),VLOOKUP(Data!$W48,tabulka_kce_def,AG$1-20,FALSE),VLOOKUP(Data!$W48,tabulka_panely_def,AG$1-18,FALSE)) ->  | AH48: =IF(Data!$W48<MIN(Panely!$A$9:$A$28),VLOOKUP(Data!$W48,tabulka_kce_def,AH$1-20,FALSE),VLOOKUP(Data!$W48,tabulka_panely_def,AH$1-18,FALSE)) ->  | AI48: =IF(Data!$W48<MIN(Panely!$A$9:$A$28),VLOOKUP(Data!$W48,tabulka_kce_def,AI$1-20,FALSE),VLOOKUP(Data!$W48,tabulka_panely_def,AI$1-18,FALSE)) ->  | AJ48: =IF(Data!$W48<MIN(Panely!$A$9:$A$28),VLOOKUP(Data!$W48,tabulka_kce_def,AJ$1-20,FALSE),VLOOKUP(Data!$W48,tabulka_panely_def,AJ$1-18,FALSE)) ->  | AK48: =IF(Data!$W48<MIN(Panely!$A$9:$A$28),VLOOKUP(Data!$W48,tabulka_kce_def,AK$1-20,FALSE),VLOOKUP(Data!$W48,tabulka_panely_def,AK$1-18,FALSE)) ->  | AL48: =IF(Data!$W48<MIN(Panely!$A$9:$A$28),VLOOKUP(Data!$W48,tabulka_kce_def,AL$1-20,FALSE),VLOOKUP(Data!$W48,tabulka_panely_def,AL$1-18,FALSE)) ->  | AM48: =IF(Data!$W48<MIN(Panely!$A$9:$A$28),VLOOKUP(Data!$W48,tabulka_kce_def,AM$1-20,FALSE),VLOOKUP(Data!$W48,tabulka_panely_def,AM$1-18,FALSE)) ->  | AN48: 48 | AO48: =IF(Data!$W48<MIN(Panely!$A$9:$A$28),VLOOKUP(Data!$W48,tabulka_kce_def,63,FALSE),0) -> 0 | AP48: =IF(Data!$W48<MIN(Panely!$A$9:$A$28),VLOOKUP(Data!$W48,tabulka_kce_def,28,FALSE),1) -> 1 | AQ48: =IF(Data!$W48<MIN(Panely!$A$9:$A$28),VLOOKUP(Data!$W48,tabulka_kce_def,23,FALSE),VLOOKUP(Data!$W48,tabulka_panely_def,24,FALSE)) ->  | AS48: 0 | AU48: =IF(ISERROR(MID(VLOOKUP($W48,tabulka_kce_def,2,FALSE),1,3)="ooz"),0,IF(MID(VLOOKUP($W48,tabulka_kce_def,2,FALSE),1,3)="ooz",1,0)) -> 0 | AV48: =IF(ISERROR(MID(VLOOKUP($W48,tabulka_kce_def,60,FALSE),1,1)="f"),0,IF(MID(VLOOKUP($W48,tabulka_kce_def,60,FALSE),1,1)="f",1,0)) -> 0 | AW48: =VALUE(VLOOKUP($W48,tabulka_kce_def,61,FALSE)) ->  | AX48: =IF(AV48=1,IF(MID(VLOOKUP(AW48,tabulka_kce_def,2,FALSE),1,3)="ooz",1,0),0) -> 0 | AY48: =IF(AND(W48>MAX(Konstrukce!A:A),ISNUMBER(W48)),1,0) -> 0
B49: = | C49: =IF(Data!$B49<MIN(Panely!$A$9:$A$28),VLOOKUP(Data!$B49,tabulka_kce_def,4,FALSE),VLOOKUP(Data!$B49,tabulka_panely_def,4,FALSE)) ->  | D49: =IF(Data!$B49<MIN(Panely!$A$9:$A$28),VLOOKUP(Data!$B49,tabulka_kce_def,23,FALSE),VLOOKUP(Data!$B49,tabulka_panely_def,24,FALSE)) ->  | E49: =IF(Data!$B49<MIN(Panely!$A$9:$A$28),VLOOKUP(Data!$B49,tabulka_kce_def,21,FALSE),VLOOKUP(Data!$B49,tabulka_panely_def,22,FALSE)) ->  | F49: =IF(Data!$B49<MIN(Panely!$A$9:$A$28),VLOOKUP(Data!$B49,tabulka_kce_def,26,FALSE),VLOOKUP(Data!$B49,tabulka_panely_def,31,FALSE)) ->  | G49: =IF(Data!$B49<MIN(Panely!$A$9:$A$28),VLOOKUP(Data!$B49,tabulka_kce_def,27,FALSE),VLOOKUP(Data!$B49,tabulka_panely_def,32,FALSE)) ->  | H49: =IF(VLOOKUP(Data!$B49,tabulka_kce_def,3,FALSE)="",Konstrukce!$G$1,IF(VLOOKUP(Data!$B49,tabulka_kce_def,3,FALSE)="z",Konstrukce!$G$2,VLOOKUP(Data!$B49,tabulka_kce_def,3,FALSE))) ->  | I49: =IF(Data!$B49<MIN(Panely!$A$9:$A$28),0,VLOOKUP(Data!$B49,tabulka_panely_def,25,FALSE)) ->  | J49: =IF(Data!$B49<MIN(Panely!$A$9:$A$28),VLOOKUP(Data!$B49,tabulka_kce_def,24,FALSE),VLOOKUP(Data!$B49,tabulka_panely_def,33,FALSE)) ->  | K49: =Konstrukce!$D$1 -> 15 | L49: =Konstrukce!$D$2 -> 15 | M49: =Konstrukce!$G$1 -> 0 | N49: =IF(Data!$B49<MIN(Panely!$A$9:$A$28),VLOOKUP(Data!$B49,tabulka_kce_def,59,FALSE),VLOOKUP(Data!$B49,tabulka_panely_def,63,FALSE)) ->  | O49: =IF(Data!$B49<MIN(Panely!$A$9:$A$28),VLOOKUP(Data!$B49,tabulka_kce_def,60,FALSE),VLOOKUP(Data!$B49,tabulka_panely_def,64,FALSE)) ->  | P49: =IF(Data!$B49<MIN(Panely!$A$9:$A$28),VLOOKUP(Data!$B49,tabulka_kce_def,61,FALSE),VLOOKUP(Data!$B49,tabulka_panely_def,65,FALSE)) ->  | Q49: =IF(Data!$B49<MIN(Panely!$A$9:$A$28),VLOOKUP(Data!$B49,tabulka_kce_def,25,FALSE),0) -> 0 | W49: = | X49: =IF(Data!$W49<MIN(Panely!$A$9:$A$28),VLOOKUP(Data!$W49,tabulka_kce_def,62,FALSE),VLOOKUP(Data!$W49,tabulka_panely_def,65,FALSE)) ->  | Y49: =IF(Data!$W49<MIN(Panely!$A$9:$A$28),VLOOKUP(Data!$W49,tabulka_kce_def,Y$1-20,FALSE),VLOOKUP(Data!$W49,tabulka_panely_def,Y$1-18,FALSE)) ->  | Z49: =IF(Data!$W49<MIN(Panely!$A$9:$A$28),VLOOKUP(Data!$W49,tabulka_kce_def,Z$1-20,FALSE),VLOOKUP(Data!$W49,tabulka_panely_def,Z$1-18,FALSE)) ->  | AA49: =IF(Data!$W49<MIN(Panely!$A$9:$A$28),VLOOKUP(Data!$W49,tabulka_kce_def,AA$1-20,FALSE),VLOOKUP(Data!$W49,tabulka_panely_def,AA$1-18,FALSE)) ->  | AB49: =IF(Data!$W49<MIN(Panely!$A$9:$A$28),VLOOKUP(Data!$W49,tabulka_kce_def,AB$1-20,FALSE),VLOOKUP(Data!$W49,tabulka_panely_def,AB$1-18,FALSE)) ->  | AC49: =IF(Data!$W49<MIN(Panely!$A$9:$A$28),VLOOKUP(Data!$W49,tabulka_kce_def,AC$1-20,FALSE),VLOOKUP(Data!$W49,tabulka_panely_def,AC$1-18,FALSE)) ->  | AD49: =IF(Data!$W49<MIN(Panely!$A$9:$A$28),VLOOKUP(Data!$W49,tabulka_kce_def,AD$1-20,FALSE),VLOOKUP(Data!$W49,tabulka_panely_def,AD$1-18,FALSE)) ->  | AE49: =IF(Data!$W49<MIN(Panely!$A$9:$A$28),VLOOKUP(Data!$W49,tabulka_kce_def,AE$1-20,FALSE),VLOOKUP(Data!$W49,tabulka_panely_def,AE$1-18,FALSE)) ->  | AF49: =IF(Data!$W49<MIN(Panely!$A$9:$A$28),VLOOKUP(Data!$W49,tabulka_kce_def,AF$1-20,FALSE),VLOOKUP(Data!$W49,tabulka_panely_def,AF$1-18,FALSE)) ->  | AG49: =IF(Data!$W49<MIN(Panely!$A$9:$A$28),VLOOKUP(Data!$W49,tabulka_kce_def,AG$1-20,FALSE),VLOOKUP(Data!$W49,tabulka_panely_def,AG$1-18,FALSE)) ->  | AH49: =IF(Data!$W49<MIN(Panely!$A$9:$A$28),VLOOKUP(Data!$W49,tabulka_kce_def,AH$1-20,FALSE),VLOOKUP(Data!$W49,tabulka_panely_def,AH$1-18,FALSE)) ->  | AI49: =IF(Data!$W49<MIN(Panely!$A$9:$A$28),VLOOKUP(Data!$W49,tabulka_kce_def,AI$1-20,FALSE),VLOOKUP(Data!$W49,tabulka_panely_def,AI$1-18,FALSE)) ->  | AJ49: =IF(Data!$W49<MIN(Panely!$A$9:$A$28),VLOOKUP(Data!$W49,tabulka_kce_def,AJ$1-20,FALSE),VLOOKUP(Data!$W49,tabulka_panely_def,AJ$1-18,FALSE)) ->  | AK49: =IF(Data!$W49<MIN(Panely!$A$9:$A$28),VLOOKUP(Data!$W49,tabulka_kce_def,AK$1-20,FALSE),VLOOKUP(Data!$W49,tabulka_panely_def,AK$1-18,FALSE)) ->  | AL49: =IF(Data!$W49<MIN(Panely!$A$9:$A$28),VLOOKUP(Data!$W49,tabulka_kce_def,AL$1-20,FALSE),VLOOKUP(Data!$W49,tabulka_panely_def,AL$1-18,FALSE)) ->  | AM49: =IF(Data!$W49<MIN(Panely!$A$9:$A$28),VLOOKUP(Data!$W49,tabulka_kce_def,AM$1-20,FALSE),VLOOKUP(Data!$W49,tabulka_panely_def,AM$1-18,FALSE)) ->  | AN49: 49 | AO49: =IF(Data!$W49<MIN(Panely!$A$9:$A$28),VLOOKUP(Data!$W49,tabulka_kce_def,63,FALSE),0) -> 0 | AP49: =IF(Data!$W49<MIN(Panely!$A$9:$A$28),VLOOKUP(Data!$W49,tabulka_kce_def,28,FALSE),1) -> 1 | AQ49: =IF(Data!$W49<MIN(Panely!$A$9:$A$28),VLOOKUP(Data!$W49,tabulka_kce_def,23,FALSE),VLOOKUP(Data!$W49,tabulka_panely_def,24,FALSE)) ->  | AS49: 0 | AU49: 0 | AV49: 0 | AX49: 0 | AY49: =IF(AND(W49>MAX(Konstrukce!A:A),ISNUMBER(W49)),1,0) -> 0
B50: = | C50: =IF(Data!$B50<MIN(Panely!$A$9:$A$28),VLOOKUP(Data!$B50,tabulka_kce_def,4,FALSE),VLOOKUP(Data!$B50,tabulka_panely_def,4,FALSE)) ->  | D50: =IF(Data!$B50<MIN(Panely!$A$9:$A$28),VLOOKUP(Data!$B50,tabulka_kce_def,23,FALSE),VLOOKUP(Data!$B50,tabulka_panely_def,24,FALSE)) ->  | E50: =IF(Data!$B50<MIN(Panely!$A$9:$A$28),VLOOKUP(Data!$B50,tabulka_kce_def,21,FALSE),VLOOKUP(Data!$B50,tabulka_panely_def,22,FALSE)) ->  | F50: =IF(Data!$B50<MIN(Panely!$A$9:$A$28),VLOOKUP(Data!$B50,tabulka_kce_def,26,FALSE),VLOOKUP(Data!$B50,tabulka_panely_def,31,FALSE)) ->  | G50: =IF(Data!$B50<MIN(Panely!$A$9:$A$28),VLOOKUP(Data!$B50,tabulka_kce_def,27,FALSE),VLOOKUP(Data!$B50,tabulka_panely_def,32,FALSE)) ->  | H50: =IF(VLOOKUP(Data!$B50,tabulka_kce_def,3,FALSE)="",Konstrukce!$G$1,IF(VLOOKUP(Data!$B50,tabulka_kce_def,3,FALSE)="z",Konstrukce!$G$2,VLOOKUP(Data!$B50,tabulka_kce_def,3,FALSE))) ->  | I50: =IF(Data!$B50<MIN(Panely!$A$9:$A$28),0,VLOOKUP(Data!$B50,tabulka_panely_def,25,FALSE)) ->  | J50: =IF(Data!$B50<MIN(Panely!$A$9:$A$28),VLOOKUP(Data!$B50,tabulka_kce_def,24,FALSE),VLOOKUP(Data!$B50,tabulka_panely_def,33,FALSE)) ->  | K50: =Konstrukce!$D$1 -> 15 | L50: =Konstrukce!$D$2 -> 15 | M50: =Konstrukce!$G$1 -> 0 | N50: =IF(Data!$B50<MIN(Panely!$A$9:$A$28),VLOOKUP(Data!$B50,tabulka_kce_def,59,FALSE),VLOOKUP(Data!$B50,tabulka_panely_def,63,FALSE)) ->  | O50: =IF(Data!$B50<MIN(Panely!$A$9:$A$28),VLOOKUP(Data!$B50,tabulka_kce_def,60,FALSE),VLOOKUP(Data!$B50,tabulka_panely_def,64,FALSE)) ->  | P50: =IF(Data!$B50<MIN(Panely!$A$9:$A$28),VLOOKUP(Data!$B50,tabulka_kce_def,61,FALSE),VLOOKUP(Data!$B50,tabulka_panely_def,65,FALSE)) ->  | Q50: =IF(Data!$B50<MIN(Panely!$A$9:$A$28),VLOOKUP(Data!$B50,tabulka_kce_def,25,FALSE),0) -> 0 | W50: = | X50: =IF(Data!$W50<MIN(Panely!$A$9:$A$28),VLOOKUP(Data!$W50,tabulka_kce_def,62,FALSE),VLOOKUP(Data!$W50,tabulka_panely_def,65,FALSE)) ->  | Y50: =IF(Data!$W50<MIN(Panely!$A$9:$A$28),VLOOKUP(Data!$W50,tabulka_kce_def,Y$1-20,FALSE),VLOOKUP(Data!$W50,tabulka_panely_def,Y$1-18,FALSE)) ->  | Z50: =IF(Data!$W50<MIN(Panely!$A$9:$A$28),VLOOKUP(Data!$W50,tabulka_kce_def,Z$1-20,FALSE),VLOOKUP(Data!$W50,tabulka_panely_def,Z$1-18,FALSE)) ->  | AA50: =IF(Data!$W50<MIN(Panely!$A$9:$A$28),VLOOKUP(Data!$W50,tabulka_kce_def,AA$1-20,FALSE),VLOOKUP(Data!$W50,tabulka_panely_def,AA$1-18,FALSE)) ->  | AB50: =IF(Data!$W50<MIN(Panely!$A$9:$A$28),VLOOKUP(Data!$W50,tabulka_kce_def,AB$1-20,FALSE),VLOOKUP(Data!$W50,tabulka_panely_def,AB$1-18,FALSE)) ->  | AC50: =IF(Data!$W50<MIN(Panely!$A$9:$A$28),VLOOKUP(Data!$W50,tabulka_kce_def,AC$1-20,FALSE),VLOOKUP(Data!$W50,tabulka_panely_def,AC$1-18,FALSE)) ->  | AD50: =IF(Data!$W50<MIN(Panely!$A$9:$A$28),VLOOKUP(Data!$W50,tabulka_kce_def,AD$1-20,FALSE),VLOOKUP(Data!$W50,tabulka_panely_def,AD$1-18,FALSE)) ->  | AE50: =IF(Data!$W50<MIN(Panely!$A$9:$A$28),VLOOKUP(Data!$W50,tabulka_kce_def,AE$1-20,FALSE),VLOOKUP(Data!$W50,tabulka_panely_def,AE$1-18,FALSE)) ->  | AF50: =IF(Data!$W50<MIN(Panely!$A$9:$A$28),VLOOKUP(Data!$W50,tabulka_kce_def,AF$1-20,FALSE),VLOOKUP(Data!$W50,tabulka_panely_def,AF$1-18,FALSE)) ->  | AG50: =IF(Data!$W50<MIN(Panely!$A$9:$A$28),VLOOKUP(Data!$W50,tabulka_kce_def,AG$1-20,FALSE),VLOOKUP(Data!$W50,tabulka_panely_def,AG$1-18,FALSE)) ->  | AH50: =IF(Data!$W50<MIN(Panely!$A$9:$A$28),VLOOKUP(Data!$W50,tabulka_kce_def,AH$1-20,FALSE),VLOOKUP(Data!$W50,tabulka_panely_def,AH$1-18,FALSE)) ->  | AI50: =IF(Data!$W50<MIN(Panely!$A$9:$A$28),VLOOKUP(Data!$W50,tabulka_kce_def,AI$1-20,FALSE),VLOOKUP(Data!$W50,tabulka_panely_def,AI$1-18,FALSE)) ->  | AJ50: =IF(Data!$W50<MIN(Panely!$A$9:$A$28),VLOOKUP(Data!$W50,tabulka_kce_def,AJ$1-20,FALSE),VLOOKUP(Data!$W50,tabulka_panely_def,AJ$1-18,FALSE)) ->  | AK50: =IF(Data!$W50<MIN(Panely!$A$9:$A$28),VLOOKUP(Data!$W50,tabulka_kce_def,AK$1-20,FALSE),VLOOKUP(Data!$W50,tabulka_panely_def,AK$1-18,FALSE)) ->  | AL50: =IF(Data!$W50<MIN(Panely!$A$9:$A$28),VLOOKUP(Data!$W50,tabulka_kce_def,AL$1-20,FALSE),VLOOKUP(Data!$W50,tabulka_panely_def,AL$1-18,FALSE)) ->  | AM50: =IF(Data!$W50<MIN(Panely!$A$9:$A$28),VLOOKUP(Data!$W50,tabulka_kce_def,AM$1-20,FALSE),VLOOKUP(Data!$W50,tabulka_panely_def,AM$1-18,FALSE)) ->  | AN50: 50 | AO50: =IF(Data!$W50<MIN(Panely!$A$9:$A$28),VLOOKUP(Data!$W50,tabulka_kce_def,63,FALSE),0) -> 0 | AP50: =IF(Data!$W50<MIN(Panely!$A$9:$A$28),VLOOKUP(Data!$W50,tabulka_kce_def,28,FALSE),1) -> 1 | AQ50: =IF(Data!$W50<MIN(Panely!$A$9:$A$28),VLOOKUP(Data!$W50,tabulka_kce_def,23,FALSE),VLOOKUP(Data!$W50,tabulka_panely_def,24,FALSE)) ->  | AS50: 0 | AU50: 0 | AV50: 0 | AX50: 0 | AY50: =IF(AND(W50>MAX(Konstrukce!A:A),ISNUMBER(W50)),1,0) -> 0
B51: = | C51: =IF(Data!$B51<MIN(Panely!$A$9:$A$28),VLOOKUP(Data!$B51,tabulka_kce_def,4,FALSE),VLOOKUP(Data!$B51,tabulka_panely_def,4,FALSE)) ->  | D51: =IF(Data!$B51<MIN(Panely!$A$9:$A$28),VLOOKUP(Data!$B51,tabulka_kce_def,23,FALSE),VLOOKUP(Data!$B51,tabulka_panely_def,24,FALSE)) ->  | E51: =IF(Data!$B51<MIN(Panely!$A$9:$A$28),VLOOKUP(Data!$B51,tabulka_kce_def,21,FALSE),VLOOKUP(Data!$B51,tabulka_panely_def,22,FALSE)) ->  | F51: =IF(Data!$B51<MIN(Panely!$A$9:$A$28),VLOOKUP(Data!$B51,tabulka_kce_def,26,FALSE),VLOOKUP(Data!$B51,tabulka_panely_def,31,FALSE)) ->  | G51: =IF(Data!$B51<MIN(Panely!$A$9:$A$28),VLOOKUP(Data!$B51,tabulka_kce_def,27,FALSE),VLOOKUP(Data!$B51,tabulka_panely_def,32,FALSE)) ->  | H51: =IF(VLOOKUP(Data!$B51,tabulka_kce_def,3,FALSE)="",Konstrukce!$G$1,IF(VLOOKUP(Data!$B51,tabulka_kce_def,3,FALSE)="z",Konstrukce!$G$2,VLOOKUP(Data!$B51,tabulka_kce_def,3,FALSE))) ->  | I51: =IF(Data!$B51<MIN(Panely!$A$9:$A$28),0,VLOOKUP(Data!$B51,tabulka_panely_def,25,FALSE)) ->  | J51: =IF(Data!$B51<MIN(Panely!$A$9:$A$28),VLOOKUP(Data!$B51,tabulka_kce_def,24,FALSE),VLOOKUP(Data!$B51,tabulka_panely_def,33,FALSE)) ->  | K51: =Konstrukce!$D$1 -> 15 | L51: =Konstrukce!$D$2 -> 15 | M51: =Konstrukce!$G$1 -> 0 | N51: =IF(Data!$B51<MIN(Panely!$A$9:$A$28),VLOOKUP(Data!$B51,tabulka_kce_def,59,FALSE),VLOOKUP(Data!$B51,tabulka_panely_def,63,FALSE)) ->  | O51: =IF(Data!$B51<MIN(Panely!$A$9:$A$28),VLOOKUP(Data!$B51,tabulka_kce_def,60,FALSE),VLOOKUP(Data!$B51,tabulka_panely_def,64,FALSE)) ->  | P51: =IF(Data!$B51<MIN(Panely!$A$9:$A$28),VLOOKUP(Data!$B51,tabulka_kce_def,61,FALSE),VLOOKUP(Data!$B51,tabulka_panely_def,65,FALSE)) ->  | Q51: =IF(Data!$B51<MIN(Panely!$A$9:$A$28),VLOOKUP(Data!$B51,tabulka_kce_def,25,FALSE),0) -> 0 | W51: = | X51: =IF(Data!$W51<MIN(Panely!$A$9:$A$28),VLOOKUP(Data!$W51,tabulka_kce_def,62,FALSE),VLOOKUP(Data!$W51,tabulka_panely_def,65,FALSE)) ->  | Y51: =IF(Data!$W51<MIN(Panely!$A$9:$A$28),VLOOKUP(Data!$W51,tabulka_kce_def,Y$1-20,FALSE),VLOOKUP(Data!$W51,tabulka_panely_def,Y$1-18,FALSE)) ->  | Z51: =IF(Data!$W51<MIN(Panely!$A$9:$A$28),VLOOKUP(Data!$W51,tabulka_kce_def,Z$1-20,FALSE),VLOOKUP(Data!$W51,tabulka_panely_def,Z$1-18,FALSE)) ->  | AA51: =IF(Data!$W51<MIN(Panely!$A$9:$A$28),VLOOKUP(Data!$W51,tabulka_kce_def,AA$1-20,FALSE),VLOOKUP(Data!$W51,tabulka_panely_def,AA$1-18,FALSE)) ->  | AB51: =IF(Data!$W51<MIN(Panely!$A$9:$A$28),VLOOKUP(Data!$W51,tabulka_kce_def,AB$1-20,FALSE),VLOOKUP(Data!$W51,tabulka_panely_def,AB$1-18,FALSE)) ->  | AC51: =IF(Data!$W51<MIN(Panely!$A$9:$A$28),VLOOKUP(Data!$W51,tabulka_kce_def,AC$1-20,FALSE),VLOOKUP(Data!$W51,tabulka_panely_def,AC$1-18,FALSE)) ->  | AD51: =IF(Data!$W51<MIN(Panely!$A$9:$A$28),VLOOKUP(Data!$W51,tabulka_kce_def,AD$1-20,FALSE),VLOOKUP(Data!$W51,tabulka_panely_def,AD$1-18,FALSE)) ->  | AE51: =IF(Data!$W51<MIN(Panely!$A$9:$A$28),VLOOKUP(Data!$W51,tabulka_kce_def,AE$1-20,FALSE),VLOOKUP(Data!$W51,tabulka_panely_def,AE$1-18,FALSE)) ->  | AF51: =IF(Data!$W51<MIN(Panely!$A$9:$A$28),VLOOKUP(Data!$W51,tabulka_kce_def,AF$1-20,FALSE),VLOOKUP(Data!$W51,tabulka_panely_def,AF$1-18,FALSE)) ->  | AG51: =IF(Data!$W51<MIN(Panely!$A$9:$A$28),VLOOKUP(Data!$W51,tabulka_kce_def,AG$1-20,FALSE),VLOOKUP(Data!$W51,tabulka_panely_def,AG$1-18,FALSE)) ->  | AH51: =IF(Data!$W51<MIN(Panely!$A$9:$A$28),VLOOKUP(Data!$W51,tabulka_kce_def,AH$1-20,FALSE),VLOOKUP(Data!$W51,tabulka_panely_def,AH$1-18,FALSE)) ->  | AI51: =IF(Data!$W51<MIN(Panely!$A$9:$A$28),VLOOKUP(Data!$W51,tabulka_kce_def,AI$1-20,FALSE),VLOOKUP(Data!$W51,tabulka_panely_def,AI$1-18,FALSE)) ->  | AJ51: =IF(Data!$W51<MIN(Panely!$A$9:$A$28),VLOOKUP(Data!$W51,tabulka_kce_def,AJ$1-20,FALSE),VLOOKUP(Data!$W51,tabulka_panely_def,AJ$1-18,FALSE)) ->  | AK51: =IF(Data!$W51<MIN(Panely!$A$9:$A$28),VLOOKUP(Data!$W51,tabulka_kce_def,AK$1-20,FALSE),VLOOKUP(Data!$W51,tabulka_panely_def,AK$1-18,FALSE)) ->  | AL51: =IF(Data!$W51<MIN(Panely!$A$9:$A$28),VLOOKUP(Data!$W51,tabulka_kce_def,AL$1-20,FALSE),VLOOKUP(Data!$W51,tabulka_panely_def,AL$1-18,FALSE)) ->  | AM51: =IF(Data!$W51<MIN(Panely!$A$9:$A$28),VLOOKUP(Data!$W51,tabulka_kce_def,AM$1-20,FALSE),VLOOKUP(Data!$W51,tabulka_panely_def,AM$1-18,FALSE)) ->  | AN51: 51 | AO51: =IF(Data!$W51<MIN(Panely!$A$9:$A$28),VLOOKUP(Data!$W51,tabulka_kce_def,63,FALSE),0) -> 0 | AP51: =IF(Data!$W51<MIN(Panely!$A$9:$A$28),VLOOKUP(Data!$W51,tabulka_kce_def,28,FALSE),1) -> 1 | AQ51: =IF(Data!$W51<MIN(Panely!$A$9:$A$28),VLOOKUP(Data!$W51,tabulka_kce_def,23,FALSE),VLOOKUP(Data!$W51,tabulka_panely_def,24,FALSE)) ->  | AS51: 0 | AU51: 0 | AV51: 0 | AX51: 0 | AY51: =IF(AND(W51>MAX(Konstrukce!A:A),ISNUMBER(W51)),1,0) -> 0
B52: = | C52: =IF(Data!$B52<MIN(Panely!$A$9:$A$28),VLOOKUP(Data!$B52,tabulka_kce_def,4,FALSE),VLOOKUP(Data!$B52,tabulka_panely_def,4,FALSE)) ->  | D52: =IF(Data!$B52<MIN(Panely!$A$9:$A$28),VLOOKUP(Data!$B52,tabulka_kce_def,23,FALSE),VLOOKUP(Data!$B52,tabulka_panely_def,24,FALSE)) ->  | E52: =IF(Data!$B52<MIN(Panely!$A$9:$A$28),VLOOKUP(Data!$B52,tabulka_kce_def,21,FALSE),VLOOKUP(Data!$B52,tabulka_panely_def,22,FALSE)) ->  | F52: =IF(Data!$B52<MIN(Panely!$A$9:$A$28),VLOOKUP(Data!$B52,tabulka_kce_def,26,FALSE),VLOOKUP(Data!$B52,tabulka_panely_def,31,FALSE)) ->  | G52: =IF(Data!$B52<MIN(Panely!$A$9:$A$28),VLOOKUP(Data!$B52,tabulka_kce_def,27,FALSE),VLOOKUP(Data!$B52,tabulka_panely_def,32,FALSE)) ->  | H52: =IF(VLOOKUP(Data!$B52,tabulka_kce_def,3,FALSE)="",Konstrukce!$G$1,IF(VLOOKUP(Data!$B52,tabulka_kce_def,3,FALSE)="z",Konstrukce!$G$2,VLOOKUP(Data!$B52,tabulka_kce_def,3,FALSE))) ->  | I52: =IF(Data!$B52<MIN(Panely!$A$9:$A$28),0,VLOOKUP(Data!$B52,tabulka_panely_def,25,FALSE)) ->  | J52: =IF(Data!$B52<MIN(Panely!$A$9:$A$28),VLOOKUP(Data!$B52,tabulka_kce_def,24,FALSE),VLOOKUP(Data!$B52,tabulka_panely_def,33,FALSE)) ->  | K52: =Konstrukce!$D$1 -> 15 | L52: =Konstrukce!$D$2 -> 15 | M52: =Konstrukce!$G$1 -> 0 | N52: =IF(Data!$B52<MIN(Panely!$A$9:$A$28),VLOOKUP(Data!$B52,tabulka_kce_def,59,FALSE),VLOOKUP(Data!$B52,tabulka_panely_def,63,FALSE)) ->  | O52: =IF(Data!$B52<MIN(Panely!$A$9:$A$28),VLOOKUP(Data!$B52,tabulka_kce_def,60,FALSE),VLOOKUP(Data!$B52,tabulka_panely_def,64,FALSE)) ->  | P52: =IF(Data!$B52<MIN(Panely!$A$9:$A$28),VLOOKUP(Data!$B52,tabulka_kce_def,61,FALSE),VLOOKUP(Data!$B52,tabulka_panely_def,65,FALSE)) ->  | Q52: =IF(Data!$B52<MIN(Panely!$A$9:$A$28),VLOOKUP(Data!$B52,tabulka_kce_def,25,FALSE),0) -> 0 | W52: = | X52: =IF(Data!$W52<MIN(Panely!$A$9:$A$28),VLOOKUP(Data!$W52,tabulka_kce_def,62,FALSE),VLOOKUP(Data!$W52,tabulka_panely_def,65,FALSE)) ->  | Y52: =IF(Data!$W52<MIN(Panely!$A$9:$A$28),VLOOKUP(Data!$W52,tabulka_kce_def,Y$1-20,FALSE),VLOOKUP(Data!$W52,tabulka_panely_def,Y$1-18,FALSE)) ->  | Z52: =IF(Data!$W52<MIN(Panely!$A$9:$A$28),VLOOKUP(Data!$W52,tabulka_kce_def,Z$1-20,FALSE),VLOOKUP(Data!$W52,tabulka_panely_def,Z$1-18,FALSE)) ->  | AA52: =IF(Data!$W52<MIN(Panely!$A$9:$A$28),VLOOKUP(Data!$W52,tabulka_kce_def,AA$1-20,FALSE),VLOOKUP(Data!$W52,tabulka_panely_def,AA$1-18,FALSE)) ->  | AB52: =IF(Data!$W52<MIN(Panely!$A$9:$A$28),VLOOKUP(Data!$W52,tabulka_kce_def,AB$1-20,FALSE),VLOOKUP(Data!$W52,tabulka_panely_def,AB$1-18,FALSE)) ->  | AC52: =IF(Data!$W52<MIN(Panely!$A$9:$A$28),VLOOKUP(Data!$W52,tabulka_kce_def,AC$1-20,FALSE),VLOOKUP(Data!$W52,tabulka_panely_def,AC$1-18,FALSE)) ->  | AD52: =IF(Data!$W52<MIN(Panely!$A$9:$A$28),VLOOKUP(Data!$W52,tabulka_kce_def,AD$1-20,FALSE),VLOOKUP(Data!$W52,tabulka_panely_def,AD$1-18,FALSE)) ->  | AE52: =IF(Data!$W52<MIN(Panely!$A$9:$A$28),VLOOKUP(Data!$W52,tabulka_kce_def,AE$1-20,FALSE),VLOOKUP(Data!$W52,tabulka_panely_def,AE$1-18,FALSE)) ->  | AF52: =IF(Data!$W52<MIN(Panely!$A$9:$A$28),VLOOKUP(Data!$W52,tabulka_kce_def,AF$1-20,FALSE),VLOOKUP(Data!$W52,tabulka_panely_def,AF$1-18,FALSE)) ->  | AG52: =IF(Data!$W52<MIN(Panely!$A$9:$A$28),VLOOKUP(Data!$W52,tabulka_kce_def,AG$1-20,FALSE),VLOOKUP(Data!$W52,tabulka_panely_def,AG$1-18,FALSE)) ->  | AH52: =IF(Data!$W52<MIN(Panely!$A$9:$A$28),VLOOKUP(Data!$W52,tabulka_kce_def,AH$1-20,FALSE),VLOOKUP(Data!$W52,tabulka_panely_def,AH$1-18,FALSE)) ->  | AI52: =IF(Data!$W52<MIN(Panely!$A$9:$A$28),VLOOKUP(Data!$W52,tabulka_kce_def,AI$1-20,FALSE),VLOOKUP(Data!$W52,tabulka_panely_def,AI$1-18,FALSE)) ->  | AJ52: =IF(Data!$W52<MIN(Panely!$A$9:$A$28),VLOOKUP(Data!$W52,tabulka_kce_def,AJ$1-20,FALSE),VLOOKUP(Data!$W52,tabulka_panely_def,AJ$1-18,FALSE)) ->  | AK52: =IF(Data!$W52<MIN(Panely!$A$9:$A$28),VLOOKUP(Data!$W52,tabulka_kce_def,AK$1-20,FALSE),VLOOKUP(Data!$W52,tabulka_panely_def,AK$1-18,FALSE)) ->  | AL52: =IF(Data!$W52<MIN(Panely!$A$9:$A$28),VLOOKUP(Data!$W52,tabulka_kce_def,AL$1-20,FALSE),VLOOKUP(Data!$W52,tabulka_panely_def,AL$1-18,FALSE)) ->  | AM52: =IF(Data!$W52<MIN(Panely!$A$9:$A$28),VLOOKUP(Data!$W52,tabulka_kce_def,AM$1-20,FALSE),VLOOKUP(Data!$W52,tabulka_panely_def,AM$1-18,FALSE)) ->  | AN52: 52 | AO52: =IF(Data!$W52<MIN(Panely!$A$9:$A$28),VLOOKUP(Data!$W52,tabulka_kce_def,63,FALSE),0) -> 0 | AP52: =IF(Data!$W52<MIN(Panely!$A$9:$A$28),VLOOKUP(Data!$W52,tabulka_kce_def,28,FALSE),1) -> 1 | AQ52: =IF(Data!$W52<MIN(Panely!$A$9:$A$28),VLOOKUP(Data!$W52,tabulka_kce_def,23,FALSE),VLOOKUP(Data!$W52,tabulka_panely_def,24,FALSE)) ->  | AS52: 0 | AU52: 0 | AV52: 0 | AX52: 0 | AY52: =IF(AND(W52>MAX(Konstrukce!A:A),ISNUMBER(W52)),1,0) -> 0
B53: = | C53: =IF(Data!$B53<MIN(Panely!$A$9:$A$28),VLOOKUP(Data!$B53,tabulka_kce_def,4,FALSE),VLOOKUP(Data!$B53,tabulka_panely_def,4,FALSE)) ->  | D53: =IF(Data!$B53<MIN(Panely!$A$9:$A$28),VLOOKUP(Data!$B53,tabulka_kce_def,23,FALSE),VLOOKUP(Data!$B53,tabulka_panely_def,24,FALSE)) ->  | E53: =IF(Data!$B53<MIN(Panely!$A$9:$A$28),VLOOKUP(Data!$B53,tabulka_kce_def,21,FALSE),VLOOKUP(Data!$B53,tabulka_panely_def,22,FALSE)) ->  | F53: =IF(Data!$B53<MIN(Panely!$A$9:$A$28),VLOOKUP(Data!$B53,tabulka_kce_def,26,FALSE),VLOOKUP(Data!$B53,tabulka_panely_def,31,FALSE)) ->  | G53: =IF(Data!$B53<MIN(Panely!$A$9:$A$28),VLOOKUP(Data!$B53,tabulka_kce_def,27,FALSE),VLOOKUP(Data!$B53,tabulka_panely_def,32,FALSE)) ->  | H53: =IF(VLOOKUP(Data!$B53,tabulka_kce_def,3,FALSE)="",Konstrukce!$G$1,IF(VLOOKUP(Data!$B53,tabulka_kce_def,3,FALSE)="z",Konstrukce!$G$2,VLOOKUP(Data!$B53,tabulka_kce_def,3,FALSE))) ->  | I53: =IF(Data!$B53<MIN(Panely!$A$9:$A$28),0,VLOOKUP(Data!$B53,tabulka_panely_def,25,FALSE)) ->  | J53: =IF(Data!$B53<MIN(Panely!$A$9:$A$28),VLOOKUP(Data!$B53,tabulka_kce_def,24,FALSE),VLOOKUP(Data!$B53,tabulka_panely_def,33,FALSE)) ->  | K53: =Konstrukce!$D$1 -> 15 | L53: =Konstrukce!$D$2 -> 15 | M53: =Konstrukce!$G$1 -> 0 | N53: =IF(Data!$B53<MIN(Panely!$A$9:$A$28),VLOOKUP(Data!$B53,tabulka_kce_def,59,FALSE),VLOOKUP(Data!$B53,tabulka_panely_def,63,FALSE)) ->  | O53: =IF(Data!$B53<MIN(Panely!$A$9:$A$28),VLOOKUP(Data!$B53,tabulka_kce_def,60,FALSE),VLOOKUP(Data!$B53,tabulka_panely_def,64,FALSE)) ->  | P53: =IF(Data!$B53<MIN(Panely!$A$9:$A$28),VLOOKUP(Data!$B53,tabulka_kce_def,61,FALSE),VLOOKUP(Data!$B53,tabulka_panely_def,65,FALSE)) ->  | Q53: =IF(Data!$B53<MIN(Panely!$A$9:$A$28),VLOOKUP(Data!$B53,tabulka_kce_def,25,FALSE),0) -> 0 | W53: = | X53: =IF(Data!$W53<MIN(Panely!$A$9:$A$28),VLOOKUP(Data!$W53,tabulka_kce_def,62,FALSE),VLOOKUP(Data!$W53,tabulka_panely_def,65,FALSE)) ->  | Y53: =IF(Data!$W53<MIN(Panely!$A$9:$A$28),VLOOKUP(Data!$W53,tabulka_kce_def,Y$1-20,FALSE),VLOOKUP(Data!$W53,tabulka_panely_def,Y$1-18,FALSE)) ->  | Z53: =IF(Data!$W53<MIN(Panely!$A$9:$A$28),VLOOKUP(Data!$W53,tabulka_kce_def,Z$1-20,FALSE),VLOOKUP(Data!$W53,tabulka_panely_def,Z$1-18,FALSE)) ->  | AA53: =IF(Data!$W53<MIN(Panely!$A$9:$A$28),VLOOKUP(Data!$W53,tabulka_kce_def,AA$1-20,FALSE),VLOOKUP(Data!$W53,tabulka_panely_def,AA$1-18,FALSE)) ->  | AB53: =IF(Data!$W53<MIN(Panely!$A$9:$A$28),VLOOKUP(Data!$W53,tabulka_kce_def,AB$1-20,FALSE),VLOOKUP(Data!$W53,tabulka_panely_def,AB$1-18,FALSE)) ->  | AC53: =IF(Data!$W53<MIN(Panely!$A$9:$A$28),VLOOKUP(Data!$W53,tabulka_kce_def,AC$1-20,FALSE),VLOOKUP(Data!$W53,tabulka_panely_def,AC$1-18,FALSE)) ->  | AD53: =IF(Data!$W53<MIN(Panely!$A$9:$A$28),VLOOKUP(Data!$W53,tabulka_kce_def,AD$1-20,FALSE),VLOOKUP(Data!$W53,tabulka_panely_def,AD$1-18,FALSE)) ->  | AE53: =IF(Data!$W53<MIN(Panely!$A$9:$A$28),VLOOKUP(Data!$W53,tabulka_kce_def,AE$1-20,FALSE),VLOOKUP(Data!$W53,tabulka_panely_def,AE$1-18,FALSE)) ->  | AF53: =IF(Data!$W53<MIN(Panely!$A$9:$A$28),VLOOKUP(Data!$W53,tabulka_kce_def,AF$1-20,FALSE),VLOOKUP(Data!$W53,tabulka_panely_def,AF$1-18,FALSE)) ->  | AG53: =IF(Data!$W53<MIN(Panely!$A$9:$A$28),VLOOKUP(Data!$W53,tabulka_kce_def,AG$1-20,FALSE),VLOOKUP(Data!$W53,tabulka_panely_def,AG$1-18,FALSE)) ->  | AH53: =IF(Data!$W53<MIN(Panely!$A$9:$A$28),VLOOKUP(Data!$W53,tabulka_kce_def,AH$1-20,FALSE),VLOOKUP(Data!$W53,tabulka_panely_def,AH$1-18,FALSE)) ->  | AI53: =IF(Data!$W53<MIN(Panely!$A$9:$A$28),VLOOKUP(Data!$W53,tabulka_kce_def,AI$1-20,FALSE),VLOOKUP(Data!$W53,tabulka_panely_def,AI$1-18,FALSE)) ->  | AJ53: =IF(Data!$W53<MIN(Panely!$A$9:$A$28),VLOOKUP(Data!$W53,tabulka_kce_def,AJ$1-20,FALSE),VLOOKUP(Data!$W53,tabulka_panely_def,AJ$1-18,FALSE)) ->  | AK53: =IF(Data!$W53<MIN(Panely!$A$9:$A$28),VLOOKUP(Data!$W53,tabulka_kce_def,AK$1-20,FALSE),VLOOKUP(Data!$W53,tabulka_panely_def,AK$1-18,FALSE)) ->  | AL53: =IF(Data!$W53<MIN(Panely!$A$9:$A$28),VLOOKUP(Data!$W53,tabulka_kce_def,AL$1-20,FALSE),VLOOKUP(Data!$W53,tabulka_panely_def,AL$1-18,FALSE)) ->  | AM53: =IF(Data!$W53<MIN(Panely!$A$9:$A$28),VLOOKUP(Data!$W53,tabulka_kce_def,AM$1-20,FALSE),VLOOKUP(Data!$W53,tabulka_panely_def,AM$1-18,FALSE)) ->  | AN53: 53 | AO53: =IF(Data!$W53<MIN(Panely!$A$9:$A$28),VLOOKUP(Data!$W53,tabulka_kce_def,63,FALSE),0) -> 0 | AP53: =IF(Data!$W53<MIN(Panely!$A$9:$A$28),VLOOKUP(Data!$W53,tabulka_kce_def,28,FALSE),1) -> 1 | AQ53: =IF(Data!$W53<MIN(Panely!$A$9:$A$28),VLOOKUP(Data!$W53,tabulka_kce_def,23,FALSE),VLOOKUP(Data!$W53,tabulka_panely_def,24,FALSE)) ->  | AS53: 0 | AU53: 0 | AV53: 0 | AX53: 0 | AY53: =IF(AND(W53>MAX(Konstrukce!A:A),ISNUMBER(W53)),1,0) -> 0
B54: = | C54: =IF(Data!$B54<MIN(Panely!$A$9:$A$28),VLOOKUP(Data!$B54,tabulka_kce_def,4,FALSE),VLOOKUP(Data!$B54,tabulka_panely_def,4,FALSE)) ->  | D54: =IF(Data!$B54<MIN(Panely!$A$9:$A$28),VLOOKUP(Data!$B54,tabulka_kce_def,23,FALSE),VLOOKUP(Data!$B54,tabulka_panely_def,24,FALSE)) ->  | E54: =IF(Data!$B54<MIN(Panely!$A$9:$A$28),VLOOKUP(Data!$B54,tabulka_kce_def,21,FALSE),VLOOKUP(Data!$B54,tabulka_panely_def,22,FALSE)) ->  | F54: =IF(Data!$B54<MIN(Panely!$A$9:$A$28),VLOOKUP(Data!$B54,tabulka_kce_def,26,FALSE),VLOOKUP(Data!$B54,tabulka_panely_def,31,FALSE)) ->  | G54: =IF(Data!$B54<MIN(Panely!$A$9:$A$28),VLOOKUP(Data!$B54,tabulka_kce_def,27,FALSE),VLOOKUP(Data!$B54,tabulka_panely_def,32,FALSE)) ->  | H54: =IF(VLOOKUP(Data!$B54,tabulka_kce_def,3,FALSE)="",Konstrukce!$G$1,IF(VLOOKUP(Data!$B54,tabulka_kce_def,3,FALSE)="z",Konstrukce!$G$2,VLOOKUP(Data!$B54,tabulka_kce_def,3,FALSE))) ->  | I54: =IF(Data!$B54<MIN(Panely!$A$9:$A$28),0,VLOOKUP(Data!$B54,tabulka_panely_def,25,FALSE)) ->  | J54: =IF(Data!$B54<MIN(Panely!$A$9:$A$28),VLOOKUP(Data!$B54,tabulka_kce_def,24,FALSE),VLOOKUP(Data!$B54,tabulka_panely_def,33,FALSE)) ->  | K54: =Konstrukce!$D$1 -> 15 | L54: =Konstrukce!$D$2 -> 15 | M54: =Konstrukce!$G$1 -> 0 | N54: =IF(Data!$B54<MIN(Panely!$A$9:$A$28),VLOOKUP(Data!$B54,tabulka_kce_def,59,FALSE),VLOOKUP(Data!$B54,tabulka_panely_def,63,FALSE)) ->  | O54: =IF(Data!$B54<MIN(Panely!$A$9:$A$28),VLOOKUP(Data!$B54,tabulka_kce_def,60,FALSE),VLOOKUP(Data!$B54,tabulka_panely_def,64,FALSE)) ->  | P54: =IF(Data!$B54<MIN(Panely!$A$9:$A$28),VLOOKUP(Data!$B54,tabulka_kce_def,61,FALSE),VLOOKUP(Data!$B54,tabulka_panely_def,65,FALSE)) ->  | Q54: =IF(Data!$B54<MIN(Panely!$A$9:$A$28),VLOOKUP(Data!$B54,tabulka_kce_def,25,FALSE),0) -> 0 | W54: = | X54: =IF(Data!$W54<MIN(Panely!$A$9:$A$28),VLOOKUP(Data!$W54,tabulka_kce_def,62,FALSE),VLOOKUP(Data!$W54,tabulka_panely_def,65,FALSE)) ->  | Y54: =IF(Data!$W54<MIN(Panely!$A$9:$A$28),VLOOKUP(Data!$W54,tabulka_kce_def,Y$1-20,FALSE),VLOOKUP(Data!$W54,tabulka_panely_def,Y$1-18,FALSE)) ->  | Z54: =IF(Data!$W54<MIN(Panely!$A$9:$A$28),VLOOKUP(Data!$W54,tabulka_kce_def,Z$1-20,FALSE),VLOOKUP(Data!$W54,tabulka_panely_def,Z$1-18,FALSE)) ->  | AA54: =IF(Data!$W54<MIN(Panely!$A$9:$A$28),VLOOKUP(Data!$W54,tabulka_kce_def,AA$1-20,FALSE),VLOOKUP(Data!$W54,tabulka_panely_def,AA$1-18,FALSE)) ->  | AB54: =IF(Data!$W54<MIN(Panely!$A$9:$A$28),VLOOKUP(Data!$W54,tabulka_kce_def,AB$1-20,FALSE),VLOOKUP(Data!$W54,tabulka_panely_def,AB$1-18,FALSE)) ->  | AC54: =IF(Data!$W54<MIN(Panely!$A$9:$A$28),VLOOKUP(Data!$W54,tabulka_kce_def,AC$1-20,FALSE),VLOOKUP(Data!$W54,tabulka_panely_def,AC$1-18,FALSE)) ->  | AD54: =IF(Data!$W54<MIN(Panely!$A$9:$A$28),VLOOKUP(Data!$W54,tabulka_kce_def,AD$1-20,FALSE),VLOOKUP(Data!$W54,tabulka_panely_def,AD$1-18,FALSE)) ->  | AE54: =IF(Data!$W54<MIN(Panely!$A$9:$A$28),VLOOKUP(Data!$W54,tabulka_kce_def,AE$1-20,FALSE),VLOOKUP(Data!$W54,tabulka_panely_def,AE$1-18,FALSE)) ->  | AF54: =IF(Data!$W54<MIN(Panely!$A$9:$A$28),VLOOKUP(Data!$W54,tabulka_kce_def,AF$1-20,FALSE),VLOOKUP(Data!$W54,tabulka_panely_def,AF$1-18,FALSE)) ->  | AG54: =IF(Data!$W54<MIN(Panely!$A$9:$A$28),VLOOKUP(Data!$W54,tabulka_kce_def,AG$1-20,FALSE),VLOOKUP(Data!$W54,tabulka_panely_def,AG$1-18,FALSE)) ->  | AH54: =IF(Data!$W54<MIN(Panely!$A$9:$A$28),VLOOKUP(Data!$W54,tabulka_kce_def,AH$1-20,FALSE),VLOOKUP(Data!$W54,tabulka_panely_def,AH$1-18,FALSE)) ->  | AI54: =IF(Data!$W54<MIN(Panely!$A$9:$A$28),VLOOKUP(Data!$W54,tabulka_kce_def,AI$1-20,FALSE),VLOOKUP(Data!$W54,tabulka_panely_def,AI$1-18,FALSE)) ->  | AJ54: =IF(Data!$W54<MIN(Panely!$A$9:$A$28),VLOOKUP(Data!$W54,tabulka_kce_def,AJ$1-20,FALSE),VLOOKUP(Data!$W54,tabulka_panely_def,AJ$1-18,FALSE)) ->  | AK54: =IF(Data!$W54<MIN(Panely!$A$9:$A$28),VLOOKUP(Data!$W54,tabulka_kce_def,AK$1-20,FALSE),VLOOKUP(Data!$W54,tabulka_panely_def,AK$1-18,FALSE)) ->  | AL54: =IF(Data!$W54<MIN(Panely!$A$9:$A$28),VLOOKUP(Data!$W54,tabulka_kce_def,AL$1-20,FALSE),VLOOKUP(Data!$W54,tabulka_panely_def,AL$1-18,FALSE)) ->  | AM54: =IF(Data!$W54<MIN(Panely!$A$9:$A$28),VLOOKUP(Data!$W54,tabulka_kce_def,AM$1-20,FALSE),VLOOKUP(Data!$W54,tabulka_panely_def,AM$1-18,FALSE)) ->  | AN54: 54 | AO54: =IF(Data!$W54<MIN(Panely!$A$9:$A$28),VLOOKUP(Data!$W54,tabulka_kce_def,63,FALSE),0) -> 0 | AP54: =IF(Data!$W54<MIN(Panely!$A$9:$A$28),VLOOKUP(Data!$W54,tabulka_kce_def,28,FALSE),1) -> 1 | AQ54: =IF(Data!$W54<MIN(Panely!$A$9:$A$28),VLOOKUP(Data!$W54,tabulka_kce_def,23,FALSE),VLOOKUP(Data!$W54,tabulka_panely_def,24,FALSE)) ->  | AS54: 0 | AU54: 0 | AV54: 0 | AX54: 0 | AY54: =IF(AND(W54>MAX(Konstrukce!A:A),ISNUMBER(W54)),1,0) -> 0
B55: = | C55: =IF(Data!$B55<MIN(Panely!$A$9:$A$28),VLOOKUP(Data!$B55,tabulka_kce_def,4,FALSE),VLOOKUP(Data!$B55,tabulka_panely_def,4,FALSE)) ->  | D55: =IF(Data!$B55<MIN(Panely!$A$9:$A$28),VLOOKUP(Data!$B55,tabulka_kce_def,23,FALSE),VLOOKUP(Data!$B55,tabulka_panely_def,24,FALSE)) ->  | E55: =IF(Data!$B55<MIN(Panely!$A$9:$A$28),VLOOKUP(Data!$B55,tabulka_kce_def,21,FALSE),VLOOKUP(Data!$B55,tabulka_panely_def,22,FALSE)) ->  | F55: =IF(Data!$B55<MIN(Panely!$A$9:$A$28),VLOOKUP(Data!$B55,tabulka_kce_def,26,FALSE),VLOOKUP(Data!$B55,tabulka_panely_def,31,FALSE)) ->  | G55: =IF(Data!$B55<MIN(Panely!$A$9:$A$28),VLOOKUP(Data!$B55,tabulka_kce_def,27,FALSE),VLOOKUP(Data!$B55,tabulka_panely_def,32,FALSE)) ->  | H55: =IF(VLOOKUP(Data!$B55,tabulka_kce_def,3,FALSE)="",Konstrukce!$G$1,IF(VLOOKUP(Data!$B55,tabulka_kce_def,3,FALSE)="z",Konstrukce!$G$2,VLOOKUP(Data!$B55,tabulka_kce_def,3,FALSE))) ->  | I55: =IF(Data!$B55<MIN(Panely!$A$9:$A$28),0,VLOOKUP(Data!$B55,tabulka_panely_def,25,FALSE)) ->  | J55: =IF(Data!$B55<MIN(Panely!$A$9:$A$28),VLOOKUP(Data!$B55,tabulka_kce_def,24,FALSE),VLOOKUP(Data!$B55,tabulka_panely_def,33,FALSE)) ->  | K55: =Konstrukce!$D$1 -> 15 | L55: =Konstrukce!$D$2 -> 15 | M55: =Konstrukce!$G$1 -> 0 | N55: =IF(Data!$B55<MIN(Panely!$A$9:$A$28),VLOOKUP(Data!$B55,tabulka_kce_def,59,FALSE),VLOOKUP(Data!$B55,tabulka_panely_def,63,FALSE)) ->  | O55: =IF(Data!$B55<MIN(Panely!$A$9:$A$28),VLOOKUP(Data!$B55,tabulka_kce_def,60,FALSE),VLOOKUP(Data!$B55,tabulka_panely_def,64,FALSE)) ->  | P55: =IF(Data!$B55<MIN(Panely!$A$9:$A$28),VLOOKUP(Data!$B55,tabulka_kce_def,61,FALSE),VLOOKUP(Data!$B55,tabulka_panely_def,65,FALSE)) ->  | Q55: =IF(Data!$B55<MIN(Panely!$A$9:$A$28),VLOOKUP(Data!$B55,tabulka_kce_def,25,FALSE),0) -> 0 | W55: = | X55: =IF(Data!$W55<MIN(Panely!$A$9:$A$28),VLOOKUP(Data!$W55,tabulka_kce_def,62,FALSE),VLOOKUP(Data!$W55,tabulka_panely_def,65,FALSE)) ->  | Y55: =IF(Data!$W55<MIN(Panely!$A$9:$A$28),VLOOKUP(Data!$W55,tabulka_kce_def,Y$1-20,FALSE),VLOOKUP(Data!$W55,tabulka_panely_def,Y$1-18,FALSE)) ->  | Z55: =IF(Data!$W55<MIN(Panely!$A$9:$A$28),VLOOKUP(Data!$W55,tabulka_kce_def,Z$1-20,FALSE),VLOOKUP(Data!$W55,tabulka_panely_def,Z$1-18,FALSE)) ->  | AA55: =IF(Data!$W55<MIN(Panely!$A$9:$A$28),VLOOKUP(Data!$W55,tabulka_kce_def,AA$1-20,FALSE),VLOOKUP(Data!$W55,tabulka_panely_def,AA$1-18,FALSE)) ->  | AB55: =IF(Data!$W55<MIN(Panely!$A$9:$A$28),VLOOKUP(Data!$W55,tabulka_kce_def,AB$1-20,FALSE),VLOOKUP(Data!$W55,tabulka_panely_def,AB$1-18,FALSE)) ->  | AC55: =IF(Data!$W55<MIN(Panely!$A$9:$A$28),VLOOKUP(Data!$W55,tabulka_kce_def,AC$1-20,FALSE),VLOOKUP(Data!$W55,tabulka_panely_def,AC$1-18,FALSE)) ->  | AD55: =IF(Data!$W55<MIN(Panely!$A$9:$A$28),VLOOKUP(Data!$W55,tabulka_kce_def,AD$1-20,FALSE),VLOOKUP(Data!$W55,tabulka_panely_def,AD$1-18,FALSE)) ->  | AE55: =IF(Data!$W55<MIN(Panely!$A$9:$A$28),VLOOKUP(Data!$W55,tabulka_kce_def,AE$1-20,FALSE),VLOOKUP(Data!$W55,tabulka_panely_def,AE$1-18,FALSE)) ->  | AF55: =IF(Data!$W55<MIN(Panely!$A$9:$A$28),VLOOKUP(Data!$W55,tabulka_kce_def,AF$1-20,FALSE),VLOOKUP(Data!$W55,tabulka_panely_def,AF$1-18,FALSE)) ->  | AG55: =IF(Data!$W55<MIN(Panely!$A$9:$A$28),VLOOKUP(Data!$W55,tabulka_kce_def,AG$1-20,FALSE),VLOOKUP(Data!$W55,tabulka_panely_def,AG$1-18,FALSE)) ->  | AH55: =IF(Data!$W55<MIN(Panely!$A$9:$A$28),VLOOKUP(Data!$W55,tabulka_kce_def,AH$1-20,FALSE),VLOOKUP(Data!$W55,tabulka_panely_def,AH$1-18,FALSE)) ->  | AI55: =IF(Data!$W55<MIN(Panely!$A$9:$A$28),VLOOKUP(Data!$W55,tabulka_kce_def,AI$1-20,FALSE),VLOOKUP(Data!$W55,tabulka_panely_def,AI$1-18,FALSE)) ->  | AJ55: =IF(Data!$W55<MIN(Panely!$A$9:$A$28),VLOOKUP(Data!$W55,tabulka_kce_def,AJ$1-20,FALSE),VLOOKUP(Data!$W55,tabulka_panely_def,AJ$1-18,FALSE)) ->  | AK55: =IF(Data!$W55<MIN(Panely!$A$9:$A$28),VLOOKUP(Data!$W55,tabulka_kce_def,AK$1-20,FALSE),VLOOKUP(Data!$W55,tabulka_panely_def,AK$1-18,FALSE)) ->  | AL55: =IF(Data!$W55<MIN(Panely!$A$9:$A$28),VLOOKUP(Data!$W55,tabulka_kce_def,AL$1-20,FALSE),VLOOKUP(Data!$W55,tabulka_panely_def,AL$1-18,FALSE)) ->  | AM55: =IF(Data!$W55<MIN(Panely!$A$9:$A$28),VLOOKUP(Data!$W55,tabulka_kce_def,AM$1-20,FALSE),VLOOKUP(Data!$W55,tabulka_panely_def,AM$1-18,FALSE)) ->  | AN55: 55 | AO55: =IF(Data!$W55<MIN(Panely!$A$9:$A$28),VLOOKUP(Data!$W55,tabulka_kce_def,63,FALSE),0) -> 0 | AP55: =IF(Data!$W55<MIN(Panely!$A$9:$A$28),VLOOKUP(Data!$W55,tabulka_kce_def,28,FALSE),1) -> 1 | AQ55: =IF(Data!$W55<MIN(Panely!$A$9:$A$28),VLOOKUP(Data!$W55,tabulka_kce_def,23,FALSE),VLOOKUP(Data!$W55,tabulka_panely_def,24,FALSE)) ->  | AS55: 0 | AU55: 0 | AV55: 0 | AX55: 0 | AY55: =IF(AND(W55>MAX(Konstrukce!A:A),ISNUMBER(W55)),1,0) -> 0
B56: = | C56: =IF(Data!$B56<MIN(Panely!$A$9:$A$28),VLOOKUP(Data!$B56,tabulka_kce_def,4,FALSE),VLOOKUP(Data!$B56,tabulka_panely_def,4,FALSE)) ->  | D56: =IF(Data!$B56<MIN(Panely!$A$9:$A$28),VLOOKUP(Data!$B56,tabulka_kce_def,23,FALSE),VLOOKUP(Data!$B56,tabulka_panely_def,24,FALSE)) ->  | E56: =IF(Data!$B56<MIN(Panely!$A$9:$A$28),VLOOKUP(Data!$B56,tabulka_kce_def,21,FALSE),VLOOKUP(Data!$B56,tabulka_panely_def,22,FALSE)) ->  | F56: =IF(Data!$B56<MIN(Panely!$A$9:$A$28),VLOOKUP(Data!$B56,tabulka_kce_def,26,FALSE),VLOOKUP(Data!$B56,tabulka_panely_def,31,FALSE)) ->  | G56: =IF(Data!$B56<MIN(Panely!$A$9:$A$28),VLOOKUP(Data!$B56,tabulka_kce_def,27,FALSE),VLOOKUP(Data!$B56,tabulka_panely_def,32,FALSE)) ->  | H56: =IF(VLOOKUP(Data!$B56,tabulka_kce_def,3,FALSE)="",Konstrukce!$G$1,IF(VLOOKUP(Data!$B56,tabulka_kce_def,3,FALSE)="z",Konstrukce!$G$2,VLOOKUP(Data!$B56,tabulka_kce_def,3,FALSE))) ->  | I56: =IF(Data!$B56<MIN(Panely!$A$9:$A$28),0,VLOOKUP(Data!$B56,tabulka_panely_def,25,FALSE)) ->  | J56: =IF(Data!$B56<MIN(Panely!$A$9:$A$28),VLOOKUP(Data!$B56,tabulka_kce_def,24,FALSE),VLOOKUP(Data!$B56,tabulka_panely_def,33,FALSE)) ->  | K56: =Konstrukce!$D$1 -> 15 | L56: =Konstrukce!$D$2 -> 15 | M56: =Konstrukce!$G$1 -> 0 | N56: =IF(Data!$B56<MIN(Panely!$A$9:$A$28),VLOOKUP(Data!$B56,tabulka_kce_def,59,FALSE),VLOOKUP(Data!$B56,tabulka_panely_def,63,FALSE)) ->  | O56: =IF(Data!$B56<MIN(Panely!$A$9:$A$28),VLOOKUP(Data!$B56,tabulka_kce_def,60,FALSE),VLOOKUP(Data!$B56,tabulka_panely_def,64,FALSE)) ->  | P56: =IF(Data!$B56<MIN(Panely!$A$9:$A$28),VLOOKUP(Data!$B56,tabulka_kce_def,61,FALSE),VLOOKUP(Data!$B56,tabulka_panely_def,65,FALSE)) ->  | Q56: =IF(Data!$B56<MIN(Panely!$A$9:$A$28),VLOOKUP(Data!$B56,tabulka_kce_def,25,FALSE),0) -> 0 | W56: = | X56: =IF(Data!$W56<MIN(Panely!$A$9:$A$28),VLOOKUP(Data!$W56,tabulka_kce_def,62,FALSE),VLOOKUP(Data!$W56,tabulka_panely_def,65,FALSE)) ->  | Y56: =IF(Data!$W56<MIN(Panely!$A$9:$A$28),VLOOKUP(Data!$W56,tabulka_kce_def,Y$1-20,FALSE),VLOOKUP(Data!$W56,tabulka_panely_def,Y$1-18,FALSE)) ->  | Z56: =IF(Data!$W56<MIN(Panely!$A$9:$A$28),VLOOKUP(Data!$W56,tabulka_kce_def,Z$1-20,FALSE),VLOOKUP(Data!$W56,tabulka_panely_def,Z$1-18,FALSE)) ->  | AA56: =IF(Data!$W56<MIN(Panely!$A$9:$A$28),VLOOKUP(Data!$W56,tabulka_kce_def,AA$1-20,FALSE),VLOOKUP(Data!$W56,tabulka_panely_def,AA$1-18,FALSE)) ->  | AB56: =IF(Data!$W56<MIN(Panely!$A$9:$A$28),VLOOKUP(Data!$W56,tabulka_kce_def,AB$1-20,FALSE),VLOOKUP(Data!$W56,tabulka_panely_def,AB$1-18,FALSE)) ->  | AC56: =IF(Data!$W56<MIN(Panely!$A$9:$A$28),VLOOKUP(Data!$W56,tabulka_kce_def,AC$1-20,FALSE),VLOOKUP(Data!$W56,tabulka_panely_def,AC$1-18,FALSE)) ->  | AD56: =IF(Data!$W56<MIN(Panely!$A$9:$A$28),VLOOKUP(Data!$W56,tabulka_kce_def,AD$1-20,FALSE),VLOOKUP(Data!$W56,tabulka_panely_def,AD$1-18,FALSE)) ->  | AE56: =IF(Data!$W56<MIN(Panely!$A$9:$A$28),VLOOKUP(Data!$W56,tabulka_kce_def,AE$1-20,FALSE),VLOOKUP(Data!$W56,tabulka_panely_def,AE$1-18,FALSE)) ->  | AF56: =IF(Data!$W56<MIN(Panely!$A$9:$A$28),VLOOKUP(Data!$W56,tabulka_kce_def,AF$1-20,FALSE),VLOOKUP(Data!$W56,tabulka_panely_def,AF$1-18,FALSE)) ->  | AG56: =IF(Data!$W56<MIN(Panely!$A$9:$A$28),VLOOKUP(Data!$W56,tabulka_kce_def,AG$1-20,FALSE),VLOOKUP(Data!$W56,tabulka_panely_def,AG$1-18,FALSE)) ->  | AH56: =IF(Data!$W56<MIN(Panely!$A$9:$A$28),VLOOKUP(Data!$W56,tabulka_kce_def,AH$1-20,FALSE),VLOOKUP(Data!$W56,tabulka_panely_def,AH$1-18,FALSE)) ->  | AI56: =IF(Data!$W56<MIN(Panely!$A$9:$A$28),VLOOKUP(Data!$W56,tabulka_kce_def,AI$1-20,FALSE),VLOOKUP(Data!$W56,tabulka_panely_def,AI$1-18,FALSE)) ->  | AJ56: =IF(Data!$W56<MIN(Panely!$A$9:$A$28),VLOOKUP(Data!$W56,tabulka_kce_def,AJ$1-20,FALSE),VLOOKUP(Data!$W56,tabulka_panely_def,AJ$1-18,FALSE)) ->  | AK56: =IF(Data!$W56<MIN(Panely!$A$9:$A$28),VLOOKUP(Data!$W56,tabulka_kce_def,AK$1-20,FALSE),VLOOKUP(Data!$W56,tabulka_panely_def,AK$1-18,FALSE)) ->  | AL56: =IF(Data!$W56<MIN(Panely!$A$9:$A$28),VLOOKUP(Data!$W56,tabulka_kce_def,AL$1-20,FALSE),VLOOKUP(Data!$W56,tabulka_panely_def,AL$1-18,FALSE)) ->  | AM56: =IF(Data!$W56<MIN(Panely!$A$9:$A$28),VLOOKUP(Data!$W56,tabulka_kce_def,AM$1-20,FALSE),VLOOKUP(Data!$W56,tabulka_panely_def,AM$1-18,FALSE)) ->  | AN56: 56 | AO56: =IF(Data!$W56<MIN(Panely!$A$9:$A$28),VLOOKUP(Data!$W56,tabulka_kce_def,63,FALSE),0) -> 0 | AP56: =IF(Data!$W56<MIN(Panely!$A$9:$A$28),VLOOKUP(Data!$W56,tabulka_kce_def,28,FALSE),1) -> 1 | AQ56: =IF(Data!$W56<MIN(Panely!$A$9:$A$28),VLOOKUP(Data!$W56,tabulka_kce_def,23,FALSE),VLOOKUP(Data!$W56,tabulka_panely_def,24,FALSE)) ->  | AS56: 0 | AU56: 0 | AV56: 0 | AX56: 0 | AY56: =IF(AND(W56>MAX(Konstrukce!A:A),ISNUMBER(W56)),1,0) -> 0
B57: = | C57: =IF(Data!$B57<MIN(Panely!$A$9:$A$28),VLOOKUP(Data!$B57,tabulka_kce_def,4,FALSE),VLOOKUP(Data!$B57,tabulka_panely_def,4,FALSE)) ->  | D57: =IF(Data!$B57<MIN(Panely!$A$9:$A$28),VLOOKUP(Data!$B57,tabulka_kce_def,23,FALSE),VLOOKUP(Data!$B57,tabulka_panely_def,24,FALSE)) ->  | E57: =IF(Data!$B57<MIN(Panely!$A$9:$A$28),VLOOKUP(Data!$B57,tabulka_kce_def,21,FALSE),VLOOKUP(Data!$B57,tabulka_panely_def,22,FALSE)) ->  | F57: =IF(Data!$B57<MIN(Panely!$A$9:$A$28),VLOOKUP(Data!$B57,tabulka_kce_def,26,FALSE),VLOOKUP(Data!$B57,tabulka_panely_def,31,FALSE)) ->  | G57: =IF(Data!$B57<MIN(Panely!$A$9:$A$28),VLOOKUP(Data!$B57,tabulka_kce_def,27,FALSE),VLOOKUP(Data!$B57,tabulka_panely_def,32,FALSE)) ->  | H57: =IF(VLOOKUP(Data!$B57,tabulka_kce_def,3,FALSE)="",Konstrukce!$G$1,IF(VLOOKUP(Data!$B57,tabulka_kce_def,3,FALSE)="z",Konstrukce!$G$2,VLOOKUP(Data!$B57,tabulka_kce_def,3,FALSE))) ->  | I57: =IF(Data!$B57<MIN(Panely!$A$9:$A$28),0,VLOOKUP(Data!$B57,tabulka_panely_def,25,FALSE)) ->  | J57: =IF(Data!$B57<MIN(Panely!$A$9:$A$28),VLOOKUP(Data!$B57,tabulka_kce_def,24,FALSE),VLOOKUP(Data!$B57,tabulka_panely_def,33,FALSE)) ->  | K57: =Konstrukce!$D$1 -> 15 | L57: =Konstrukce!$D$2 -> 15 | M57: =Konstrukce!$G$1 -> 0 | N57: =IF(Data!$B57<MIN(Panely!$A$9:$A$28),VLOOKUP(Data!$B57,tabulka_kce_def,59,FALSE),VLOOKUP(Data!$B57,tabulka_panely_def,63,FALSE)) ->  | O57: =IF(Data!$B57<MIN(Panely!$A$9:$A$28),VLOOKUP(Data!$B57,tabulka_kce_def,60,FALSE),VLOOKUP(Data!$B57,tabulka_panely_def,64,FALSE)) ->  | P57: =IF(Data!$B57<MIN(Panely!$A$9:$A$28),VLOOKUP(Data!$B57,tabulka_kce_def,61,FALSE),VLOOKUP(Data!$B57,tabulka_panely_def,65,FALSE)) ->  | Q57: =IF(Data!$B57<MIN(Panely!$A$9:$A$28),VLOOKUP(Data!$B57,tabulka_kce_def,25,FALSE),0) -> 0 | W57: = | X57: =IF(Data!$W57<MIN(Panely!$A$9:$A$28),VLOOKUP(Data!$W57,tabulka_kce_def,62,FALSE),VLOOKUP(Data!$W57,tabulka_panely_def,65,FALSE)) ->  | Y57: =IF(Data!$W57<MIN(Panely!$A$9:$A$28),VLOOKUP(Data!$W57,tabulka_kce_def,Y$1-20,FALSE),VLOOKUP(Data!$W57,tabulka_panely_def,Y$1-18,FALSE)) ->  | Z57: =IF(Data!$W57<MIN(Panely!$A$9:$A$28),VLOOKUP(Data!$W57,tabulka_kce_def,Z$1-20,FALSE),VLOOKUP(Data!$W57,tabulka_panely_def,Z$1-18,FALSE)) ->  | AA57: =IF(Data!$W57<MIN(Panely!$A$9:$A$28),VLOOKUP(Data!$W57,tabulka_kce_def,AA$1-20,FALSE),VLOOKUP(Data!$W57,tabulka_panely_def,AA$1-18,FALSE)) ->  | AB57: =IF(Data!$W57<MIN(Panely!$A$9:$A$28),VLOOKUP(Data!$W57,tabulka_kce_def,AB$1-20,FALSE),VLOOKUP(Data!$W57,tabulka_panely_def,AB$1-18,FALSE)) ->  | AC57: =IF(Data!$W57<MIN(Panely!$A$9:$A$28),VLOOKUP(Data!$W57,tabulka_kce_def,AC$1-20,FALSE),VLOOKUP(Data!$W57,tabulka_panely_def,AC$1-18,FALSE)) ->  | AD57: =IF(Data!$W57<MIN(Panely!$A$9:$A$28),VLOOKUP(Data!$W57,tabulka_kce_def,AD$1-20,FALSE),VLOOKUP(Data!$W57,tabulka_panely_def,AD$1-18,FALSE)) ->  | AE57: =IF(Data!$W57<MIN(Panely!$A$9:$A$28),VLOOKUP(Data!$W57,tabulka_kce_def,AE$1-20,FALSE),VLOOKUP(Data!$W57,tabulka_panely_def,AE$1-18,FALSE)) ->  | AF57: =IF(Data!$W57<MIN(Panely!$A$9:$A$28),VLOOKUP(Data!$W57,tabulka_kce_def,AF$1-20,FALSE),VLOOKUP(Data!$W57,tabulka_panely_def,AF$1-18,FALSE)) ->  | AG57: =IF(Data!$W57<MIN(Panely!$A$9:$A$28),VLOOKUP(Data!$W57,tabulka_kce_def,AG$1-20,FALSE),VLOOKUP(Data!$W57,tabulka_panely_def,AG$1-18,FALSE)) ->  | AH57: =IF(Data!$W57<MIN(Panely!$A$9:$A$28),VLOOKUP(Data!$W57,tabulka_kce_def,AH$1-20,FALSE),VLOOKUP(Data!$W57,tabulka_panely_def,AH$1-18,FALSE)) ->  | AI57: =IF(Data!$W57<MIN(Panely!$A$9:$A$28),VLOOKUP(Data!$W57,tabulka_kce_def,AI$1-20,FALSE),VLOOKUP(Data!$W57,tabulka_panely_def,AI$1-18,FALSE)) ->  | AJ57: =IF(Data!$W57<MIN(Panely!$A$9:$A$28),VLOOKUP(Data!$W57,tabulka_kce_def,AJ$1-20,FALSE),VLOOKUP(Data!$W57,tabulka_panely_def,AJ$1-18,FALSE)) ->  | AK57: =IF(Data!$W57<MIN(Panely!$A$9:$A$28),VLOOKUP(Data!$W57,tabulka_kce_def,AK$1-20,FALSE),VLOOKUP(Data!$W57,tabulka_panely_def,AK$1-18,FALSE)) ->  | AL57: =IF(Data!$W57<MIN(Panely!$A$9:$A$28),VLOOKUP(Data!$W57,tabulka_kce_def,AL$1-20,FALSE),VLOOKUP(Data!$W57,tabulka_panely_def,AL$1-18,FALSE)) ->  | AM57: =IF(Data!$W57<MIN(Panely!$A$9:$A$28),VLOOKUP(Data!$W57,tabulka_kce_def,AM$1-20,FALSE),VLOOKUP(Data!$W57,tabulka_panely_def,AM$1-18,FALSE)) ->  | AN57: 57 | AO57: =IF(Data!$W57<MIN(Panely!$A$9:$A$28),VLOOKUP(Data!$W57,tabulka_kce_def,63,FALSE),0) -> 0 | AP57: =IF(Data!$W57<MIN(Panely!$A$9:$A$28),VLOOKUP(Data!$W57,tabulka_kce_def,28,FALSE),1) -> 1 | AQ57: =IF(Data!$W57<MIN(Panely!$A$9:$A$28),VLOOKUP(Data!$W57,tabulka_kce_def,23,FALSE),VLOOKUP(Data!$W57,tabulka_panely_def,24,FALSE)) ->  | AS57: 0 | AU57: 0 | AV57: 0 | AX57: 0 | AY57: =IF(AND(W57>MAX(Konstrukce!A:A),ISNUMBER(W57)),1,0) -> 0
B58: = | C58: =IF(Data!$B58<MIN(Panely!$A$9:$A$28),VLOOKUP(Data!$B58,tabulka_kce_def,4,FALSE),VLOOKUP(Data!$B58,tabulka_panely_def,4,FALSE)) ->  | D58: =IF(Data!$B58<MIN(Panely!$A$9:$A$28),VLOOKUP(Data!$B58,tabulka_kce_def,23,FALSE),VLOOKUP(Data!$B58,tabulka_panely_def,24,FALSE)) ->  | E58: =IF(Data!$B58<MIN(Panely!$A$9:$A$28),VLOOKUP(Data!$B58,tabulka_kce_def,21,FALSE),VLOOKUP(Data!$B58,tabulka_panely_def,22,FALSE)) ->  | F58: =IF(Data!$B58<MIN(Panely!$A$9:$A$28),VLOOKUP(Data!$B58,tabulka_kce_def,26,FALSE),VLOOKUP(Data!$B58,tabulka_panely_def,31,FALSE)) ->  | G58: =IF(Data!$B58<MIN(Panely!$A$9:$A$28),VLOOKUP(Data!$B58,tabulka_kce_def,27,FALSE),VLOOKUP(Data!$B58,tabulka_panely_def,32,FALSE)) ->  | H58: =IF(VLOOKUP(Data!$B58,tabulka_kce_def,3,FALSE)="",Konstrukce!$G$1,IF(VLOOKUP(Data!$B58,tabulka_kce_def,3,FALSE)="z",Konstrukce!$G$2,VLOOKUP(Data!$B58,tabulka_kce_def,3,FALSE))) ->  | I58: =IF(Data!$B58<MIN(Panely!$A$9:$A$28),0,VLOOKUP(Data!$B58,tabulka_panely_def,25,FALSE)) ->  | J58: =IF(Data!$B58<MIN(Panely!$A$9:$A$28),VLOOKUP(Data!$B58,tabulka_kce_def,24,FALSE),VLOOKUP(Data!$B58,tabulka_panely_def,33,FALSE)) ->  | K58: =Konstrukce!$D$1 -> 15 | L58: =Konstrukce!$D$2 -> 15 | M58: =Konstrukce!$G$1 -> 0 | N58: =IF(Data!$B58<MIN(Panely!$A$9:$A$28),VLOOKUP(Data!$B58,tabulka_kce_def,59,FALSE),VLOOKUP(Data!$B58,tabulka_panely_def,63,FALSE)) ->  | O58: =IF(Data!$B58<MIN(Panely!$A$9:$A$28),VLOOKUP(Data!$B58,tabulka_kce_def,60,FALSE),VLOOKUP(Data!$B58,tabulka_panely_def,64,FALSE)) ->  | P58: =IF(Data!$B58<MIN(Panely!$A$9:$A$28),VLOOKUP(Data!$B58,tabulka_kce_def,61,FALSE),VLOOKUP(Data!$B58,tabulka_panely_def,65,FALSE)) ->  | Q58: =IF(Data!$B58<MIN(Panely!$A$9:$A$28),VLOOKUP(Data!$B58,tabulka_kce_def,25,FALSE),0) -> 0 | W58: = | X58: =IF(Data!$W58<MIN(Panely!$A$9:$A$28),VLOOKUP(Data!$W58,tabulka_kce_def,62,FALSE),VLOOKUP(Data!$W58,tabulka_panely_def,65,FALSE)) ->  | Y58: =IF(Data!$W58<MIN(Panely!$A$9:$A$28),VLOOKUP(Data!$W58,tabulka_kce_def,Y$1-20,FALSE),VLOOKUP(Data!$W58,tabulka_panely_def,Y$1-18,FALSE)) ->  | Z58: =IF(Data!$W58<MIN(Panely!$A$9:$A$28),VLOOKUP(Data!$W58,tabulka_kce_def,Z$1-20,FALSE),VLOOKUP(Data!$W58,tabulka_panely_def,Z$1-18,FALSE)) ->  | AA58: =IF(Data!$W58<MIN(Panely!$A$9:$A$28),VLOOKUP(Data!$W58,tabulka_kce_def,AA$1-20,FALSE),VLOOKUP(Data!$W58,tabulka_panely_def,AA$1-18,FALSE)) ->  | AB58: =IF(Data!$W58<MIN(Panely!$A$9:$A$28),VLOOKUP(Data!$W58,tabulka_kce_def,AB$1-20,FALSE),VLOOKUP(Data!$W58,tabulka_panely_def,AB$1-18,FALSE)) ->  | AC58: =IF(Data!$W58<MIN(Panely!$A$9:$A$28),VLOOKUP(Data!$W58,tabulka_kce_def,AC$1-20,FALSE),VLOOKUP(Data!$W58,tabulka_panely_def,AC$1-18,FALSE)) ->  | AD58: =IF(Data!$W58<MIN(Panely!$A$9:$A$28),VLOOKUP(Data!$W58,tabulka_kce_def,AD$1-20,FALSE),VLOOKUP(Data!$W58,tabulka_panely_def,AD$1-18,FALSE)) ->  | AE58: =IF(Data!$W58<MIN(Panely!$A$9:$A$28),VLOOKUP(Data!$W58,tabulka_kce_def,AE$1-20,FALSE),VLOOKUP(Data!$W58,tabulka_panely_def,AE$1-18,FALSE)) ->  | AF58: =IF(Data!$W58<MIN(Panely!$A$9:$A$28),VLOOKUP(Data!$W58,tabulka_kce_def,AF$1-20,FALSE),VLOOKUP(Data!$W58,tabulka_panely_def,AF$1-18,FALSE)) ->  | AG58: =IF(Data!$W58<MIN(Panely!$A$9:$A$28),VLOOKUP(Data!$W58,tabulka_kce_def,AG$1-20,FALSE),VLOOKUP(Data!$W58,tabulka_panely_def,AG$1-18,FALSE)) ->  | AH58: =IF(Data!$W58<MIN(Panely!$A$9:$A$28),VLOOKUP(Data!$W58,tabulka_kce_def,AH$1-20,FALSE),VLOOKUP(Data!$W58,tabulka_panely_def,AH$1-18,FALSE)) ->  | AI58: =IF(Data!$W58<MIN(Panely!$A$9:$A$28),VLOOKUP(Data!$W58,tabulka_kce_def,AI$1-20,FALSE),VLOOKUP(Data!$W58,tabulka_panely_def,AI$1-18,FALSE)) ->  | AJ58: =IF(Data!$W58<MIN(Panely!$A$9:$A$28),VLOOKUP(Data!$W58,tabulka_kce_def,AJ$1-20,FALSE),VLOOKUP(Data!$W58,tabulka_panely_def,AJ$1-18,FALSE)) ->  | AK58: =IF(Data!$W58<MIN(Panely!$A$9:$A$28),VLOOKUP(Data!$W58,tabulka_kce_def,AK$1-20,FALSE),VLOOKUP(Data!$W58,tabulka_panely_def,AK$1-18,FALSE)) ->  | AL58: =IF(Data!$W58<MIN(Panely!$A$9:$A$28),VLOOKUP(Data!$W58,tabulka_kce_def,AL$1-20,FALSE),VLOOKUP(Data!$W58,tabulka_panely_def,AL$1-18,FALSE)) ->  | AM58: =IF(Data!$W58<MIN(Panely!$A$9:$A$28),VLOOKUP(Data!$W58,tabulka_kce_def,AM$1-20,FALSE),VLOOKUP(Data!$W58,tabulka_panely_def,AM$1-18,FALSE)) ->  | AN58: 58 | AO58: =IF(Data!$W58<MIN(Panely!$A$9:$A$28),VLOOKUP(Data!$W58,tabulka_kce_def,63,FALSE),0) -> 0 | AP58: =IF(Data!$W58<MIN(Panely!$A$9:$A$28),VLOOKUP(Data!$W58,tabulka_kce_def,28,FALSE),1) -> 1 | AQ58: =IF(Data!$W58<MIN(Panely!$A$9:$A$28),VLOOKUP(Data!$W58,tabulka_kce_def,23,FALSE),VLOOKUP(Data!$W58,tabulka_panely_def,24,FALSE)) ->  | AS58: 0 | AU58: 0 | AV58: 0 | AX58: 0 | AY58: =IF(AND(W58>MAX(Konstrukce!A:A),ISNUMBER(W58)),1,0) -> 0
B59: = | C59: =IF(Data!$B59<MIN(Panely!$A$9:$A$28),VLOOKUP(Data!$B59,tabulka_kce_def,4,FALSE),VLOOKUP(Data!$B59,tabulka_panely_def,4,FALSE)) ->  | D59: =IF(Data!$B59<MIN(Panely!$A$9:$A$28),VLOOKUP(Data!$B59,tabulka_kce_def,23,FALSE),VLOOKUP(Data!$B59,tabulka_panely_def,24,FALSE)) ->  | E59: =IF(Data!$B59<MIN(Panely!$A$9:$A$28),VLOOKUP(Data!$B59,tabulka_kce_def,21,FALSE),VLOOKUP(Data!$B59,tabulka_panely_def,22,FALSE)) ->  | F59: =IF(Data!$B59<MIN(Panely!$A$9:$A$28),VLOOKUP(Data!$B59,tabulka_kce_def,26,FALSE),VLOOKUP(Data!$B59,tabulka_panely_def,31,FALSE)) ->  | G59: =IF(Data!$B59<MIN(Panely!$A$9:$A$28),VLOOKUP(Data!$B59,tabulka_kce_def,27,FALSE),VLOOKUP(Data!$B59,tabulka_panely_def,32,FALSE)) ->  | H59: =IF(VLOOKUP(Data!$B59,tabulka_kce_def,3,FALSE)="",Konstrukce!$G$1,IF(VLOOKUP(Data!$B59,tabulka_kce_def,3,FALSE)="z",Konstrukce!$G$2,VLOOKUP(Data!$B59,tabulka_kce_def,3,FALSE))) ->  | I59: =IF(Data!$B59<MIN(Panely!$A$9:$A$28),0,VLOOKUP(Data!$B59,tabulka_panely_def,25,FALSE)) ->  | J59: =IF(Data!$B59<MIN(Panely!$A$9:$A$28),VLOOKUP(Data!$B59,tabulka_kce_def,24,FALSE),VLOOKUP(Data!$B59,tabulka_panely_def,33,FALSE)) ->  | K59: =Konstrukce!$D$1 -> 15 | L59: =Konstrukce!$D$2 -> 15 | M59: =Konstrukce!$G$1 -> 0 | N59: =IF(Data!$B59<MIN(Panely!$A$9:$A$28),VLOOKUP(Data!$B59,tabulka_kce_def,59,FALSE),VLOOKUP(Data!$B59,tabulka_panely_def,63,FALSE)) ->  | O59: =IF(Data!$B59<MIN(Panely!$A$9:$A$28),VLOOKUP(Data!$B59,tabulka_kce_def,60,FALSE),VLOOKUP(Data!$B59,tabulka_panely_def,64,FALSE)) ->  | P59: =IF(Data!$B59<MIN(Panely!$A$9:$A$28),VLOOKUP(Data!$B59,tabulka_kce_def,61,FALSE),VLOOKUP(Data!$B59,tabulka_panely_def,65,FALSE)) ->  | Q59: =IF(Data!$B59<MIN(Panely!$A$9:$A$28),VLOOKUP(Data!$B59,tabulka_kce_def,25,FALSE),0) -> 0 | W59: = | X59: =IF(Data!$W59<MIN(Panely!$A$9:$A$28),VLOOKUP(Data!$W59,tabulka_kce_def,62,FALSE),VLOOKUP(Data!$W59,tabulka_panely_def,65,FALSE)) ->  | Y59: =IF(Data!$W59<MIN(Panely!$A$9:$A$28),VLOOKUP(Data!$W59,tabulka_kce_def,Y$1-20,FALSE),VLOOKUP(Data!$W59,tabulka_panely_def,Y$1-18,FALSE)) ->  | Z59: =IF(Data!$W59<MIN(Panely!$A$9:$A$28),VLOOKUP(Data!$W59,tabulka_kce_def,Z$1-20,FALSE),VLOOKUP(Data!$W59,tabulka_panely_def,Z$1-18,FALSE)) ->  | AA59: =IF(Data!$W59<MIN(Panely!$A$9:$A$28),VLOOKUP(Data!$W59,tabulka_kce_def,AA$1-20,FALSE),VLOOKUP(Data!$W59,tabulka_panely_def,AA$1-18,FALSE)) ->  | AB59: =IF(Data!$W59<MIN(Panely!$A$9:$A$28),VLOOKUP(Data!$W59,tabulka_kce_def,AB$1-20,FALSE),VLOOKUP(Data!$W59,tabulka_panely_def,AB$1-18,FALSE)) ->  | AC59: =IF(Data!$W59<MIN(Panely!$A$9:$A$28),VLOOKUP(Data!$W59,tabulka_kce_def,AC$1-20,FALSE),VLOOKUP(Data!$W59,tabulka_panely_def,AC$1-18,FALSE)) ->  | AD59: =IF(Data!$W59<MIN(Panely!$A$9:$A$28),VLOOKUP(Data!$W59,tabulka_kce_def,AD$1-20,FALSE),VLOOKUP(Data!$W59,tabulka_panely_def,AD$1-18,FALSE)) ->  | AE59: =IF(Data!$W59<MIN(Panely!$A$9:$A$28),VLOOKUP(Data!$W59,tabulka_kce_def,AE$1-20,FALSE),VLOOKUP(Data!$W59,tabulka_panely_def,AE$1-18,FALSE)) ->  | AF59: =IF(Data!$W59<MIN(Panely!$A$9:$A$28),VLOOKUP(Data!$W59,tabulka_kce_def,AF$1-20,FALSE),VLOOKUP(Data!$W59,tabulka_panely_def,AF$1-18,FALSE)) ->  | AG59: =IF(Data!$W59<MIN(Panely!$A$9:$A$28),VLOOKUP(Data!$W59,tabulka_kce_def,AG$1-20,FALSE),VLOOKUP(Data!$W59,tabulka_panely_def,AG$1-18,FALSE)) ->  | AH59: =IF(Data!$W59<MIN(Panely!$A$9:$A$28),VLOOKUP(Data!$W59,tabulka_kce_def,AH$1-20,FALSE),VLOOKUP(Data!$W59,tabulka_panely_def,AH$1-18,FALSE)) ->  | AI59: =IF(Data!$W59<MIN(Panely!$A$9:$A$28),VLOOKUP(Data!$W59,tabulka_kce_def,AI$1-20,FALSE),VLOOKUP(Data!$W59,tabulka_panely_def,AI$1-18,FALSE)) ->  | AJ59: =IF(Data!$W59<MIN(Panely!$A$9:$A$28),VLOOKUP(Data!$W59,tabulka_kce_def,AJ$1-20,FALSE),VLOOKUP(Data!$W59,tabulka_panely_def,AJ$1-18,FALSE)) ->  | AK59: =IF(Data!$W59<MIN(Panely!$A$9:$A$28),VLOOKUP(Data!$W59,tabulka_kce_def,AK$1-20,FALSE),VLOOKUP(Data!$W59,tabulka_panely_def,AK$1-18,FALSE)) ->  | AL59: =IF(Data!$W59<MIN(Panely!$A$9:$A$28),VLOOKUP(Data!$W59,tabulka_kce_def,AL$1-20,FALSE),VLOOKUP(Data!$W59,tabulka_panely_def,AL$1-18,FALSE)) ->  | AM59: =IF(Data!$W59<MIN(Panely!$A$9:$A$28),VLOOKUP(Data!$W59,tabulka_kce_def,AM$1-20,FALSE),VLOOKUP(Data!$W59,tabulka_panely_def,AM$1-18,FALSE)) ->  | AN59: 59 | AO59: =IF(Data!$W59<MIN(Panely!$A$9:$A$28),VLOOKUP(Data!$W59,tabulka_kce_def,63,FALSE),0) -> 0 | AP59: =IF(Data!$W59<MIN(Panely!$A$9:$A$28),VLOOKUP(Data!$W59,tabulka_kce_def,28,FALSE),1) -> 1 | AQ59: =IF(Data!$W59<MIN(Panely!$A$9:$A$28),VLOOKUP(Data!$W59,tabulka_kce_def,23,FALSE),VLOOKUP(Data!$W59,tabulka_panely_def,24,FALSE)) ->  | AS59: 0 | AU59: 0 | AV59: 0 | AX59: 0 | AY59: =IF(AND(W59>MAX(Konstrukce!A:A),ISNUMBER(W59)),1,0) -> 0
B60: = | C60: =IF(Data!$B60<MIN(Panely!$A$9:$A$28),VLOOKUP(Data!$B60,tabulka_kce_def,4,FALSE),VLOOKUP(Data!$B60,tabulka_panely_def,4,FALSE)) ->  | D60: =IF(Data!$B60<MIN(Panely!$A$9:$A$28),VLOOKUP(Data!$B60,tabulka_kce_def,23,FALSE),VLOOKUP(Data!$B60,tabulka_panely_def,24,FALSE)) ->  | E60: =IF(Data!$B60<MIN(Panely!$A$9:$A$28),VLOOKUP(Data!$B60,tabulka_kce_def,21,FALSE),VLOOKUP(Data!$B60,tabulka_panely_def,22,FALSE)) ->  | F60: =IF(Data!$B60<MIN(Panely!$A$9:$A$28),VLOOKUP(Data!$B60,tabulka_kce_def,26,FALSE),VLOOKUP(Data!$B60,tabulka_panely_def,31,FALSE)) ->  | G60: =IF(Data!$B60<MIN(Panely!$A$9:$A$28),VLOOKUP(Data!$B60,tabulka_kce_def,27,FALSE),VLOOKUP(Data!$B60,tabulka_panely_def,32,FALSE)) ->  | H60: =IF(VLOOKUP(Data!$B60,tabulka_kce_def,3,FALSE)="",Konstrukce!$G$1,IF(VLOOKUP(Data!$B60,tabulka_kce_def,3,FALSE)="z",Konstrukce!$G$2,VLOOKUP(Data!$B60,tabulka_kce_def,3,FALSE))) ->  | I60: =IF(Data!$B60<MIN(Panely!$A$9:$A$28),0,VLOOKUP(Data!$B60,tabulka_panely_def,25,FALSE)) ->  | J60: =IF(Data!$B60<MIN(Panely!$A$9:$A$28),VLOOKUP(Data!$B60,tabulka_kce_def,24,FALSE),VLOOKUP(Data!$B60,tabulka_panely_def,33,FALSE)) ->  | K60: =Konstrukce!$D$1 -> 15 | L60: =Konstrukce!$D$2 -> 15 | M60: =Konstrukce!$G$1 -> 0 | N60: =IF(Data!$B60<MIN(Panely!$A$9:$A$28),VLOOKUP(Data!$B60,tabulka_kce_def,59,FALSE),VLOOKUP(Data!$B60,tabulka_panely_def,63,FALSE)) ->  | O60: =IF(Data!$B60<MIN(Panely!$A$9:$A$28),VLOOKUP(Data!$B60,tabulka_kce_def,60,FALSE),VLOOKUP(Data!$B60,tabulka_panely_def,64,FALSE)) ->  | P60: =IF(Data!$B60<MIN(Panely!$A$9:$A$28),VLOOKUP(Data!$B60,tabulka_kce_def,61,FALSE),VLOOKUP(Data!$B60,tabulka_panely_def,65,FALSE)) ->  | Q60: =IF(Data!$B60<MIN(Panely!$A$9:$A$28),VLOOKUP(Data!$B60,tabulka_kce_def,25,FALSE),0) -> 0 | W60: = | X60: =IF(Data!$W60<MIN(Panely!$A$9:$A$28),VLOOKUP(Data!$W60,tabulka_kce_def,62,FALSE),VLOOKUP(Data!$W60,tabulka_panely_def,65,FALSE)) ->  | Y60: =IF(Data!$W60<MIN(Panely!$A$9:$A$28),VLOOKUP(Data!$W60,tabulka_kce_def,Y$1-20,FALSE),VLOOKUP(Data!$W60,tabulka_panely_def,Y$1-18,FALSE)) ->  | Z60: =IF(Data!$W60<MIN(Panely!$A$9:$A$28),VLOOKUP(Data!$W60,tabulka_kce_def,Z$1-20,FALSE),VLOOKUP(Data!$W60,tabulka_panely_def,Z$1-18,FALSE)) ->  | AA60: =IF(Data!$W60<MIN(Panely!$A$9:$A$28),VLOOKUP(Data!$W60,tabulka_kce_def,AA$1-20,FALSE),VLOOKUP(Data!$W60,tabulka_panely_def,AA$1-18,FALSE)) ->  | AB60: =IF(Data!$W60<MIN(Panely!$A$9:$A$28),VLOOKUP(Data!$W60,tabulka_kce_def,AB$1-20,FALSE),VLOOKUP(Data!$W60,tabulka_panely_def,AB$1-18,FALSE)) ->  | AC60: =IF(Data!$W60<MIN(Panely!$A$9:$A$28),VLOOKUP(Data!$W60,tabulka_kce_def,AC$1-20,FALSE),VLOOKUP(Data!$W60,tabulka_panely_def,AC$1-18,FALSE)) ->  | AD60: =IF(Data!$W60<MIN(Panely!$A$9:$A$28),VLOOKUP(Data!$W60,tabulka_kce_def,AD$1-20,FALSE),VLOOKUP(Data!$W60,tabulka_panely_def,AD$1-18,FALSE)) ->  | AE60: =IF(Data!$W60<MIN(Panely!$A$9:$A$28),VLOOKUP(Data!$W60,tabulka_kce_def,AE$1-20,FALSE),VLOOKUP(Data!$W60,tabulka_panely_def,AE$1-18,FALSE)) ->  | AF60: =IF(Data!$W60<MIN(Panely!$A$9:$A$28),VLOOKUP(Data!$W60,tabulka_kce_def,AF$1-20,FALSE),VLOOKUP(Data!$W60,tabulka_panely_def,AF$1-18,FALSE)) ->  | AG60: =IF(Data!$W60<MIN(Panely!$A$9:$A$28),VLOOKUP(Data!$W60,tabulka_kce_def,AG$1-20,FALSE),VLOOKUP(Data!$W60,tabulka_panely_def,AG$1-18,FALSE)) ->  | AH60: =IF(Data!$W60<MIN(Panely!$A$9:$A$28),VLOOKUP(Data!$W60,tabulka_kce_def,AH$1-20,FALSE),VLOOKUP(Data!$W60,tabulka_panely_def,AH$1-18,FALSE)) ->  | AI60: =IF(Data!$W60<MIN(Panely!$A$9:$A$28),VLOOKUP(Data!$W60,tabulka_kce_def,AI$1-20,FALSE),VLOOKUP(Data!$W60,tabulka_panely_def,AI$1-18,FALSE)) ->  | AJ60: =IF(Data!$W60<MIN(Panely!$A$9:$A$28),VLOOKUP(Data!$W60,tabulka_kce_def,AJ$1-20,FALSE),VLOOKUP(Data!$W60,tabulka_panely_def,AJ$1-18,FALSE)) ->  | AK60: =IF(Data!$W60<MIN(Panely!$A$9:$A$28),VLOOKUP(Data!$W60,tabulka_kce_def,AK$1-20,FALSE),VLOOKUP(Data!$W60,tabulka_panely_def,AK$1-18,FALSE)) ->  | AL60: =IF(Data!$W60<MIN(Panely!$A$9:$A$28),VLOOKUP(Data!$W60,tabulka_kce_def,AL$1-20,FALSE),VLOOKUP(Data!$W60,tabulka_panely_def,AL$1-18,FALSE)) ->  | AM60: =IF(Data!$W60<MIN(Panely!$A$9:$A$28),VLOOKUP(Data!$W60,tabulka_kce_def,AM$1-20,FALSE),VLOOKUP(Data!$W60,tabulka_panely_def,AM$1-18,FALSE)) ->  | AN60: 60 | AO60: =IF(Data!$W60<MIN(Panely!$A$9:$A$28),VLOOKUP(Data!$W60,tabulka_kce_def,63,FALSE),0) -> 0 | AP60: =IF(Data!$W60<MIN(Panely!$A$9:$A$28),VLOOKUP(Data!$W60,tabulka_kce_def,28,FALSE),1) -> 1 | AQ60: =IF(Data!$W60<MIN(Panely!$A$9:$A$28),VLOOKUP(Data!$W60,tabulka_kce_def,23,FALSE),VLOOKUP(Data!$W60,tabulka_panely_def,24,FALSE)) ->  | AS60: 0 | AU60: 0 | AV60: 0 | AX60: 0 | AY60: =IF(AND(W60>MAX(Konstrukce!A:A),ISNUMBER(W60)),1,0) -> 0
